Workbook

Sheet CAPA
B1: SPARTA | C1: Ver. | R1: DF | S1: Sudeste/Centro Oeste
B2: Helenístico LX | C2: 0.93 | M2: =C23 -> 152 | N2: =C22 -> 6612
C3: Macro Ver.
C4: 4.02
B6: ENF | L6: CodigoSamp | M6: Empresa | N6: Nome Completo | O6: IdSgtAg | P6: CodigoSamp | Q6: Supridora/suprida | R6: Financeiro 243 (TUSD) | S6: Databse Fin. 243
B7: =VLOOKUP(B6,TabEmpresas[],2,FALSE) -> ENF - Energisa Nova Friburgo - Distribuidora de Energia S.A. | C7: Reajuste | G7: Últ. Atualização | L7: 396 | M7: AES SUL | N7: AES-SUL - AES SUL Distribuidora Gaúcha de Energia S/A. | O7: 101 | P7: 396 | Q7: NÃO SUPRIDA
B8: CÓDIGO DA EMPRESA | C8: ="D" & TEXT(C23-100,"00") -> D52 | F8: Info iniciais | G8: 2022-05-09T11:25:18 | L8: 7019 | M8: AME | N8: Amazonas Distribuidora de Energia S/A | O8: 102 | P8: 7019 | Q8: NÃO SUPRIDA
B9: Data do Reajuste/Revisão Anterior | C9: 44369 | F9: Energia do ano anterior (CM compra, MWh Mercado, R$ Mercado) | L9: 383 | M9: AMPLA | N9: AMPLA - Ampla Energia e Serviços S/A | O9: 103 | P9: 383 | Q9: NÃO SUPRIDA
B10: Data de Reajuste/Revisão em Processamento | C10: 44734 | F10: Perda de RB /Perdas Regulatórias /TUSDgONS-RB | L10: 391 | M10: BANDEIRANTE | N10: BANDEIRANTE - Bandeirante Energia S/A. | O10: 104 | P10: 391 | Q10: NÃO SUPRIDA
F11: Financeiros ano anterior (CVA 5º dia útil, RTE restante) | L11: 370 | M11: BOAVISTA | N11: Boa Vista - Boa Vista Energia S/A | O11: 105 | P11: 370 | Q11: NÃO SUPRIDA
F12: Encargos ano anterior (não RTE) | L12: 386 | M12: BRAGANTINA | N12: BRAGANTINA- Empresa Elétrica Bragantina S/A. | O12: 142 | P12: 386 | Q12: NÃO SUPRIDA
F13: Dados da Revisão, Fator X e DecFec | L13: 5216 | M13: CAIUA | N13: CAIUÁ-D - Caiuá Distribuição de Energia S/A | O13: 106 | P13: 5216 | Q13: NÃO SUPRIDA
F14: Previsão de Subsidios dos Processos Anteriores | L14: 31 | M14: CEA | N14: CEA - Companhia de Eletricidade do Amapá | O14: 107 | P14: 31 | Q14: NÃO SUPRIDA
B15: Período de Referencia final | C15: =DATE(YEAR($C$10),MONTH($C$10)-1,1) -> 44682 | F15: Conexão ano anterior | L15: 44 | M15: CEAL | N15: CEAL - Companhia Energética de Alagoas | O15: 108 | P15: 44 | Q15: NÃO SUPRIDA
B16: Período de Referencia inicial | C16: =DATE(YEAR($C$10)-1,MONTH($C$10),1) -> 44348 | F16: Energia (CCEAR, Bil., Itaipu) | G16: 2022-05-23T18:05:05 | L16: 5160 | M16: CEB | N16: CEB-DIS - CEB Distribuição S/A | O16: 109 | P16: 5160 | Q16: NÃO SUPRIDA
B17: Índice IGPM na data Revisão/Reajuste | C17: =VLOOKUP(C15,Índices!$B$7:$F$500,2,FALSE) -> 1183.953 | F17: CCEAR | L17: 5707 | M17: CEEE | N17: CEEE-D - Companhia Estadual de Distribuição de Energia Elétrica | O17: 110 | P17: 5707 | Q17: NÃO SUPRIDA
B18: Índice IPCA na data Revisão/Reajuste | C18: =VLOOKUP(C15,Índices!$B$7:$F$500,3,FALSE) -> 6412.88 | L18: 5697 | M18: CELESC | N18: CELESC-DIS - Celesc Distribuição S.A. | O18: 111 | P18: 5697 | Q18: NÃO SUPRIDA
B19: IGPM para o período de Referência | C19: =VLOOKUP(DATE(YEAR($C$10),MONTH($C$10)-1,1),Índices!$B$7:$F$500,2,FALSE)/VLOOKUP(DATE(YEAR($C$9),MONTH($C$9)-1,1),Índices!$B$7:$F$500,2,FALSE)-1 -> 0.1072338722 | F19: Itaipu (Energia, Transporte, MUST) | L19: 6072 | M19: CELG | N19: CELG-D - Celg Distribuição S.A. | O19: 112 | P19: 6072 | Q19: NÃO SUPRIDA
B20: IPCA para o período de Referência | C20: =VLOOKUP(DATE(YEAR(C10),MONTH(C10)-1,1),Índices!$B$7:$F$500,3,FALSE)/VLOOKUP(DATE(YEAR($C$9),MONTH($C$9)-1,1),Índices!$B$7:$F$500,3,FALSE)-1 -> 0.1173121285 | F20: Cotas Lei/Angra | L20: 371 | M20: CELPA | N20: CELPA - Centrais Elétricas do Pará S/A. | O20: 113 | P20: 371 | Q20: NÃO SUPRIDA
B21: Dados Gerenciais | F21: Encargos DRP | G21: 2022-05-23T18:05:07 | L21: 43 | M21: CELPE | N21: CELPE - Companhia Energética de Pernambuco | O21: 114 | P21: 43 | Q21: NÃO SUPRIDA
B22: IdAgente | C22: =VLOOKUP(B6,TabEmpresas[],4,FALSE) -> 6612 | F22: Indicadores Econômicos / Dólar | G22: 2022-06-14T15:43:21 | H22: ataulizado | L22: 32 | M22: CELTINS | N22: CELTINS - Companhia de Energia Elétrica do Estado do Tocantins | O22: 115 | P22: 32 | Q22: NÃO SUPRIDA
B23: ID Concessão | C23: =VLOOKUP(B6,TabEmpresas[],3,FALSE) -> 152 | F23: Tudo de Mercado | G23: 2022-05-23T18:13:08 | L23: 37 | M23: CEMAR | N23: CEMAR - Companhia Energética do Maranhão | O23: 116 | P23: 37 | Q23: NÃO SUPRIDA
F24: Rede Básica e Conexão | G24: 2022-05-09T11:26:16 | L24: 405 | M24: CEMAT | N24: CEMAT - Centrais Elétricas Matogrossenses S/A. | O24: 117 | P24: 405 | Q24: NÃO SUPRIDA
B25: Quadro para vínculos | F25: Histórico de Tarifas B1 Residencial | G25: 2022-05-09T11:26:20 | L25: 4950 | M25: CEMIG | N25: CEMIG-D - CEMIG Distribuição S/A | O25: 118 | P25: 4950 | Q25: NÃO SUPRIDA
B26: Descrição | C26: valor | F26: CVA | G26: 2022-05-31T14:58:44 | H26: versão C | L26: 38 | M26: CEPISA | N26: CEPISA - Companhia Energética do Piauí | O26: 119 | P26: 38 | Q26: NÃO SUPRIDA
B27: (Exemplo) Efeito Consumidor Geral | C27: =LnkTxtEfeito -> 0.1919228451 | F27: CUSD | G27: 2022-05-09T11:26:18 | H27: ataulizado | L27: 369 | M27: CERON | N27: CERON - Centrais Elétricas de Rondônia S/A. | O27: 120 | P27: 369 | Q27: NÃO SUPRIDA
B28: Contrato de concessão | C28: 042/1999 | L28: 28 | M28: CERR | N28: CERR - Companhia Energética de Roraima | O28: 121 | P28: 28 | Q28: NÃO SUPRIDA
C29: 48500.004949/2021-15 | L29: 103 | M29: CHESP | N29: CHESP - Companhia Hidroelétrica São Patrício | O29: 123 | P29: 103 | Q29: SUPRIDA
B30: Período de Referencia | C30: =TEXT(C16,"mmmm/aaaa")& " a "&TEXT(C15,"mmmm/aaaa") -> junho/2021 a maio/2022 | L30: 75 | M30: CNEE | N30: CNEE - Companhia Nacional de Energia Elétrica | O30: 127 | P30: 75 | Q30: NÃO SUPRIDA
B31: Neutralidade Total | L31: 82 | M31: COCEL | N31: COCEL - Companhia Campolarguense de Energia | O31: 128 | P31: 82 | Q31: SUPRIDA
B32: CVA Saldo a Compensar | C32: =SUM(Financeiros!D27:D43) -> 275141.2585 | L32: 47 | M32: COELBA | N32: COELBA - Companhia de Eletricidade do Estado da Bahia | O32: 129 | P32: 47 | Q32: NÃO SUPRIDA
B33: Reversão CDE | L33: 39 | M33: COELCE | N33: COELCE - Companhia Energética do Ceará | O33: 130 | P33: 39 | Q33: NÃO SUPRIDA
B34: Diretor Relator Sorteado | L34: 2904 | M34: COOPERALIANÇA | N34: COOPERALIANÇA - Cooperativa Aliança | O34: 131 | P34: 2904 | Q34: SUPRIDA
L35: 2866 | M35: COPEL | N35: COPEL-DIS - Copel Distribuição S/A | O35: 132 | P35: 2866 | Q35: NÃO SUPRIDA
L36: 40 | M36: COSERN | N36: COSERN - Companhia Energética do Rio Grande do Norte | O36: 133 | P36: 40 | Q36: NÃO SUPRIDA
L37: 69 | M37: CPFL Jaguari | N37: CPFL Jaguari - Companhia Jaguari de Energia | O37: 124 | P37: 69 | Q37: NÃO SUPRIDA
L38: 71 | M38: CPFL Leste Paulista | N38: =TabEmpresas[[#This Row],[Empresa]]&" - Companhia Leste Paulista de Energia " -> CPFL Leste Paulista - Companhia Leste Paulista de Energia | O38: 134 | P38: 71 | Q38: NÃO SUPRIDA
L39: 70 | M39: CPFL Mococa | N39: =TabEmpresas[[#This Row],[Empresa]]&" - Companhia Luz e Força de Mococa " -> CPFL Mococa - Companhia Luz e Força de Mococa | O39: 125 | P39: 70 | Q39: NÃO SUPRIDA
L40: 72 | M40: CPFL Santa Cruz | N40: =TabEmpresas[[#This Row],[Empresa]]&" - Companhia Luz e Força Santa Cruz " -> CPFL Santa Cruz - Companhia Luz e Força Santa Cruz | O40: 126 | P40: 72 | Q40: NÃO SUPRIDA
L41: 73 | M41: CPFL Sul Paulista | N41: =TabEmpresas[[#This Row],[Empresa]]&" - Companhia Sul Paulista de Energia " -> CPFL Sul Paulista - Companhia Sul Paulista de Energia | O41: 137 | P41: 73 | Q41: NÃO SUPRIDA
L42: 63 | M42: CPFL Paulista | N42: CPFL-Paulista - Companhia Paulista de Força e Luz | O42: 136 | P42: 63 | Q42: NÃO SUPRIDA
L43: 2937 | M43: CPFL Piratininga | N43: CPFL- Piratininga - Companhia Piratininga de Força e Luz | O43: 135 | P43: 2937 | Q43: NÃO SUPRIDA
L44: 95 | M44: DEMEI | N44: DEMEI - Departamento Municipal de Energia de Ijuí | O44: 138 | P44: 95 | Q44: SUPRIDA
L45: 51 | M45: DMED | N45: =TabEmpresas[[#This Row],[Empresa]]&" - DME Distribuição S.A" -> DMED - DME Distribuição S.A | O45: 139 | P45: 51 | Q45: NÃO SUPRIDA
L46: 6611 | M46: EBO | N46: EBO - Energisa Borborema – Distribuidora de Energia S.A. | O46: 140 | P46: 6611 | Q46: NÃO SUPRIDA
B47: Deslocar mercado | C47: Não | L47: 5217 | M47: EDEVP | N47: EDEVP - Empresa de Distribuição de Energia Vale Paranapanema S/A | O47: 141 | P47: 5217 | Q47: NÃO SUPRIDA
B48: Data de processamento em simulação | L48: 385 | M48: ELEKTRO | N48: ELEKTRO - Elektro Eletricidade e Serviços S/A. | O48: 145 | P48: 385 | Q48: NÃO SUPRIDA
L49: 26 | M49: ELETROACRE | N49: ELETROACRE - Companhia de Eletricidade do Acre | O49: 146 | P49: 26 | Q49: NÃO SUPRIDA
L50: 398 | M50: ELETROCAR | N50: ELETROCAR - Centrais Elétricas de Carazinho S/A. | O50: 147 | P50: 398 | Q50: SUPRIDA
L51: 390 | M51: ELETROPAULO | N51: ELETROPAULO - Eletropaulo Metropolitana Eletricidade de São Paulo S/A | O51: 148 | P51: 390 | Q51: NÃO SUPRIDA
L52: 6585 | M52: EMG | N52: EMG - Energisa Minas Gerais - Distribuidora de Energia S.A. | O52: 150 | P52: 6585 | Q52: NÃO SUPRIDA
L53: 404 | M53: ENERSUL | N53: ENERSUL - Empresa Energética de Mato Grosso do Sul S/A. | O53: 151 | P53: 404 | Q53: NÃO SUPRIDA
L54: 6612 | M54: ENF | N54: ENF - Energisa Nova Friburgo - Distribuidora de Energia S.A. | O54: 152 | P54: 6612 | Q54: SUPRIDA
L55: 6600 | M55: EPB | N55: EPB - Energisa Paraíba - Distribuidora de Energia | O55: 153 | P55: 6600 | Q55: NÃO SUPRIDA
L56: 380 | M56: ESCELSA | N56: ESCELSA - Espírito Santo Centrais Elétricas S/A. | O56: 154 | P56: 380 | Q56: NÃO SUPRIDA
L57: 6587 | M57: ESE | N57: ESE - Energisa Sergipe - Distribuidora de Energia S.A. | O57: 155 | P57: 6587 | Q57: NÃO SUPRIDA
L58: 83 | M58: FORCEL | N58: FORCEL - Força e Luz Coronel Vivida Ltda | O58: 156 | P58: 83 | Q58: SUPRIDA
L59: 399 | M59: HIDROPAN | N59: HIDROPAN - Hidroelétrica Panambi S/A. | O59: 157 | P59: 399 | Q59: SUPRIDA
L60: 87 | M60: IENERGIA | N60: IENERGIA - Iguaçu Distribuidora de Energia Elétrica Ltda | O60: 158 | P60: 87 | Q60: NÃO SUPRIDA
L61: 213 | M61: JARI | N61: JARI - Jari Celulose S/A | O61: 159 | P61: 213 | Q61: NÃO SUPRIDA
L62: 88 | M62: JOÃO CESA | N62: JOÃO CESA - Empresa Força e Luz João Cesa Ltda | O62: 143 | P62: 88 | Q62: SUPRIDA
L63: 382 | M63: LIGHT | N63: LIGHT - Light Serviços de Eletricidade S/A. | O63: 160 | P63: 382 | Q63: NÃO SUPRIDA
L64: 401 | M64: MUX Energia | N64: MUX Energia - Muxfeldt Marin & Cia. Ltda | O64: 161 | P64: 401 | Q64: SUPRIDA
L65: 84 | M65: OESTE | N65: CFLO - Companhia Força e Luz do Oeste | O65: 122 | P65: 84 | Q65: SUPRIDA
L66: 397 | M66: RGE | N66: RGE - Rio Grande Energia S/A. | O66: 162 | P66: 397 | Q66: NÃO SUPRIDA
L67: 381 | M67: SANTA MARIA | N67: SANTA MARIA - Empresa Luz e Força Santa Maria S/A. | O67: 149 | P67: 381 | Q67: SUPRIDA
L68: 46 | M68: SULGIPE | N68: SULGIPE - Companhia Sul Sergipana de Eletricidade | O68: 163 | P68: 46 | Q68: SUPRIDA
L69: 400 | M69: UHENPAL | N69: UHENPAL - Usina Hidroelétrica Nova Palma Ltda. | O69: 164 | P69: 400 | Q69: SUPRIDA
L70: 86 | M70: URUSSANGA | N70: URUSSANGA - Empresa Força e Luz Urussanga Ltda | O70: 144 | P70: 86 | Q70: SUPRIDA
L71: 1000040 | M71: ENERGISA Sul Sudeste | N71: ENERGISA SUL SUDESTE | O71: 165 | P71: 1000040 | Q71: NÃO SUPRIDA
L72: 1000041 | M72: NOVA SANTA CRUZ | N72: NOVA SANTA CRUZ | O72: 166 | P72: 1000041 | Q72: NÃO SUPRIDA
Q73: NÃO SUPRIDA
Q74: NÃO SUPRIDA

Sheet BD
B1: Banco de Dados | M1: Anexo II | N1: =Resultado!$D$6 -> 0.1840364399
B2: =CAPA!B6 -> ENF | M2: Anexo I | N2: =Resultado!$D$8 -> 0.1955714799
B5: Informações do ano anterior | G5: Dados de abertura (Neutralidade e CVA saldo a compensar) | L5: Dados de Energia | S5: Dados para Revisão
B7: Encargos | G7: Encargo | H7: Valor | I7: Norma | L7: Cotas | M7: Valor da "Cota" | N7: Ano | O7: Custo Médio da Cota | P7: Energia MWh | S7: item | T7: Descrição | U7: Detalhe | V7: Valor
B8: CDE Covid TE | C8: =D8 -> 1993306.613 | D8: =H17*H18 -> 1993306.613 | G8: CCC | L8: Angra | M8: 0 | N8: 2022 | O8: 349.15 | P8: 0 | S8: 201 | T8: Financeiro de RTP | U8: Conselho de Consumidor | V8: 0.001
B9: CDE Covid TUSD | C9: =D9 -> 793321.8896 | D9: =H17*H19 -> 793321.8896 | G9: CDE | H9: 27363320.38 | I9: REH 3.034/2022 | S9: 202 | T9: Financeiro de RTP | U9: Conselho de Consumidor | V9: 0.159
B10: TFSEE | C10: 287392.4075 | D10: ok | G10: CFURH | S10: 203 | T10: Financeiro de RTP | U10: Conselho de Consumidor | V10: 0.84
B11: CDE | C11: 17878990.69 | D11: ok | G11: ESS/EER | L11: Ano | M11: Cota Itaipu
G12: PROINFA | H12: 4509087.062 | I12: ReH 2.995/2021
B13: ESS/ERR | C13: 0 | G13: ONS | H13: 0 | I13: Não se aplica
B14: PROINFA | C14: 2851625.711 | D14: ok | G14: TFSEE
B15: P&D | C15: 1861714.401 | D15: ok | G15: EER
B16: ONS | C16: 0 | G16: TFSEE Fator de Carga | H16: 0.66
G17: CDE Covid | H17: 2786628.503 | I17: Previsão-2022
B18: Pmix | C18: 259.9959626 | D18: ok | F18: =Encargos!H24 -> 0.7153112125 | G18: CDE Covid TE% | H18: =0.328822415688648*0+F18 -> 0.7153112125
B19: PN2021 | C19: 0.000189 | D19: ok | F19: =Encargos!H23 -> 0.2846887875 | G19: CDE Covid TUSD% | H19: =0.671177584311352*0+F19 -> 0.2846887875
B20: PN2022 | C20: 0.000189 | D20: ok
B21: PT2021 | C21: 0.05098 | D21: ok | G21: Informações de Postergação
B22: Perda RB total | C22: 0 | L22: Mês | M22: Potência | N22: Tarifa | O22: Perdas | P22: Energia
G23: Tipo | H23: Valor
B24: CVA RB | C24: 0 | G24: Data Postergada | H24: 44734
B25: CVA CCC | C25: 0 | G25: Data Anterior | H25: 44730
B26: CVA CDE | C26: 1207611.764 | D26: ok | G26: Diferença de Dias | H26: 4
B27: CVA CFURH | G27: MesesAdin | H27: 0
B28: CVA ESS\ERR | C28: 0 | G28: Reversão Subvenção CDE
B29: CVA PROINFA | C29: 244224.5979 | D29: ok | G29: Data 4CRT | H29: 42543
B30: CVA TRANS. ITAIPU | C30: 0
B31: CVA ENERGIA | C31: 5440359.327 | D31: ok
B32: CVA CDE E | C32: -303386.2065 | D32: ok
G35: Nome | H35: Valor
G36: TUSDg Export DRP | H36: 0 | L36: Mês | M36: Potência | N36: Tarifa DRA | O36: Tarifa DRP | P36: Colunas1
G37: TUSDg ONS DRP | H37: 0
G38: TUSDg ONS DRA | H38: 0
B39: Rede Básica | G39: TUSDg Export DRA | H39: 0
C40: 0
G42: Fator X | H42: Valor
G43: fatorx_t | H43: -0.0057
B44: Mercado | G44: fatorx_pd | H44: 0
B45: MWh | C45: 368381.622
C46: 206033214.7 | G46: DecFec Processo Anterior | H46: Valor
G47: DEC A-2
B48: 2022 | C48: 7058.13901 | G48: DEC A-1
B49: Detalhamento de Encargos ESS e CDE | G49: FEC A-2
G50: FEC A-1 | L50: Dado | M50: Valor | N50: Início | O50: Fim
L51: MUST | M51: 9039 | N51: 44013 | O51: 44377
G52: Dados de dólar | H52: Valor | L52: MUST | M52: 7919 | N52: 44378 | O52: 44742
B53: Ciclo de Revisão | C53: 5 | G53: Dólar médio | H53: 4.90582381 | L53: Potência Max | M53: 10935 | N53: 44197 | O53: 44561
G54: Data Inicial | H54: 44690 | L54: Potência Max | M54: 10775 | N54: 44562 | O54: 44926
G55: Data Final | H55: 44718
G56: Último Dado Diponível | H56: 44721 | L56: Dados de perda | M56: Valor | O56: Agente | P56: Ressarcimento P&D
B57: Subsídios Concedidos (sem ajuste) | L57: Perdas RB
B58: Mês de Início | C58: Carga Fonte | D58: Geração | E58: Distribuição | F58: Água, Esgoto e Saneamento | G58: Rural | H58: Irrigante/Aquicultor | L58: Perdas DITs
B59: 2021-06-01 | C59: 241747.6625 | D59: 1460.509167 | E59: 0 | F59: 23795.325 | G59: 35493.265 | H59: 7745.2025
L62: Informações de DR1
L63: fator PB1 | M63: 1.057014541
L64: Informações de RI
B65: Data | C65: Tipo | D65: Valor | E65: Valor IGPM | F65: Valor IPCA | G65: EixoRef
B66: =DATE(YEAR(CAPA!C10),MONTH(CAPA!C10),1) -> 2022-06-01 | C66: =IF(CAPA!C7="Revisão",1,0) -> 0 | D66: =Resultado!L11 -> 821.9287722 | E66: =IFERROR(VLOOKUP(EDATE($B66,-1),Índices!$B$6:$F$500,2,FALSE)/VLOOKUP(EDATE(MIN($B$67:$B$81),-1),Índices!$B$6:$F$500,2,FALSE)*VLOOKUP(MIN($B$67:$B$81),$B$67:$D$81,3,FALSE),0) -> 849.7109196 | F66: =IFERROR(VLOOKUP(EDATE($B66,-1),Índices!$B$6:$F$500,3,FALSE)/VLOOKUP(EDATE(MIN($B$67:$B$81),-1),Índices!$B$6:$F$500,3,FALSE)*VLOOKUP(MIN($B$67:$B$81),$B$67:$D$81,3,FALSE),0) -> 641.6307633 | G66: =IF(B66<>"",150+1,"") -> 151 | L66: Tipo | M66: % RI | O66: Data | P66: Fat Bandeiras
B67: 2021-06-01 | C67: 1 | D67: 687.5493759 | L67: PctRIResidencial | M67: 0.0007 | O67: 44348 | P67: 1275554.67
B68: 2020-07-01 | C68: COVID | D68: 662.44 | H68: verificado | L68: PctRIIndustrial | M68: 0 | O68: 44378 | P68: 1957163.5
B69: 2019-06-01 | C69: Reajuste | D69: 649.89 | L69: PctRICOMERCIAL | M69: 0.0004 | O69: 44409 | P69: 2274519.46
B70: 2018-06-01 | C70: Reajuste | D70: 595.67 | L70: PctRIRURAL | M70: 0 | O70: 44440 | P70: 2965537.36
B71: 2017-06-01 | C71: Reajuste | D71: 524.75 | L71: PctRILUMPUBLICA | M71: 0 | O71: 44470 | P71: 3239885.64
B72: 2017-04-01 | C72: RTE | D72: 549.36 | L72: PctRIPODERPUBLICO | M72: 0 | O72: 44501 | P72: 3271293.95
B73: 2016-06-01 | C73: Revisão | D73: 555.17 | L73: PctRISERVPUBLICO | M73: 0 | O73: 44531 | P73: 3328793.68
B74: 2015-06-01 | C74: Reajuste | D74: 520.54 | O74: 44562 | P74: 3182924.99
B75: 2015-03-01 | C75: RTE | D75: 459.44 | L75: Tipo | M75: % RI Anterior | O75: 44593 | P75: 3017267.37
B76: 2014-06-01 | C76: Reajuste | D76: 368.2 | L76: PctRIResidencial | M76: 0.00077 | O76: 44621 | P76: 3295781.13 | Q76: atualizado em 8/6
B77: 2013-06-01 | C77: Reajuste | D77: 324.01 | L77: PctRIIndustrial | M77: 1e-05 | O77: 44652 | P77: 2541051.59
B78: 2013-01-01 | C78: RTE | D78: 285.24 | L78: PctRICOMERCIAL | M78: 0.00052 | O78: 44682 | P78: 0 | Q78: finalizou em abril
B79: 2012-06-01 | C79: Revisão | D79: 348.18 | L79: PctRIRURAL | M79: 0.00014
L80: PctRILUMPUBLICA | M80: 0
L81: PctRIPODERPUBLICO | M81: 0
L82: PctRISERVPUBLICO | M82: 0
B84: Tabela de Resumo de Montante DRP ano anterior/ Montante Apurado pelo Mercado
B85: detalhe_grupo | C85: GrupoTarifa | D85: tipoBase | E85: tipofatura | F85: ValorCTAnterior_Sum | G85: ValorAnt_Sum | L85: Prcesso Anterior | N85: RTE
L86: MWh | M86: R$ | N86: MWh | O86: R$ | S86: DthEfetivaPagamento | T86: VlrGarantiaFinanceira
I87: BILATERAL | K87: valor | L87: 335907.9167 | M87: 89375019.39 | P87: verificado
I88: CCGF | K88: valor | L88: 0 | M88: 0
I89: PROINFA | K89: valor | L89: 7190.143831
I90: SOBRA/EXPOSIÇÃO | K90: valor | L90: -28137.60725 | M90: -7486573.16
V105: Empresa | W105: AT | X105: MT | Y105: BT
V106: 167 | W106: 0.02134 | X106: 0.35825 | Y106: 0.62041
V107: 102 | W107: 0.064 | X107: 0.32003 | Y107: 0.61596
V108: 103 | W108: 0.02996 | X108: 0.27106 | Y108: 0.69898
V109: 104 | W109: 0.07171 | X109: 0.2909 | Y109: 0.63739
V110: 105 | W110: 0.00823 | X110: 0.24677 | Y110: 0.745
I111: Agente | J111: idagente | K111: indexador | L111: database | M111: RAP do ciclo | N111: Colunas1 | O111: RAP atualizada | V111: 165 | W111: 0.00795 | X111: 0.22554 | Y111: 0.76651
O112: =M112*VLOOKUP(CAPA!C15,Índices!$B$6:$F$626,IF(BD!K112="IPCA",3,2),FALSE)/VLOOKUP(L112,Índices!$B$6:$F$626,IF(BD!K112="IPCA",3,2),FALSE) ->  | V112: 108 | W112: 0.06098 | X112: 0.1711 | Y112: 0.76792
O113: =M113*VLOOKUP(CAPA!C16,Índices!$B$6:$F$626,IF(BD!K113="IPCA",3,2),FALSE)/VLOOKUP(L113,Índices!$B$6:$F$626,IF(BD!K113="IPCA",3,2),FALSE) ->  | V113: 109 | W113: 0.01034 | X113: 0.24366 | Y113: 0.746
O114: =M114*VLOOKUP(CAPA!C17,Índices!$B$6:$F$626,IF(BD!K114="IPCA",3,2),FALSE)/VLOOKUP(L114,Índices!$B$6:$F$626,IF(BD!K114="IPCA",3,2),FALSE) ->  | V114: 110 | W114: 0.01165 | X114: 0.24322 | Y114: 0.74513
O115: =M115*VLOOKUP(CAPA!C18,Índices!$B$6:$F$626,IF(BD!K115="IPCA",3,2),FALSE)/VLOOKUP(L115,Índices!$B$6:$F$626,IF(BD!K115="IPCA",3,2),FALSE) ->  | V115: 111 | W115: 0.03791 | X115: 0.37961 | Y115: 0.58248
O116: =M116*VLOOKUP(CAPA!C19,Índices!$B$6:$F$626,IF(BD!K116="IPCA",3,2),FALSE)/VLOOKUP(L116,Índices!$B$6:$F$626,IF(BD!K116="IPCA",3,2),FALSE) ->  | V116: 112 | W116: 0.02273 | X116: 0.26361 | Y116: 0.71367
O117: =M117*VLOOKUP(CAPA!C20,Índices!$B$6:$F$626,IF(BD!K117="IPCA",3,2),FALSE)/VLOOKUP(L117,Índices!$B$6:$F$626,IF(BD!K117="IPCA",3,2),FALSE) ->  | V117: 113 | W117: 0.01263 | X117: 0.23345 | Y117: 0.75392
O118: =M118*VLOOKUP(CAPA!C21,Índices!$B$6:$F$626,IF(BD!K118="IPCA",3,2),FALSE)/VLOOKUP(L118,Índices!$B$6:$F$626,IF(BD!K118="IPCA",3,2),FALSE) ->  | V118: 114 | W118: 0.01726 | X118: 0.23794 | Y118: 0.7448
O119: =M119*VLOOKUP(CAPA!C22,Índices!$B$6:$F$626,IF(BD!K119="IPCA",3,2),FALSE)/VLOOKUP(L119,Índices!$B$6:$F$626,IF(BD!K119="IPCA",3,2),FALSE) ->  | V119: 115 | W119: 0.00993 | X119: 0.23087 | Y119: 0.7592
O120: =M120*VLOOKUP(CAPA!C23,Índices!$B$6:$F$626,IF(BD!K120="IPCA",3,2),FALSE)/VLOOKUP(L120,Índices!$B$6:$F$626,IF(BD!K120="IPCA",3,2),FALSE) ->  | S120: iddet1 | T120: valor | V120: 116 | W120: 0.00806 | X120: 0.16835 | Y120: 0.82359
O121: =M121*VLOOKUP(CAPA!C24,Índices!$B$6:$F$626,IF(BD!K121="IPCA",3,2),FALSE)/VLOOKUP(L121,Índices!$B$6:$F$626,IF(BD!K121="IPCA",3,2),FALSE) ->  | S121: 56 | T121: 44711 | V121: 117 | W121: 0.03028 | X121: 0.29131 | Y121: 0.67841
O122: =M122*VLOOKUP(CAPA!C25,Índices!$B$6:$F$626,IF(BD!K122="IPCA",3,2),FALSE)/VLOOKUP(L122,Índices!$B$6:$F$626,IF(BD!K122="IPCA",3,2),FALSE) ->  | V122: 118 | W122: 0.04215 | X122: 0.2081 | Y122: 0.74975
O123: =M123*VLOOKUP(CAPA!C26,Índices!$B$6:$F$626,IF(BD!K123="IPCA",3,2),FALSE)/VLOOKUP(L123,Índices!$B$6:$F$626,IF(BD!K123="IPCA",3,2),FALSE) ->  | V123: 119 | W123: 0.01807 | X123: 0.11713 | Y123: 0.8648
O124: =M124*VLOOKUP(CAPA!C27,Índices!$B$6:$F$626,IF(BD!K124="IPCA",3,2),FALSE)/VLOOKUP(L124,Índices!$B$6:$F$626,IF(BD!K124="IPCA",3,2),FALSE) ->  | V124: 120 | W124: - | X124: 0.17688 | Y124: 0.82312
O125: =M125*VLOOKUP(CAPA!C28,Índices!$B$6:$F$626,IF(BD!K125="IPCA",3,2),FALSE)/VLOOKUP(L125,Índices!$B$6:$F$626,IF(BD!K125="IPCA",3,2),FALSE) ->  | V125: 123 | W125: - | X125: 0.13612 | Y125: 0.86388
O126: =M126*VLOOKUP(CAPA!C29,Índices!$B$6:$F$626,IF(BD!K126="IPCA",3,2),FALSE)/VLOOKUP(L126,Índices!$B$6:$F$626,IF(BD!K126="IPCA",3,2),FALSE) ->  | V126: 166 | W126: 0.04257 | X126: 0.29652 | Y126: 0.66092
O127: =M127*VLOOKUP(CAPA!C30,Índices!$B$6:$F$626,IF(BD!K127="IPCA",3,2),FALSE)/VLOOKUP(L127,Índices!$B$6:$F$626,IF(BD!K127="IPCA",3,2),FALSE) ->  | V127: 128 | W127: - | X127: 0.40427 | Y127: 0.59573
O128: =M128*VLOOKUP(CAPA!C31,Índices!$B$6:$F$626,IF(BD!K128="IPCA",3,2),FALSE)/VLOOKUP(L128,Índices!$B$6:$F$626,IF(BD!K128="IPCA",3,2),FALSE) ->  | V128: 129 | W128: 0.02905 | X128: 0.24895 | Y128: 0.722
O129: =M129*VLOOKUP(CAPA!C32,Índices!$B$6:$F$626,IF(BD!K129="IPCA",3,2),FALSE)/VLOOKUP(L129,Índices!$B$6:$F$626,IF(BD!K129="IPCA",3,2),FALSE) ->  | V129: 130 | W129: 0.0175 | X129: 0.14397 | Y129: 0.83853
O130: =M130*VLOOKUP(CAPA!C33,Índices!$B$6:$F$626,IF(BD!K130="IPCA",3,2),FALSE)/VLOOKUP(L130,Índices!$B$6:$F$626,IF(BD!K130="IPCA",3,2),FALSE) ->  | S130: Nível | T130: Mercado Faturado A-6 | V130: 131 | W130: - | X130: 0.30099 | Y130: 0.69901
O131: =M131*VLOOKUP(CAPA!C34,Índices!$B$6:$F$626,IF(BD!K131="IPCA",3,2),FALSE)/VLOOKUP(L131,Índices!$B$6:$F$626,IF(BD!K131="IPCA",3,2),FALSE) ->  | S131: BT | T131: 249145.511 | V131: 132 | W131: 0.02757 | X131: 0.26424 | Y131: 0.70819
O132: =M132*VLOOKUP(CAPA!C35,Índices!$B$6:$F$626,IF(BD!K132="IPCA",3,2),FALSE)/VLOOKUP(L132,Índices!$B$6:$F$626,IF(BD!K132="IPCA",3,2),FALSE) ->  | S132: AT | T132: 11008.5 | V132: 133 | W132: 0.01856 | X132: 0.19536 | Y132: 0.78608
S133: MT | T133: 92527.426 | V133: 135 | W133: 0.04788 | X133: 0.27054 | Y133: 0.68158
V134: 136 | W134: 0.06732 | X134: 0.35547 | Y134: 0.57721
V135: 138 | W135: - | X135: 0.07651 | Y135: 0.92349
V136: 139 | W136: - | X136: 0.35483 | Y136: 0.64517
V137: 140 | W137: 0.01004 | X137: 0.21058 | Y137: 0.77938
V138: 143 | W138: - | X138: 0.20409 | Y138: 0.79591
V139: 144 | W139: - | X139: 0.48131 | Y139: 0.51869
A140: NumBar | B140: Nome Conexão | C140: Tensão | D140: Posto Tarifário | E140: Tarifas RB - DRA | F140: Tarifa RB - DRP | G140: Tarifas Fronteira - DRA | H140: Tarifa Fronteira - DRP | I140: M01 | J140: M02 | K140: M03 | L140: M04 | M140: M05 | N140: M06 | O140: M07 | P140: M08 | Q140: M09 | R140: M10 | S140: M11 | T140: M12 | V140: 145 | W140: 0.03725 | X140: 0.29306 | Y140: 0.66969
W141: - | X141: 0.14124 | Y141: 0.85876
V142: 147 | W142: - | X142: 0.20977 | Y142: 0.79023
V143: 148 | W143: 0.03455 | X143: 0.23757 | Y143: 0.72788
V144: 149 | W144: - | X144: 0.17399 | Y144: 0.82601
V145: 150 | W145: 0.03635 | X145: 0.17413 | Y145: 0.78952
V146: 151 | W146: 0.02735 | X146: 0.28351 | Y146: 0.68915
V147: 152 | W147: 0.00215 | X147: 0.1412 | Y147: 0.85665
V148: 153 | W148: 0.03606 | X148: 0.17601 | Y148: 0.78793
V149: 154 | W149: 0.12913 | X149: 0.26626 | Y149: 0.60462
V150: 155 | W150: 0.04008 | X150: 0.23225 | Y150: 0.72768
V151: 156 | W151: - | X151: 0.35985 | Y151: 0.64015
V152: 157 | W152: - | X152: 0.15963 | Y152: 0.84037
V153: 158 | W153: - | X153: 0.33049 | Y153: 0.66951
V154: 160 | W154: 0.1013 | X154: 0.22818 | Y154: 0.67051
V155: 161 | W155: - | X155: 0.28355 | Y155: 0.71645
V156: 163 | W156: 0.03507 | X156: 0.1664 | Y156: 0.79853
V157: 164 | W157: - | X157: 0.12897 | Y157: 0.87103
B441: Transmissora | C441: Indice de atualização | D441: ENCARGO DE CONEXÃO repassável | E441: Instalações com Estabelecimento de RAP que entraram em operação | F441: PA para repasse a tarifa | G441: PA Qualidade DIT | H441: ENCARGO DE CONEXÃO ou PA não rapassável a tarifa (REN 67/2004 ou 68/2004) | I441: PA Empreendimento Autorizado sem estabelecimento prévio de RAP | J441: Contrato | K441: Estimativa Total do Encargo de Conexão
B457: Tabela de Financeiros para o cálculo da Neutralidade | G457: Tabela de Financeiros para o cálculo da Neutralidade de RB | M457: Tabela de Financeiros para o cálculo da Neutralidade CVA processamento
B458: Grupo Tarifa | C458: Detalhe Grupo | D458: Valor | E458: Percentual | G458: Tipo | H458: Detalhe | I458: Posto | J458: Unidade | K458: Valor | M458: Grupo Tarifa | N458: Detalhe Grupo | O458: Valor | P458: Percentual
B459: ENCARGO | C459: CDE | D459: -2022024.041 | G459: CUSTO | H459: CONEXÃO D | J459: R$ | K459: 0 | M459: ENCARGO | N459: CDE | O459: 1187069.297
B460: ENCARGO | C460: CDE Energia | D460: 1791.893577 | G460: CUSTO | H460: CONEXÃO T | J460: R$ | K460: 0 | M460: ENCARGO | N460: CDE Energia | O460: -308916.45
B461: ENCARGO | C461: P&D | D461: 1.197409319 | G461: CUSTO | H461: EUSD | J461: R$ | K461: 46368097.16 | M461: ENCARGO | N461: PROINFA | O461: 278449.8954
B462: ENCARGO | C462: PROINFA | D462: 84599.79697 | G462: CUSTO | H462: EUST - FR | J462: R$ | K462: 0 | M462: ENERGIA | N462: ENERGIA REQUERIDA SEM PERDAS | O462: 4158811.236
B463: ENCARGO | C463: TFSEE | D463: -19326.89318 | G463: CUSTO | H463: EUST - ITAIPU | J463: R$ | K463: 0 | M463: ENERGIA | N463: PERDAS NÃO TÉCNICAS | O463: 675.0832827
B464: ENERGIA | C464: ENERGIA REQUERIDA SEM PERDAS | D464: -4040631.041 | G464: CUSTO | H464: EUST - RB | J464: R$ | K464: 0 | M464: ENERGIA | N464: PERDAS TÉCNICAS | O464: 278899.6268
B465: ENERGIA | C465: PERDAS NÃO TÉCNICAS | D465: -655.8995619 | G465: CUSTO | H465: TRANSPORTE ITAIPU | J465: R$ | K465: 0
B466: ENERGIA | C466: PERDAS TÉCNICAS | D466: -270974.186 | G466: CUSTO | H466: TUSDg ONS (A2) | J466: R$ | K466: 0
B467: ENERGIA | C467: reservado para energia | D467: 89577.44119 | G467: CUSTO | H467: TUSDg T (A2) | J467: R$ | K467: 0
B468: Receita Irrecuperável | D468: 713.2062478 | G468: PARÂMETRO | I468: FORA PONTA | J468: MW | K468: 0
B469: TRANSPORTE TERCEIROS | C469: EUSD | D469: 2580784.609 | G469: PARÂMETRO | I469: PONTA | J469: MW | K469: 0
B470: Parcela B | D470: -462519.4115 | G470: PARÂMETRO | H470: EUST - FR | I470: FORA PONTA | J470: R$ | K470: 0
B471: Não se Aplica | C471: (Perm) Ajuste Rede Básica | D471: -12844.53121 | G471: PARÂMETRO | H471: EUST - FR | I471: PONTA | J471: R$ | K471: 0
G472: PARÂMETRO | H472: EUST - RB | I472: FORA PONTA | J472: R$ | K472: 0
G473: PARÂMETRO | H473: EUST - RB | I473: PONTA | J473: R$ | K473: 0
G479: Tabela CUSTOS_BE_FR_ONS_T
G480: Nome | H480: Valor
G481: BE_TUSDG_ONS | H481: 0
G482: BE_TUSDG_T | H482: 0
G483: BE_TUSD_FR | H483: 0
G484: Evento | H484: 0
B552: Empresa | C552: idsgtag | D552: dtConv | E552: VlrMontante | F552: VlrTarOutros | G552: VlrTarB4a | H552: VlrTarB4b
B553: ENF - ENERGISA NF | C553: 152 | D553: 20627 | E553: 0
B559: Grupo Tarifa | C559: Detalhe Grupo | D559: Det3 | E559: Valor | G559: Grupo Tarifa | H559: Detalhe Grupo | I559: Det3 | J559: Valor
B560: ENCARGO | C560: CDE | D560: Covid CVA Saldo a Compensar | E560: -1131251.689 | G560: ENCARGO | H560: CDE | I560: Covid CVA | J560: -42555.29023
B561: ENCARGO | C561: CDE | D561: Covid Neutralidade | E561: -579083.2507 | G561: ENCARGO | H561: PROINFA | I561: Covid CVA | J561: 29773.47518
B562: ENCARGO | C562: CDE Energia | D562: Covid Neutralidade | E562: -2.116043289e-05 | G562: ENERGIA | H562: ENERGIA REQUERIDA SEM PERDAS | I562: Covid CVA | J562: -1031781.244
B563: ENCARGO | C563: PROINFA | D563: Covid CVA Saldo a Compensar | E563: 203152.6712 | G563: ENERGIA | H563: PERDAS NÃO TÉCNICAS | I563: Covid CVA | J563: -167.4849446
B564: ENCARGO | C564: PROINFA | D564: Covid Neutralidade | E564: -83544.02763 | G564: ENERGIA | H564: PERDAS TÉCNICAS | I564: Covid CVA | J564: -69193.66799
B565: ENCARGO | C565: TFSEE | D565: Covid Neutralidade | E565: -13021.03597
B566: ENERGIA | C566: ENERGIA REQUERIDA SEM PERDAS | D566: Covid CVA Saldo a Compensar | E566: -4001669.437
B567: ENERGIA | C567: PERDAS NÃO TÉCNICAS | D567: Covid CVA Saldo a Compensar | E567: -649.5750797
B568: ENERGIA | C568: PERDAS TÉCNICAS | D568: Covid CVA Saldo a Compensar | E568: -268361.3295

Sheet Entrada
B1: Entrada de parâmetros para cálculo tarifário
B4: Energia | D4: Últ. Atualização | F4: Parâmetros para Revisão | P4: ="Caso de OR para a empresa é: " &IF(BD!C53=4,"caso 1","caso 3") -> Caso de OR para a empresa é: caso 3
D6: 44690 | F6: CAPEX - Ativos de Distribuição | J6: Custo Operacional Real do(s) último(s) ano(s) | P6: Outras Receitas - Caso 1 e 2 | Q6: Memorando 147/2022-SFF/ANEEL, de 24/05/2022 - 48536.001830/2022-00.
B7: Montante de Geração Própria | D7: 44690 | F7: (1) Ativo Imobilizado em Serviço (Valor Novo de Reposição) | G7: =G71*VLOOKUP(DATE(YEAR(CAPA!$C$10),MONTH(CAPA!$C$10)-1,1),Índices!$B$135:$D$638,3,0)/VLOOKUP(DATE(YEAR($G$70),MONTH($G$70)-1,1),Índices!$B$135:$D$638,3,0) ->  | J7: Ano do Custo Operacional | P7: Tipo de Receita | Q7: =UDEROR!G12 -> 2022-05-01 | R7: =UDEROR!H12 -> 2022-04-01 | S7: =UDEROR!I12 -> 2022-03-01 | T7: =UDEROR!J12 -> 2022-02-01 | U7: =UDEROR!K12 -> 2022-01-01 | V7: =UDEROR!L12 -> 2021-12-01 | W7: =UDEROR!M12 -> 2021-11-01 | X7: =UDEROR!N12 -> 2021-10-01 | Y7: =UDEROR!O12 -> 2021-09-01 | Z7: =UDEROR!P12 -> 2021-08-01 | AA7: =UDEROR!Q12 -> 2021-07-01 | AB7: =UDEROR!R12 -> 2021-06-01 | AC7: =UDEROR!S12 -> 00:00:00 | AD7: =UDEROR!T12 -> 00:00:00 | AE7: =UDEROR!U12 -> 00:00:00 | AF7: =UDEROR!V12 -> 00:00:00 | AG7: =UDEROR!W12 -> 00:00:00 | AH7: =UDEROR!X12 -> 00:00:00 | AI7: =UDEROR!Y12 -> 00:00:00 | AJ7: =UDEROR!Z12 -> 00:00:00 | AK7: =UDEROR!AA12 -> 00:00:00 | AL7: =UDEROR!AB12 -> 00:00:00 | AM7: =UDEROR!AC12 -> 00:00:00 | AN7: =UDEROR!AD12 -> 00:00:00 | AO7: =UDEROR!AE12 -> 00:00:00 | AP7: =UDEROR!AF12 -> 00:00:00 | AQ7: =UDEROR!AG12 -> 00:00:00 | AR7: =UDEROR!AH12 -> 00:00:00 | AS7: =UDEROR!AI12 -> 00:00:00 | AT7: =UDEROR!AJ12 -> 00:00:00 | AU7: =UDEROR!AK12 -> 00:00:00 | AV7: =UDEROR!AL12 -> 00:00:00 | AW7: =UDEROR!AM12 -> 00:00:00 | AX7: =UDEROR!AN12 -> 00:00:00 | AY7: =UDEROR!AO12 -> 00:00:00 | AZ7: =UDEROR!AP12 -> 00:00:00 | BA7: =UDEROR!AQ12 -> 00:00:00 | BB7: =UDEROR!AR12 -> 00:00:00 | BC7: =UDEROR!AS12 -> 00:00:00 | BD7: =UDEROR!AT12 -> 00:00:00
B8: Custo médio da Geração Própria | D8: 44690 | F8: (2) Índice de Aproveitamento Integral | G8: =G72*VLOOKUP(DATE(YEAR(CAPA!$C$10),MONTH(CAPA!$C$10)-1,1),Índices!$B$135:$D$638,3,0)/VLOOKUP(DATE(YEAR($G$70),MONTH($G$70)-1,1),Índices!$B$135:$D$638,3,0) ->  | J8: CONTA PESSOAL | P8: Serviços Cobráveis | Q8: 5731.69 | R8: 5731.69 | S8: 7001.28 | T8: 7580.2 | U8: 8806.52 | V8: 11498.25 | W8: 11201.6 | X8: 13155.32 | Y8: 13640.66 | Z8: 17241.31 | AA8: 8861.68 | AB8: 7751.5
D9: 44690 | F9: (3) Obrigações Especiais Bruta | G9: =G73*VLOOKUP(DATE(YEAR(CAPA!$C$10),MONTH(CAPA!$C$10)-1,1),Índices!$B$135:$D$638,3,0)/VLOOKUP(DATE(YEAR($G$70),MONTH($G$70)-1,1),Índices!$B$135:$D$638,3,0) ->  | J9: BMP - 610530501; 610550501; 610532501; 610552501 | K9: Remuneração | P9: Arrecadação de convênios ou valores pela fatura | Q9: 18536.99 | R9: 18536.99 | S9: 15832.89 | T9: 17227.7 | U9: 17599.7 | V9: 17579.68 | W9: 17108.43 | X9: 16633.15 | Y9: 17869.28 | Z9: 17993.51 | AA9: 16901.67 | AB9: 17383.6
D10: 44690 | F10: (4) Bens Totalmente Depreciados | G10: =G74*VLOOKUP(DATE(YEAR(CAPA!$C$10),MONTH(CAPA!$C$10)-1,1),Índices!$B$135:$D$638,3,0)/VLOOKUP(DATE(YEAR($G$70),MONTH($G$70)-1,1),Índices!$B$135:$D$638,3,0) ->  | J10: BMP - 610530502; 610550502; 610532502; 610552502 | K10: Encargos | P10: Arrecadação de faturas de terceiros por estrutura própria
F11: (5) Base de Remuneração Bruta = (1)-(2)-(3)-(4) | G11: =G7-G8-G9-G10 ->  | J11: BMP - 610530503; 610550503; 610532503; 610552503 | K11: Previdência Privada - Corrente | P11: Veiculação de publicidade
F12: (6) Depreciação Acumulada | G12: =G76*VLOOKUP(DATE(YEAR(CAPA!$C$10),MONTH(CAPA!$C$10)-1,1),Índices!$B$135:$D$638,3,0)/VLOOKUP(DATE(YEAR($G$70),MONTH($G$70)-1,1),Índices!$B$135:$D$638,3,0) ->  | J12: BMP - 610530508; 610550508; 610532508; 610552508 | K12: Outros Benefícios | P12: Aluguel ou cessão onerosa de imóveis e espaços físicos
F13: (7) AIS Líquido (Valor de Mercado em Uso) | G13: =G7-G12 ->  | J13: BMP - 610530506; 610550506; 610532506; 610552506 | K13: Despesas Rescisórias | P13: Compartilhamento de infraestrutura | Q13: 557792.41 | R13: 557792.41 | S13: 557792.41 | T13: 556335.04 | U13: 530345.08 | V13: 530345.08 | W13: 531404.06 | X13: 474924.42 | Y13: 464175.55 | Z13: 454303.39 | AA13: 410899.34 | AB13: 432686.61
F14: (8) Índice de Aproveitamento Depreciado | G14: =G78*VLOOKUP(DATE(YEAR(CAPA!$C$10),MONTH(CAPA!$C$10)-1,1),Índices!$B$135:$D$638,3,0)/VLOOKUP(DATE(YEAR($G$70),MONTH($G$70)-1,1),Índices!$B$135:$D$638,3,0) ->  | J14: BMP - 610530507; 610550507; 610532507; 610552507 | K14: Participação nos Lucros e Resultados - PLR | P14: Serviços de avaliação técnica e aferição de medidores.
F15: (9) Valor da Base de Remuneração (VBR) | G15: =G13-G14 ->  | J15: BMP - 610530599; 610550599; 610532599; 610552599 | K15: Outros | P15: Operacionalização de serviço de créditos tributários
F16: (10) Almoxarifado em Operação | G16: =G80*VLOOKUP(DATE(YEAR(CAPA!$C$10),MONTH(CAPA!$C$10)-1,1),Índices!$B$135:$D$638,3,0)/VLOOKUP(DATE(YEAR($G$70),MONTH($G$70)-1,1),Índices!$B$135:$D$638,3,0) ->  | J16: BMP - 610530510; 610550510; 610532510; 610552510 | K16: (-) Créditos de Tributos Recuperáveis | P16: Elaboração de projeto, construção, operação, manutenção ou reforma de:
F17: (11) Ativo Diferido | G17: =G81*VLOOKUP(DATE(YEAR(CAPA!$C$10),MONTH(CAPA!$C$10)-1,1),Índices!$B$135:$D$638,3,0)/VLOOKUP(DATE(YEAR($G$70),MONTH($G$70)-1,1),Índices!$B$135:$D$638,3,0) ->  | J17: BMP - 6105306; 6105506; 6105326; 6105526 | K17: Administradores | P17: (1) redes de distribuição de energia elétrica destinadas à regularização fundiária de interesse específico e ao atendimento dos empreendimentos de múltiplas unidades consumidoras;
F18: (12) Obrigações Especiais Líquida | G18: =G82*VLOOKUP(DATE(YEAR(CAPA!$C$10),MONTH(CAPA!$C$10)-1,1),Índices!$B$135:$D$638,3,0)/VLOOKUP(DATE(YEAR($G$70),MONTH($G$70)-1,1),Índices!$B$135:$D$638,3,0) ->  | K18: Subtotal | L18: =SUM(L9:L17) -> 0 | M18: =SUM(M9:M17) -> 0 | P18: (2) redes de energia elétrica destinadas ao acesso dos sistemas de distribuição ou transmissão;
F19: (13) Terrenos e Servidões | G19: =G83*VLOOKUP(DATE(YEAR(CAPA!$C$10),MONTH(CAPA!$C$10)-1,1),Índices!$B$135:$D$638,3,0)/VLOOKUP(DATE(YEAR($G$70),MONTH($G$70)-1,1),Índices!$B$135:$D$638,3,0) ->  | J19: CONTA MATERIAIS | P19: (3) subestações de energia;
F20: (14) Base de Rem. Líquida Total = (1)-(6)-(8)+(10)+(11)-(12)+(13) | G20: =G15+G16+G17-G18+G19 ->  | J20: BMP - 610530701; 610550701; 610532701; 610552701 | K20: Materiais | P20: (4) instalações elétricas internas de unidades consumidoras;
F21: (15) Saldo RGR PLPT | G21: =G85*VLOOKUP(DATE(YEAR(CAPA!$C$10),MONTH(CAPA!$C$10)-1,1),Índices!$B$135:$D$638,3,0)/VLOOKUP(DATE(YEAR($G$70),MONTH($G$70)-1,1),Índices!$B$135:$D$638,3,0) ->  | J21: BMP - 610530799; 610550799; 610532799; 610552799 | K21: Outros | P21: (5) banco de capacitores:
F22: (16) Saldo RGR Demais Investimentos | G22: =G86*VLOOKUP(DATE(YEAR(CAPA!$C$10),MONTH(CAPA!$C$10)-1,1),Índices!$B$135:$D$638,3,0)/VLOOKUP(DATE(YEAR($G$70),MONTH($G$70)-1,1),Índices!$B$135:$D$638,3,0) ->  | J22: BMP - 610530710; 610550710; 610532710; 610552710 | K22: (-) Créditos de Tributos Recuperáveis | P22: (6) padrões de entrada de unidades consumidoras atendidas em baixa tensão;
F23: (17) Taxa de Depreciação | G23: =G87 -> 0 | K23: Subtotal | L23: =SUM(L20:L22) -> 0 | M23: =SUM(M20:M22) -> 0 | P23: (7) sistemas de medição de energia elétrica;
F24: (18) Quota de Reintegração Regulatória = (5) * (17) | G24: =G23*G11 ->  | J24: CONTA TERCEIROS | P24: (8) geradores, incluindo-se unidades de microgeração e minigeração distribuída;
J25: RIT - RP 800 - Célula F20 | K25: Manut. e Conserv. Bens e Instalações vinculadas ao Serviço Concedido | P25: (9) sistemas de iluminação pública.
F26: Gasto do Conselho de Consumidores | J26: RIT - RP 800 - Célula F21 | K26: Auditoria e Consultoria | P26: Eficientização do consumo de energia elétrica e instalação de cogeração qualificada, desde que não enquadráveis nos projetos de Pesquisa e Desenvolvimento (P&D) ou de Eficiência Energética estabelecidos em lei
F27: =Indexador!D132 -> Despesa 2021 | H27: 44690 | J27: RIT - RP 800 - Célula F22 | K27: Serviços Jurídicos | P27: Serviços de comunicação de dados
F28: =Indexador!E132 -> Despesa 2020 | H28: 44690 | J28: RIT - RP 800 - Célula F23 | K28: Serviços de Informática | P28: Serviços de consultoria
F29: =Indexador!F132 -> Despesa 2019 | H29: 44690 | J29: RIT - RP 800 - Célula F26 | K29: Viagens (Passagens Aéreas, etc) | P29: Receita proveniente da comercialização de resultados de projetos de P&D
F30: =Indexador!G132 -> Despesa 2018 | H30: 44690 | J30: RIT - RP 800 - Célula F27 | K30: Transportes (inclui Fretes)
F31: =Indexador!H132 -> Despesa 2017 | H31: 44690 | J31: RIT - RP 800 - Célula F28 | K31: Propaganda e Publicidade (exceto Publicações Oficiais) | P31: Outras Receitas - Caso 3
F32: Perdas Regulatórias | H32: 44287 | J32: RIT - RP 800 - Célula F29 | K32: Publicações Oficiais | P32: Alíquota ISS
F33: Perdas Não Técnicas | H33: 44318 | J33: RIT - RP 800 - Célula F30 | K33: Serviço de Engenharia e Supervisão de Obras
F34: Perdas Técnicas | H34: 44318 | J34: RIT - RP 800 - Célula F31 | K34: Gestão Comercial | P34: Tipo de Receita | Q34: =Q7 -> 2022-05-01 | R34: 2022-04-01 | S34: 2022-03-01 | T34: 2022-02-01 | U34: 2022-01-01 | V34: 2021-12-01 | W34: 2021-11-01 | X34: 2021-10-01 | Y34: 2021-09-01 | Z34: 2021-08-01 | AA34: 2021-07-01 | AB34: 2021-06-01
H35: 44287 | J35: RIT - RP 800 - Célula F32 | K35: Outros Serviços Terceirizados | P35: Serviços Cobráveis
F36: Dados da Revisão Anterior - Componente Pd | H36: 44287 | J36: RIT - RP 800 - Célula F33 | K36: (-) Créditos de Tributos Recuperáveis | P36: Encargos de Conexão
F37: Data Base Ativos e Consumidores | H37: 44287 | J37: RIT - RP 800 - Célula F34 | K37: Transferências da Administração Central | P37: Compartilhamento de Infraestrutura
F38: Mercado AT (MWh) | H38: 44287 | K38: Subtotal | L38: =SUM(L25:L37) -> 0 | M38: =SUM(M25:M37) -> 0 | P38: Sistemas de Comunicação (PLC)
F39: Mercado MT (MWh) | H39: 44287 | J39: CONTA SEGUROS | P39: Serviços de Consultoria
F40: Mercado BT (MWh) | H40: 44287 | J40: BMP - 610531001; 610551001; 610533001; 610553001 | K40: Seguros | P40: Serviços de O&M
F41: Número de unidades consumidoras | H41: 44287 | J41: BMP - 610531099; 610551099; 610533099; 610553099 | K41: Outros | P41: Serviços de Comunicação
H42: 44287 | J42: BMP - 610531010; 610551010; 610533010; 610553010 | K42: (-) Créditos de Tributos Recuperáveis | P42: Serviços de Engenharia
F43: OPEX | K43: Subtotal | L43: =SUM(L40:L42) -> 0 | M43: =SUM(M40:M42) -> 0 | P43: Convênios
F44: Extensão de redes subterrâneas (Km) | H44: 44309 | J44: CONTA TRIBUTOS
F45: Extensão de rede de distribuição aérea (Km) | H45: 44309 | J45: BMP - 6105316; 6105516; 6105336; 6105536 | K45: Tributos | Q45: =Q34 -> 2022-05-01 | R45: =R34 -> 2022-04-01 | S45: 2022-03-01 | T45: 2022-02-01 | U45: 2022-01-01 | V45: 2021-12-01 | W45: 2021-11-01 | X45: 2021-10-01 | Y45: 2021-09-01 | Z45: 2021-08-01 | AA45: 2021-07-01 | AB45: 2021-06-01
F46: Extensão de rede de alta tensão (Km) | H46: 44309 | K46: (+) Créditos de Tributos Recuperáveis | L46: =L45 -> 0 | M46: =M45 -> 0 | P46: Ultrapassagem de Demanda | Q46: 63716.59 | R46: 63716.59 | S46: 74861.98 | T46: 36909.84 | U46: 62568.87 | V46: 65231.34 | W46: 24163.21 | X46: 20924.12 | Y46: 17024.97 | Z46: 33537.21 | AA46: 29907.39 | AB46: 19578 | AC46: =SUM(Q46:AB46) -> 512140.11
F47: ="% PNT / BT Real de "&IF(MONTH(LnkTxtDRPData)>6,YEAR(LnkTxtDRPData)-1,YEAR(LnkTxtDRPData)-2) & " (Medido)" -> % PNT / BT Real de 2020 (Medido) | H47: 44319 | J47: CONTA OUTROS | P47: Excedente Reativo | Q47: 73943.02 | R47: 73943.02 | S47: 65331.32 | T47: 65032.51 | U47: 61339.83 | V47: 54750.01 | W47: 63662.25 | X47: 72679.25 | Y47: 60198.86 | Z47: 53539.05 | AA47: 50629.15 | AB47: 54298.51 | AC47: =SUM(Q47:AB47) -> 749346.78
F48: ="% PNT / BT Real de "&IF(MONTH(LnkTxtDRPData)>6,YEAR(LnkTxtDRPData)-1,YEAR(LnkTxtDRPData)-2)-1 & " (Medido)" -> % PNT / BT Real de 2019 (Medido) | H48: 44319 | J48: BMP - 610531901; 610551901; 610533901; 610553901 | K48: Indenização por Perdas e Danos
F49: ="% PNT / BT Real de "&IF(MONTH(LnkTxtDRPData)>6,YEAR(LnkTxtDRPData)-1,YEAR(LnkTxtDRPData)-2)-2 & " (Medido)" -> % PNT / BT Real de 2018 (Medido) | H49: 44319 | J49: BMP - 610531902; 610551902; 610533902; 610553902 | K49: Consumo Próprio de Energia
F50: ="DEC Apurado "&IF(MONTH(LnkTxtDRPData)>3,YEAR(LnkTxtDRPData)-1,YEAR(LnkTxtDRPData)-2) -> DEC Apurado 2021 | H50: 44319 | J50: BMP - 610531905 | K50: Despesas com Conselho de Consumidores | P50: UDER "Limbo"
F51: ="DEC Apurado "&IF(MONTH(LnkTxtDRPData)>3,YEAR(LnkTxtDRPData)-1,YEAR(LnkTxtDRPData)-2)-1 -> DEC Apurado 2020 | H51: 44319 | J51: BMP - 610531903; 610551903; 610533903; 610553903 | K51: Taxa de Arrecadação
F52: ="DEC Apurado "&IF(MONTH(LnkTxtDRPData)>3,YEAR(LnkTxtDRPData)-1,YEAR(LnkTxtDRPData)-2)-2 -> DEC Apurado 2019 | H52: 44319 | J52: BMP - 610531904; 610551904; 610533904; 610553904 | K52: Taxas Bancárias | P52: Preenchimento necessário apenas para cálculos de concessionárias que passaram por alteração contratual, conforme parágrafo 38 do Proret 2.1A.
F53: Meta de % PNT / BT (Medido) | H53: 44319 | J53: BMP - 610531910; 610551910; 610533910; 610553910 | K53: (-) Créditos de Tributos Recuperáveis | P53: Mês correspondente à Data de Referência de Alteração Contratual - DRAC
F54: DEC 8 anos (Limite V8) | H54: 44319 | K54: Subtotal | L54: =SUM(L48:L53) -> 0 | M54: =SUM(M48:M53) -> 0 | P54: Sexto mês anterior à data da última RTP
J55: Demais
K56: Condenações Trabalhistas | P56: Preenchimento necessário apenas para cálculos de concessionárias que passaram por alteração contratual, conforme parágrafo 38 do Proret 2.1A.
F57: Dados da última Revisão Tarifária | K57: Gastos com CCEE | Q57: =Q53 -> 00:00:00 | R57: =DATE(YEAR(Q57),MONTH(Q57)-1,1) ->  | X57: =DATE(YEAR(W57),MONTH(W57)-1,1) ->  | Y57: =DATE(YEAR(X57),MONTH(X57)-1,1) ->  | Z57: =DATE(YEAR(Y57),MONTH(Y57)-1,1) ->  | AA57: =DATE(YEAR(Z57),MONTH(Z57)-1,1) ->  | AB57: =DATE(YEAR(AA57),MONTH(AA57)-1,1) ->  | AC57: =DATE(YEAR(AB57),MONTH(AB57)-1,1) ->  | AD57: =DATE(YEAR(AC57),MONTH(AC57)-1,1) ->  | AE57: =DATE(YEAR(AD57),MONTH(AD57)-1,1) ->  | AF57: =DATE(YEAR(AE57),MONTH(AE57)-1,1) ->  | AG57: =DATE(YEAR(AF57),MONTH(AF57)-1,1) ->  | AH57: =DATE(YEAR(AG57),MONTH(AG57)-1,1) ->  | AI57: =DATE(YEAR(AH57),MONTH(AH57)-1,1) -> 
F58: Custos Operacionais (CO3) | J58: BMP - 611511401 | K58: Perdas na Alienação e Desativação | P58: Ultrapassagem de Demanda (valores brutos)
F59: Receitas Irrecuperáveis - Encargos Setoriais (Vi) | J59: BMP - 611112103 | K59: Ganhos na Alienação de Materiais | P59: Excedente Reativo (valores brutos)
F60: Demais Receitas Irrecuperáveis (Vse)
F61: Remuneração do Capital (RC)
F62: Quota de Reintegração Regulatória (QRR)
F63: Custo anual das instalações móveis e imóveis (CAIMI)
F64: Ajuste em função dos investimentos realizados (valor negativo)
F65: Índice de Produtividade + Mecanismo de Qualidade
F66: Outras Receitas (OR) (inserir o valor positivo)
F67: Componente T - Última Revisão
F70: Base de Ativios - SFF
F71: (1) Ativo Imobilizado em Serviço (Valor Novo de Reposição)
F72: (2) Índice de Aproveitamento Integral
F73: (3) Obrigações Especiais Bruta
F74: (4) Bens Totalmente Depreciados
F75: (5) Base de Remuneração Bruta = (1)-(2)-(3)-(4) | G75: =G71-G72-G73-G74 -> 0
F76: (6) Depreciação Acumulada
F77: (7) AIS Líquido (Valor de Mercado em Uso) | G77: =G71-G76 -> 0
F78: (8) Índice de Aproveitamento Depreciado
F79: (9) Valor da Base de Remuneração (VBR) | G79: =G77-G78 -> 0
F80: (10) Almoxarifado em Operação
F81: (11) Ativo Diferido | G81: =G102*I81 -> 0
F82: (12) Obrigações Especiais Líquida
F83: (13) Terrenos e Servidões
F84: (14) Base de Rem. Líquida Total = (9)+(10)+(11)-(12)+(13) | G84: =G79+G80+G81-G82+G83 -> 0
F85: (15) Saldo RGR PLPT | G85: 0
F86: (16) Saldo RGR Demais Investimentos
F87: (17) Taxa de Depreciação
F88: (18) Quota de Reintegração Regulatória = (5) * (17) | G88: =G87*G75 -> 0
F91: Base de Ativios - Ciclo anterior
F92: (1) Ativo Imobilizado em Serviço (Valor Novo de Reposição)
F93: (2) Índice de Aproveitamento Integral
F94: (3) Obrigações Especiais Bruta
F95: (4) Bens Totalmente Depreciados
F96: (5) Base de Remuneração Bruta = (1)-(2)-(3)-(4)
F97: (6) Depreciação Acumulada
F98: (7) AIS Líquido (Valor de Mercado em Uso)
F99: (8) Índice de Aproveitamento Depreciado
F100: (9) Valor da Base de Remuneração (VBR)
F101: (10) Almoxarifado em Operação
F102: (11) Ativo Diferido
F103: (12) Obrigações Especiais Líquida
F104: (13) Terrenos e Servidões
F105: (14) Base de Rem. Líquida Total = (1)-(6)-(8)+(10)+(11)-(12)+(13)
F106: (15) Saldo RGR PLPT
F107: (16) Saldo RGR Demais Investimentos
F109: (17) Taxa de Depreciação
F110: (18) Quota de Reintegração Regulatória = (5) * (17)
F111: Base de Anuidade Regulatória (BAR)
F113: Dados do último Reajuste Anual - Contrato Novo
F114: Parcela B sem desconto UDEROR | G114: =SUM(G115:G118) -> 0
F115: Outras Receitas (OR)
F116: Excedente de Reativos (ER)
F117: Ultrapassagem de Demanda (UD)
F118: Parcela B
F119: Fator PB | G119: =G114/G118 -> 
F121: Dados do último Ciclo - Contrato Novo
F122: Número de processos até o primeiro reajuste contrato novo
F123: Número de processos no contrato novo antes da atual revisão
F125: Participação dos componentes da Parcela B no Ano Teste
F126: Descrição | G126: Valor
F127: Custos Operacionais | G127: =(G58*(1-G65)-(SUM(G58:G63)*(1-G65)-G66)*(1-(1-G67)^G122)-((SUM(G58:G63)*(1-G65)-G66)*(1-G67)^G122+G66-SUM(G59:G60)*(1-G65))*(1-(1-G67)^G123))/((((SUM(G58:G63)*(1-G65)-G66)*(1-G67)^G122)+G66-SUM(G59:G60)*(1-G65))*(1-G67)^G123) -> 
F128: Anuidades | G128: =(G63*(1-G65)/((((SUM(G58:G63)*(1-G65)-G66)*(1-G67)^G122)+G66-SUM(G59:G60)*(1-G65))*(1-G67)^G123)) -> 
F129: Remuneração | G129: =(G61*(1-G65)/((((SUM(G58:G63)*(1-G65)-G66)*(1-G67)^G122)+G66-SUM(G59:G60)*(1-G65))*(1-G67)^G123)) -> 
F130: Depreciação | G130: =(G62*(1-G65)/((((SUM(G58:G63)*(1-G65)-G66)*(1-G67)^G122)+G66-SUM(G59:G60)*(1-G65))*(1-G67)^G123)) -> 

Sheet Resultado
B1: =LnkTxtNomeCompleto -> ENF - Energisa Nova Friburgo - Distribuidora de Energia S.A.
B2: Resultado | F2: Parâmetros a serem considerados para os Reajustes subsequentes
B4: RA1 | D4: =D40+D45 -> 239941839.9 | E4: 239808221.8 | F4: FATOR X | K4: Última versão enviada: | L4: 12
B5: RA0 | D5: =Mercado!D24 -> 202647344.2 | E5: 202647344.2 | F5: Componente T do Fator X | G5: ='VPB e Fator X'!C36 ->  | K5: Data de envio | L5: 2022-06-17T12:19:31
B6: Índice de Reposição/Reajuste (Anexo II) | D6: =D4/D5-1 -> 0.1840364399 | E6: 0.183377077 | F6: Componente Pd do Fator X | G6: ='VPB e Fator X'!C33 -> 0.002478342771
B7: Componentes Financeiros | D7: =Financeiros!E8 -> 0.01153503999 | E7: 0.002718179233 | K7: Efeito Consumidor
B8: Índice de Reposição/Reajuste com Financeiros (Anexo I) | D8: =D6+D7 -> 0.1955714799 | E8: 0.1860952563 | F8: PERDAS | K8: Efeito Grupo A - Alta tensão | L8: 0.1777800345 | M8: 0.1703533544
F9: Perdas Não Técnicas | G9: =Entrada!G33 -> 0 | K9: Efeito Grupo B - Baixa tensão | L9: 0.1951306769 | M9: 0.1859284514
C10: DRA | D10: DRP | F10: Perdas Técnicas | G10: =Entrada!G34 -> 0 | K10: Efeito tarifário médio AT+BT | L10: 0.1919228451 | M10: 0.183048887
B11: TOTAL (Parcela A + Parcela B) | C11: =C45+C40 -> 202647344.2 | D11: =D45+D40 -> 239941839.9 | K11: Tarifa B1 - Residencial (R$) | L11: 821.9287722 | M11: 815.5841123
K13: Subvenção da CDE para descontos tarifários (Valores anuais)
K14: Subsídio Carga Fonte Incentivada | L14: 3502947.186
K15: Subsídio Geração Fonte Incentivada | L15: 18687.01238
B16: Parcela A | F16: Formação da Parcela B e Reposicionamento (Resumo) | K16: Subsídio Distribuição | L16: 0
K17: Subsídio Água, Esgoto e Saneamento | L17: 131461.622
C18: Processo Anterior | D18: Processo Atual | K18: Subsídio Rural | L18: 225430.6674
B19: ENCARGOS | C19: =SUM(C20:C28) -> 24987442.5 | D19: =SUM(D20:D28) -> 37043801.53 | F19: Custo de Administração, Operação e Manutenção (CAOM) | G19: =SUM(G20:G20) ->  | K19: Subsídio Irrigante/Aquicultor | L19: 82356.27666
B20: Reserva Global de Reversão – RGR | D20: =Encargos!C16 -> 0 | F20: Custos Operacionais (CO) | G20: ='VPB e Fator X'!C121+Encargos!C14 -> 
B21: Conta de Consumo de Combustíveis – CCC | D21: =Encargos!C9 -> 0 | F21: Custo Anual dos Ativos (CAA) | G21: =SUM(G22:G24) ->  | K21: Versão de Mercado
B22: Taxa de Fisc. de Serviços de E.E. – TFSEE | C22: ='Votos e NTs'!BM268 -> 282387.8536 | D22: =Encargos!C17 -> 326181.4482 | F22: Remuneração do Capital (RC) | G22: ='VPB e Fator X'!C95 ->  | K22: Status de Sincronização de BDL | L22: Trabalha na pasta de rede
B23: Conta de Desenvolvimento Energético – CDE | C23: ='Votos e NTs'!BM269+'Votos e NTs'!BM270+'Votos e NTs'!BM271 -> 20102816.45 | D23: =Encargos!C10 -> 30149948.88 | F23: Quota de Reintegração Regulatória (QRR) | G23: ='VPB e Fator X'!C77 ->  | K23: Última Sincronização
B24: Compensação financeira - CFURH | C24: ='Votos e NTs'!BM272 -> 0 | D24: =Encargos!C11 -> 0 | F24: Custo anual das instalações móveis e imóveis (CAIMI) | G24: ='VPB e Fator X'!C67 -> 
B25: Encargos Serv. Sist. - ESS e Energ. Reserv. - EER | C25: ='Votos e NTs'!BM273 -> 0 | D25: =Encargos!C12 -> 0 | F25: Parcela B (VPB) | G25: =SUM(G21,G19) -> 
B26: PROINFA | C26: ='Votos e NTs'!BM274 -> 2774092.146 | D26: =Encargos!C13 -> 4509087.062 | F26: Índice de Produtividade da Parcela B | G26: ='VPB e Fator X'!C33 -> 0.002478342771
B27: P&D e Eficiência Energética | C27: ='Votos e NTs'!BM275 -> 1828146.043 | D27: =Encargos!C15 -> 2058584.137 | F27: Mecanismo de Incentivo à Qualidade | G27: ='VPB1'!F42 -> -0.00826345307
F28: Parcela B com ajustes | G28: =(1-G26-G27)*G25 -> 
B29: TRANSPORTE | C29: =SUM(C30:C37) -> 46122412.95 | D29: =SUM(D30:D37) -> 48491752.27 | F29: Outras Receitas (OR) | G29: =UDEROR!C2 -> 4063228.365
B30: Rede Básica | C30: ='Votos e NTs'!BM278 -> 0 | D30: ='RB e Conexão'!E6 -> 0 | F30: Ultrapassagem de Demanda (UD) | G30: =UDEROR!C6+'VPB e Fator X'!D179 -> 210953.4937
B31: Rede Básica Fronteira | C31: ='Votos e NTs'!BM279 -> 0 | D31: ='RB e Conexão'!E7 -> 0 | F31: Excedente de Reativos (ER) | G31: =UDEROR!C7+'VPB e Fator X'!D180 -> 311718.5377
B32: Rede Básica ONS (A2) | C32: ='Votos e NTs'!BM280 -> 0 | D32: =VLOOKUP("TUSDg ONS DRP",TUSDG[],2,FALSE) -> 0 | F32: Parcela B deduzidas as outras receitas | G32: =G28-SUM(G29:G31) -> 
B33: Rede Básica Export. (A2) | C33: ='Votos e NTs'!BM281 -> 0 | D33: =VLOOKUP("TUSDg Export DRP",TUSDG[],2,FALSE) -> 0
B34: MUST Itaipu | C34: ='Votos e NTs'!BM282 -> 0 | D34: ='RB e Conexão'!E8 -> 0 | F34: 1. Receita Requerida (RR) | G34: =G28+D40 -> 
B35: Transporte de Itaipu | C35: ='Votos e NTs'!BM283 -> 0 | D35: =SUMPRODUCT(itaiputransporte[Potência],itaiputransporte[Tarifa DRP]) -> 0 | F35: 2. Outras Receitas (OR) | G35: =G29 -> 4063228.365
B36: Conexão | C36: ='Votos e NTs'!BM284 -> 0 | D36: ='RB e Conexão'!E9 -> 0 | F36: 3. Receita Verificada (RV) | G36: =Mercado!D24 -> 202647344.2
B37: Uso do sistema de distribuição e CCD | C37: ='Votos e NTs'!BM285 -> 46122412.95 | D37: =CUSD!D14+CUSD!E14 -> 48491752.27
B38: ENERGIA | C38: ='Votos e NTs'!BM286 -> 79992276.47 | D38: =Energia!D15 -> 97505608.6
B39: RECEITA IRRECUPERÁVEL | C39: ='Votos e NTs'!BM287 -> 165153.19 | D39: =Mercado!H38 -> 182198.6838
B40: VPA (ENCARGO + TRANSPORTE + ENERGIA+RI) | C40: =C19+C29+C38+C39 -> 151267285.1 | D40: =D19+D29+D38+D39 -> 183223361.1
B42: Parcela B
D44: VPB1
B45: ="Parcela B "&IF(CAPA!C7="Revisão","(menos Outras Receitas)",) -> Parcela B | C45: ='Votos e NTs'!BM288 -> 51380059.04 | D45: =IF(CAPA!$C$7="Revisão",Resultado!$G$32,'VPB1'!$C$43) -> 56718478.84

Sheet Votos e NTs
B2: Tabelas | D2: Gráficos
B4: Consumidores | D4: Análise de Impacto da RTA na Tarfia | K4: Composição da Receita | P4: Composição da Receita com Tributos | U4: Composição da Receita com detalhamento de Encargos | Z4: Evolução da Tarifa B1 Residencial
B5: Mercado
B6: Encargos
B7: Custo do Transporte de Energia
B8: Perdas
B9: Energia Requerida
B10: Energia na DRA
B11: Contratos
B12: Fator X
B13: Parcela B
B14: CVA em Processamento
B15: Financeiros
B16: Subsídios
B17: Efeito Médio AT + BT
B18: Avaliação RTA
B19: Variação do Custo de Energia
B20: Dados dos Gráficos
E23: Impacto da RTA na Tarifa | K23: Composição da Receita | P23: Composição da Receita com Tributos | U23: Composição da Receita com detalhamento de Encargos | Z23: Data | AA23: Tipo | AC23: B1 - Residencial | AD23: IGPM | AE23: IPCA | AF23: Data
E24: Encargos Setoriais | H24: =IF(CAPA!C7="Reajuste",BP267,'NT Revisao'!AT195) -> 0.05949428592 | K24: Custo de Distribuição | M24: =Resultado!D45 -> 56718478.84 | P24: Custo de Distribuição | R24: =M24/$R$32 -> 0.1680957291 | U24: Custo de Distribuição | W24: =Resultado!D45 -> 56718478.84 | Z24: =YEAR(BD!B79) -> 2012 | AA24: =(BD!C79) -> Revisão | AB24: =CONCATENATE(AA24," ",Z24) -> Revisão 2012 | AC24: =BD!D79 -> 348.18 | AD24: =AC24 -> 348.18 | AE24: =AD24 -> 348.18 | AF24: =DATE(YEAR(BD!B79),MONTH(BD!B79)-1,1) -> 2012-05-01
E25: Custo de Transporte | H25: =IF(CAPA!C7="Reajuste",BP277,'NT Revisao'!AT205) -> 0.01169193373 | K25: Custo de Energia | M25: =Resultado!D38 -> 97505608.6 | P25: Custo de Energia | R25: =M25/$R$32 -> 0.2889759511 | U25: Custo de Energia | W25: =Resultado!D38 -> 97505608.6 | Z25: =YEAR(BD!B78) -> 2013 | AA25: =(BD!C78) -> RTE | AB25: RTE 2013 | AC25: =BD!D78 -> 285.24 | AD25: =AD24*VLOOKUP(AF25,Índices!$B$135:$F$627,2,0)/VLOOKUP(AF24,Índices!$B$135:$F$627,2,0) -> 366.2026247 | AE25: =AE24*VLOOKUP(AF25,Índices!$B$135:$F$627,3,0)/VLOOKUP(AF24,Índices!$B$135:$F$627,3,0) -> 360.4385486 | AF25: =DATE(YEAR(BD!B78),MONTH(BD!B78)-1,1) -> 2012-12-01
E26: Custo de Energia | H26: =IF(CAPA!C7="Reajuste",BP286,'NT Revisao'!AT214) -> 0.08642270737 | K26: Custo de Transporte | M26: =Resultado!D29 -> 48491752.27 | P26: Custo de Transmissão | R26: =M26/$R$32 -> 0.1437142994 | U26: Custo de Transmissão | W26: =Resultado!D29 -> 48491752.27 | Z26: =YEAR(BD!B77) -> 2013 | AA26: =(BD!C77) -> Reajuste | AB26: Reajuste 2013 | AC26: =BD!D77 -> 324.01 | AD26: =AD25*VLOOKUP(AF26,Índices!$B$135:$F$627,2,0)/VLOOKUP(AF25,Índices!$B$135:$F$627,2,0) -> 369.8248048 | AE26: =AE25*VLOOKUP(AF26,Índices!$B$135:$F$627,3,0)/VLOOKUP(AF25,Índices!$B$135:$F$627,3,0) -> 370.8260977 | AF26: =DATE(YEAR(BD!B77),MONTH(BD!B77)-1,1) -> 2013-05-01
E27: Receitas Irrecuperáveis | H27: =IF(CAPA!C7="Reajuste",BP287,'NT Revisao'!AT215) -> 8.411407403e-05 | K27: Encargos Setoriais | M27: =Resultado!D19 -> 37043801.53 | P27: Encargos Setoriais | R27: =M27/$R$32 -> 0.1097861747 | U27: Receitas Irrecuperáveis | W27: =Resultado!D39 -> 182198.6838 | Z27: =YEAR(BD!B76) -> 2014 | AA27: =(BD!C76) -> Reajuste | AB27: Reajuste 2014 | AC27: =BD!D76 -> 368.2 | AD27: =AD26*VLOOKUP(AF27,Índices!$B$135:$F$627,2,0)/VLOOKUP(AF26,Índices!$B$135:$F$627,2,0) -> 398.8051165 | AE27: =AE26*VLOOKUP(AF27,Índices!$B$135:$F$627,3,0)/VLOOKUP(AF26,Índices!$B$135:$F$627,3,0) -> 394.4657261 | AF27: =DATE(YEAR(BD!B76),MONTH(BD!B76)-1,1) -> 2014-05-01
E28: Distribuição | H28: =IF(CAPA!C7="Reajuste",BP288,'NT Revisao'!AT216) -> 0.02634339879 | K28: Receitas Irrecuperáveis | M28: =Resultado!D39 -> 182198.6838 | P28: Receitas Irrecuperáveis | R28: =M28/R32 -> 0.0005399795835 | U28: PROINFA | W28: =Resultado!D26 -> 4509087.062 | Z28: =YEAR(BD!B75) -> 2015 | AA28: =(BD!C75) -> RTE | AB28: RTE 2015 | AC28: =BD!D75 -> 459.44 | AD28: =AD27*VLOOKUP(AF28,Índices!$B$135:$F$627,2,0)/VLOOKUP(AF27,Índices!$B$135:$F$627,2,0) -> 404.7798836 | AE28: =AE27*VLOOKUP(AF28,Índices!$B$135:$F$627,3,0)/VLOOKUP(AF27,Índices!$B$135:$F$627,3,0) -> 416.2563668 | AF28: =DATE(YEAR(BD!B75),MONTH(BD!B75)-1,1) -> 2015-02-01
E29: Componentes Financeiros | H29: =IF(CAPA!C7="Reajuste",BP291,'NT Revisao'!AT225) -> 0.01153503999 | P29: ICMS | R29: =Mercado!G9 -> 0.25974151 | U29: CDE | W29: =Resultado!D23 -> 30149948.88 | Z29: =YEAR(BD!B74) -> 2015 | AA29: =(BD!C74) -> Reajuste | AB29: Reajuste 2015 | AC29: =BD!D74 -> 520.54 | AD29: =AD28*VLOOKUP(AF29,Índices!$B$135:$F$627,2,0)/VLOOKUP(AF28,Índices!$B$135:$F$627,2,0) -> 415.1949971 | AE29: =AE28*VLOOKUP(AF29,Índices!$B$135:$F$627,3,0)/VLOOKUP(AF28,Índices!$B$135:$F$627,3,0) -> 427.8885808 | AF29: =DATE(YEAR(BD!B74),MONTH(BD!B74)-1,1) -> 2015-05-01
E30: Retirada dos Financeiros Anteriores | H30: =IF(CAPA!C7="Reajuste",BP343,'NT Revisao'!AT277) -> -0.003648634751 | P30: PIS/COFINS | R30: =Mercado!$G$10 -> 0.02914635616 | U30: ESS/EER | W30: =Resultado!D25 -> 0 | Z30: =YEAR(BD!B73) -> 2016 | AA30: =(BD!C73) -> Revisão | AB30: Revisão 2016 | AC30: =BD!D73 -> 555.17 | AD30: =AD29*VLOOKUP(AF30,Índices!$B$135:$F$627,2,0)/VLOOKUP(AF29,Índices!$B$135:$F$627,2,0) -> 461.2240285 | AE30: =AE29*VLOOKUP(AF30,Índices!$B$135:$F$627,3,0)/VLOOKUP(AF29,Índices!$B$135:$F$627,3,0) -> 467.7728873 | AF30: =DATE(YEAR(BD!B73),MONTH(BD!B73)-1,1) -> 2016-05-01
E31: Efeito Médio Consumidor | H31: =BP344 -> 0.1919228451 | P31: Tributos por dentro | R31: =LnkTxtPisCofins+LnkTxtICMS -> 0.2888878661 | U31: Outros | W31: =Resultado!D27+Resultado!D28+Resultado!D24+Resultado!D22 -> 2384765.585 | Z31: =YEAR(BD!B72) -> 2017 | AA31: =(BD!C72) -> RTE | AB31: RTE 2017 | AC31: =BD!D72 -> 549.36 | AD31: =AD30*VLOOKUP(AF31,Índices!$B$135:$F$627,2,0)/VLOOKUP(AF30,Índices!$B$135:$F$627,2,0) -> 478.1227511 | AE31: =AE30*VLOOKUP(AF31,Índices!$B$135:$F$627,3,0)/VLOOKUP(AF30,Índices!$B$135:$F$627,3,0) -> 482.4267155 | AF31: =DATE(YEAR(BD!B72),MONTH(BD!B72)-1,1) -> 2017-03-01
P32: Receita com Tributos | R32: =SUM(W24:W31)/(1-R29-R30) -> 337417727.1 | Z32: =YEAR(BD!B71) -> 2017 | AA32: =(BD!C71) -> Reajuste | AB32: Reajuste 2017 | AC32: =BD!D71 -> 524.75 | AD32: =AD31*VLOOKUP(AF32,Índices!$B$135:$F$627,2,0)/VLOOKUP(AF31,Índices!$B$135:$F$627,2,0) -> 468.4777187 | AE32: =AE31*VLOOKUP(AF32,Índices!$B$135:$F$627,3,0)/VLOOKUP(AF31,Índices!$B$135:$F$627,3,0) -> 484.5998764 | AF32: =DATE(YEAR(BD!B71),MONTH(BD!B71)-1,1) -> 2017-05-01
P33: Tributos Totais por Fora | R33: =(R29+R30)/(1-R29-R30) -> 0.4062479775 | Z33: =YEAR(BD!B70) -> 2018 | AA33: =(BD!C70) -> Reajuste | AB33: Reajuste 2018 | AC33: =BD!D70 -> 595.67 | AD33: =AD32*VLOOKUP(AF33,Índices!$B$135:$F$627,2,0)/VLOOKUP(AF32,Índices!$B$135:$F$627,2,0) -> 488.4445649 | AE33: =AE32*VLOOKUP(AF33,Índices!$B$135:$F$627,3,0)/VLOOKUP(AF32,Índices!$B$135:$F$627,3,0) -> 498.4352673 | AF33: =DATE(YEAR(BD!B70),MONTH(BD!B70)-1,1) -> 2018-05-01
Z34: =YEAR(BD!B69) -> 2019 | AA34: =(BD!C69) -> Reajuste | AB34: Reajuste 2019 | AC34: =BD!D69 -> 649.89 | AD34: =AD33*VLOOKUP(AF34,Índices!$B$135:$F$627,2,0)/VLOOKUP(AF33,Índices!$B$135:$F$627,2,0) -> 525.7759144 | AE34: =AE33*VLOOKUP(AF34,Índices!$B$135:$F$627,3,0)/VLOOKUP(AF33,Índices!$B$135:$F$627,3,0) -> 521.6536708 | AF34: =DATE(YEAR(BD!B69),MONTH(BD!B69)-1,1) -> 2019-05-01
Z35: =YEAR(BD!B68) -> 2020 | AA35: =(BD!C68) -> COVID | AB35: COVID 2020 | AC35: =BD!D68 -> 662.44 | AD35: =AD34*VLOOKUP(AF35,Índices!$B$135:$F$627,2,0)/VLOOKUP(AF34,Índices!$B$135:$F$627,2,0) -> 568.7181622 | AE35: =AE34*VLOOKUP(AF35,Índices!$B$135:$F$627,3,0)/VLOOKUP(AF34,Índices!$B$135:$F$627,3,0) -> 532.8306416 | AF35: =DATE(YEAR(BD!B68),MONTH(BD!B68)-1,1) -> 2020-06-01
Z36: =YEAR(BD!B67) -> 2021 | AA36: =(BD!C67) -> 1 | AB36: 1 2021 | AC36: =BD!D67 -> 687.5493759 | AD36: =AD35*VLOOKUP(AF36,Índices!$B$135:$F$627,2,0)/VLOOKUP(AF35,Índices!$B$135:$F$627,2,0) -> 767.4177434 | AE36: =AE35*VLOOKUP(AF36,Índices!$B$135:$F$627,3,0)/VLOOKUP(AF35,Índices!$B$135:$F$627,3,0) -> 574.2627749 | AF36: =DATE(YEAR(BD!B67),MONTH(BD!B67)-1,1) -> 2021-05-01
Z37: =YEAR(BD!B66) -> 2022 | AA37: =(BD!C66) -> 0 | AB37: =CONCATENATE(IF(AA37=1,"Revisão","Reajuste")," ",Z37) -> Reajuste 2022 | AC37: =BD!D66 -> 821.9287722 | AD37: =AD36*VLOOKUP(AF37,Índices!$B$135:$F$627,2,0)/VLOOKUP(AF36,Índices!$B$135:$F$627,2,0) -> 849.7109196 | AE37: =AE36*VLOOKUP(AF37,Índices!$B$135:$F$627,3,0)/VLOOKUP(AF36,Índices!$B$135:$F$627,3,0) -> 641.6307633 | AF37: =DATE(YEAR(BD!B66),MONTH(BD!B66)-1,1) -> 2022-05-01
AC38: =AC37/AC24-1 -> 1.360643265 | AD38: =AD37/AD24-1 -> 1.440435751 | AE38: 0.8428133818
B40: TabCons | E40: Voltar
B41: Classe de Consumo | C41: Nº de Unidades Consumidoras* | D41: Consumo de Energia (MWh) | E41: Participação no Consumo (%)
B42: Residencial | C42: =Mercado!E30 -> 99559 | D42: =Mercado!F30 -> 13522.171 | E42: =D42/$D$50 -> 0.4562815153
B43: Industrial | C43: =Mercado!E31 -> 725 | D43: =Mercado!F31 -> 4281.53 | E43: 0.1444725848
B44: Comercial | C44: =Mercado!E32 -> 10333 | D44: =Mercado!F32 -> 5412.635 | E44: 0.1826397033
B45: Rural | C45: =Mercado!E33 -> 1149 | D45: =Mercado!F33 -> 339.629 | E45: 0.01146017417
B46: Iluminação Pública | C46: =Mercado!E34 -> 3 | D46: =Mercado!F34 -> 1552.096 | E46: 0.05237270811
B47: Poder Público | C47: =Mercado!E35 -> 406 | D47: =Mercado!F35 -> 576.181 | E47: 0.01944219902
B48: Serviço Público | C48: =Mercado!E36 -> 148 | D48: =Mercado!F36 -> 451.175 | E48: 0.01522409476
B49: Demais classes | C49: =Mercado!E37 -> 21 | D49: =Mercado!F37 -> 3500.171 | E49: 0.1181070205
B50: Total | C50: =SUM(C42:C49) -> 112344 | D50: =SUM(D42:D49) -> 29635.588 | E50: =SUM(E42:E49) -> 1
B51: * Nota: dados do último mês informado pela empresa
G53: TabMercado | I53: Voltar
G54: Subgrupos | H54: Mercado (MWh) | I54: Receita (R$) | J54: Colunas1
G55: Fornecimento | H55: =SUM(H56:H62) -> 288204.733 | I55: =SUM(I56:I62) -> 185683254.8 | J55: =IF(ABS(H55)+ABS(I55)>0,1,0) -> 1
G56: A1 (230 kV ou mais) | H56: =Mercado!C10 -> 0 | I56: =Mercado!D10 -> 0 | J56: 0
G57: A2 (88 a 138 kV) | H57: =Mercado!C11 -> 0 | I57: =Mercado!D11 -> 0 | J57: 0
G58: A3 (69 kV) | H58: =Mercado!C12 -> 0 | I58: =Mercado!D12 -> 0 | J58: 0
G59: A3a (30 kV a 44 kV) | H59: =Mercado!C13 -> 0 | I59: =Mercado!D13 -> 0 | J59: 0
G60: A4 (2,3 kV a 25 kV) | H60: =Mercado!C14 -> 38740.489 | I60: =Mercado!D14 -> 22257128.54 | J60: 1
G61: As | H61: =Mercado!C15 -> 0 | I61: =Mercado!D15 -> 0 | J61: 0
G62: BT (menor que 2,3 kV) | H62: =Mercado!C16 -> 249464.244 | I62: =Mercado!D16 -> 163426126.2 | J62: 1
G63: Suprimento | H63: =Mercado!C17 -> 0 | I63: =Mercado!D17 -> 0 | J63: 0
G64: Livres A1 | H64: =Mercado!C18 -> 0 | I64: =Mercado!D18 -> 0 | J64: 0
G65: Demais Livres | H65: =Mercado!C19 -> 34781.026 | I65: =Mercado!D19 -> 9142144.241 | J65: 1
G66: Distribuição | H66: =Mercado!C20 -> 37879.188 | I66: =Mercado!D20 -> 7786589.763 | J66: 1
G67: Geração | H67: =Mercado!C21 -> 0 | I67: =Mercado!D21 -> 35355.36 | J67: 1
G68: Total | H68: =SUM(H56:H67) -> 360864.947 | I68: =SUM(I56:I67) -> 202647344.2
K70: TabEnc | N70: Voltar
K71: Encargos Setoriais | L71: Processo Anterior (R$) | M71: Processo Atual (R$) | N71: Dispositivo Legal | O71: Colunas1
K72: Taxa de Fisc. de Serviços de E.E. – TFSEE | L72: =Resultado!C22 -> 282387.8536 | M72: =Resultado!D22 -> 326181.4482 | N72: =Encargos!D17 -> Conforme módulo 5.5 do PRORET | O72: =IF(ABS(L72)+ABS(M72)>0,1,0) -> 1
K73: Conta de Desenvolvimento Energético – CDE | L73: =BM269 -> 17388982.64 | M73: =BN269 -> 27363320.38 | N73: ReH 3.024/2022 | O73: 1
K74: Conta de Desenvolvimento Energético – CDE COVID | L74: =BM270+BM271 -> 2713833.811 | M74: =BN270+BN271 -> 2786628.503 | N74: Previsão-2022 | O74: 1
K75: Encargos Serv. Sist. - ESS e Energ. Reserv. - EER | L75: =Resultado!C25 -> 0 | M75: =Resultado!D25 -> 0 | N75: =Encargos!D12 -> 0 | O75: 0
K76: PROINFA | L76: =Resultado!C26 -> 2774092.146 | M76: =Resultado!D26 -> 4509087.062 | N76: =Encargos!$D$13 -> ReH 2.995/2021 | O76: 1
K77: P&D e Eficiência Energética | L77: =Resultado!C27 -> 1828146.043 | M77: =Resultado!D27 -> 2058584.137 | N77: Res. Normativa nº 316/2008 | O77: 1
K78: Contribuição ONS | L78: 0 | M78: 0 | N78: 0 | O78: 0
K79: Total de Encargos Tarifários | L79: =SUM(L72:L78) -> 24987442.5 | M79: =SUM(M72:M78) -> 37043801.53
P81: TabTrans | R81: Voltar
P82: Componente | Q82: Processo Anterior (R$) | R82: Processo Atual (R$) | S82: Colunas1
P83: Rede Básica | Q83: =+Resultado!C30 -> 0 | R83: =+Resultado!D30 -> 0 | S83: =IF(ABS(Q83)+ABS(R83)>0,1,0) -> 0
P84: Rede Básica Fronteira | Q84: =+Resultado!C31 -> 0 | R84: =+Resultado!D31 -> 0 | S84: 0
P85: Rede Básica ONS (A2) | Q85: =+Resultado!C32 -> 0 | R85: =+Resultado!D32 -> 0 | S85: 0
P86: Rede Básica Export. (A2) | Q86: =+Resultado!C33 -> 0 | R86: =+Resultado!D33 -> 0 | S86: 0
P87: MUST Itaipu | Q87: =+Resultado!C34 -> 0 | R87: =+Resultado!D34 -> 0 | S87: 0
P88: Transporte de Itaipu | Q88: =+Resultado!C35 -> 0 | R88: =+Resultado!D35 -> 0 | S88: 0
P89: Conexão | Q89: =+Resultado!C36 -> 0 | R89: =+Resultado!D36 -> 0 | S89: 0
P90: Uso do sistema de distribuição | Q90: =+Resultado!C37 -> 46122412.95 | R90: =+Resultado!D37 -> 48491752.27 | S90: 1
P91: Total dos Custos de Transporte | Q91: =SUM(Q83:Q90) -> 46122412.95 | R91: =SUM(R83:R90) -> 48491752.27
T93: TabPerdas | W93: Voltar
T94: Perdas | U94: DRA | V94: DRP | W94: Referência
T95: Não Técnica (s/ Baixa Tensão) | U95: =Neutralidade!H14 -> 0.000189 | V95: =Energia!H13 -> 0.000189 | W95: ReH 2.885/2021
T96: Técnica (s/ merc. injetado) | U96: =Neutralidade!H15 -> 0.05098 | V96: =Energia!H14 -> 0.05098 | W96: =W95 -> ReH 2.885/2021
T97: Rede Básica (s/ merc. Injetado) | U97: =Neutralidade!H16 -> 0 | V97: =Energia!H15 -> 0 | W97: CCEE (últimos 12 meses)
T98: Mercado Baixa Tensão (MWh) | U98: =Mercado!$C$16 -> 249464.244 | V98: =Mercado!$C$16 -> 249464.244 | W98: SAMP
Y100: TabEnergia | AA100: Voltar
Y101: Descrição | Z101: Processo Anterior (MWh) | AA101: Processo Atual (MWh)
Y102: Mercado Total | Z102: =AA102 -> 288204.733 | AA102: =Z103+Z104 -> 288204.733 | AB102: Colunas1
Y103: Fornecimento | Z103: =Energia!H5 -> 288204.733 | AA103: =Z103 -> 288204.733 | AB103: =IF(Z103<>0,1,0) -> 1
Y104: Suprimento | Z104: 0 | AA104: =Z104 -> 0 | AB104: =IF(Z104<>0,1,0) -> 0
Y105: Consumidores Livres | Z105: =Energia!H7 -> 72660.214 | AA105: =Z105 -> 72660.214 | AB105: =IF(Z105<>0,1,0) -> 1
Y106: Consumidores Rede B. | Z106: 0 | AA106: =Z106 -> 0 | AB106: =IF(Z106<>0,1,0) -> 0
Y107: Perdas Totais | Z107: =Z108+Z109 -> 19434.83145 | AA107: =AA108+AA109 -> 19434.83145 | AB107: =IF(Z107<>0,1,0) -> 1
Y108: Perdas Rede Básica | Z108: =SUM(Neutralidade!H19:H20) -> 0 | AA108: =SUM(Energia!H18:H19) -> 0 | AB108: 0
Y109: Perdas na Distribuição | Z109: =SUM(Z110:Z111) -> 19434.83145 | AA109: =SUM(AA110:AA111) -> 19434.83145 | AB109: 1
Y110: Perda Não Técnica | Z110: =Neutralidade!H17 -> 47.14874212 | AA110: =Energia!H16 -> 47.14874212 | AB110: 1
Y111: Perda Técnica | Z111: =Neutralidade!H18 -> 19387.68271 | AA111: =Energia!H17 -> 19387.68271 | AB111: 1
Y112: Energia Requerida | Z112: =Z102+Z107 -> 307639.5644 | AA112: =AA102+AA107 -> 307639.5644
AC114: TabEDRA | AE114: Voltar
AC115: Energia Requerida (MWh) | AD115: Tarifa Média (R$/MWh) | AE115: Energia Requerida (R$)
AC116: ='Votos e NTs'!Z112 -> 307639.5644 | AD116: =Energia!C14 -> 259.9959626 | AE116: =AD116*AC116 -> 79985044.7
AG118: TabContratos | AK118: Voltar
AG119: Contratos | AH119: Montante Contratado (MWh) | AI119: Montante Considerado (MWh) | AJ119: Tarifa (R$/MWh) | AK119: Despesa (R$) | AL119: Colunas1
AG120: AMBIENTE REGULADO - CCEAR | AH120: =SUM(AH121:AH125) -> 0 | AI120: =SUM(AI121:AI125) -> 0 | AJ120: =AK120/AI120 ->  | AK120: =SUM(AK121:AK125) -> 0 | AL120: =IF(AH120=0,0,1) -> 0
AG121: Existente - CCEAR-DSP | AH121: =SUMPRODUCT((Energia!$J$49:$J$140),(Energia!$T$49:$T$140=18)*(INT(Energia!$S$49:$S$140/10000)=2)) -> 0 | AI121: =SUMPRODUCT((Energia!$K$49:$K$140),(Energia!$T$49:$T$140=18)*(INT(Energia!$S$49:$S$140/10000)=2)) -> 0 | AJ121: =IFERROR(AK121/AI121,"") ->  | AK121: =(SUMPRODUCT((Energia!$L$49:$L$140),(Energia!$T$49:$T$140=18)*(INT(Energia!$S$49:$S$140/10000)=2))) -> 0 | AL121: 0
AG122: Existente - CCEAR-QTD | AH122: =SUMPRODUCT((Energia!$J$49:$J$140),(Energia!$T$49:$T$140=1)*(INT(Energia!$S$49:$S$140/10000)=2)) -> 0 | AI122: =SUMPRODUCT((Energia!$K$49:$K$140),(Energia!$T$49:$T$140=1)*(INT(Energia!$S$49:$S$140/10000)=2)) -> 0 | AJ122: =IFERROR(AK122/AI122,"") ->  | AK122: =(SUMPRODUCT((Energia!$L$49:$L$140),(Energia!$T$49:$T$140=1)*(INT(Energia!$S$49:$S$140/10000)=2))) -> 0 | AL122: 0
AG123: Nova e Alternativa- CCEAR-DSP | AH123: =SUMPRODUCT((Energia!$J$49:$J$140),(Energia!$T$49:$T$140=18)*(INT(Energia!$S$49:$S$140/10000)=1))+SUMPRODUCT((Energia!$J$49:$J$140),(Energia!$T$49:$T$140=18)*(INT(Energia!$S$49:$S$140/10000)=3)) -> 0 | AI123: =SUMPRODUCT((Energia!$K$49:$K$140),(Energia!$T$49:$T$140=18)*(INT(Energia!$S$49:$S$140/10000)=1))+SUMPRODUCT((Energia!$K$49:$K$140),(Energia!$T$49:$T$140=18)*(INT(Energia!$S$49:$S$140/10000)=3)) -> 0 | AK123: =(SUMPRODUCT((Energia!$L$49:$L$140),(Energia!$T$49:$T$140=18)*(INT(Energia!$S$49:$S$140/10000)=1))+SUMPRODUCT((Energia!$L$49:$L$140),(Energia!$T$49:$T$140=18)*(INT(Energia!$S$49:$S$140/10000)=3))) -> 0 | AL123: 0
AG124: Nova e Alternativa- CCEAR-QTD | AH124: =SUMPRODUCT((Energia!$J$49:$J$140),(Energia!$T$49:$T$140=1)*(INT(Energia!$S$49:$S$140/10000)=1))+SUMPRODUCT((Energia!$J$49:$J$140),(Energia!$T$49:$T$140=1)*(INT(Energia!$S$49:$S$140/10000)=3)) -> 0 | AI124: =SUMPRODUCT((Energia!$K$49:$K$140),(Energia!$T$49:$T$140=1)*(INT(Energia!$S$49:$S$140/10000)=1))+SUMPRODUCT((Energia!$K$49:$K$140),(Energia!$T$49:$T$140=1)*(INT(Energia!$S$49:$S$140/10000)=3)) -> 0 | AK124: =(SUMPRODUCT((Energia!$L$49:$L$140),(Energia!$T$49:$T$140=1)*(INT(Energia!$S$49:$S$140/10000)=1))+SUMPRODUCT((Energia!$L$49:$L$140),(Energia!$T$49:$T$140=1)*(INT(Energia!$S$49:$S$140/10000)=3))) -> 0 | AL124: 0
AG125: Madeira e Belo Monte | AH125: =SUMPRODUCT((Energia!$J$49:$J$140)*(INT(Energia!$S$49:$S$140/10000)=5)) -> 0 | AI125: =SUMPRODUCT((Energia!$K$49:$K$140)*(INT(Energia!$S$49:$S$140/10000)=5)) -> 0 | AK125: =(SUMPRODUCT((Energia!L49:L140)*(INT(Energia!S49:S140/10000)=5))) -> 0 | AL125: 0
AG126: Bilaterais | AH126: =AH127 -> 300581.4254 | AI126: =SUM(AI127:AI142) -> 300581.4254 | AJ126: =AK126/AI126 -> 324.39 | AK126: =SUM(AK127:AK142) -> 97505608.6 | AL126: 1
AG127: =Energia!B185 -> ENEL RJ | AH127: =Energia!H185 -> 300581.4254 | AI127: =Energia!M185 -> 300581.4254 | AJ127: =Energia!L185 -> 324.39 | AK127: =AJ127*AI127 -> 97505608.6 | AL127: 1
AG128: =Energia!B146 -> 0 | AH128: =Energia!H146 -> 0 | AI128: =Energia!M146 -> 0 | AJ128: =Energia!L146 -> 0 | AK128: =AJ128*AI128 -> 0 | AL128: 0
AG129: =Energia!B147 -> 0 | AH129: =Energia!H147 -> 0 | AI129: =Energia!M147 -> 0 | AJ129: =Energia!L147 -> 0 | AK129: 0 | AL129: 0
AG130: =Energia!B148 -> 0 | AH130: =Energia!H148 -> 0 | AI130: =Energia!M148 -> 0 | AJ130: =Energia!L148 -> 0 | AK130: 0 | AL130: 0
AG131: =Energia!B149 -> 0 | AH131: =Energia!H149 -> 0 | AI131: =Energia!M149 -> 0 | AJ131: =Energia!L149 -> 0 | AK131: 0 | AL131: 0
AG132: =Energia!B150 -> 0 | AH132: =Energia!H150 -> 0 | AI132: =Energia!M150 -> 0 | AJ132: =Energia!L150 -> 0 | AK132: 0 | AL132: 0
AG133: =Energia!B151 -> 0 | AH133: =Energia!H151 -> 0 | AI133: =Energia!M151 -> 0 | AJ133: =Energia!L151 -> 0 | AK133: 0 | AL133: 0
AG134: =Energia!B152 -> 0 | AH134: =Energia!H152 -> 0 | AI134: =Energia!M152 -> 0 | AJ134: =Energia!L152 -> 0 | AK134: 0 | AL134: 0
AG135: =Energia!B153 -> 0 | AH135: =Energia!H153 -> 0 | AI135: =Energia!M153 -> 0 | AJ135: =Energia!L153 -> 0 | AK135: 0 | AL135: 0
AG136: =Energia!B154 -> 0 | AH136: =Energia!H154 -> 0 | AI136: =Energia!M154 -> 0 | AJ136: =Energia!L154 -> 0 | AK136: 0 | AL136: 0
AG137: =Energia!B155 -> 0 | AH137: =Energia!H155 -> 0 | AI137: =Energia!M155 -> 0 | AJ137: =Energia!L155 -> 0 | AK137: 0 | AL137: 0
AG138: =Energia!B156 -> 0 | AH138: =Energia!H156 -> 0 | AI138: =Energia!M156 -> 0 | AJ138: =Energia!L156 -> 0 | AK138: 0 | AL138: 0
AG139: =Energia!B157 -> 0 | AH139: =Energia!H157 -> 0 | AI139: =Energia!M157 -> 0 | AJ139: =Energia!L157 -> 0 | AK139: 0 | AL139: 0
AG140: =Energia!B158 -> 0 | AH140: =Energia!H158 -> 0 | AI140: =Energia!M158 -> 0 | AJ140: =Energia!L158 -> 0 | AK140: 0 | AL140: 0
AG141: 0 | AH141: =Energia!H159 -> 0 | AI141: =Energia!M159 -> 0 | AJ141: =Energia!L159 -> 0 | AK141: 0 | AL141: 0
AG142: 0 | AH142: 0 | AI142: 0 | AJ142: 0 | AK142: 0 | AL142: 0
AG143: =Energia!B20 -> Energia Base | AH143: =SUM(AH144:AH148) -> 7058.13901 | AI143: =SUM(AI144:AI148) -> 7058.13901 | AJ143: =AK143/AI143 -> 0 | AK143: =SUM(AK144:AK148) -> 0 | AL143: 1
AG144: Geração Própria | AH144: =Energia!H33 -> 0 | AI144: =Energia!C21 -> 0 | AJ144: =Energia!D21 -> 0 | AK144: =AJ144*AI144 -> 0 | AL144: 0
AG145: =Energia!B22 -> Cota Angra I/Angra II | AH145: =Energia!H34 -> 0 | AI145: =Energia!C22 -> 0 | AJ145: =Energia!D22 -> 349.15 | AK145: =AJ145*AI145 -> 0 | AL145: 0
AG146: =Energia!B23 -> Cotas Lei n º 12783/2013 | AH146: =Energia!H35 -> 0 | AI146: =Energia!C23 -> 0 | AJ146: =Energia!D23 -> 0 | AK146: =AJ146*AI146 -> 0 | AL146: 0
AG147: =Energia!B24 -> Itaipu (tirando as perdas) | AH147: =Energia!H36 -> 0 | AI147: =Energia!C24 -> 0 | AJ147: =Energia!D24 -> 0 | AK147: =AJ147*AI147 -> 0 | AL147: 0
AG148: =Energia!B25 -> PROINFA | AH148: =Energia!C25 -> 7058.13901 | AI148: =Energia!C25 -> 7058.13901 | AJ148: =Energia!D25 -> 0 | AK148: =AJ148*AI148 -> 0 | AL148: 1
AG149: Total | AH149: =AH120+AH126+AH143 -> 307639.5644 | AI149: =AI120+AI126+AI143 -> 307639.5644 | AJ149: =AK149/AI149 -> 316.9475577 | AK149: =AK120+AK126+AK143 -> 97505608.6
AM151: TabFatorX | AN151: Voltar
AM152: Componentes | AN152: Valor
AM153: Componente Pd do Fator X | AN153: ='VPB1'!F40 -> 0.002478342771
AM154: Componente T do Fator X | AN154: ='VPB1'!F41 -> -0.0057
AM155: Componente Q do Fator X | AN155: ='VPB1'!F42 -> -0.00826345307
AM156: Fator X | AN156: ='VPB1'!F43 -> -0.0114851103
AP158: TabParcelaB | AR158: Voltar
AP159: Descrição | AQ159: Valores | AR159: Referência
AP160: (1) Parcela B Ano Anterior | AQ160: =+'VPB1'!C37 -> 51380059.04 | AR160: TUSD aplicada ao Mercado
AP161: (2) Fator DR1/Fator PB | AQ161: =+'VPB1'!C38 -> 1.057014541 | AR161: SGT/ANEEL
AP162: (3) Parcela B econômica = (1)*(2) | AQ162: =+'VPB1'!C39 -> 54309469.52 | AR162: SGT/ANEEL
AP163: (4) IPCA | AQ163: =+LnkTxtIPCA -> 0.1173121285 | AR163: Indicador econômico oficial
AP164: (5) Fator X | AQ164: =+AQ165+AQ166+AQ167 -> -0.0114851103
AP165: (5.1) Componente Pd do Fator X | AQ165: =+LnkTxtFatorPd -> 0.002478342771 | AR165: PRORET 2.5 A
AP166: (5.2) Componente T do Fator X | AQ166: =+LnkTxtFatorT -> -0.0057 | AR166: REH 2.885/2021
AP167: (5.3) Componente Q do Fator X | AQ167: =+LnkTxtFatorQ -> -0.00826345307 | AR167: PRORET 2.5 A
AP168: (6) UDEROR | AQ168: =SUM(AQ169:AQ171) -> 4585900.396
AP169: (6.1) Outras Receitas (OR) | AQ169: =+'VPB1'!C40 -> 4063228.365 | AR169: Memorando 147/2022-SFF
AP170: (6.2) Excedente de Reativos (ER) | AQ170: =+'VPB1'!C41 -> 311718.5377 | AR170: Memorando 147/2022-SFF
AP171: (6.3) Ultrapassagem de Demanda (UD) | AQ171: =+'VPB1'!C42 -> 210953.4937 | AR171: Memorando 147/2022-SFF
AP172: (5) ONS | AQ172: 0 | AR172: REA 6.981/2018
AP173: Parcela B - DRP (R$) = (3)*[{1)+(4)-(5)]-(6) | AQ173: =Resultado!D45 -> 56718478.84
AT175: TabCVA | AW175: Voltar
AT176: Descrição | AU176: Delta (R$) | AV176: 5° Dia Útil Anterior (R$) | AW176: 12 Meses Subseqüentes (R$) | AX176: Colunas1
AT177: CVA CCC | AU177: 0 | AV177: 0 | AW177: 0 | AX177: =IF(AU177<>0,1,0) -> 0
AT178: ="CVA "&CVA!B10 -> CVA CDE | AU178: =CVA!C10 -> 3264441.77 | AV178: =CVA!D10 -> 3325892.289 | AW178: =CVA!E10 -> 3545474.03 | AX178: 1
AT179: ="CVA "&CVA!B11 -> CVA CDE Covid | AU179: =CVA!C11 -> 162553.3085 | AV179: =CVA!D11 -> 175507.1245 | AW179: =CVA!E11 -> 187094.439 | AX179: 1
AT180: ="CVA "&CVA!B12 -> CVA Rede Básica | AU180: =CVA!C12 -> 0 | AV180: =CVA!D12 -> 0 | AW180: =CVA!E12 -> 0 | AX180: 0
AT181: ="CVA "&CVA!B13 -> CVA Compra Energia | AU181: =CVA!C13 -> 4281118.922 | AV181: =CVA!D13 -> 4482425.715 | AW181: =CVA!E13 -> 4778363.995 | AX181: 1
AT182: CVA CFURH | AU182: 0 | AV182: 0 | AW182: 0 | AX182: 0
AT183: ="CVA "&CVA!B15 -> CVA Transporte Itaipu | AU183: =CVA!C15 -> 0 | AV183: =CVA!D15 -> 0 | AW183: =CVA!E15 -> 0 | AX183: 0
AT184: ="CVA "&CVA!B16 -> CVA Proinfa | AU184: =CVA!C16 -> 787294.1953 | AV184: =CVA!D16 -> 813945.4784 | AW184: =CVA!E16 -> 867683.7087 | AX184: 1
AT185: ="CVA "&CVA!B17 -> CVA ESS/ERR | AU185: =CVA!C17 -> 0 | AV185: =CVA!D17 -> 0 | AW185: =CVA!E17 -> 0 | AX185: 0
AT186: Total | AU186: =SUM(AU177:AU185) -> 8495408.196 | AV186: =SUM(AV177:AV185) -> 8797770.606 | AW186: =SUM(AW177:AW185) -> 9378616.173
AY188: TabFin | BA188: Voltar
AY189: Componentes Financeiros | AZ189: Valor (R$) | BA189: Participação | BB189: Colunas1 | BC189: Coluna1
AY190: CVA em processamento - Energia | AZ190: =SUMIFS(Financeiros[Valor],Financeiros[idDet1],19,Financeiros[id_Grupo_TARIFA],2,Financeiros[idDet2],60,Financeiros[idDet3],999) -> 4778363.995 | BA190: =AZ190/Financeiros!$D$5 -> 0.02357970204 | BB190: =IF(AZ190<>0,1,0) -> 1
AY191: CVA em processamento - Transporte | AZ191: =SUMIFS(Financeiros[Valor],Financeiros[idDet1],19,Financeiros[id_Grupo_TARIFA],1,Financeiros[idDet2],60, Financeiros[idDet3],999) -> 0 | BA191: =AZ191/Financeiros!$D$5 -> 0 | BB191: 0
AY192: CVA em processamento - Encargos Setoriais | AZ192: =SUMIFS(Financeiros[Valor],Financeiros[idDet1],19,Financeiros[id_Grupo_TARIFA],3,Financeiros[idDet2],60,Financeiros[idDet3],999)+SUMIFS(Financeiros[Valor],Financeiros[idDet1],19,Financeiros[id_Grupo_TARIFA],3,Financeiros[idDet2],60,Financeiros[idDet3],73)+SUMIFS(Financeiros[Valor],Financeiros[idDet1],19,Financeiros[id_Grupo_TARIFA],3,Financeiros[idDet2],60,Financeiros[idDet3],74) -> 4600252.178 | BA192: =AZ192/Financeiros!$D$5 -> 0.02270077704 | BB192: 1
AY193: Saldo a Compensar CVA-Ano Anterior + Ajustes | AZ193: =SUMIFS(Financeiros[Valor],Financeiros[idDet1],19,Financeiros[idDet2],64, Financeiros[idDet3],999)+SUMIFS(Financeiros[Valor],Financeiros[idDet1],19,Financeiros[idDet2],64, Financeiros[idDet3],73)+SUMIFS(Financeiros[Valor],Financeiros[idDet1],19,Financeiros[idDet2],64, Financeiros[idDet3],74) -> 275141.2585 | BA193: =AZ193/Financeiros!$D$5 -> 0.001357734342 | BB193: 1
AY194: Neutralidade de Parcela A- Energia | AZ194: =Financeiros!D44+Financeiros!D45+Financeiros!D46+Financeiros!D47+Financeiros!D48 -> -136592.5438 | BA194: =AZ194/Financeiros!$D$5 -> -0.0006740406311 | BB194: 1
AY195: Neutralidade de Parcela A - Transporte | AZ195: =SUMIFS(Financeiros[Valor],Financeiros[idDet1],20,Financeiros[id_Grupo_TARIFA],1,Financeiros[idDet2],60, Financeiros[idDet3],999) -> 1326411.145 | BA195: =AZ195/Financeiros!$D$5 -> 0.006545415881 | BB195: 1
AY196: Neutralidade de Parcela A - Encargos Setoriais | AZ196: =SUMIFS(Financeiros[Valor],Financeiros[idDet1],20,Financeiros[id_Grupo_TARIFA],3,Financeiros[idDet2],60,Financeiros[idDet3],999)+SUMIFS(Financeiros[Valor],Financeiros[idDet1],20,Financeiros[idDet2],60,Financeiros[idDet3],73)+SUMIFS(Financeiros[Valor],Financeiros[idDet1],20,Financeiros[idDet2],60,Financeiros[idDet3],74) -> 617491.9544 | BA196: =AZ196/Financeiros!$D$5 -> 0.003047125819 | BB196: 1
AY197: Neutralidade de Parcela A - Receita Irrecuperável | AZ197: =SUMIFS(Financeiros[Valor],Financeiros[idDet1],20,Financeiros[id_Grupo_TARIFA],5,Financeiros[idDet2],60, Financeiros[idDet3],999) -> 14377.13989 | BA197: =AZ197/Financeiros!$D$5 -> 7.094659911e-05 | BB197: 1
AY198: Neutralidade de Fin. Parcela B - Conta Covid | AZ198: =SUMIFS(Financeiros[Valor],Financeiros[idDet1],20,Financeiros[id_Grupo_TARIFA],4,Financeiros[idDet2],60, Financeiros[idDet3],999) -> 0 | BA198: =AZ198/Financeiros!$D$5 -> 0 | BB198: 0
AY199: Sobrecontratação/exposição de energia | AZ199: =SUMIFS(Financeiros[Valor],Financeiros[idDet1],22,Financeiros[id_Grupo_TARIFA],2,Financeiros[idDet2],60, Financeiros[idDet3],106)+SUMIFS(Financeiros[Valor],Financeiros[idDet1],22,Financeiros[id_Grupo_TARIFA],2,Financeiros[idDet2],60, Financeiros[idDet3],101) -> 0 | BA199: =AZ199/Financeiros!$D$5 -> 0 | BB199: 0
AY200: Garantias financeiras na contratação regulada de energia (CCEAR) | AZ200: =SUMIFS(Financeiros[Valor],Financeiros[idDet1],22,Financeiros[id_Grupo_TARIFA],2,Financeiros[idDet2],60, Financeiros[idDet3],102) -> 0 | BA200: =AZ200/Financeiros!$D$5 -> 0 | BB200: 0
AY201: Previsão de Risco Hidrológico | AZ201: =SUMIFS(Financeiros[Valor],Financeiros[idDet1],22,Financeiros[id_Grupo_TARIFA],2,Financeiros[idDet2],60, Financeiros[idDet3],220) -> 0 | BA201: =AZ201/Financeiros!$D$5 -> 0 | BB201: 0
AY202: Ajuste Liminar Abrace | AZ202: =SUMIFS(Financeiros[Valor],Financeiros[idDet1],22,Financeiros[id_Grupo_TARIFA],3,Financeiros[idDet2],85, Financeiros[idDet3],85) -> 0 | BA202: =AZ202/Financeiros!$D$5 -> 0 | BB202: 0
AY203: Ajuste ref. equilíbrio econômico-financeiro TUSDg (A3a) | AZ203: =SUMIFS(Financeiros[Valor],Financeiros[idDet1],22,Financeiros[id_Grupo_TARIFA],4,Financeiros[idDet2],60, Financeiros[idDet3],137) -> 0 | BA203: =AZ203/Financeiros!$D$5 -> 0 | BB203: 0
AY204: Repasse de ultrapassagem de Supridas/Permissionárias de Energia | AZ204: =SUMIFS(Financeiros[Valor],Financeiros[idDet1],22,Financeiros[id_Grupo_TARIFA],2,Financeiros[idDet2],60, Financeiros[idDet3],187) -> 0 | BA204: =AZ204/Financeiros!$D$5 -> 0 | BB204: 0
AY205: Reversão do Financeiro de Reperfilamento dos custos de RBSE | AZ205: =SUMIFS(Financeiros[Valor],Financeiros[idDet1],22,Financeiros[idDet2],60, Financeiros[idDet3],999,Financeiros[id_Grupo_TARIFA],1) -> 0 | BA205: =AZ205/Financeiros!$D$5 -> 0 | BB205: 0
AY206: Ajuste CUSD | AZ206: =SUMIFS(Financeiros[Valor],Financeiros[idDet1],22,Financeiros[id_Grupo_TARIFA],1,Financeiros[idDet2],60, Financeiros[idDet3],119) -> 231113.5689 | BA206: =AZ206/Financeiros!$D$5 -> 0.001140471739 | BB206: 1
AY207: Repasse de compensação DIC/FIC | AZ207: =Financeiros!D128 -> 0 | BA207: =AZ207/Financeiros!$D$5 -> 0 | BB207: 0
AY208: Compensação ref. acordos bilaterais de CCEAR | AZ208: =SUMIFS(Financeiros[Valor],Financeiros[idDet1],22,Financeiros[id_Grupo_TARIFA],2,Financeiros[idDet2],60, Financeiros[idDet3],230) -> 0 | BA208: =AZ208/Financeiros!$D$5 -> 0 | BB208: 0
AY209: Reversão do Risco Hidrológico | AZ209: =SUMIFS(Financeiros[Valor],Financeiros[idDet1],22,Financeiros[id_Grupo_TARIFA],2,Financeiros[idDet2],62, Financeiros[idDet3],220) -> 0 | BA209: =AZ209/Financeiros!$D$5 -> 0 | BB209: 0
AY210: Ressarcimento de P&D | AZ210: =SUMIFS(Financeiros[Valor],Financeiros[idDet1],22,Financeiros[id_Grupo_TARIFA],3,Financeiros[idDet2],60, Financeiros[idDet3],231) -> 0 | BA210: =AZ210/Financeiros!$D$5 -> 0 | BB210: 0
AY211: Reversão Conta-Covid - CVA em processamento - Energia | AZ211: =SUMIFS(Financeiros[Valor],Financeiros[idDet1],19,Financeiros[id_Grupo_TARIFA],2,Financeiros[idDet2],60,Financeiros[idDet3],233) -> 0 | BA211: =AZ211/Financeiros!$D$5 -> 0 | BB211: 0
AY212: Reversão Conta-Covid - CVA em processamento -Transporte | AZ212: =SUMIFS(Financeiros[Valor],Financeiros[idDet1],19,Financeiros[id_Grupo_TARIFA],1,Financeiros[idDet2],60,Financeiros[idDet3],233) -> 0 | BA212: =AZ212/Financeiros!$D$5 -> 0 | BB212: 0
AY213: Reversão Conta-Covid - CVA em processamento - Encargos Setoriais | AZ213: =SUMIFS(Financeiros[Valor],Financeiros[idDet1],19,Financeiros[id_Grupo_TARIFA],3,Financeiros[idDet2],60,Financeiros[idDet3],233) -> 0 | BA213: =AZ213/Financeiros!$D$5 -> 0 | BB213: 0
AY214: Reversão Conta-Covid - Saldo a Compensar CVA-Ano Anterior + Ajustes | AZ214: =SUMIFS(Financeiros[Valor],Financeiros[idDet1],19,Financeiros[idDet2],64, Financeiros[idDet3],236) -> 0 | BA214: =AZ214/Financeiros!$D$5 -> 0 | BB214: 0
AY215: Reversão Conta-Covid - Neutralidade de Parcela A | AZ215: =SUMIFS(Financeiros[Valor],Financeiros[idDet1],20,Financeiros[idDet2],60, Financeiros[idDet3],234) -> 0 | BA215: =AZ215/Financeiros!$D$5 -> 0 | BB215: 0
AY216: Reversão Conta-Covid - Sobrecontratação | AZ216: =SUMIFS(Financeiros[Valor],Financeiros[idDet1],22,Financeiros[idDet2],60, Financeiros[idDet3],235)-SUMIFS(Financeiros[Valor],Financeiros[idDet1],22,Financeiros[id_Grupo_TARIFA],4,Financeiros[idDet2],60, Financeiros[idDet3],235) -> 0 | BA216: =AZ216/Financeiros!$D$5 -> 0 | BB216: 0
... 191 more rows

Sheet NT Revisao (hidden)
B2: Tabelas
B4: Custo Operacional
B5: Receitas Irrecuperáveis
B6: Remuneração do Capital e Quota de Reintegração
B7: CAIMI
B8: Parcela B Ajustada
B9: Outras Receitas
B10: Cálculo das Perdas
B11: Energia Requerida
B12: Transmissão
B13: Encargos Setoriais
B16: Custo Operacional | E16: Voltar
B17: Descrição | C17: Limite Inferior | D17: Centro | E17: Limite Superior
B18: 1. Eficiência | C18: ='VPB e Fator X'!C133 ->  | D18: ='VPB e Fator X'!C131 ->  | E18: ='VPB e Fator X'!C132 -> 
B19: 2. OPEX Benchmarking (Atualizado) - R$ | C19: ='VPB e Fator X'!C136 ->  | D19: =(E19+C19)/2 ->  | E19: ='VPB e Fator X'!C135 -> 
B21: Comparação com intervalo de CO eficientes
B22: Descrição | C22: Valor
B23: 3. OPEX nas tarifas - R$ | C23: ='VPB e Fator X'!C111 -> 
B24: 4. Meta estudo de eficiência - R$ | C24: ='VPB e Fator X'!C114 -> 
B25: 5. Variação Anual (%) | C25: ='VPB e Fator X'!C115 -> 
B26: 6. Meta do estudo de eficiência aplicado o limite de 5% a.a. | C26: ='VPB e Fator X'!C117 -> 
B28: Avaliação do prêmio de eficiência
B29: Descrição | C29: Reais
B30: 7. OPEX Real - R$ | C30: ='VPB e Fator X'!C118 -> 
B31: 8. Meta OPEX | C31: ='VPB e Fator X'!C114 -> 
B32: 9. Relação OPEX Real / Meta OPEX | C32: ='VPB e Fator X'!C119 -> 
B33: 10. Meta OPEX aplicada a regra de compartilhamento | C33: ='VPB e Fator X'!C120 -> 
B35: 11. Número de anos no ciclo | C35: 5
B36: 12. OPEX na revisão [ = 3. + (10. - 3.) / 11.] | C36: ='VPB e Fator X'!C121 -> 
G38: Receitas Irrecuperáveis | H38: Voltar
G39: Descrição | H39: Valor
G40: Receita Base (R$) | H40: =H42/H41 -> 
G41: % RI | H41: ='VPB e Fator X'!D213 -> 
G42: Receita Irrecuperáveis - RI (R$) | H42: =Resultado!D39 -> 182198.6838
J44: Remuneração do Capital e Quota de Reintegração | K44: Voltar
J45: Descrição | L45: Colunas1
J46: (1) Ativo Imobilizado em Serviço (Valor Novo de Reposição) | K46: =Entrada!G7 ->  | L46: =IF(K46=0,0,1) -> 
J47: (2) Índice de Aproveitamento Integral | K47: =Entrada!G8 -> 
J48: (3) Obrigações Especiais Bruta | K48: =Entrada!G9 -> 
J49: (4) Bens Totalmente Depreciados | K49: =Entrada!G10 -> 
J50: (5) Base de Remuneração Bruta = (1)-(2)-(3)-(4) | K50: =Entrada!G11 -> 
J51: (6) Depreciação Acumulada | K51: =Entrada!G12 -> 
J52: (7) AIS Líquido (Valor de Mercado em Uso) | K52: =Entrada!G13 -> 
J53: (8) Índice de Aproveitamento Depreciado | K53: =Entrada!G14 -> 
J54: (9) Valor da Base de Remuneração (VBR) = (1)-(6)-(8) | K54: =Entrada!G15 -> 
J55: (10) Almoxarifado em Operação | K55: =Entrada!G16 -> 
J56: (11) Ativo Diferido | K56: =Entrada!G17 -> 
J57: (12) Obrigações Especiais Líquida | K57: =Entrada!G18 -> 
J58: (13) Terrenos e Servidões | K58: =Entrada!G19 -> 
J59: (14) Base de Remuneração Líquida Total = (9)+(10)+(11)-(12)+(13) | K59: =Entrada!G20 -> 
J60: (15) Base de Remuneração Ativos Concessionária | K60: =K59-K66-K69 ->  | L60: =IF(K60=0,0,1) -> 
J61: (16) WACC antes de impostos | K61: ='VPB e Fator X'!F81 -> 0.1082749759 | L61: 1
J62: (17) Remuneração Ativos Concessionária | K62: =K60*K61 -> 
J63: (18) Base Obrigações Especiais | K63: ='VPB e Fator X'!G91 ->  | L63: =IF(K63=0,0,1) -> 
J64: (19) Taxa de Remuneração das Obrigações Especiais | K64: =K65/K63 ->  | L64: =IF(K63=0,0,1) -> 
J65: (20) Remuneração de Obrigações Especiais | K65: ='VPB e Fator X'!G95 ->  | L65: =IF(K65=0,0,1) -> 
J66: (21) Saldo RGR/PLPT | K66: ='VPB e Fator X'!C91 -> 
J67: (22) Taxa RGR/PLPT | K67: ='VPB e Fator X'!F82 -> 0.00677460118 | L67: =IF(K66=0,0,1) -> 
J68: (23) Remuneração RGR/PLPT | K68: =K66*K67 -> 
J69: (24) Saldo RGR/Demais Investimentos | K69: ='VPB e Fator X'!C92 ->  | L69: =IF(K69=0,0,1) -> 
J70: (25) Saldo RGR/Demais Investimentos | K70: ='VPB e Fator X'!F83 -> 0.00677460118 | L70: =IF(K69=0,0,1) -> 
J71: (23) Remuneração RGR Demais Investimentos | K71: =K69*K70 -> 
J72: (24) Remuneração do Capital = (17)+(20)+(23) | K72: =K62+K65+K68+K71 ->  | L72: =IF(K72=0,0,1) -> 
J73: (25) Taxa de Depreciação | K73: ='VPB e Fator X'!C76 -> 0 | L73: 0
J74: (29) Quota de Reintegração Regulatória = (5) * (25) | K74: =K50*K73 ->  | L74: =IF(K74=0,0,1) -> 
M76: CAIMI | N76: Voltar
M77: Descrição | N77: Valores (R$)
M78: ='VPB e Fator X'!B60 -> (1) Base de Anuidade Regulatória (BAR) | N78: ='VPB e Fator X'!C60 -> 
M79: ='VPB e Fator X'!B61 -> (2) Base de Anuidade - Infraestrutura de imóveis e móveis administrativos (BARA) | N79: ='VPB e Fator X'!C61 -> 
M80: ='VPB e Fator X'!B62 -> (3) Base de Anuidade - Veículos (BARV) | N80: ='VPB e Fator X'!C62 -> 
M81: ='VPB e Fator X'!B63 -> (4) Base de Anuidade - Sistemas de Informática (BARI) | N81: ='VPB e Fator X'!C63 -> 
M82: ='VPB e Fator X'!B64 -> (5) Anuidade - Infraestrutura de imóveis e móveis administrativos (CAL) | N82: ='VPB e Fator X'!C64 -> 
M83: ='VPB e Fator X'!B65 -> (6) Anuidade - Veículos (CAV) | N83: ='VPB e Fator X'!C65 -> 
M84: ='VPB e Fator X'!B66 -> (7) Anuidade - Sistemas de Informática (CAI) | N84: ='VPB e Fator X'!C66 -> 
M85: ='VPB e Fator X'!B67 -> (8) CAIMI = (5)+(6)+(7) | N85: ='VPB e Fator X'!C67 -> 
P87: Parcela B ajustada | Q87: Voltar
P88: Descrição | Q88: Valores
P89: Custo de Administração, Operação e Manutenção (CAOM) | Q89: =Resultado!G19 -> 
P90: Custos Operacionais (CO) | Q90: =Resultado!G20 -> 
P91: Custo Anual dos Ativos (CAA) | Q91: =Resultado!G21 -> 
P92: Remuneração do Capital (RC) | Q92: =Resultado!G22 -> 
P93: Quota de Reintegração Regulatória (QRR) | Q93: =Resultado!G23 -> 
P94: Custo anual das instalações móveis e imóveis (CAIMI) | Q94: =Resultado!G24 -> 
P95: Parcela B (VPB) | Q95: =Resultado!G25 -> 
P96: Índice de Produtividade da Parcela B | Q96: =Resultado!G26 -> 0.002478342771
P97: Mecanismo de Incentivo à Qualidade | Q97: =Resultado!G27 -> -0.00826345307
P98: Parcela B com ajustes | Q98: =Resultado!G28 -> 
P99: Outras Receitas (OR) | Q99: =Resultado!G29 -> 4063228.365
P100: Excedente de Reativos (ER) | Q100: =Resultado!G30 -> 210953.4937
P101: Ultrapassagem de Demanda (UD) | Q101: =Resultado!G31 -> 311718.5377
P102: Parcela B deduzido UDEROR | Q102: =Q98-SUM(Q99:Q101) -> 
S104: Outras Receitas | U104: Voltar
S105: Descrição das atividades | T105: Compartilhamento | U105: Receita Regulatória | V105: Colunas1
S106: Serviços Cobráveis | T106: 0.6 | U106: =UDEROR!D14 -> 75943.09176 | V106: =IF(U106=0,0,1) -> 1
S107: =UDEROR!B15 -> Arrecadação de convênios ou valores pela fatura e arredação por terceiros | T107: 0.6 | U107: =UDEROR!D15 -> 133455.6697 | V107: 1
S108: =UDEROR!B16 -> Receita proveniente da comercialização de resultados de projetos de P&D | T108: 0.5 | U108: =UDEROR!D16 -> 0 | V108: 0
S109: =UDEROR!B17 -> Veiculação de publicidade | T109: 0.6 | U109: =UDEROR!D17 -> 0 | V109: 0
S110: =UDEROR!B18 -> Aluguel ou cessão onerosa de imóveis e espaços físicos | T110: 0.6 | U110: =UDEROR!D18 -> 0 | V110: 0
S111: =UDEROR!B19 -> Compartilhamento de infraestrutura (Média 12 meses) | T111: 0.6 | U111: =UDEROR!D19 -> 3853829.603 | V111: 1
S112: =UDEROR!B20 -> Serviços de avaliação técnica e aferição de medidores. | T112: 0.6 | U112: =UDEROR!D20 -> 0 | V112: 0
S113: =UDEROR!B21 -> Operacionalização de serviço de créditos tributários | T113: 0.6 | U113: =UDEROR!D21 -> 0 | V113: 0
S114: Elaboração de projeto, construção, operação, manutenção ou reforma de: | V114: 0
S115: (1) redes de distribuição de energia elétrica destinadas à regularização fundiária de interesse específico e ao atendimento dos empreendimentos de múltiplas unidades consumidoras; | T115: 0.6 | U115: =UDEROR!D23 -> 0 | V115: 0
S116: (2) redes de energia elétrica destinadas ao acesso dos sistemas de distribuição ou transmissão; | T116: 0.6 | U116: =UDEROR!D24 -> 0 | V116: 0
S117: (3) subestações de energia; | T117: 0.6 | U117: =UDEROR!D25 -> 0 | V117: 0
S118: (4) instalações elétricas internas de unidades consumidoras; | T118: 0.6 | U118: =UDEROR!D26 -> 0 | V118: 0
S119: (5) banco de capacitores: | T119: 0.6 | U119: =UDEROR!D27 -> 0 | V119: 0
S120: (6) padrões de entrada de unidades consumidoras atendidas em baixa tensão; | T120: 0.6 | U120: =UDEROR!D28 -> 0 | V120: 0
S121: (7) sistemas de medição de energia elétrica; | T121: 0.6 | U121: =UDEROR!D29 -> 0 | V121: 0
S122: (8) geradores, incluindo-se unidades de microgeração e minigeração distribuída; | T122: 0.3 | U122: =UDEROR!D30 -> 0 | V122: 0
S123: (9) sistemas de iluminação pública. | T123: 0.6 | U123: =UDEROR!D31 -> 0 | V123: 0
S124: Eficientização do consumo de energia elétrica e instalação de cogeração qualificada, desde que não enquadráveis nos projetos de Pesquisa e Desenvolvimento (P&D) ou de Eficiência Energética estabelecidos em lei | T124: 0.3 | U124: =UDEROR!D32 -> 0 | V124: 0
S125: Serviços de comunicação de dados | T125: 0.3 | U125: =UDEROR!D33 -> 0 | V125: 0
S126: Serviços de consultoria | T126: 0.6 | U126: =UDEROR!D34 -> 0 | V126: 0
S127: Total | U127: =SUM(U106:U126) -> 4063228.365 | V127: 1
W129: Calculo das Perdas | X129: Voltar
W130: Cálculo do Ponto de Partida
W131: Descrição | X131: PNT
W132: a. Meta Ciclo Anterior Faturada | X132: 0.013
W133: b. Diferença entre Medido e Faturado | X133: 0.009223126897
W134: c. Meta Ciclo Anterior Medida [b + c] | X134: 0.0222231269
W135: d. Média Histórico Medida | X135: 0.04749172703
W136: =IF(AND(Q130="P",X135>2.5%),"e. Ponto de Partida [ = máximo (2,5% & mínimo ( c & d )) ]",IF(AND(Q130="P",X135<=2.5),"e. Ponto de Partida [ = Média Histórica ]",IF(AND(Q130="G",X135>7.5%),"e. Ponto de Partida [ = máximo (7,5% & mínimo ( c & d )) ]","e. Ponto de Partida [ = Média Histórica ]"))) -> e. Ponto de Partida [ = Média Histórica ] | X136: 0.025
W137: f. Ponto de Partida Faturado [e - b] | X137: 0.0157768731
W139: Cálculo do Ponto de Chegada
W140: Descrição | X140: Modelo C | Y140: Modelo G | Z140: Modelo K
W141: g. Empresa Benchmark | X141: UHENPAL | Y141: UHENPAL | Z141: UHENPAL
W142: h. Perda Benchmark (PNT/BT) | X142: 0 | Y142: 0 | Z142: 0
X143: 0.002562180881 | Y143: 0.002562180881 | Z143: 0.002562180881
W144: j. Probabilidade de Comparação | X144: 0.4523378651 | Y144: 0.5143975427 | Z144: 0.1598724855
W145: k. Meta baseada em cada Benchmark [ h x j + (1 - j) x i ] | X145: 0.001403209451 | Y145: 0.001244201332 | Z145: 0.002152558655
W146: l. Meta média dos Benchmarks [ média ( k ) ] | Y146: 0.001599989812
W147: m. Ponto de Partida (PNT/BT) | Y147: 0.025
W148: =IF(AND(Q130="P",X135>2.5%),"n. Meta = [ mínimo (l e m ) ] ",IF(AND(Q130="P",X135<=2.5),"n. Ponto de Chegada [ = Ponto de Partida ]",IF(AND(Q130="G",X135>7.5%),"n. Meta = [ mínimo (l e m) ] ","n. Meta [ = Ponto de Partida ]"))) -> n. Meta [ = Ponto de Partida ] | Y148: 0.001599989812
W149: o. Meta Faturado [ n + b ] | Y149: 0
W151: Descrição | X151: Ponto Partida | Y151: 2021 | Z151: 2022 | AA151: 2023 | AB151: 2024 | AC151: 2025
W152: Trajetória PNT/BT | X152: 0.025 | Y152: 0.02031999796 | Z152: 0.01563999592 | AA152: 0.01095999389 | AB152: 0.00627999185 | AC152: 0.001599989812
W153: Velocidade de Redução (a.a) | Y153: -0.004680002038 | Z153: -0.004680002038 | AA153: -0.004680002038 | AB153: -0.004680002038 | AC153: -0.004680002038
W154: Limite de Redução (a.a) | Y154: 0 | Z154: 0 | AA154: 0 | AB154: 0 | AC154: 0
W155: PNT/BT Medido Regulatório | X155: 0.025 | Y155: 0.025 | Z155: 0.025 | AA155: 0.025 | AB155: 0.025 | AC155: 0.025
W156: Diferença entre Medido e Faturado | X156: 0.009223126897 | Y156: 0.009223126897 | Z156: 0.009223126897 | AA156: 0.009223126897 | AB156: 0.009223126897 | AC156: 0.009223126897
W157: PNT/BT Faturado Regulatório | X157: 0.0157768731 | Y157: 0.0157768731 | Z157: 0.0157768731 | AA157: 0.0157768731 | AB157: 0.0157768731 | AC157: 0.0157768731
W158: PT/ Einjetada Regulatório | X158: 0.04504 | Y158: 0.04504 | Z158: 0.04504 | AA158: 0.04504 | AB158: 0.04504 | AC158: 0.04504
AE160: Energia Requerida | AF160: Voltar
AE161: Descrição | AF161: Energia (MWh)
AE162: Perdas na Rede Básica | AF162: =Energia!H18+Energia!H19 -> 0
AE163: Perdas na Distribuição | AF163: =AF164+AF165 -> 19434.83145
AE164: Perdas Técnicas | AF164: =Energia!H17 -> 19387.68271
AE165: Perdas Não Técnicas | AF165: =Energia!H16 -> 47.14874212
AE166: Energia Vendida | AF166: =Energia!D6 -> 288204.733
AE167: Energia Requerida | AF167: =SUM(AF162:AF163,AF166) -> 307639.5644
AH169: Transmissão | AI169: Voltar
AH170: Descrição | AI170: Valor (R$) | AJ170: Colunas1
AH171: Rede Básica | AI171: =Resultado!D30 -> 0 | AJ171: =IF(AI171=0,0,1) -> 0
AH172: Rede Básica Fronteira | AI172: =Resultado!D31 -> 0 | AJ172: =IF(AI172=0,0,1) -> 0
AH173: Rede Básica ONS (A2) | AI173: =Resultado!D32 -> 0 | AJ173: 0
AH174: Rede Básica Export. (A2) | AI174: =Resultado!D33 -> 0 | AJ174: 0
AH175: MUST Itaipu | AI175: =Resultado!D34 -> 0 | AJ175: 0
AH176: Transporte de Itaipu | AI176: =Resultado!D35 -> 0 | AJ176: 0
AH177: Conexão | AI177: =Resultado!D36 -> 0 | AJ177: 0
AH178: Uso do sistema de distribuição | AI178: =Resultado!D37 -> 48491752.27 | AJ178: 1
AH179: Total | AI179: =SUM(AI171:AI178) -> 48491752.27
AK181: Encargos Setoriais | AL181: Voltar
AK182: Descrição | AL182: Valor (R$) | AM182: Dispositivo Legal | AN182: Colunas1
AK183: Taxa de Fisc. de Serviços de E.E. – TFSEE | AL183: =Resultado!D22 -> 326181.4482 | AM183: =Encargos!D17 -> Conforme módulo 5.5 do PRORET | AN183: =IF(AL183=0,0,1) -> 1
AK184: Conta de Desenvolvimento Energético – CDE | AL184: =Resultado!D23 -> 30149948.88 | AM184: =Encargos!D10 -> REH 3.034/2022 e Previsão-2022 | AN184: 1
AK185: Compensação financeira - CFURH | AL185: =Resultado!D24 -> 0 | AM185: =Encargos!D11 -> 0 | AN185: 0
AK186: Encargos Serv. Sist. - ESS e Energ. Reserv. - EER | AL186: =Resultado!D25 -> 0 | AM186: =Encargos!D12 -> 0 | AN186: 0
AK187: PROINFA | AL187: =Resultado!D26 -> 4509087.062 | AM187: =Encargos!D13 -> ReH 2.995/2021 | AN187: 1
AK188: P&D, Efic.Energ e Ressarc.ICMS Sist.Isol. | AL188: =Resultado!D27 -> 2058584.137 | AM188: Res. Normativa nº 316/2008 | AN188: 1
AK189: ONS | AL189: =Resultado!D28 -> 0 | AM189: =Encargos!D14 -> 0 | AN189: 0
AK190: Total | AL190: =SUM(AL183:AL189) -> 37043801.53
AO192: TabRevAvalRTE
AP193: Receita Verificada (R$) | AQ193: Receita Verificada (R$) | AR193: Receita Requerida (R$) | AS193: Variação | AT193: Participação na Revisão | AU193: Participação na Receita
AO194: PARCELA A [Encargos+Transmissão+Energia+RI] | AP194: =AP195+AP205+AP214+AP215 -> 151267932 | AQ194: =AQ195+AQ205+AQ214+AQ215 ->  | AR194: =AR195+AR205+AR214+AR215 -> 183223361.1 | AS194: =IFERROR(AR194/AQ194-1,0) -> 0 | AT194: =IFERROR((AR194-AQ194)/$AQ$223,0) -> 0 | AU194: =IFERROR(AR194/$AR$223,0) -> 0
AO195: Encargos Setoriais | AP195: =SUM(AP196:AP204) -> 24987549.35 | AQ195: =SUM(AQ196:AQ204) ->  | AR195: =SUM(AR196:AR204) -> 37043801.53 | AS195: =IFERROR(AR195/AQ195-1,0) -> 0 | AT195: 0 | AU195: 0 | AV195: Colunas1 | AW195: Colunas2
AO196: Taxa de Fisc. de Serviços de E.E. – TFSEE | AP196: =SUM(DADOS_MercadoBase[TFSEE]) -> 282389.0612 | AQ196: =AP196+AP196*($AQ$223-$AP$223)/$AP$194 ->  | AR196: =Resultado!D22 -> 326181.4482 | AS196: 0 | AT196: 0 | AU196: 0 | AV196: =IF(SUM(AP196:AR196)<>0,1,0) -> 
AO197: Conta de Desenvolvimento Energético – CDE (USO) | AP197: =SUM(DADOS_MercadoBase[CDE],DADOS_MercadoBase[RTE_CDE_E]) -> 17389057.01 | AR197: =Encargos!G22 -> 27363320.38 | AS197: 0 | AT197: 0 | AU197: 0 | AV197: =IF(SUM(AP197:AR197)<>0,1,0) -> 
AO198: Conta de Desenvolvimento Energético – CDE (Covid TUSD) | AP198: =SUM(DADOS_MercadoBase[covidTusdEco]) -> 1819070.587 | AR198: =Encargos!G23 -> 793321.8896 | AS198: 0 | AT198: 0 | AU198: 0
AO199: Conta de Desenvolvimento Energético – CDE (Covid TE) | AP199: =SUM(DADOS_MercadoBase[covidTeEco],DADOS_MercadoBase[RTE_CDE_E_ACR]) -> 894774.8304 | AR199: =Encargos!G24 -> 1993306.613 | AS199: 0 | AT199: 0 | AU199: 0
AO200: Compensação financeira - CFURH | AP200: =SUM(DADOS_MercadoBase[CFURH]) -> 0 | AR200: =Resultado!D24 -> 0 | AS200: 0 | AT200: 0 | AU200: 0
AO201: Encargos Serv. Sist. - ESS e Energ. Reserv. - EER | AP201: =SUM(DADOS_MercadoBase[ESSERR]) -> 0 | AR201: =Resultado!D25 -> 0 | AS201: 0 | AT201: 0 | AU201: 0
AO202: PROINFA | AP202: =SUM(DADOS_MercadoBase[PROINFA]) -> 2774104.01 | AR202: =Resultado!D26 -> 4509087.062 | AS202: 0 | AT202: 0 | AU202: 0 | AV202: =IF(SUM(AP202:AR202)<>0,1,0) -> 
AO203: P&D, Efic.Energ e Ressarc.ICMS Sist.Isol. | AP203: =SUM(DADOS_MercadoBase[PeD],DADOS_MercadoBase[RTE_PeD]) -> 1828153.861 | AR203: =Resultado!D27 -> 2058584.137 | AS203: 0 | AT203: 0 | AU203: 0
AO204: ONS | AP204: =Resultado!C28 -> 0 | AR204: =Resultado!D28 -> 0 | AS204: 0 | AT204: 0 | AU204: 0 | AV204: =IF(SUM(AP204:AR204)<>0,1,0) -> 
AO205: Custos de Transmissão | AP205: =SUM(AP206:AP213) -> 46122610.19 | AQ205: =SUM(AQ206:AQ213) ->  | AR205: =SUM(AR206:AR213) -> 48491752.27 | AS205: 0 | AT205: 0 | AU205: 0
AO206: Rede Básica | AP206: =SUM(DADOS_MercadoBase[TUST_RB]) -> 0 | AQ206: =AP206+AP206*($AQ$223-$AP$223)/$AP$194 ->  | AR206: =Resultado!D30 -> 0 | AS206: 0 | AT206: 0 | AU206: 0
AO207: Rede Básica Fronteira | AP207: =SUM(DADOS_MercadoBase[TUST_FR]) -> 0 | AR207: =Resultado!D31 -> 0 | AS207: 0 | AT207: 0 | AU207: 0
AO208: Rede Básica ONS (A2) | AP208: =SUM(DADOS_MercadoBase[TUSDG_ONS]) -> 0 | AR208: =Resultado!D32 -> 0 | AS208: 0 | AT208: 0 | AU208: 0
AO209: Rede Básica Export. (A2) | AP209: =SUM(DADOS_MercadoBase[TUSDG_T]) -> 0 | AR209: =Resultado!D33 -> 0 | AS209: 0 | AT209: 0 | AU209: 0
AO210: MUST Itaipu | AP210: =SUM(DADOS_MercadoBase[TUST_ITAIPU]) -> 0 | AR210: =Resultado!D34 -> 0 | AS210: 0 | AT210: 0 | AU210: 0
AO211: Transporte de Itaipu | AP211: =SUM(DADOS_MercadoBase[ITAIPU]) -> 0 | AR211: =Resultado!D35 -> 0 | AS211: 0 | AT211: 0 | AU211: 0
AO212: Conexão | AP212: =SUM(DADOS_MercadoBase[Conexao_T]) -> 0 | AR212: =Resultado!D36 -> 0 | AS212: 0 | AT212: 0 | AU212: 0
AO213: Uso do sistema de distribuição | AP213: =SUM(DADOS_MercadoBase[CUSD],DADOS_MercadoBase[RTE_CUSD]) -> 46122610.19 | AR213: =Resultado!D37 -> 48491752.27 | AS213: 0 | AT213: 0 | AU213: 0
AO214: Custos de Aquisição de Energia | AP214: =SUM(DADOS_MercadoBase[RTE_Energia],DADOS_MercadoBase[EnergiaRevenda],DADOS_MercadoBase[perdasnt],DADOS_MercadoBase[perdasrb_d],DADOS_MercadoBase[perdasrb_c],DADOS_MercadoBase[perdastec]) -> 79992618.56 | AR214: =Resultado!D38 -> 97505608.6 | AS214: 0 | AT214: 0 | AU214: 0
AO215: Receitas Irrecuperáveis | AP215: =SUM(DADOS_MercadoBase[RI]) -> 165153.8963 | AR215: =Resultado!D39 -> 182198.6838 | AS215: 0 | AT215: 0 | AU215: 0 | AV215: =IF(SUM(AP215:AR215)<>0,1,0) -> 
AO216: PARCELA B | AP216: =SUM(AP217:AP222) ->  | AQ216: =AP216 ->  | AR216: =SUM(AR217:AR222) ->  | AS216: 0 | AT216: 0 | AU216: 0
AO217: Custos Operacionais | AP217: ='VPB e Fator X'!C107 ->  | AQ217: =AP217 ->  | AR217: =Resultado!G20*(1-Resultado!$G$26-Resultado!$G$27) ->  | AS217: 0 | AT217: 0 | AU217: 0
AO218: Anuidades | AP218: =Entrada!G63*('VPB e Fator X'!$C$102-'VPB e Fator X'!$C$107)/SUM(Entrada!$G$61:$G$63) ->  | AR218: =Resultado!G24*(1-Resultado!$G$26-Resultado!$G$27) ->  | AS218: 0 | AT218: 0 | AU218: 0
AO219: Remuneração | AP219: =Entrada!G61*('VPB e Fator X'!$C$102-'VPB e Fator X'!$C$107)/SUM(Entrada!$G$61:$G$63) ->  | AR219: =Resultado!G22*(1-Resultado!$G$26-Resultado!$G$27) ->  | AS219: 0 | AT219: 0 | AU219: 0
... 69 more rows

Sheet Apresentação
B2: Efeito Médio | L2: Efeito Médio CP x Final | U2: Composição Tarifária - Tributos | Z2: Composição Tarifária - ICMS & PIS/COFINS | AD2: Composição Tarifária - sem Tributos
U19: =Z19 -> Custo de Distribuição | W19: =AB19 -> 0.1680957291 | Z19: Custo de Distribuição | AB19: =AF19/$AB$26 -> 0.1680957291 | AD19: Custo de Distribuição | AF19: ='Votos e NTs'!W24 -> 56718478.84
U20: =Z20 -> Custo de Energia | W20: =AB20 -> 0.2889759511 | Z20: Custo de Energia | AB20: =AF20/$AB$26 -> 0.2889759511 | AD20: Custo de Energia | AF20: ='Votos e NTs'!W25 -> 97505608.6 | AP20: Custos Operacionais | AS20: ='NT Revisao'!AT217 -> 0
U21: =Z21 -> Custo de Transporte | W21: =AB21 -> 0.1437142994 | Z21: Custo de Transporte | AB21: =AF21/$AB$26 -> 0.1437142994 | AD21: Custo de Transporte | AF21: ='Votos e NTs'!W26 -> 48491752.27 | AP21: Anuidades | AS21: ='NT Revisao'!AT218 -> 0
U22: =Z22 -> Encargos Setoriais | W22: =AB22 -> 0.1097861747 | Z22: Encargos Setoriais | AB22: =SUM(AF23:AF26/$AB$26) -> 0.1097861747 | AD22: Receitas Irrecuperáveis | AF22: ='Votos e NTs'!W27 -> 182198.6838 | AP22: Remuneração | AS22: ='NT Revisao'!AT219 -> 0
C23: Impacto da RTA na Tarifa | M23: Impacto da RTA na Tarifa | P23: CP | Q23: Final | U23: =Z23 -> Receitas Irrecuperáveis | W23: =AB23 -> 0.0005399795835 | Z23: Receitas Irrecuperáveis | AB23: =AF22/$AB$26 -> 0.0005399795835 | AD23: PROINFA | AF23: ='Votos e NTs'!W28 -> 4509087.062 | AP23: Depreciação | AS23: ='NT Revisao'!AT220 -> 0
C24: Encargos Setoriais | F24: =IF(CAPA!C7="Reajuste",'Votos e NTs'!BP267,'NT Revisao'!AT195) -> 0.05949428592 | M24: Encargos Setoriais | P24: ='AP x Final'!I4 ->  | Q24: =F24 -> 0.05949428592 | U24: Tributos | W24: =AB24+AB25 -> 0.2888878661 | Z24: ICMS | AB24: ='Votos e NTs'!R29 -> 0.25974151 | AD24: CDE | AF24: ='Votos e NTs'!W29 -> 30149948.88 | AP24: UDEROR | AS24: ='NT Revisao'!AT221 -> 0
C25: Transporte | F25: =IF(CAPA!C7="Reajuste",'Votos e NTs'!BP277,'NT Revisao'!AT205) -> 0.01169193373 | M25: Custos de Transporte | P25: ='AP x Final'!I14 ->  | Q25: 0.01169193373 | Z25: PIS/COFINS | AB25: ='Votos e NTs'!R30 -> 0.02914635616 | AD25: ESS/EER | AF25: ='Votos e NTs'!W30 -> 0 | AP25: Parcela B | AS25: =SUM(AS20:AS24) -> 0
C26: Compra de Energia | F26: =IF(CAPA!C7="Reajuste",'Votos e NTs'!BP286,'NT Revisao'!AT214) -> 0.08642270737 | M26: Custos de Compra de Energia | P26: ='AP x Final'!I23 ->  | Q26: 0.08642270737 | Z26: TOTAL com tributos | AB26: =AF27/(1-AB24-AB25) -> 337417727.1 | AD26: Outros | AF26: ='Votos e NTs'!W31 -> 2384765.585
C27: Receitas Irrecuperáveis | F27: =IF(CAPA!C7="Reajuste",'Votos e NTs'!BP287,'NT Revisao'!AT215) -> 8.411407403e-05 | M27: Receitas Irrecuperáveis | P27: ='AP x Final'!I24 ->  | Q27: 8.411407403e-05 | AD27: TOTAL | AF27: =SUM(AF19:AF26) -> 239941839.9
C28: Distribuição | F28: =IF(CAPA!C7="Reajuste",'Votos e NTs'!BP288,'NT Revisao'!AT216) -> 0.02634339879 | M28: Distribuição | P28: ='AP x Final'!I25 ->  | Q28: 0.02634339879
C29: Componentes Financeiros | F29: =IF(CAPA!C7="Reajuste",'Votos e NTs'!BP291,'NT Revisao'!AT225)+F14 -> 0.01153503999 | M29: Componentes Financeiros | P29: ='AP x Final'!I33 ->  | Q29: 0.01153503999
C30: Retirada dos Financeiros Anteriores | F30: =IF(CAPA!C7="Reajuste",'Votos e NTs'!BP343,'NT Revisao'!AT277) -> -0.003648634751 | M30: Efeito da Retirada dos Financeiros Anteriores | P30: =P31-SUM(P24:P29) ->  | Q30: =F30 -> -0.003648634751
C31: Efeito Médio Consumidor | F31: =IF(CAPA!C7="Reajuste",'Votos e NTs'!BP344,'NT Revisao'!AT278) -> 0.1919228451 | M31: Efeito Médio Consumidor | P31: ='AP x Final'!I71 -> 0 | Q31: =F31 -> 0.1919228451
C34: Efeito Subgrupo
C35: SUBGRUPO | D35: EFEITO
C36: Grupo A | D36: =Resultado!L8 -> 0.1777800345
C37: Grupo B | D37: =Resultado!L9 -> 0.1951306769
C38: Grupos A+B | D38: =Resultado!L10 -> 0.1919228451
C39: B1 | D39: 0.192
F40: Compra de Energia
F41: Contratos | G41: Montantes (MWh) | J41: Preço (R$/MWh) | M41: Impacto Processo
G42: Processo Anterior | H42: Processo Atual | I42: Variação | J42: Processo Anterior | K42: Processo Atual | L42: Variação | N42: Colunas1
F43: CCEAR | G43: =(SUM('Votos e NTs'!BT350:BT353)+'Votos e NTs'!BT$363*SUM('Votos e NTs'!BT350:BT353)/SUM('Votos e NTs'!BT$350:BT$361)) -> 0 | H43: =(SUM('Votos e NTs'!BU350:BU353)+'Votos e NTs'!BU$363*SUM('Votos e NTs'!BU350:BU353)/SUM('Votos e NTs'!BU$350:BU$361)) -> 0 | I43: =IFERROR(H43/G43-1,"") ->  | J43: =IFERROR(SUM('Votos e NTs'!BZ350:BZ353)/SUM('Votos e NTs'!BT350:BT353),"") ->  | K43: =IFERROR(SUM('Votos e NTs'!CA350:CA353)/SUM('Votos e NTs'!BU350:BU353),"") ->  | L43: =IFERROR(K43/J43-1,"") ->  | M43: =SUM('Votos e NTs'!CG370:CG373) -> 0 | N43: =IF(G43+H43=0,0,1) -> 0
F44: Ajuste - CCEAR | G44: =('Votos e NTs'!BT354+'Votos e NTs'!BT$363*'Votos e NTs'!BT354/SUM('Votos e NTs'!$BT$350:$BT$361)) -> 0 | H44: =('Votos e NTs'!BU354+'Votos e NTs'!BU$363*'Votos e NTs'!BU354/SUM('Votos e NTs'!$BU$350:$BU$361)) -> 0 | J44: =IFERROR('Votos e NTs'!BZ354/'Votos e NTs'!BT354,"") ->  | K44: =IFERROR('Votos e NTs'!CA354/'Votos e NTs'!BU354,"") ->  | L44: =IFERROR(K44/J44-1,"") ->  | M44: ='Votos e NTs'!CG374 -> 0 | N44: 0
F45: Madeira e Belo Monte | G45: =('Votos e NTs'!BT355+'Votos e NTs'!BT$363*'Votos e NTs'!BT355/SUM('Votos e NTs'!$BT$350:$BT$361)) -> 0 | H45: =('Votos e NTs'!BU355+'Votos e NTs'!BU$363*'Votos e NTs'!BU355/SUM('Votos e NTs'!$BU$350:$BU$361)) -> 0 | J45: =IFERROR('Votos e NTs'!BZ355/'Votos e NTs'!BT355,"") ->  | K45: =IFERROR('Votos e NTs'!CA355/'Votos e NTs'!BU355,"") ->  | L45: =IFERROR(K45/J45-1,"") ->  | M45: ='Votos e NTs'!CG375 -> 0 | N45: 0
F46: Cota Angra I e Angra II | G46: =('Votos e NTs'!BT356+'Votos e NTs'!BT$363*'Votos e NTs'!BT356/SUM('Votos e NTs'!$BT$350:$BT$361)) -> 0 | H46: =('Votos e NTs'!BU356+'Votos e NTs'!BU$363*'Votos e NTs'!BU356/SUM('Votos e NTs'!$BU$350:$BU$361)) -> 0 | J46: =IFERROR('Votos e NTs'!BZ356/'Votos e NTs'!BT356,"") ->  | K46: =IFERROR('Votos e NTs'!CA356/'Votos e NTs'!BU356,"") ->  | L46: =IFERROR(K46/J46-1,"") ->  | M46: ='Votos e NTs'!CG376 -> 0 | N46: 0
F47: Cotas Lei n º 12.783/2013 | G47: =('Votos e NTs'!BT357+'Votos e NTs'!BT$363*'Votos e NTs'!BT357/SUM('Votos e NTs'!$BT$350:$BT$361)) -> 0 | H47: =('Votos e NTs'!BU357+'Votos e NTs'!BU$363*'Votos e NTs'!BU357/SUM('Votos e NTs'!$BU$350:$BU$361)) -> 0 | J47: =IFERROR('Votos e NTs'!BZ357/'Votos e NTs'!BT357,"") ->  | K47: =IFERROR('Votos e NTs'!CA357/'Votos e NTs'!BU357,"") ->  | L47: =IFERROR(K47/J47-1,"") ->  | M47: ='Votos e NTs'!CG377 -> 0 | N47: 0
F48: Itaipu | G48: =('Votos e NTs'!BT358+'Votos e NTs'!BT$363*'Votos e NTs'!BT358/SUM('Votos e NTs'!$BT$350:$BT$361)) -> 0 | H48: =('Votos e NTs'!BU358+'Votos e NTs'!BU$363*'Votos e NTs'!BU358/SUM('Votos e NTs'!$BU$350:$BU$361)) -> 0 | J48: =IFERROR('Votos e NTs'!BZ358/'Votos e NTs'!BT358,"") ->  | K48: =IFERROR('Votos e NTs'!CA358/'Votos e NTs'!BU358,"") ->  | M48: ='Votos e NTs'!CG378 -> 0 | N48: 0
F49: Bilateral | G49: =('Votos e NTs'!BT359+'Votos e NTs'!BT$363*'Votos e NTs'!BT359/SUM('Votos e NTs'!$BT$350:$BT$361)) -> 300449.4206 | H49: =('Votos e NTs'!BU359+'Votos e NTs'!BU$363*'Votos e NTs'!BU359/SUM('Votos e NTs'!$BU$350:$BU$361)) -> 300581.4254 | I49: 0.0004393578821 | J49: =IFERROR('Votos e NTs'!BZ359/'Votos e NTs'!BT359,"") -> 266.07 | K49: =IFERROR('Votos e NTs'!CA359/'Votos e NTs'!BU359,"") -> 324.39 | L49: 0.2191904386 | M49: ='Votos e NTs'!CG379 -> 0.08625174055 | N49: 1
F50: Geração Própria | G50: =('Votos e NTs'!BT360+'Votos e NTs'!BT$363*'Votos e NTs'!BT360/SUM('Votos e NTs'!$BT$350:$BT$361)) -> 0 | H50: =('Votos e NTs'!BU360+'Votos e NTs'!BU$363*'Votos e NTs'!BU360/SUM('Votos e NTs'!$BU$350:$BU$361)) -> 0 | J50: =IFERROR('Votos e NTs'!BZ360/'Votos e NTs'!BT360,"") ->  | K50: =IFERROR('Votos e NTs'!CA360/'Votos e NTs'!BU360,"") ->  | M50: ='Votos e NTs'!CG380 -> 0 | N50: 0
F51: Montante de Reposição | G51: =('Votos e NTs'!BT361+'Votos e NTs'!BT$363*'Votos e NTs'!BT361/SUM('Votos e NTs'!$BT$350:$BT$361)) -> 0 | H51: =('Votos e NTs'!BU361+'Votos e NTs'!BU$363*'Votos e NTs'!BU361/SUM('Votos e NTs'!$BU$350:$BU$361)) -> 0 | J51: =IFERROR('Votos e NTs'!BZ361/'Votos e NTs'!BT361,"") ->  | K51: =IFERROR('Votos e NTs'!CA361/'Votos e NTs'!BU361,"") ->  | M51: ='Votos e NTs'!CG381 -> 0 | N51: 0
F52: Proinfa | G52: ='Votos e NTs'!BT362 -> 7190.143831 | H52: ='Votos e NTs'!BU362 -> 7058.13901 | I52: -0.01835913498 | J52: 0 | K52: 0 | M52: ='Votos e NTs'!CG382 -> 0.0001709668148 | N52: 1
F53: Total | G53: =SUM(G43:G52) -> 307639.5644 | H53: =SUM(H43:H52) -> 307639.5644 | I53: 0 | J53: ='Votos e NTs'!BW364 -> 260.0194699 | K53: ='Votos e NTs'!BX364 -> 316.9475577 | L53: 0.2189377887 | M53: =SUM(M43:M52) -> 0.08642270737
O55: Encargos Setoriais
O56: Encargos Setoriais | P56: Processo Anterior (mil R$) | Q56: Processo Atual (mil R$) | R56: Impacto Processo | S56: Colunas1
O57: TFSEE | P57: ='Votos e NTs'!BM268/1000 -> 282.3878536 | Q57: ='Votos e NTs'!BN268/1000 -> 326.1814482 | R57: ='Votos e NTs'!BP268 -> 0.0002161074195 | S57: =IF(P57+Q57=0,0,1) -> 1
O58: CDE (USO) | P58: ='Votos e NTs'!BM269/1000 -> 17388.98264 | Q58: ='Votos e NTs'!BN269/1000 -> 27363.32038 | R58: ='Votos e NTs'!BP269 -> 0.04922017498 | S58: 1
O59: CDE Conta Covid (TUSD) | P59: ='Votos e NTs'!BM270/1000 -> 2713.833811 | Q59: ='Votos e NTs'!BN270/1000 -> 2786.628503 | R59: ='Votos e NTs'!BP270 -> 0.0003592185809 | S59: 1
O60: CDE Conta Covid (TE) | P60: =IF('Votos e NTs'!BM271/1000<1,0,'Votos e NTs'!BM271/1000) -> 0 | Q60: ='Votos e NTs'!BN271/1000 -> 0 | R60: ='Votos e NTs'!BP271 -> 0 | S60: 0
O61: Compensação financeira - CFURH | P61: ='Votos e NTs'!BM272/1000 -> 0 | Q61: ='Votos e NTs'!BN272/1000 -> 0 | R61: ='Votos e NTs'!BP272 -> 0 | S61: 0
O62: ESS/EER | P62: ='Votos e NTs'!BM273/1000 -> 0 | Q62: ='Votos e NTs'!BN273/1000 -> 0 | R62: ='Votos e NTs'!BP273 -> 0 | S62: 0
O63: PROINFA | P63: ='Votos e NTs'!BM274/1000 -> 2774.092146 | Q63: ='Votos e NTs'!BN274/1000 -> 4509.087062 | R63: ='Votos e NTs'!BP274 -> 0.008561646456 | S63: 1
O64: P&D | P64: ='Votos e NTs'!BM275/1000 -> 1828.146043 | Q64: ='Votos e NTs'!BN275/1000 -> 2058.584137 | R64: ='Votos e NTs'!BP275 -> 0.001137138485 | S64: 1
O65: ONS | P65: ='Votos e NTs'!BM276/1000 -> 0 | Q65: ='Votos e NTs'!BN276/1000 -> 0 | R65: ='Votos e NTs'!BP276 -> 0 | S65: 0
O66: Total de Encargos | P66: =SUM(P57:P65) -> 24987.4425 | Q66: =SUM(Q57:Q65) -> 37043.80153 | R66: =SUM(R57:R65) -> 0.05949428592
T68: Custos de Transporte
T69: Custos de Transporte | U69: Processo Anterior (mil R$) | V69: Processo Atual (mil R$) | W69: Impacto Processo | X69: Colunas1
T70: Rede Básica | U70: ='Votos e NTs'!BM278/1000 -> 0 | V70: ='Votos e NTs'!BN278/1000 -> 0 | W70: ='Votos e NTs'!BP278 -> 0 | X70: =IF(U70+V70=0,0,1) -> 0
T71: Rede Básica Fronteira | U71: ='Votos e NTs'!BM279/1000 -> 0 | V71: ='Votos e NTs'!BN279/1000 -> 0 | W71: ='Votos e NTs'!BP279 -> 0 | X71: 0
T72: Rede Básica ONS (A2) | U72: ='Votos e NTs'!BM280/1000 -> 0 | V72: ='Votos e NTs'!BN280/1000 -> 0 | W72: ='Votos e NTs'!BP280 -> 0 | X72: 0
T73: Rede Básica Export. (A2) | U73: ='Votos e NTs'!BM281/1000 -> 0 | V73: ='Votos e NTs'!BN281/1000 -> 0 | W73: ='Votos e NTs'!BP281 -> 0 | X73: 0
T74: MUST Itaipu | U74: ='Votos e NTs'!BM282/1000 -> 0 | V74: ='Votos e NTs'!BN282/1000 -> 0 | W74: ='Votos e NTs'!BP282 -> 0 | X74: 0
T75: Transporte de Itaipu | U75: ='Votos e NTs'!BM283/1000 -> 0 | V75: ='Votos e NTs'!BN283/1000 -> 0 | W75: ='Votos e NTs'!BP283 -> 0 | X75: 0
T76: Conexão | U76: ='Votos e NTs'!BM284/1000 -> 0 | V76: ='Votos e NTs'!BN284/1000 -> 0 | W76: ='Votos e NTs'!BP284 -> 0 | X76: 0
T77: Uso do sistema de distribuição | U77: ='Votos e NTs'!BM285/1000 -> 46122.41295 | V77: ='Votos e NTs'!BN285/1000 -> 48491.75227 | W77: ='Votos e NTs'!BP285 -> 0.01169193373 | X77: 1
T78: Total do Transporte | U78: =SUM(U70:U77) -> 46122.41295 | V78: =SUM(V70:V77) -> 48491.75227 | W78: =SUM(W70:W77) -> 0.01169193373
Y80: Parcela B - Reajuste
Y81: Descrição | AA81: Valor | AB81: Referência
Y82: (1) Parcela B Processo Anterior (mil R$) | AA82: ='Votos e NTs'!AQ160/1000 -> 51380.05904 | AB82: TUSD fio B aplicada ao Mercado
Y83: (2) Fator DR1/Fator PB | AA83: ='VPB1'!C38 -> 1.057014541 | AB83: SGT/ANEEL
Y84: (3) Parcela B Processo Anterior sem UDEROR (mil R$) | AA84: =AA82*AA83 -> 54309.46952 | AB84: SGT/ANEEL
Y85: (4) IPCA | AA85: 0.04005113905 | AB85: Indicador econômico oficial
Y86: (5) Fator X | AA86: =SUM(AA87:AA89) -> -0.0114851103 | AB86: Pd + T + Q
Y87: (5.1) Componente Pd do Fator X | AA87: ='VPB1'!F40 -> 0.002478342771 | AB87: PRORET 2.5 A
Y88: (5.2) Componente T do Fator X | AA88: ='VPB1'!F41 -> -0.0057 | AB88: REH nº 2.377/2018
Y89: (5.3) Componente Q do Fator X | AA89: ='VPB1'!F42 -> -0.00826345307 | AB89: PRORET 2.5 A
Y90: (6) UDEROR | AA90: =SUM(AA91:AA93) -> 4585.900396 | AB90: UD + ER + OR
Y91: (6.1) Outras Receitas (OR) | AA91: ='Votos e NTs'!AQ169/1000 -> 4063.228365 | AB91: Valores fiscalizados - SFF
Y92: (6.2) Excedente de Reativos (ER) | AA92: ='Votos e NTs'!AQ170/1000 -> 311.7185377 | AB92: Valores fiscalizados - SFF
Y93: (6.3) Ultrapassagem de Demanda (UD) | AA93: ='Votos e NTs'!AQ171/1000 -> 210.9534937 | AB93: Valores fiscalizados - SFF
Y94: (7) ONS | AB94: 0
Y95: Parcela B Atual (mil R$) | AA95: =AA84*(1+AA85-AA86)-AA90 -> 52522.47549
AD97: Financeiros
AD98: Componentes Financeiros | AF98: Valor (mil R$) | AG98: Impacto Processo
AD99: CVA em processamento - Energia | AF99: =SUMIFS(Financeiros[Valor],Financeiros[idDet1],19,Financeiros[id_Grupo_TARIFA],2,Financeiros[idDet2],60,Financeiros[idDet3],999)/1000 -> 4778.363995 | AG99: ='Votos e NTs'!BP292 -> 0.02357970204
AD100: CVA em processamento -Transporte | AF100: =SUMIFS(Financeiros[Valor],Financeiros[idDet1],19,Financeiros[id_Grupo_TARIFA],1,Financeiros[idDet2],60,Financeiros[idDet3],999)/1000 -> 0 | AG100: =1000*AF100/Financeiros!$D$5 -> 0
AD101: CVA em processamento - Encargos Setoriais | AF101: ='Votos e NTs'!BN294/1000 -> 4600.252178 | AG101: =1000*AF101/Financeiros!$D$5 -> 0.02270077704
AD102: Saldo a Compensar CVA-Ano Anterior + Ajustes | AF102: =SUMIFS(Financeiros[Valor],Financeiros[idDet1],19,Financeiros[idDet2],64, Financeiros[idDet3],999)/1000 -> 275.1412585 | AG102: =1000*AF102/Financeiros!$D$5 -> 0.001357734342
AD103: Neutralidade de Parcela A | AF103: =('Votos e NTs'!AZ194+'Votos e NTs'!AZ195+'Votos e NTs'!AZ196+'Votos e NTs'!AZ197)/1000 -> 1821.687695 | AG103: =1000*AF103/Financeiros!$D$5 -> 0.008989447668
AD104: Ajuste CUSD | AF104: ='Votos e NTs'!BN308/1000 -> 231.1135689 | AG104: =1000*AF104/Financeiros!$D$5 -> 0.001140471739
AD105: ='Votos e NTs'!BK324 -> Custo Distribuidora - Spread Conta Covid - Art. 4º, REN 952/2021 | AF105: ='Votos e NTs'!BN324/1000 -> -85.11356503 | AG105: =1000*AF105/Financeiros!$D$5 -> -0.0004200082927
AD106: ='Votos e NTs'!BK325 -> Arrecadação de encargo CDE Covid dos consumidores migrantes (Ofício Circular 20/2021) | AF106: ='Votos e NTs'!BN325/1000 -> -5.558242022 | AG106: =1000*AF106/Financeiros!$D$5 -> -2.742815133e-05
AD107: Crédito de PIS COFINS | AF107: ='Votos e NTs'!BN326/1000 -> -9278.34167 | AG107: =1000*AF107/Financeiros!$D$5 -> -0.0457856564
AD108: Reversão Conta-Covid - Saldo a Compensar | AF108: =SUMIFS(Financeiros[Valor],Financeiros[idDet1],19,Financeiros[idDet2],64,Financeiros[idDet3],236)/1000 -> 0 | AG108: =1000*AF108/Financeiros!$D$5 -> 0
AD109: Reversão Conta-Covid - Neutralidade de Parcela A | AF109: =SUMIFS(Financeiros[Valor],Financeiros[idDet1],20,Financeiros[idDet2],60, Financeiros[idDet3],234)/1000 -> 0 | AG109: =1000*AF109/Financeiros!$D$5 -> 0
AD110: Outro Financeiro Relevante | AF110: 0 | AG110: =1000*AF110/Financeiros!$D$5 -> 0
AD111: Diferimento (art 10 da ReH 2.706/2020) | AF111: ='Votos e NTs'!AZ220/1000 -> 0 | AG111: =1000*AF111/Financeiros!$D$5 -> 0
AD112: Outro Financeiro Relevante | AG112: =1000*AF112/Financeiros!$D$5 -> 0
AD113: Outros | AF113: =AF114-SUM(AF99:AF112) -> 0 | AG113: =1000*AF113/Financeiros!$D$5 -> 0
AD114: Total | AF114: ='Votos e NTs'!AZ246/1000 -> 2337.545219 | AG114: =SUM(AG99:AG113) -> 0.01153503999
AF115: ='Votos e NTs'!BN291/1000 -> 2337.545219 | AG115: =LnkTxtAvalEfeitoFinanceiro -> 0.01153503999
AF116: =AF114-AF115 -> 0 | AG116: =AG114-AG115 -> 0 | AI116: B1 x Inflação
AJ117: Variação
AI118: IGP-M | AJ118: ='Votos e NTs'!AD38 -> 1.440435751
AI119: IPCA | AJ119: ='Votos e NTs'!AE38 -> 0.8428133818
AI120: Tarifa B1 | AJ120: ='Votos e NTs'!AC38 -> 1.360643265
AL122: Financeiros
AL123: Resultado Bandeiras Tarifárias | AM123: Valor (mil R$) | AN123: Impacto Processo
AL124: Usinas com contrato por disponibilidade - CCEAR-D | AM124: -66519.46164 | AN124: -0.01144423021
AL125: Risco Hidrológico das usinas que repactuaram | AM125: 128197.3185 | AN125: 0.02205549458
AL126: Risco Hidrológico das usinas cotistas - CCGF | AM126: 103147.5557 | AN126: 0.01774584977
AL127: Risco Hidrológico da UHE ITAIPU | AM127: 87452.43744 | AN127: 0.01504560924
AL128: Encargos de Energia de Reserva - EER e de Serviço do Sistema - ESS | AM128: -102050.9453 | AN128: -0.01755718527
AL129: Resultado Mercado de Curto Prazo - MCP | AM129: 28529.54764 | AN129: 0.004908318602
AL130: Custo Total | AM130: 178756.4523 | AN130: 0.03075385671
AL131: Recolhimento pelas Bandeiras Tarifárias | AM131: -162443.7101 | AN131: -0.0279473581
AL132: Previsão do Risco Hidrológico no Processo Tarifário de 2018 | AM132: -162780.8718 | AN132: -0.02800536451
AL133: Receita Total | AM133: =AM131+AM132 -> -325224.5819 | AN133: =AN132+AN131 -> -0.05595272261
AL134: Custo não coberto antecipadamente | AM134: -146468.1296 | AN134: -0.0251988659
AP136: Remuneração do Capital
AP137: Descrição | AQ137: Ciclo Anterior | AR137: Ciclo Atual
AP138: Base Líquida (mil R$) | AQ138: ='Avaliação Parcela B'!J127/1000 ->  | AR138: ='Avaliação Parcela B'!K127/1000 -> 
AP139: Remuneração | AQ139: ='Avaliação Parcela B'!G128 ->  | AR139: ='Avaliação Parcela B'!H128 -> 
AT141: Quota de Reintegração
AT142: Descrição | AU142: Ciclo Anterior | AV142: Ciclo Atual
AT143: Base Bruta (mil R$) | AU143: ='Avaliação Parcela B'!J159/1000 ->  | AV143: ='Avaliação Parcela B'!K159/1000 -> 
AT144: Depreciação | AU144: ='Avaliação Parcela B'!G160 ->  | AV144: ='Avaliação Parcela B'!H160 -> 
AX146: Parcela B - Revisão
AX147: Descrição | AY147: Processo Anterior (mil R$) | AZ147: Processo Atual (mil R$) | BA147: Variação | BB147: Participação na Revisão
AX148: ='NT Revisao'!AO217 -> Custos Operacionais | AY148: ='NT Revisao'!AQ217/1000 ->  | AZ148: ='NT Revisao'!AR217/1000 ->  | BA148: ='NT Revisao'!AS217 -> 0 | BB148: ='NT Revisao'!AT217 -> 0
AX149: ='NT Revisao'!AO218 -> Anuidades | AY149: ='NT Revisao'!AQ218/1000 ->  | AZ149: ='NT Revisao'!AR218/1000 ->  | BA149: ='NT Revisao'!AS218 -> 0 | BB149: ='NT Revisao'!AT218 -> 0
AX150: ='NT Revisao'!AO219 -> Remuneração | AY150: ='NT Revisao'!AQ219/1000 ->  | AZ150: ='NT Revisao'!AR219/1000 ->  | BA150: ='NT Revisao'!AS219 -> 0 | BB150: ='NT Revisao'!AT219 -> 0
AX151: ='NT Revisao'!AO220 -> Depreciação | AY151: ='NT Revisao'!AQ220/1000 ->  | AZ151: ='NT Revisao'!AR220/1000 ->  | BA151: ='NT Revisao'!AS220 -> 0 | BB151: ='NT Revisao'!AT220 -> 0
AX152: ='NT Revisao'!AO221 -> UD+ER+OR | AY152: ='NT Revisao'!AQ221/1000 ->  | AZ152: ='NT Revisao'!AR221/1000 -> -4585.900396 | BA152: ='NT Revisao'!AS221 -> 0 | BB152: ='NT Revisao'!#REF! -> 
AX155: PARCELA B | AY155: =SUM(AY148:AY154) ->  | AZ155: =SUM(AZ148:AZ154) ->  | BA155: =IF(ISERROR(AZ155/AY155-1),0,AZ155/AY155-1) -> 0 | BB155: =IF(ISERROR((AZ155-AY155)/$AP$183),0,(AZ155-AY155)/$AP$183) -> 0
BD159: Enel RJ | BE159: 683.87 | BG159: 1 | BH159: Enel RJ | BJ159: 714.44
BD160: Celpa | BE160: 683.6 | BG160: 2 | BH160: Celpa | BJ160: 703.21
BD161: AmE | BE161: 664.84 | BG161: =BG160+1 -> 3 | BH161: EMS | BJ161: 700.36
BD162: Light | BE162: 663.1 | BG162: =BG161+1 -> 4 | BH162: Light | BJ162: 694.05
BD163: ENF | BE163: 649.89 | BG163: 5 | BH163: AmE | BJ163: 693.49
BD164: Eflul | BE164: 648.12 | BG164: 6 | BH164: EMT | BJ164: 690.12
BD165: EFLJC | BE165: 639.05 | BG165: 7 | BH165: ENF | BJ165: 662.44
BD166: Sulgipe | BE166: 636.31 | BG166: 8 | BH166: Forcel | BJ166: 654.63
BD167: Cemar | BE167: 630.18 | BG167: 9 | BH167: ETO | BJ167: 647.35
BD168: Cemig-D | BE168: 628.33 | BG168: 10 | BH168: Cemig | BJ168: 644.23
BD169: EMT | BE169: 626.84 | BG169: 11 | BH169: Eflul | BJ169: 641.69
BD170: Forcel | BE170: 619.01 | BG170: 12 | BH170: EFLJC | BJ170: 639.85
BD171: Roraima Energia | BE171: 617.77 | BG171: 13 | BH171: Celpe 2021 | BI171: Celpe 2021 | BJ171: 628.4189439
BD172: EMS | BE172: 608.65 | BG172: 14 | BH172: Cemar | BJ172: 628.21
BD173: Hidropan | BE173: 600.74 | BG173: 15 | BH173: EMG | BJ173: 627.73
BD174: ETO | BE174: 600.08 | BG174: 16 | BH174: Coelba | BJ174: 624.64
BD175: EMG | BE175: 595.83 | BG175: 17 | BH175: Sulgipe | BJ175: 619.22
BD176: Ceron | BE176: 576.82 | BG176: 18 | BH176: Hidropan | BJ176: 602.62
BD177: Chesp | BE177: 573.14 | BG177: 19 | BH177: CPFL Paulista | BJ177: 601.57
BD178: Uhenpal | BE178: 572.49 | BG178: 20 | BH178: Chesp | BJ178: 599.53
BD179: Eletroacre | BE179: 569.84 | BG179: 21 | BH179: Enel CE | BJ179: 594.36
BD180: Cepisa | BE180: 569.48 | BG180: 22 | BH180: ELFSM | BJ180: 593.39
BD181: RGE | BE181: 560.27 | BG181: 23 | BH181: RGE (agrupada) | BJ181: 589.57
BD182: Cocel | BE182: 557.12 | BG182: 24 | BH182: ESE | BJ182: 585.6
BD183: Coelba | BE183: 552.13 | BG183: 25 | BH183: Ceal | BJ183: 583.31
BD184: Celpe | BE184: 549.33 | BG184: 26 | BH184: Eletroacre | BJ184: 581.91
BD185: CPFL Santa Cruz | BE185: 547.69 | BG185: 27 | BH185: Cepisa | BJ185: 581.82
BD186: EPB | BE186: 545.4 | BG186: 28 | BH186: Roraima Energia | BJ186: 574.69
BD187: Eletrocar | BE187: 541.57 | BG187: 29 | BH187: Celpe 2020 | BI187: Celpe 2020 | BJ187: 574.34
BD188: CEA | BE188: 537.18 | BG188: 30 | BH188: Uhenpal | BJ188: 571.71
BD189: Ceal | BE189: 535.25 | BG189: 31 | BH189: CPFL Santa Cruz | BJ189: 564.97
BD190: Celg-D | BE190: 533.68 | BG190: 32 | BH190: Cosern | BJ190: 563.55
BD191: Elektro | BE191: 531.87 | BG191: 33 | BH191: EPB | BJ191: 562.11
BD192: ESE | BE192: 530.72 | BG192: 34 | BH192: Cocel | BJ192: 561.58
BD193: Enel CE | BE193: 529.49 | BG193: 35 | BH193: Eletrocar | BJ193: 561.45
BD194: EDP ES | BE194: 525.81 | BG194: 36 | BH194: EDP ES | BJ194: 557
BD195: EDP SP | BE195: 525.73 | BG195: 37 | BH195: Elektro | BJ195: 555.05
BD196: CPFL Paulista | BE196: 523.02 | BG196: 38 | BH196: CEEE-D | BJ196: 548.97
BD197: CEB-DIS | BE197: 518.01 | BG197: 39 | BH197: Enel GO | BJ197: 547.39
BD198: ELFSM | BE198: 517.96 | BG198: 40 | BH198: EDP SP | BJ198: 546.11
BD199: Copel-DIS | BE199: 517.61 | BG199: 41 | BH199: Demei | BJ199: 537.88
BD200: Eletropaulo | BE200: 515.59 | BG200: 42 | BH200: Enel SP | BJ200: 534.19
BD201: CEEE-D | BE201: 515.07 | BG201: 43 | BH201: CPFL Piratininga | BJ201: 533.55
BD202: Ienergia | BE202: 510.62 | BG202: 44 | BH202: MuxEnergia | BJ202: 527.79
BD203: DMED | BE203: 507.42 | BG203: 45 | BH203: DMED | BJ203: 525.57
BD204: Demei | BE204: 507.03 | BG204: 46 | BH204: CEB-DIS | BJ204: 514.78
BD205: Cosern | BE205: 505.53 | BG205: 47 | BH205: Ceron | BJ205: 514.38
BD206: EBO | BE206: 497.66 | BG206: =BG205+1 -> 48 | BH206: ESS (agrupada) | BJ206: 513.89
BD207: Sul Sudeste | BE207: 497.35 | BG207: 49 | BH207: Copel-DIS | BJ207: 512.77
BD208: CPFL Piratininga | BE208: 490.18 | BG208: 50 | BH208: Ienergia | BJ208: 512.48
BD209: MuxEnergia | BE209: 485.22 | BG209: 51 | BH209: Cooperaliança | BJ209: 512
BD210: Celesc-DIS | BE210: 469.78 | BG210: 52 | BH210: Celesc-DIS | BJ210: 505.99
BD211: Cooperaliança | BE211: 467.6 | BG211: 53 | BH211: CEA | BJ211: 505.25
BG212: 54 | BH212: EBO | BJ212: 497.66
CE215: DEC | CV215: FEC
CG216: =CH216-1 -> 2012 | CH216: 2013 | CI216: 2014 | CJ216: 2015 | CK216: 2016 | CL216: 2017 | CM216: 2018 | CN216: 2019 | CO216: =CP216-1 -> 2020 | CP216: 2021 | CQ216: =CP216+1 -> 2022 | CR216: =CQ216+1 -> 2023 | CS216: 2024 | CT216: 2025 | CX216: =CY216-1 -> 2012 | CY216: 2013 | CZ216: 2014 | DA216: 2015 | DB216: 2016 | DC216: 2017 | DD216: 2018 | DE216: 2019 | DF216: =DG216-1 -> 2020 | DG216: 2021 | DH216: =DG216+1 -> 2022 | DI216: =DH216+1 -> 2023 | DJ216: 2024 | DK216: 2025
CE217: DEC Apurado | CH217: 23.76 | CI217: 25.51 | CJ217: 19.31 | CK217: 15.8 | CL217: 16.98 | CM217: 12.51 | CN217: 11.96 | CO217: 12.41 | CV217: FEC Apurado | CY217: 8.87 | CZ217: 8.84 | DA217: 8.12 | DB217: 7.13 | DC217: 7.56 | DD217: 8.97 | DE217: 5.69 | DF217: 5.56
CE218: DEC Limite | CH218: 16.39 | CI218: 16.39 | CJ218: 15.48 | CK218: 14.71 | CL218: 13.91 | CM218: 13.82 | CN218: 13.67 | CO218: 13.35 | CP218: 13.22 | CV218: FEC Limite | CY218: 12.48 | CZ218: 12.05 | DA218: 11.04 | DB218: 10.19 | DC218: 9.35 | DD218: 9.26 | DE218: 8.7 | DF218: 8.33 | DG218: 8.1
CE219: DEC Limite Proposto | CQ219: 12.92 | CR219: 12.33 | CS219: 11.86 | CT219: 11.48 | CV219: FEC Limite Proposto | DH219: 8.05 | DI219: 7.25 | DJ219: 7.05 | DK219: 6.68
DM239: Parcela B / Mercado
DM241: Grandes
DM242: Reg | DN242: Distribuidora | DO242: PB/Mcdo | DP242: Média | DQ242: Parcela B | DR242: Mercado | DS242: Proc.Tar
DM243: N | DN243: ETO | DO243: =DQ243/DR243 -> 265.4071894 | DP243: =$DP$280 -> 157.3788987 | DQ243: 639963261.2 | DR243: 2411250.662 | DS243: 2020
DM244: N | DN244: Eletroacre | DO244: =DQ244/DR244 -> 262.1465373 | DP244: 157.3788987 | DQ244: 287816729.4 | DR244: 1097923.064 | DS244: 2020
DM245: CO | DN245: EMT | DO245: =DQ245/DR245 -> 246.7591507 | DP245: 157.3788987 | DQ245: 2384063093 | DR245: 9661498.209 | DS245: 2021
DM246: N | DN246: Equatorial PA | DO246: 238.5668194 | DP246: 157.3788987 | DQ246: 2059159218 | DR246: 8631373.062 | DS246: 2020
DM247: N | DN247: Cemar | DO247: 234.2860346 | DP247: 157.3788987 | DQ247: 1473020968 | DR247: 6287276.026 | DS247: 2020
DM248: CO | DN248: EMS | DO248: =DQ248/DR248 -> 233.1547235 | DP248: 157.3788987 | DQ248: 1338673092 | DR248: 5741565.396 | DS248: 2021
DM249: NE | DN249: Equatorial PI | DO249: =DQ249/DR249 -> 225.4201543 | DP249: 157.3788987 | DQ249: 847371044 | DR249: 3759074.012 | DS249: 2020
DM250: NE | DN250: Coelba | DO250: =DQ250/DR250 -> 223.125744 | DP250: 157.3788987 | DQ250: 4496925221 | DR250: 20154219.5 | DS250: 2021
DM251: N | DN251: CEA | DO251: =DQ251/DR251 -> 202.1486891 | DP251: 157.3788987 | DQ251: 208334410.9 | DR251: 1030599.861 | DS251: 2020
DM252: N | DN252: Roraima Energia | DO252: 196.414686 | DP252: 157.3788987 | DQ252: 190096815.7 | DR252: 967834.023 | DS252: 2020
DM253: N | DN253: ERO | DO253: 194.5443248 | DP253: 157.3788987 | DQ253: 654751237.9 | DR253: 3365563.29 | DS253: 2020
DM254: NE | DN254: Enel CE | DO254: 193.8478817 | DP254: 157.3788987 | DQ254: 2304543823 | DR254: 11888413.76 | DS254: 2021
... 47 more rows

Sheet AP x Final (hidden)
C1: Prencher valores conforme CP | F1: Prencher valores conforme CP
B2: Descrição | C2: CP XX/2021 Receita Verificada (R$) | D2: Final Receita Verificada (R$) | E2: Variação Receita Verificada Final/CP | F2: CP XX/2021 Receita Requerida (R$) | G2: Final Receita Requerida (R$) | H2: Variação Receita Requerida Final/CP | I2: CP Participação na Revisão % | J2: Final Participação na Revisão % | K2: Variação Total | M2: Variação de Custos | N2: Variação de Receita Verificada | O2: Simulação sem var. mercado
B3: PARCELA A [Encargos+Transmissão+Energia] | C3: =C4+C14+C23+C24 -> 0 | D3: =D4+D14+D23+D24 ->  | E3: =IF(ISERROR(D3/C3-1),"-",D3/C3-1) -> - | F3: =F4+F14+F23+F24 -> 0 | G3: =G4+G14+G23+G24 -> 183223361.1 | H3: =IF(ISERROR(G3/F3-1),"-",G3/F3-1) -> - | I3: =IFERROR((F3-C3)/$C$31,"") ->  | J3: =IFERROR((G3-D3)/$D$31,"") ->  | K3: =J3-I3 ->  | L3: =IF(G3+D3<>0,1,0) ->  | M3: =(G3-C3)/$C$31-I3 ->  | N3: =K3-M3 ->  | O3: =(G3-C3)/$C$31 -> 
B4: Encargos Setoriais | C4: =SUM(C5:C13) -> 0 | D4: =SUM(D5:D13) ->  | E4: =IF(ISERROR(D4/C4-1),"-",D4/C4-1) -> - | F4: =SUM(F5:F13) -> 0 | G4: =SUM(G5:G13) -> 37043801.53 | H4: =IF(ISERROR(G4/F4-1),"-",G4/F4-1) -> - | I4: =IFERROR((F4-C4)/$C$31,"") ->  | K4: =J4-I4 ->  | N4: =K4-M4 ->  | O4: =(G4-C4)/$C$31 -> 
B5: Taxa de Fisc. de Serviços de E.E. – TFSEE | D5: ='NT Revisao'!AQ196 ->  | E5: =IF(ISERROR(D5/C5-1),"-",D5/C5-1) -> - | G5: ='NT Revisao'!AR196 -> 326181.4482 | H5: =IF(ISERROR(G5/F5-1),"-",G5/F5-1) -> - | N5: =K5-M5 -> 
B6: Conta de Desenvolvimento Energético – CDE (USO) | D6: ='NT Revisao'!AQ197 ->  | E6: =IF(ISERROR(D6/C6-1),"-",D6/C6-1) -> - | G6: ='NT Revisao'!AR197 -> 27363320.38 | H6: =IF(ISERROR(G6/F6-1),"-",G6/F6-1) -> -
B7: Conta de Desenvolvimento Energético – CDE Conta-Covid (TUSD) | D7: ='NT Revisao'!AQ198 ->  | E7: - | G7: ='NT Revisao'!AR198 -> 793321.8896 | H7: =IF(ISERROR(G7/F7-1),"-",G7/F7-1) -> -
B8: Conta de Desenvolvimento Energético – CDE Conta-Covid (TE) | D8: ='NT Revisao'!AQ199 ->  | G8: ='NT Revisao'!AR199 -> 1993306.613 | H8: =IF(ISERROR(G8/F8-1),"-",G8/F8-1) -> -
B9: Compensação financeira - CFURH | D9: ='NT Revisao'!AQ200 ->  | E9: - | G9: ='NT Revisao'!AR200 -> 0 | H9: =IF(ISERROR(G9/F9-1),"-",G9/F9-1) -> -
B10: Encargos Serv. Sist. - ESS e Energ. Reserv. - EER | D10: ='NT Revisao'!AQ201 ->  | E10: - | G10: ='NT Revisao'!AR201 -> 0 | H10: - | K10: =J10-I10 -> 
B11: PROINFA | D11: ='NT Revisao'!AQ202 ->  | E11: - | G11: ='NT Revisao'!AR202 -> 4509087.062 | H11: - | K11: =J11-I11 -> 
B12: P&D, Efic.Energ | D12: ='NT Revisao'!AQ203 ->  | E12: - | G12: ='NT Revisao'!AR203 -> 2058584.137 | H12: - | K12: =J12-I12 -> 
B13: ONS | D13: ='NT Revisao'!AQ204 ->  | E13: - | G13: ='NT Revisao'!AR204 -> 0 | H13: -
B14: Custos de Transmissão | C14: =SUM(C15:C22) -> 0 | D14: =SUM(D15:D22) ->  | E14: - | F14: =SUM(F15:F22) -> 0 | G14: =SUM(G15:G22) -> 48491752.27 | H14: - | K14: =J14-I14 -> 
B15: Rede Básica | D15: ='NT Revisao'!AQ206 ->  | E15: =IF(ISERROR(D15/C15-1),"-",D15/C15-1) -> - | G15: ='NT Revisao'!AR206 -> 0 | H15: - | K15: =J15-I15 -> 
B16: Rede Básica Fronteira | D16: ='NT Revisao'!AQ207 ->  | E16: - | G16: ='NT Revisao'!AR207 -> 0 | H16: - | K16: =J16-I16 -> 
B17: Rede Básica ONS (A2) | D17: ='NT Revisao'!AQ208 ->  | E17: - | G17: ='NT Revisao'!AR208 -> 0 | H17: -
B18: Rede Básica Export. (A2) | D18: ='NT Revisao'!AQ209 ->  | E18: - | G18: ='NT Revisao'!AR209 -> 0 | H18: -
B19: MUST Itaipu | D19: ='NT Revisao'!AQ210 ->  | E19: - | G19: ='NT Revisao'!AR210 -> 0 | H19: - | K19: =J19-I19 -> 
B20: Transporte de Itaipu | D20: ='NT Revisao'!AQ211 ->  | E20: - | G20: ='NT Revisao'!AR211 -> 0 | H20: - | K20: =J20-I20 -> 
B21: Conexão | D21: ='NT Revisao'!AQ212 ->  | E21: - | G21: ='NT Revisao'!AR212 -> 0 | H21: - | K21: =J21-I21 -> 
B22: Uso do sistema de distribuição | D22: ='NT Revisao'!AQ213 ->  | E22: - | G22: ='NT Revisao'!AR213 -> 48491752.27 | H22: =IF(ISERROR(G22/F22-1),"-",G22/F22-1) -> - | K22: =J22-I22 -> 
B23: Custo de Aquisição de Energia | D23: ='NT Revisao'!AQ214 ->  | E23: - | G23: ='NT Revisao'!AR214 -> 97505608.6 | H23: -
B24: Receitas Irrecuperáveis | D24: ='NT Revisao'!AQ215 ->  | E24: - | G24: ='NT Revisao'!AR215 -> 182198.6838 | H24: -
B25: PARCELA B | C25: =SUM(C26:C30) -> 0 | D25: =SUM(D26:D30) ->  | E25: - | F25: =SUM(F26:F30) -> 0 | G25: =SUM(G26:G30) ->  | H25: =IF(ISERROR(G25/F25-1),"-",G25/F25-1) -> -
B26: Custos Operacionais | D26: ='NT Revisao'!AQ217 ->  | E26: - | G26: ='NT Revisao'!AR217 ->  | H26: -
B27: Anuidades | D27: ='NT Revisao'!AQ218 ->  | E27: - | G27: ='NT Revisao'!AR218 ->  | H27: -
B28: Remuneração | D28: ='NT Revisao'!AQ219 ->  | E28: - | G28: ='NT Revisao'!AR219 ->  | H28: - | K28: =J28-I28 -> 
B29: Depreciação | D29: ='NT Revisao'!AQ220 ->  | E29: - | G29: ='NT Revisao'!AR220 ->  | H29: -
B30: OR, UD e ER | D30: ='NT Revisao'!AQ221 ->  | E30: =IF(ISERROR(D30/C30-1),"-",D30/C30-1) -> - | G30: ='NT Revisao'!AR221+'NT Revisao'!AR222 -> -4585900.396 | H30: -
B31: Reposicionamento Tarifário | C31: =C25+C3 -> 0 | D31: =D25+D3 ->  | E31: =IF(ISERROR(D31/C31-1),"-",D31/C31-1) -> - | F31: =F25+F3 -> 0 | G31: =G25+G3 ->  | H31: - | K31: =J31-I31 ->  | M31: =(G31-C31)/$C$31-I31 -> 
L32: 0
B33: Componentes Financeiros do Processo Atual | F33: =SUM(F34:F69) -> 0 | G33: =SUM(G34:G69) -> 2337545.219 | I33: =SUM(I34:I69) ->  | J33: =SUM(J34:J69) -> 0.01153503999 | K33: =J33-I33 ->  | L33: 1 | M33: =G33/$C$31-I33 ->  | N33: =K33-M33 ->  | O33: =(G33-C33)/$C$31 -> 
B34: ='NT Revisao'!AO226 -> CVA em processamento - Energia | G34: ='NT Revisao'!AR226 -> 4778363.995 | I34: =F34/$C$31 ->  | J34: ='NT Revisao'!AT226 -> 0.02357970204 | K34: =J34-I34 ->  | L34: 1 | M34: =G34/$C$31-I34 ->  | N34: =K34-M34 ->  | O34: =K34-N34 -> 
B35: ='NT Revisao'!AO227 -> CVA em processamento - Transporte | G35: ='NT Revisao'!AR227 -> 0 | I35: =F35/$C$31 ->  | J35: ='NT Revisao'!AT227 -> 0 | K35: =J35-I35 ->  | L35: 0
B36: ='NT Revisao'!AO228 -> CVA em processamento - Encargos Setoriais | G36: ='NT Revisao'!AR228 -> 4600252.178 | J36: ='NT Revisao'!AT228 -> 0.02270077704 | L36: 1
B37: ='NT Revisao'!AO229 -> Saldo a Compensar CVA-Ano Anterior + Ajustes | G37: ='NT Revisao'!AR229 -> 275141.2585 | J37: ='NT Revisao'!AT229 -> 0.001357734342 | L37: 1
B38: ='NT Revisao'!AO230 -> Neutralidade de Parcela A- Energia | G38: ='NT Revisao'!AR230 -> -136592.5438 | J38: ='NT Revisao'!AT230 -> -0.0006740406311 | L38: 1
B39: ='NT Revisao'!AO231 -> Neutralidade de Parcela A - Transporte | G39: ='NT Revisao'!AR231 -> 1326411.145 | J39: ='NT Revisao'!AT231 -> 0.006545415881 | L39: 1
B40: ='NT Revisao'!AO232 -> Neutralidade de Parcela A - Encargos Setoriais | G40: ='NT Revisao'!AR232 -> 617491.9544 | J40: ='NT Revisao'!AT232 -> 0.003047125819 | L40: 1
B41: ='NT Revisao'!AO233 -> Neutralidade de Parcela A - Receita Irrecuperável | G41: ='NT Revisao'!AR233 -> 14377.13989 | J41: ='NT Revisao'!AT233 -> 7.094659911e-05 | L41: 1
B42: ='NT Revisao'!AO234 -> Neutralidade de Fin. Parcela B - Conta Covid | G42: ='NT Revisao'!AR234 -> 0 | J42: ='NT Revisao'!AT234 -> 0 | L42: 0
B43: ='NT Revisao'!AO235 -> Sobrecontratação/exposição de energia | G43: ='NT Revisao'!AR235 -> 0 | J43: ='NT Revisao'!AT235 -> 0 | L43: 0
B44: ='NT Revisao'!AO236 -> Garantias financeiras na contratação regulada de energia (CCEAR) | G44: ='NT Revisao'!AR236 -> 0 | J44: ='NT Revisao'!AT236 -> 0 | L44: 0
B45: ='NT Revisao'!AO237 -> Previsão de Risco Hidrológico | G45: ='NT Revisao'!AR237 -> 0 | J45: ='NT Revisao'!AT237 -> 0 | L45: 0
B46: ='NT Revisao'!AO238 -> Ajuste Liminar Abrace | G46: ='NT Revisao'!AR238 -> 0 | J46: ='NT Revisao'!AT238 -> 0 | L46: 0
B47: ='NT Revisao'!AO239 -> Ajuste ref. equilíbrio econômico-financeiro TUSDg (A3a) | G47: ='NT Revisao'!AR239 -> 0 | J47: ='NT Revisao'!AT239 -> 0 | L47: 0
B48: ='NT Revisao'!AO240 -> Repasse de ultrapassagem de Supridas/Permissionárias de Energia | G48: ='NT Revisao'!AR240 -> 0 | J48: ='NT Revisao'!AT240 -> 0 | L48: 0
B49: ='NT Revisao'!AO241 -> Reversão do Financeiro de Reperfilamento dos custos de RBSE | G49: ='NT Revisao'!AR241 -> 0 | J49: ='NT Revisao'!AT241 -> 0 | L49: 0
B50: ='NT Revisao'!AO242 -> Ajuste CUSD | G50: ='NT Revisao'!AR242 -> 231113.5689 | J50: ='NT Revisao'!AT242 -> 0.001140471739 | L50: 1
B51: ='NT Revisao'!AO243 -> Repasse de compensação DIC/FIC | G51: ='NT Revisao'!AR243 -> 0 | J51: ='NT Revisao'!AT243 -> 0 | L51: 0
B52: ='NT Revisao'!AO244 -> Compensação ref. acordos bilaterais de CCEAR | G52: ='NT Revisao'!AR244 -> 0 | J52: ='NT Revisao'!AT244 -> 0 | L52: 0
B53: Ressarcimento de P&D | F53: 0 | G53: 0 | I53: 0 | J53: 0 | K53: 0
B54: ='NT Revisao'!AO246 -> Ressarcimento de P&D | G54: ='NT Revisao'!AR246 -> 0 | I54: =F54/$C$31 ->  | J54: ='NT Revisao'!AT246 -> 0 | L54: 0
B55: ='NT Revisao'!AO247 -> Reversão Conta-Covid - CVA em processamento - Energia | G55: ='NT Revisao'!AR247 -> 0 | J55: ='NT Revisao'!AT247 -> 0 | L55: 0
B56: ='NT Revisao'!AO248 -> Reversão Conta-Covid - CVA em processamento -Transporte | G56: ='NT Revisao'!AR248 -> 0 | J56: ='NT Revisao'!AT248 -> 0 | L56: 0
B57: ='NT Revisao'!AO249 -> Reversão Conta-Covid - CVA em processamento - Encargos Setoriais | G57: ='NT Revisao'!AR249 -> 0 | J57: ='NT Revisao'!AT249 -> 0 | K57: =J57-I57 ->  | L57: 0
B58: ='NT Revisao'!AO250 -> Reversão Conta-Covid - Saldo a Compensar CVA-Ano Anterior + Ajustes | G58: ='NT Revisao'!AR250 -> 0 | J58: ='NT Revisao'!AT250 -> 0 | L58: 0
B59: ='NT Revisao'!AO251 -> Reversão Conta-Covid - Neutralidade de Parcela A | G59: ='NT Revisao'!AR251 -> 0 | J59: ='NT Revisao'!AT251 -> 0 | L59: 1
B60: ='NT Revisao'!AO252 -> Reversão Conta-Covid - Sobrecontratação | G60: ='NT Revisao'!AR252 -> 0 | J60: ='NT Revisao'!AT252 -> 0 | L60: 1
B61: ='NT Revisao'!AO253 -> Reversão Conta Covid - Parcela B | G61: ='NT Revisao'!AR253 -> 0 | J61: ='NT Revisao'!AT253 -> 0 | L61: 1
B62: ='NT Revisao'!AO254 -> Reversão Conta Covid - Diferimento | G62: ='NT Revisao'!AR254 -> 0 | J62: ='NT Revisao'!AT254 -> 0 | L62: 1
B63: ='NT Revisao'!AO255 -> Reversão Conta Covid - Postergação | G63: ='NT Revisao'!AR255 -> 0 | J63: ='NT Revisao'!AT255 -> 0 | L63: 1
B64: ='NT Revisao'!AO256 -> Conselho de Consumidores | G64: ='NT Revisao'!AR256 -> 0 | J64: ='NT Revisao'!AT256 -> 0 | L64: 1
B65: ='NT Revisao'!AO257 -> 0 | G65: ='NT Revisao'!AR257 -> 0 | J65: ='NT Revisao'!AT257 -> 0 | L65: 1
B66: ='NT Revisao'!AO258 -> Custo Distribuidora - Spread Conta Covid - Art. 4º, REN 952/2021 | G66: ='NT Revisao'!AR258 -> -85113.56503 | J66: ='NT Revisao'!AT258 -> -0.0004200082927 | L66: 1
B67: ='NT Revisao'!AO259 -> Arrecadação de encargo CDE Covid dos consumidores migrantes (Ofício Circular 20/2021) | G67: ='NT Revisao'!AR259 -> -5558.242022 | J67: ='NT Revisao'!AT259 -> -2.742815133e-05 | L67: 1
B68: ='NT Revisao'!AO260 -> Crédito de PIS/COFINS | G68: ='NT Revisao'!AR260 -> -9278341.67 | J68: ='NT Revisao'!AT260 -> -0.0457856564 | L68: 1
B69: ='NT Revisao'!AO261 -> Neutralidade Crédito de Pis/COFINS | G69: ='NT Revisao'!AR261 -> 0 | J69: ='NT Revisao'!AT261 -> 0 | L69: 1
B70: Efeito da retirada dos Componentes Financeiros do Processo Anterior | I70: =I71-I31-I33 ->  | J70: =J71-J31-J33 ->  | K70: =J70-I70 ->  | L70: 1 | O70: =J70-I70 -> 
B71: Efeito Médio a ser percebido pelos Consumidores | J71: ='NT Revisao'!AT278 -> 0.1919228451 | K71: =J71-I71 -> 0.1919228451 | L71: 1 | M71: =((G31+G33)/C31-1)-((F31+F33)/C31-1) ->  | N71: =K71-M71 ->  | O71: =K71-N71 -> 

Sheet Mercado
B2: DADOS DE MERCADO DE ENERGIA E RECEITA VERIFICADA | G2: Anexo II | H2: =Resultado!$D$6 -> 0.1840364399
G3: Anexo I | H3: =Resultado!$D$8 -> 0.1955714799
M5: TipoMercado | R5: AnoMes
B6: Dados de Mercado | M6: Regular | R6: =DATE(YEAR(R8),MONTH(R8)-1,1) -> 44348
C7: 362109.633 | D7: 204493345.1 | R7: AnoMes
B8: Descrição | C8: MERCADO (MWh) | D8: RECEITA (R$) | F8: DESCRIÇÃO | G8: POR DENTRO | J8: Critérios | L8: Para º de consumidores | R8: =DATE(YEAR(R10),MONTH(R10)-1,1) -> 44378
B9: FORNECIMENTO | C9: =SUM(C10:C16) -> 288204.733 | D9: =SUM(D10:D16) -> 185683254.8 | F9: ICMS | G9: =SUM(INDIRECT("DADOS_MercadoBase[ICMS]"))/(SUM(INDIRECT("DADOS_MercadoBase[ICMS]"),INDIRECT("DADOS_MercadoBase[PisPasep]"),INDIRECT("DADOS_MercadoBase[Cofins]"),INDIRECT("DADOS_MercadoBase[FinTotAj]"))+G20) -> 0.25974151 | H9: correção efetuada para composição | J9: Subgrupo | K9: OPÇÃO | M9: AnoMes | N9: Subgrupo | O9: OPÇÃO | R9: AnoMes
B10: A1 | C10: =DSUM(Mercado_Receita!A:AAA,"TUSD_E",J9:K10) -> 0 | D10: =DSUM(Mercado_Receita!A:AAA,"total",J9:K10) -> 0 | F10: PIS/COFINS | G10: =SUM( INDIRECT("DADOS_MercadoBase[Cofins]"), INDIRECT("DADOS_MercadoBase[PisPasep]"))/(SUM( INDIRECT("DADOS_MercadoBase[ICMS]"), INDIRECT("DADOS_MercadoBase[PisPasep]"), INDIRECT("DADOS_MercadoBase[Cofins]"), INDIRECT("DADOS_MercadoBase[FinTotAj]"))+G20) -> 0.02914635616 | H10: com a receita de bandeiras | J10: A1 | K10: Cativo | M10: =DMAX(MercadoBase,"AnoMes",M5:M6) -> 44652 | N10: A1 | O10: Suprimento | R10: =DATE(YEAR(R12),MONTH(R12)-1,1) -> 44409
B11: A2 | C11: =DSUM(Mercado_Receita!A:AAA,"TUSD_E",J11:K12) -> 0 | D11: =DSUM(Mercado_Receita!A:AAA,"total",J11:K12) -> 0 | J11: Subgrupo | K11: OPÇÃO | M11: AnoMes | N11: Subgrupo | O11: OPÇÃO | P11: Subgrupo | R11: AnoMes
B12: A3 | C12: =DSUM(Mercado_Receita!A:AAA,"TUSD_E",J13:K14) -> 0 | D12: =DSUM(Mercado_Receita!A:AAA,"total",J13:K14) -> 0 | F12: MWh Ano Anterior | G12: =BD!C45 -> 368381.622 | J12: A2 | K12: Cativo | M12: =$M$10 -> 44652 | N12: A2 | O12: Livre | P12: A1 | R12: =DATE(YEAR(R14),MONTH(R14)-1,1) -> 44440
B13: A3a | C13: =DSUM(Mercado_Receita!A:AAA,"TUSD_E",J15:K16) -> 0 | D13: =DSUM(Mercado_Receita!A:AAA,"total",J15:K16) -> 0 | F13: Variação | G13: =C24/G12-1 -> -0.02040458739 | J13: Subgrupo | K13: OPÇÃO | M13: AnoMes | N13: Subgrupo | O13: OPÇÃO | R13: AnoMes
B14: A4 | C14: =DSUM(Mercado_Receita!A:AAA,"TUSD_E",J17:K18) -> 38740.489 | D14: =DSUM(Mercado_Receita!A:AAA,"total",J17:K18) -> 22257128.54 | F14: R$ Ano Anterior | G14: =BD!C46 -> 206033214.7 | J14: ="=A3" -> =A3 | K14: Cativo | M14: =$M$10 -> 44652 | N14: ="=A3" -> =A3 | O14: Distribuição | R14: =DATE(YEAR(R16),MONTH(R16)-1,1) -> 44470
B15: As | C15: =DSUM(Mercado_Receita!A:AAA,"TUSD_E",J19:K20) -> 0 | D15: =DSUM(Mercado_Receita!A:AAA,"total",J19:K20) -> 0 | F15: Variação | G15: =D24/G14-1 -> -0.01643361522 | J15: Subgrupo | K15: OPÇÃO | M15: AnoMes | N15: Subgrupo | O15: OPÇÃO | R15: AnoMes
B16: BT | C16: =DSUM(Mercado_Receita!A:AAA,"TUSD_E",J21:K22) -> 249464.244 | D16: =DSUM(Mercado_Receita!A:AAA,"total",J21:K22) -> 163426126.2 | J16: ="=A3a" -> =A3a | K16: Cativo | M16: =$M$10 -> 44652 | N16: ="=A3a" -> =A3a | O16: Geração | R16: =DATE(YEAR(R18),MONTH(R18)-1,1) -> 44501
B17: SUPRIMENTO (Mercado TE) | C17: =DSUM(Mercado_Receita!A:AAA,"TE_E",O9:P10) -> 0 | D17: =DSUM(Mercado_Receita!A:AAA,"total",O9:P10) -> 0 | F17: Parâmetros de cálculo de RI | J17: Subgrupo | K17: OPÇÃO | M17: AnoMes | N17: Subgrupo | O17: OPÇÃO | R17: AnoMes
B18: LIVRES A1 | C18: =DSUM(Mercado_Receita!A:AAA,"TUSD_E",O11:P12) -> 0 | D18: =DSUM(Mercado_Receita!A:AAA,"total",O11:P12) -> 0 | F18: RR sem RI | G18: =SUM(Resultado!D19,Resultado!D29,Resultado!D38,Resultado!D45) -> 239759641.2 | J18: A4 | K18: Cativo | M18: =$M$10 -> 44652 | N18: A4 | O18: Livre | R18: =DATE(YEAR(R20),MONTH(R20)-1,1) -> 44531
B19: DEMAIS LIVRES | C19: =DSUM(Mercado_Receita!A:AAA,"TUSD_E",O19:P20)+DSUM(Mercado_Receita!A:AAA,"TUSD_E",O17:P18)-C18 -> 34781.026 | D19: =DSUM(Mercado_Receita!A:AAA,"total",O19:P20)+DSUM(Mercado_Receita!A:AAA,"TOTAL",O17:P18)-D18 -> 9142144.241 | F19: Financeiros | G19: =Financeiros!D8 -> 2337545.219 | J19: Subgrupo | K19: OPÇÃO | M19: AnoMes | N19: Subgrupo | O19: OPÇÃO | R19: AnoMes
B20: DISTRIBUIÇÃO | C20: =DSUM(Mercado_Receita!A:AAA,"TUSD_E",O13:P14) -> 37879.188 | D20: =DSUM(Mercado_Receita!A:AAA,"total",O13:P14) -> 7786589.763 | F20: Receita Bandeiras | G20: =SUM(TabBand[Fat Bandeiras]) -> 30349773.34 | J20: AS | K20: Cativo | M20: =$M$10 -> 44652 | N20: AS | O20: erc | R20: =DATE(YEAR(R22),MONTH(R22)-1,1) -> 44562
B21: GERADOR | D21: =DSUM(Mercado_Receita!A:AAA,"total",O15:P16) -> 35355.36 | J21: Subgrupo | K21: OPÇÃO | M21: AnoMes | N21: Subgrupo | R21: AnoMes
B22: CDE Baixa Renda | J22: ="=B*" -> =B* | K22: Cativo | M22: =$M$10 -> 44652 | N22: ="=B*" -> =B* | R22: =DATE(YEAR(R24),MONTH(R24)-1,1) -> 44593
B23: AJUSTE ECONÔMICO - BOLHA | J23: Subclasse | K23: OPÇÃO | R23: AnoMes
B24: TOTAL | C24: =SUM(C10:C23) -> 360864.947 | D24: =SUM(D10:D23) -> 202647344.2 | J24: ="=Residencial baixa renda*" -> =Residencial baixa renda* | K24: Cativo | R24: =DATE(YEAR(R26),MONTH(R26)-1,1) -> 44621 | T24: 119414.803
B25: ENERGIA DESTINADA APE/PIE | J25: Classe | L25: AnoMes | R25: AnoMes
B26: MERCADO TOTAL BAIXA RENDA | C26: =DSUM(Mercado_Receita!A:AAA,"TUSD_E",J23:K24) -> 16787.042 | J26: Residencial | L26: =$M$10 -> 44652 | R26: =DATE(YEAR(R28),MONTH(R28)-1,1) -> 44652
J27: Classe | L27: AnoMes | R27: AnoMes
B28: ="Fonte: SAMP - "&TEXT(L26,"mmmm/aa") -> Fonte: SAMP - abril/22 | J28: Industrial | L28: =$M$10 -> 44652 | R28: =B65 -> 44682
B29: DESCRIÇÃO - Tipo | C29: RECEITA (R$) | D29: % Total | E29: nº de consumidores | F29: MWh mensal | G29: Percentual RI | H29: Reais RI (c/tributos) | J29: Classe | L29: AnoMes
B30: Residencial | C30: =DSUM(Mercado_Receita!A:AAA,"total",J25:K26) -> 114443210.2 | D30: =IFERROR(C30/$C$38,0) -> 0.5647407358 | E30: =DSUM(Mercado_Receita!$A:$AAA,"UC",$J$25:$L$26) -> 99559 | F30: =DSUM(Mercado_Receita!$A:$AAA,"TUSD_E",$J$25:$L$26) -> 13522.171 | G30: =BD!M67 -> 0.0007 | H30: =G30*C30/$D$24*SUM($G$18:$G$20)/(1-SUM($G$9:$G$10)) -> 151457.5866 | J30: Comercial | L30: =$M$10 -> 44652
B31: Industrial | C31: =DSUM(Mercado_Receita!A:AAA,"total",J27:K28) -> 21384517.18 | D31: 0.1055257708 | E31: =DSUM(Mercado_Receita!$A:$AAA,"UC",$J$27:$L$28) -> 725 | F31: =DSUM(Mercado_Receita!$A:$AAA,"TUSD_E",$J$27:$L$28) -> 4281.53 | G31: =BD!M68 -> 0 | H31: =G31*C31/$D$24*SUM($G$18:$G$20)/(1-SUM($G$9:$G$10)) -> 0 | J31: Classe | L31: AnoMes
B32: Comercial | C32: =DSUM(Mercado_Receita!A:AAA,"total",J29:K30) -> 40649612.7 | D32: 0.2005928717 | E32: =DSUM(Mercado_Receita!$A:$AAA,"UC",$J$29:$L$30) -> 10333 | F32: =DSUM(Mercado_Receita!$A:$AAA,"TUSD_E",$J$29:$L$30) -> 5412.635 | G32: =BD!M69 -> 0.0004 | H32: 30741.09719 | J32: Rural | L32: =$M$10 -> 44652
B33: Rural | C33: =DSUM(Mercado_Receita!A:AAA,"total",J31:K32) -> 3236136.408 | D33: 0.01596930086 | E33: =DSUM(Mercado_Receita!$A:$AAA,"UC",$J$31:$L$32) -> 1149 | F33: =DSUM(Mercado_Receita!$A:$AAA,"TUSD_E",$J$31:$L$32) -> 339.629 | G33: =BD!M70 -> 0 | H33: 0 | J33: Classe | L33: AnoMes
B34: Iluminação Pública | C34: =DSUM(Mercado_Receita!A:AAA,"total",J33:K34) -> 7181123.481 | D34: 0.03543655364 | E34: =DSUM(Mercado_Receita!$A:$AAA,"UC",$J$33:$L$34) -> 3 | F34: =DSUM(Mercado_Receita!$A:$AAA,"TUSD_E",$J$33:$L$34) -> 1552.096 | G34: =BD!M71 -> 0 | H34: 0 | J34: Iluminação Pública | L34: =$M$10 -> 44652
B35: Poder Público | C35: =DSUM(Mercado_Receita!A:AAA,"total",J35:K36) -> 4124331.321 | D35: 0.02035225943 | E35: =DSUM(Mercado_Receita!$A:$AAA,"UC",$J$35:$L$36) -> 406 | F35: =DSUM(Mercado_Receita!$A:$AAA,"TUSD_E",$J$35:$L$36) -> 576.181 | G35: =BD!M72 -> 0 | H35: 0 | J35: Classe | L35: AnoMes
B36: Serviço Público | C36: =DSUM(Mercado_Receita!A:AAA,"total",J37:K38) -> 3636046.459 | D36: 0.01794272939 | E36: =DSUM(Mercado_Receita!$A:$AAA,"UC",$J$37:$L$38) -> 148 | F36: =DSUM(Mercado_Receita!$A:$AAA,"TUSD_E",$J$37:$L$38) -> 451.175 | G36: =BD!M73 -> 0 | H36: 0 | J36: Poder Público | L36: =$M$10 -> 44652
B37: Demais | C37: =D24-SUM(C30:C36) -> 7992366.36 | D37: 0.03943977847 | E37: =DSUM(Mercado_Receita!A:AAA,"UC",$J$39:$L$40)-SUM(E$30:E$36) -> 21 | F37: =DSUM(Mercado_Receita!B:AAB,"TUSD_E",$J$39:$L$40)-SUM(F$30:F$36) -> 3500.171 | G37: =BD!M74 -> 0 | H37: 0 | J37: Classe | L37: AnoMes
B38: TOTAL | C38: =SUM(C30:C37) -> 202647344.2 | D38: =SUM(D30:D37) -> 1 | E38: =SUM(E30:E37) -> 112344 | F38: =SUM(F30:F37) -> 29635.588 | H38: =SUM(H30:H37) -> 182198.6838 | J38: Serviço público | L38: =$M$10 -> 44652
J39: Classe | L39: AnoMes
B40: nº de consumidores | J40: * | L40: =$M$10 -> 44652
B41: A1 | C41: =DSUM(Mercado_Receita!A:AAA,"UC",L9:N10) -> 0
B42: A2 | C42: =DSUM(Mercado_Receita!A:AAA,"UC",L11:N12) -> 0
B43: A3 | C43: =DSUM(Mercado_Receita!A:AAA,"UC",L13:N14) -> 0
B44: A3a | C44: =DSUM(Mercado_Receita!A:AAA,"UC",L15:N16) -> 0
B45: A4 | C45: =DSUM(Mercado_Receita!A:AAA,"UC",L17:N18) -> 152
B46: As | C46: =DSUM(Mercado_Receita!A:AAA,"UC",L19:N20) -> 0
B47: BT | C47: =DSUM(Mercado_Receita!A:AAA,"UC",L21:N22) -> 112192
B52: Arrecadação dos Encargos
B53: Competência | D53: PeD | E53: ONS | F53: ESSERR | G53: PROINFA | H53: CDE | I53: TFSEE | J53: CFURH | K53: CVA_Energia | L53: CVA_RB | M53: CVA_CDE | N53: CVA_CFURH | O53: CVA_TranItaipu | P53: CVA_ESSERR | Q53: CVA_PROINFA | R53: Fator Selic | S53: RTE_Energia | T53: RTE_CDE_USO | U53: RTE_CDE_E | V53: RTE_CUSD | W53: RTE_PeD | X53: CVA_CovidTe_ou_CVA_CDE_E | Y53: CVA_CCC | Z53: DISTRIBUICAO | AA53: cDE_E_ACR | AB53: CDE_E_Dec
B54: =DATE(YEAR(B55),MONTH(B55)-1,1) -> 44348 | D54: =DSUM(MercadoBase,D$53,INDIRECT("r"&5+2*(ROW()-54)&":r"&6+2*(ROW()-54))) -> 152030.3983 | E54: 0 | F54: 0 | G54: 234986.7398 | H54: 1470719.362 | I54: 23663.97011 | J54: 0 | K54: 361618.4072 | L54: 0 | M54: 97647.89462 | N54: 0 | O54: 0 | P54: 0 | Q54: 22945.51942 | R54: =VLOOKUP(CAPA!$C$15,Índices!B:F,5,FALSE)/VLOOKUP(DATE(YEAR(B54),MONTH(B54),1),Índices!B:F,5,FALSE) -> 1.075986276 | S54: =DSUM(MercadoBase,S$53,INDIRECT("r"&5+2*(ROW()-54)&":r"&6+2*(ROW()-54))) -> 0 | T54: 0 | U54: 0 | V54: 0 | W54: 0 | X54: -25158.6084 | Y54: 0 | Z54: =DSUM(MercadoBase,Z$53,INDIRECT("r"&5+2*(ROW()-54)&":r"&6+2*(ROW()-54))) -> 4256026.536 | AA54: =DSUM(MercadoBase,AA$53,INDIRECT("r"&5+2*(ROW()-54)&":r"&6+2*(ROW()-54))) -> 0 | AB54: 0
B55: 44378 | D55: 154661.0722 | E55: 0 | F55: 0 | G55: 237471.2108 | H55: 1487305.738 | I55: 24010.87254 | J55: 0 | K55: 367424.5458 | L55: 0 | M55: 98749.14124 | N55: 0 | O55: 0 | P55: 0 | Q55: 23188.11812 | R55: =VLOOKUP(CAPA!$C$15,Índices!B:F,5,FALSE)/VLOOKUP(DATE(YEAR(B55),MONTH(B55),1),Índices!B:F,5,FALSE) -> 1.072173454 | S55: 0 | T55: 0 | U55: 0 | V55: 0 | W55: 0 | X55: -25572.10674 | Y55: 0 | Z55: 4330926.636 | AA55: 0 | AB55: 0
B56: 44409 | D56: 154790.2129 | E56: 0 | F56: 0 | G56: 238014.2351 | H56: 1489768.534 | I56: 24036.78994 | J56: 0 | K56: 367661.876 | L56: 0 | M56: 98912.65769 | N56: 0 | O56: 0 | P56: 0 | Q56: 23241.14228 | R56: =VLOOKUP(CAPA!$C$15,Índices!B:F,5,FALSE)/VLOOKUP(DATE(YEAR(B56),MONTH(B56),1),Índices!B:F,5,FALSE) -> 1.067604613 | S56: 0 | T56: 0 | U56: 0 | V56: 0 | W56: 0 | X56: -25574.6906 | Y56: 0 | Z56: 4343029.529 | AA56: 0 | AB56: 0
B57: 44440 | D57: 158546.1877 | E57: 0 | F57: 0 | G57: 241206.4562 | H57: 1511680.854 | I57: 24515.1635 | J57: 0 | K57: 375972.154 | L57: 0 | M57: 100367.5185 | N57: 0 | O57: 0 | P57: 0 | Q57: 23552.84995 | R57: =VLOOKUP(CAPA!$C$15,Índices!B:F,5,FALSE)/VLOOKUP(DATE(YEAR(B57),MONTH(B57),1),Índices!B:F,5,FALSE) -> 1.062906573 | S57: 0 | T57: 0 | U57: 0 | V57: 0 | W57: 0 | X57: -26150.71014 | Y57: 0 | Z57: 4445210.847 | AA57: 0 | AB57: 0
B58: 44470 | D58: 148460.1896 | E58: 0 | F58: 0 | G58: 226054.759 | H58: 1416139.064 | I58: 22914.92039 | J58: 0 | K58: 353461.4784 | L58: 0 | M58: 94024.05495 | N58: 0 | O58: 0 | P58: 0 | Q58: 22073.34706 | R58: =VLOOKUP(CAPA!$C$15,Índices!B:F,5,FALSE)/VLOOKUP(DATE(YEAR(B58),MONTH(B58),1),Índices!B:F,5,FALSE) -> 1.057765872 | S58: 0 | T58: 0 | U58: 0 | V58: 0 | W58: 0 | X58: -24598.76633 | Y58: 0 | Z58: 4173587.369 | AA58: 0 | AB58: 0
B59: 44501 | D59: 151925.6237 | E59: 0 | F59: 0 | G59: 229554.4201 | H59: 1439647.692 | I59: 23403.83749 | J59: 0 | K59: 362026.6165 | L59: 0 | M59: 95584.90206 | N59: 0 | O59: 0 | P59: 0 | Q59: 22415.07503 | R59: =VLOOKUP(CAPA!$C$15,Índices!B:F,5,FALSE)/VLOOKUP(DATE(YEAR(B59),MONTH(B59),1),Índices!B:F,5,FALSE) -> 1.051595644 | S59: 0 | T59: 0 | U59: 0 | V59: 0 | W59: 0 | X59: -25215.30415 | Y59: 0 | Z59: 4252898.704 | AA59: 0 | AB59: 0
B60: 44531 | D60: 158308.8336 | E60: 0 | F60: 0 | G60: 237508.6071 | H60: 1491765.605 | I60: 24353.3056 | J60: 0 | K60: 374450.6105 | L60: 0 | M60: 99045.25252 | N60: 0 | O60: 0 | P60: 0 | Q60: 23191.76972 | R60: =VLOOKUP(CAPA!$C$15,Índices!B:F,5,FALSE)/VLOOKUP(DATE(YEAR(B60),MONTH(B60),1),Índices!B:F,5,FALSE) -> 1.043569726 | S60: 0 | T60: 0 | U60: 0 | V60: 0 | W60: 0 | X60: -26038.12173 | Y60: 0 | Z60: 4465332.463 | AA60: 0 | AB60: 0
B61: 44562 | D61: 150510.4559 | E61: 0 | F61: 0 | G61: 225992.4282 | H61: 1417994.952 | I61: 23109.42489 | J61: 0 | K61: 358244.3149 | L61: 0 | M61: 94147.27599 | N61: 0 | O61: 0 | P61: 0 | Q61: 22067.2607 | R61: =VLOOKUP(CAPA!$C$15,Índices!B:F,5,FALSE)/VLOOKUP(DATE(YEAR(B61),MONTH(B61),1),Índices!B:F,5,FALSE) -> 1.035983526 | S61: 0 | T61: 0 | U61: 0 | V61: 0 | W61: 0 | X61: -24941.68635 | Y61: 0 | Z61: 4235772.654 | AA61: 0 | AB61: 0
B62: 44593 | D62: 144049.7692 | E62: 0 | F62: 0 | G62: 220145.4096 | H62: 1378777.653 | I62: 22385.33472 | J62: 0 | K62: 340865.5823 | L62: 0 | M62: 91543.45725 | N62: 0 | O62: 0 | P62: 0 | Q62: 21496.32262 | R62: =VLOOKUP(CAPA!$C$15,Índices!B:F,5,FALSE)/VLOOKUP(DATE(YEAR(B62),MONTH(B62),1),Índices!B:F,5,FALSE) -> 1.028220044 | S62: 0 | T62: 0 | U62: 0 | V62: 0 | W62: 0 | X62: -23705.37528 | Y62: 0 | Z62: =DSUM(MercadoBase,Z$53,INDIRECT("r"&5+2*(ROW()-54)&":r"&6+2*(ROW()-54))) -> 4065505.487 | AA62: 0 | AB62: 0
B63: 44621 | D63: 157863.2426 | E63: 0 | F63: 0 | G63: 235653.3147 | H63: 1479579.659 | I63: 24219.85213 | J63: 0 | K63: =DSUM(MercadoBase,K$53,INDIRECT("r"&5+2*(ROW()-54)&":r"&6+2*(ROW()-54)))*IF(VLOOKUP("MesesAdin",TabPostergacao[#All],2,FALSE)>2,0,1) -> 372629.8304 | L63: =DSUM(MercadoBase,L$53,INDIRECT("r"&5+2*(ROW()-54)&":r"&6+2*(ROW()-54)))*IF(VLOOKUP("MesesAdin",TabPostergacao[#All],2,FALSE)>2,0,1) -> 0 | M63: =DSUM(MercadoBase,M$53,INDIRECT("r"&5+2*(ROW()-54)&":r"&6+2*(ROW()-54)))*IF(VLOOKUP("MesesAdin",TabPostergacao[#All],2,FALSE)>2,0,1) -> 98236.17092 | N63: =DSUM(MercadoBase,N$53,INDIRECT("r"&5+2*(ROW()-54)&":r"&6+2*(ROW()-54)))*IF(VLOOKUP("MesesAdin",TabPostergacao[#All],2,FALSE)>2,0,1) -> 0 | O63: =DSUM(MercadoBase,O$53,INDIRECT("r"&5+2*(ROW()-54)&":r"&6+2*(ROW()-54)))*IF(VLOOKUP("MesesAdin",TabPostergacao[#All],2,FALSE)>2,0,1) -> 0 | P63: =DSUM(MercadoBase,P$53,INDIRECT("r"&5+2*(ROW()-54)&":r"&6+2*(ROW()-54)))*IF(VLOOKUP("MesesAdin",TabPostergacao[#All],2,FALSE)>2,0,1) -> 0 | Q63: =DSUM(MercadoBase,Q$53,INDIRECT("r"&5+2*(ROW()-54)&":r"&6+2*(ROW()-54)))*IF(VLOOKUP("MesesAdin",TabPostergacao[#All],2,FALSE)>2,0,1) -> 23010.6078 | R63: =VLOOKUP(CAPA!$C$15,Índices!B:F,5,FALSE)/VLOOKUP(DATE(YEAR(B63),MONTH(B63),1),Índices!B:F,5,FALSE) -> 1.018775446 | S63: 0 | T63: 0 | U63: 0 | V63: 0 | W63: 0 | X63: -25937.30326 | Y63: 0 | Z63: 4426864.683 | AA63: 0 | AB63: 0
B64: 44652 | D64: =DSUM(MercadoBase,D$53,INDIRECT("r"&5+2*(ROW()-54)&":r"&6+2*(ROW()-54))) -> 148503.9377 | E64: 0 | F64: 0 | G64: 223758.2145 | H64: 1402838.947 | I64: 22887.79494 | J64: 0 | K64: =DSUM(MercadoBase,K$53,INDIRECT("r"&5+2*(ROW()-54)&":r"&6+2*(ROW()-54)))*IF(VLOOKUP("MesesAdin",TabPostergacao[#All],2,FALSE)>1,0,1) -> 350637.9627 | L64: =DSUM(MercadoBase,L$53,INDIRECT("r"&5+2*(ROW()-54)&":r"&6+2*(ROW()-54)))*IF(VLOOKUP("MesesAdin",TabPostergacao[#All],2,FALSE)>1,0,1) -> 0 | M64: =DSUM(MercadoBase,M$53,INDIRECT("r"&5+2*(ROW()-54)&":r"&6+2*(ROW()-54)))*IF(VLOOKUP("MesesAdin",TabPostergacao[#All],2,FALSE)>1,0,1) -> 93140.99835 | N64: =DSUM(MercadoBase,N$53,INDIRECT("r"&5+2*(ROW()-54)&":r"&6+2*(ROW()-54)))*IF(VLOOKUP("MesesAdin",TabPostergacao[#All],2,FALSE)>1,0,1) -> 0 | O64: =DSUM(MercadoBase,O$53,INDIRECT("r"&5+2*(ROW()-54)&":r"&6+2*(ROW()-54)))*IF(VLOOKUP("MesesAdin",TabPostergacao[#All],2,FALSE)>1,0,1) -> 0 | P64: =DSUM(MercadoBase,P$53,INDIRECT("r"&5+2*(ROW()-54)&":r"&6+2*(ROW()-54)))*IF(VLOOKUP("MesesAdin",TabPostergacao[#All],2,FALSE)>1,0,1) -> 0 | Q64: =DSUM(MercadoBase,Q$53,INDIRECT("r"&5+2*(ROW()-54)&":r"&6+2*(ROW()-54)))*IF(VLOOKUP("MesesAdin",TabPostergacao[#All],2,FALSE)>1,0,1) -> 21849.09864 | R64: =VLOOKUP(CAPA!$C$15,Índices!B:F,5,FALSE)/VLOOKUP(DATE(YEAR(B64),MONTH(B64),1),Índices!B:F,5,FALSE) -> 1.010345923 | S64: =DSUM(MercadoBase,S$53,INDIRECT("r"&5+2*(ROW()-54)&":r"&6+2*(ROW()-54))) -> 0 | T64: 0 | U64: 0 | V64: 0 | W64: 0 | X64: -24382.4748 | Y64: 0 | Z64: =DSUM(MercadoBase,Z$53,INDIRECT("r"&5+2*(ROW()-54)&":r"&6+2*(ROW()-54))) -> 4192452.065 | AA64: =DSUM(MercadoBase,AA$53,INDIRECT("r"&5+2*(ROW()-54)&":r"&6+2*(ROW()-54))) -> 0 | AB64: 0
B65: =DATE(YEAR(CAPA!$C$10),MONTH(CAPA!$C$10)-1,1) -> 44682 | D65: 148503.9377 | E65: 0 | F65: 0 | G65: 223758.2145 | H65: 1402838.947 | I65: 22887.79494 | J65: 0 | K65: =DSUM(MercadoBase,K$53,INDIRECT("r"&5+2*(ROW()-54)&":r"&6+2*(ROW()-54)))*IF(VLOOKUP("MesesAdin",TabPostergacao[#All],2,FALSE)>0,0,1) -> 350637.9627 | L65: =DSUM(MercadoBase,L$53,INDIRECT("r"&5+2*(ROW()-54)&":r"&6+2*(ROW()-54)))*IF(VLOOKUP("MesesAdin",TabPostergacao[#All],2,FALSE)>0,0,1) -> 0 | M65: =DSUM(MercadoBase,M$53,INDIRECT("r"&5+2*(ROW()-54)&":r"&6+2*(ROW()-54)))*IF(VLOOKUP("MesesAdin",TabPostergacao[#All],2,FALSE)>0,0,1) -> 93140.99835 | N65: =DSUM(MercadoBase,N$53,INDIRECT("r"&5+2*(ROW()-54)&":r"&6+2*(ROW()-54)))*IF(VLOOKUP("MesesAdin",TabPostergacao[#All],2,FALSE)>0,0,1) -> 0 | O65: =DSUM(MercadoBase,O$53,INDIRECT("r"&5+2*(ROW()-54)&":r"&6+2*(ROW()-54)))*IF(VLOOKUP("MesesAdin",TabPostergacao[#All],2,FALSE)>0,0,1) -> 0 | P65: =DSUM(MercadoBase,P$53,INDIRECT("r"&5+2*(ROW()-54)&":r"&6+2*(ROW()-54)))*IF(VLOOKUP("MesesAdin",TabPostergacao[#All],2,FALSE)>0,0,1) -> 0 | Q65: =DSUM(MercadoBase,Q$53,INDIRECT("r"&5+2*(ROW()-54)&":r"&6+2*(ROW()-54)))*IF(VLOOKUP("MesesAdin",TabPostergacao[#All],2,FALSE)>0,0,1) -> 21849.09864 | R65: =VLOOKUP(CAPA!$C$15,Índices!B:F,5,FALSE)/VLOOKUP(DATE(YEAR(B65),MONTH(B65),1),Índices!B:F,5,FALSE) -> 1 | S65: 0 | T65: 0 | U65: 0 | V65: 0 | W65: 0 | X65: -24382.4748 | Y65: 0 | Z65: 4192452.065 | AA65: 0 | AB65: 0
B66: Total Bruto | D66: =SUM(D54:D65) -> 1828153.861 | E66: =SUM(E54:E65) -> 0 | F66: 0 | G66: =SUM(G54:G65) -> 2774104.01 | H66: 17389057.01 | I66: 282389.0612 | J66: 0 | K66: 4335631.342 | L66: 0 | M66: 1154540.322 | N66: 0 | O66: 0 | P66: 0 | Q66: 270880.21 | S66: =SUM(S54:S65) -> 0 | T66: 0 | U66: 0 | V66: 0 | W66: 0 | X66: -301657.6226 | Y66: 0 | Z66: 51380059.04 | AA66: 0 | AB66: 0
B67: Total Atualizado pelo SELIC | D67: =SUMPRODUCT(D54:D65,$R$54:$R$65) -> 1908600.095 | E67: 0 | F67: 0 | G67: 2896697.669 | H67: 18157272.31 | I67: 294834.4195 | J67: 0 | K67: 4526680.253 | L67: 0 | M67: 1205545.707 | N67: 0 | O67: 0 | P67: 0 | Q67: 282850.9926 | R67: 13.07981281 | S67: 0 | T67: 0 | U67: 0 | V67: 0 | W67: 0 | X67: -314951.1205 | Y67: 0 | Z67: 53637991.59 | AA67: 0 | AB67: 0

Sheet Mercado_Receita
A1: Código | B1: TipoMercado | C1: Modalidade | D1: Subgrupo | E1: Classe | F1: Subclasse | G1: Detalhe | H1: Agente | I1: Posto | J1: OPÇÃO | K1: AnoMes | L1: D | M1: Daj | N1: TUSD_E | O1: TUSD_Eaj | P1: TE_E | Q1: TE_Eaj | R1: TUSD/KW | S1: TUSD/MWh | T1: TE | U1: ReceitaD | V1: ReceitaE | W1: Total | X1: Total com Tar de aplicação | Y1: CCC | Z1: CDE | AA1: CFURH | AB1: Conexao_D | AC1: Conexao_T | AD1: CUSD | AE1: DISTRIBUICAO | AF1: EnergiaRevenda | AG1: ESSERR | AH1: ITAIPU | AI1: ONS | AJ1: OUTROS | AK1: PeD | AL1: PROINFA | AM1: RGR | AN1: TFSEE | AO1: TUST_FR | AP1: TUST_RB | AQ1: TUSDG_ONS | AR1: TUSDG_T | AS1: TUST_CI | AT1: TUST_ITAIPU | AU1: CVA_CCC | AV1: CVA_CDE | AW1: CVA_PROINFA | AX1: CVA_TranItaipu | AY1: CVA_ESSERR | AZ1: CVA_CFURH | BA1: CVA_CDE_E | BB1: CVA_Energia | BC1: CVA_RB | BD1: perdasnt | BE1: perdasrb_d | BF1: perdasrb_c | BG1: perdastec | BH1: RI | BI1: PisPasep | BJ1: Cofins | BK1: ICMS | BL1: UC | BM1: total_dummy | BN1: Subs_CarFI | BO1: Subs_GerFI | BP1: Subs_Dist | BQ1: Subs_AguaEsgoto | BR1: Subs_Rural | BS1: Subs_Irrigante | BT1: Subs_BaixaRenda | BU1: CDE_E | BV1: DespesaEnergia | BW1: RTE_CUSD | BX1: RTE_Energia | BY1: RTE_CDE_USO | BZ1: RTE_CDE_E | CA1: RTE_PeD | CB1: Dif_Subs_Car | CC1: Dif_Subs_Ger | CD1: Dif_Subs_D | CE1: Dif_Subs_Agua | CF1: Dif_Subs_Ru | CG1: Dif_Subs_Irr | CH1: dif_subs_baixa | CI1: FinTotAj | CJ1: FinAj | CK1: RTE_CDE_E_Dec | CL1: RTE_CDE_E_ACR | CM1: CDE_E_Dec | CN1: CDE_E_ACR | CO1: FinPostTUSD | CP1: FinPostTE | CQ1: FinPostQtddias | CR1: FinCT_Geral | CS1: finCT_TUST_FR | CT1: finCT_TUST_RB | CU1: FINCT_TUSDG_ONS | CV1: FINCT_TUSDG_T | CW1: FINCT_TUST_CI | CX1: FINCT_TUST_ITAIPU | CY1: FinCT_Itaipu | CZ1: FinCT_CUSD | DA1: FinCT_Conexao_D | DB1: FinCT_Conexao_T | DC1: FinCT_EnergiaRevenda | DD1: FINCT_perdasrb_c | DE1: FINCT_perdasrb_d | DF1: FinCT_perdasnt | DG1: FinCT_perdastec | DH1: FinCT_CCC | DI1: FinCT_CDE | DJ1: FinCT_CDE_E | DK1: FinCT_CFURH | DL1: FinCT_ONS | DM1: FinCT_ESSERR | DN1: FinCT_Ped | DO1: finCT_PROINFA | DP1: finCT_TFSEE | DQ1: FINCT_Liminar | DR1: FinCT_Subsidio | DS1: FINCT_RGR | DT1: Tipo_ato | DU1: DIST_D | DV1: DIST_E | DW1: FIN_RI | DX1: FINCT_RI | DY1: Fin_TUSD | DZ1: Fin_TE | EA1: CVA_TUSD | EB1: CVA_TE | EC1: FinCT_ParcelaB | ED1: CVA_EnergiaRevenda | EE1: CVA_perdasnt | EF1: CVA_perdasrb_d | EG1: CVA_perdasrb_c | EH1: CVA_perdastec | EI1: CVA_TUST_RB | EJ1: CVA_TUST_FR | EK1: CVA_TUSDG_ONS | EL1: CVA_TUSDG_T | EM1: CVA_TUST_CI | EN1: CVA_TUST_ITAIPU | EO1: CVA_liminar | EP1: covidTusdEco | EQ1: covidTeEco | ER1: CVA_CovidTusd | ES1: CVA_CovidTe_ou_CVA_CDE_E | ET1: FinCT_CDECOVIDTUSD | EU1: FinCT_CDECOVIDTE_ou_FinCT_CDE_E | EV1: idsreag | EW1: FinCTAn3En | EX1: An3En | EY1: CVA_An3En | EZ1: Fin_An3En | FA1: FIN_CFURH | FB1: TEAngra | FC1: TUSDAngra | FD1: teCheia | FE1: tusdcheia | FF1: AngraIII_TE | FG1: AngraIII_TUSD | FH1: AngraIII_Desc_TE | FI1: AngraIII_Desc_TUSD | FJ1: Coluna1
A2: 1050 | B2: Regular | C2: Distribuição | D2: A3 | E2: Não se aplica | F2: Não se aplica | G2: Não se aplica | H2: EMG | I2: Fora ponta | J2: DISTRIBUIÇÃO | K2: 2021-06-01 | L2: 3000 | M2: 3000 | N2: 0 | O2: 0 | P2: 0 | Q2: 0 | R2: 17.72 | U2: 53160 | W2: 53160 | X2: 56010 | Y2: 0 | Z2: 0 | AA2: 0 | AB2: 0 | AC2: 0 | AD2: 51489.90938 | AE2: 1680.521791 | AI2: 0 | AJ2: 0 | AK2: 0 | AL2: 0 | AN2: 0 | AO2: 0 | AP2: 0 | AQ2: 0 | AR2: 0 | AU2: 0 | AV2: 0 | AW2: 0 | AZ2: 0 | BB2: 0 | BC2: 0 | BD2: 0 | BE2: 0 | BG2: 0 | BH2: 0 | BI2: 0 | BJ2: 0 | BK2: 0 | BL2: 0 | BV2: 0 | CI2: 56010 | CJ2: 2849.97 | CO2: 2850 | CP2: 0 | CQ2: 30 | CR2: 2865.857643 | CS2: 0 | CT2: 0 | CU2: 0 | CV2: 0 | CZ2: 2865.857643 | DA2: 0 | DB2: 0 | DE2: 0 | DF2: 0 | DG2: 0 | DH2: 0 | DI2: 0 | DK2: 0 | DL2: 0 | DN2: 0 | DO2: 0 | DP2: 0 | DQ2: 0 | DR2: 0 | DT2: C | DU2: 1680.521791 | DW2: 0 | DX2: 0 | DY2: 2850 | EA2: 0 | EC2: -14.96420293 | EE2: 0 | EF2: 0 | EH2: 0 | EI2: 0 | EJ2: 0 | EK2: 0 | EL2: 0 | EO2: 0 | EP2: 0 | ER2: 0 | ET2: 0 | EV2: 152 | FA2: 0 | FB2: -48.80228751 | FC2: -3.028738663 | FD2: -48.80228751 | FE2: -3.028738663 | FF2: 0 | FG2: 0 | FH2: 0 | FI2: 0
A3: 1079 | B3: Regular | C3: Distribuição | D3: A3 | E3: Não se aplica | F3: Não se aplica | G3: Não se aplica | H3: EMG | I3: Fora ponta | J3: DISTRIBUIÇÃO | K3: 2021-07-01 | L3: 3000 | M3: 3000 | N3: 0 | O3: 0 | P3: 0 | Q3: 0 | R3: 17.72 | U3: 53160 | W3: 53160 | X3: 56010 | Y3: 0 | Z3: 0 | AA3: 0 | AB3: 0 | AC3: 0 | AD3: 51489.90938 | AE3: 1680.521791 | AI3: 0 | AJ3: 0 | AK3: 0 | AL3: 0 | AN3: 0 | AO3: 0 | AP3: 0 | AQ3: 0 | AR3: 0 | AU3: 0 | AV3: 0 | AW3: 0 | AZ3: 0 | BB3: 0 | BC3: 0 | BD3: 0 | BE3: 0 | BG3: 0 | BH3: 0 | BI3: 0 | BJ3: 0 | BK3: 0 | BL3: 0 | BV3: 0 | CI3: 56010 | CJ3: 2849.97 | CO3: 2850 | CP3: 0 | CQ3: 31 | CR3: 2865.857643 | CS3: 0 | CT3: 0 | CU3: 0 | CV3: 0 | CZ3: 2865.857643 | DA3: 0 | DB3: 0 | DE3: 0 | DF3: 0 | DG3: 0 | DH3: 0 | DI3: 0 | DK3: 0 | DL3: 0 | DN3: 0 | DO3: 0 | DP3: 0 | DQ3: 0 | DR3: 0 | DT3: C | DU3: 1680.521791 | DW3: 0 | DX3: 0 | DY3: 2850 | EA3: 0 | EC3: -14.96420293 | EE3: 0 | EF3: 0 | EH3: 0 | EI3: 0 | EJ3: 0 | EK3: 0 | EL3: 0 | EO3: 0 | EP3: 0 | ER3: 0 | ET3: 0 | EV3: 152 | FA3: 0 | FB3: -48.80228751 | FC3: -3.028738663 | FD3: -48.80228751 | FE3: -3.028738663 | FF3: 0 | FG3: 0 | FH3: 0 | FI3: 0
A4: 1106 | B4: Regular | C4: Distribuição | D4: A3 | E4: Não se aplica | F4: Não se aplica | G4: Não se aplica | H4: EMG | I4: Fora ponta | J4: DISTRIBUIÇÃO | K4: 2021-08-01 | L4: 3000 | M4: 3000 | N4: 0 | O4: 0 | P4: 0 | Q4: 0 | R4: 17.72 | U4: 53160 | W4: 53160 | X4: 56010 | Y4: 0 | Z4: 0 | AA4: 0 | AB4: 0 | AC4: 0 | AD4: 51489.90938 | AE4: 1680.521791 | AI4: 0 | AJ4: 0 | AK4: 0 | AL4: 0 | AN4: 0 | AO4: 0 | AP4: 0 | AQ4: 0 | AR4: 0 | AU4: 0 | AV4: 0 | AW4: 0 | AZ4: 0 | BB4: 0 | BC4: 0 | BD4: 0 | BE4: 0 | BG4: 0 | BH4: 0 | BI4: 0 | BJ4: 0 | BK4: 0 | BL4: 0 | BV4: 0 | CI4: 56010 | CJ4: 2849.97 | CO4: 2850 | CP4: 0 | CQ4: 31 | CR4: 2865.857643 | CS4: 0 | CT4: 0 | CU4: 0 | CV4: 0 | CZ4: 2865.857643 | DA4: 0 | DB4: 0 | DE4: 0 | DF4: 0 | DG4: 0 | DH4: 0 | DI4: 0 | DK4: 0 | DL4: 0 | DN4: 0 | DO4: 0 | DP4: 0 | DQ4: 0 | DR4: 0 | DT4: C | DU4: 1680.521791 | DW4: 0 | DX4: 0 | DY4: 2850 | EA4: 0 | EC4: -14.96420293 | EE4: 0 | EF4: 0 | EH4: 0 | EI4: 0 | EJ4: 0 | EK4: 0 | EL4: 0 | EO4: 0 | EP4: 0 | ER4: 0 | ET4: 0 | EV4: 152 | FA4: 0 | FB4: -48.80228751 | FC4: -3.028738663 | FD4: -48.80228751 | FE4: -3.028738663 | FF4: 0 | FG4: 0 | FH4: 0 | FI4: 0
A5: 1128 | B5: Regular | C5: Distribuição | D5: A3 | E5: Não se aplica | F5: Não se aplica | G5: Não se aplica | H5: EMG | I5: Fora ponta | J5: DISTRIBUIÇÃO | K5: 2021-09-01 | L5: 3000 | M5: 3000 | N5: 0 | O5: 0 | P5: 0 | Q5: 0 | R5: 17.72 | U5: 53160 | W5: 53160 | X5: 56010 | Y5: 0 | Z5: 0 | AA5: 0 | AB5: 0 | AC5: 0 | AD5: 51489.90938 | AE5: 1680.521791 | AI5: 0 | AJ5: 0 | AK5: 0 | AL5: 0 | AN5: 0 | AO5: 0 | AP5: 0 | AQ5: 0 | AR5: 0 | AU5: 0 | AV5: 0 | AW5: 0 | AZ5: 0 | BB5: 0 | BC5: 0 | BD5: 0 | BE5: 0 | BG5: 0 | BH5: 0 | BI5: 0 | BJ5: 0 | BK5: 0 | BL5: 0 | BV5: 0 | CI5: 56010 | CJ5: 2849.97 | CO5: 2850 | CP5: 0 | CQ5: 30 | CR5: 2865.857643 | CS5: 0 | CT5: 0 | CU5: 0 | CV5: 0 | CZ5: 2865.857643 | DA5: 0 | DB5: 0 | DE5: 0 | DF5: 0 | DG5: 0 | DH5: 0 | DI5: 0 | DK5: 0 | DL5: 0 | DN5: 0 | DO5: 0 | DP5: 0 | DQ5: 0 | DR5: 0 | DT5: C | DU5: 1680.521791 | DW5: 0 | DX5: 0 | DY5: 2850 | EA5: 0 | EC5: -14.96420293 | EE5: 0 | EF5: 0 | EH5: 0 | EI5: 0 | EJ5: 0 | EK5: 0 | EL5: 0 | EO5: 0 | EP5: 0 | ER5: 0 | ET5: 0 | EV5: 152 | FA5: 0 | FB5: -48.80228751 | FC5: -3.028738663 | FD5: -48.80228751 | FE5: -3.028738663 | FF5: 0 | FG5: 0 | FH5: 0 | FI5: 0
A6: 1157 | B6: Regular | C6: Distribuição | D6: A3 | E6: Não se aplica | F6: Não se aplica | G6: Não se aplica | H6: EMG | I6: Fora ponta | J6: DISTRIBUIÇÃO | K6: 2021-10-01 | L6: 3000 | M6: 3000 | N6: 0 | O6: 0 | P6: 0 | Q6: 0 | R6: 17.72 | U6: 53160 | W6: 53160 | X6: 56010 | Y6: 0 | Z6: 0 | AA6: 0 | AB6: 0 | AC6: 0 | AD6: 51489.90938 | AE6: 1680.521791 | AI6: 0 | AJ6: 0 | AK6: 0 | AL6: 0 | AN6: 0 | AO6: 0 | AP6: 0 | AQ6: 0 | AR6: 0 | AU6: 0 | AV6: 0 | AW6: 0 | AZ6: 0 | BB6: 0 | BC6: 0 | BD6: 0 | BE6: 0 | BG6: 0 | BH6: 0 | BI6: 0 | BJ6: 0 | BK6: 0 | BL6: 0 | BV6: 0 | CI6: 56010 | CJ6: 2849.97 | CO6: 2850 | CP6: 0 | CQ6: 31 | CR6: 2865.857643 | CS6: 0 | CT6: 0 | CU6: 0 | CV6: 0 | CZ6: 2865.857643 | DA6: 0 | DB6: 0 | DE6: 0 | DF6: 0 | DG6: 0 | DH6: 0 | DI6: 0 | DK6: 0 | DL6: 0 | DN6: 0 | DO6: 0 | DP6: 0 | DQ6: 0 | DR6: 0 | DT6: C | DU6: 1680.521791 | DW6: 0 | DX6: 0 | DY6: 2850 | EA6: 0 | EC6: -14.96420293 | EE6: 0 | EF6: 0 | EH6: 0 | EI6: 0 | EJ6: 0 | EK6: 0 | EL6: 0 | EO6: 0 | EP6: 0 | ER6: 0 | ET6: 0 | EV6: 152 | FA6: 0 | FB6: -48.80228751 | FC6: -3.028738663 | FD6: -48.80228751 | FE6: -3.028738663 | FF6: 0 | FG6: 0 | FH6: 0 | FI6: 0
A7: 1191 | B7: Regular | C7: Distribuição | D7: A3 | E7: Não se aplica | F7: Não se aplica | G7: Não se aplica | H7: EMG | I7: Fora ponta | J7: DISTRIBUIÇÃO | K7: 2021-11-01 | L7: 3000 | M7: 3000 | N7: 0 | O7: 0 | P7: 0 | Q7: 0 | R7: 17.72 | U7: 53160 | W7: 53160 | X7: 56010 | Y7: 0 | Z7: 0 | AA7: 0 | AB7: 0 | AC7: 0 | AD7: 51489.90938 | AE7: 1680.521791 | AI7: 0 | AJ7: 0 | AK7: 0 | AL7: 0 | AN7: 0 | AO7: 0 | AP7: 0 | AQ7: 0 | AR7: 0 | AU7: 0 | AV7: 0 | AW7: 0 | AZ7: 0 | BB7: 0 | BC7: 0 | BD7: 0 | BE7: 0 | BG7: 0 | BH7: 0 | BI7: 0 | BJ7: 0 | BK7: 0 | BL7: 0 | BV7: 0 | CI7: 56010 | CJ7: 2849.97 | CO7: 2850 | CP7: 0 | CQ7: 30 | CR7: 2865.857643 | CS7: 0 | CT7: 0 | CU7: 0 | CV7: 0 | CZ7: 2865.857643 | DA7: 0 | DB7: 0 | DE7: 0 | DF7: 0 | DG7: 0 | DH7: 0 | DI7: 0 | DK7: 0 | DL7: 0 | DN7: 0 | DO7: 0 | DP7: 0 | DQ7: 0 | DR7: 0 | DT7: C | DU7: 1680.521791 | DW7: 0 | DX7: 0 | DY7: 2850 | EA7: 0 | EC7: -14.96420293 | EE7: 0 | EF7: 0 | EH7: 0 | EI7: 0 | EJ7: 0 | EK7: 0 | EL7: 0 | EO7: 0 | EP7: 0 | ER7: 0 | ET7: 0 | EV7: 152 | FA7: 0 | FB7: -48.80228751 | FC7: -3.028738663 | FD7: -48.80228751 | FE7: -3.028738663 | FF7: 0 | FG7: 0 | FH7: 0 | FI7: 0
A8: 1228 | B8: Regular | C8: Distribuição | D8: A3 | E8: Não se aplica | F8: Não se aplica | G8: Não se aplica | H8: EMG | I8: Fora ponta | J8: DISTRIBUIÇÃO | K8: 2021-12-01 | L8: 3000 | M8: 3000 | N8: 0 | O8: 0 | P8: 0 | Q8: 0 | R8: 17.72 | U8: 53160 | W8: 53160 | X8: 56010 | Y8: 0 | Z8: 0 | AA8: 0 | AB8: 0 | AC8: 0 | AD8: 51489.90938 | AE8: 1680.521791 | AI8: 0 | AJ8: 0 | AK8: 0 | AL8: 0 | AN8: 0 | AO8: 0 | AP8: 0 | AQ8: 0 | AR8: 0 | AU8: 0 | AV8: 0 | AW8: 0 | AZ8: 0 | BB8: 0 | BC8: 0 | BD8: 0 | BE8: 0 | BG8: 0 | BH8: 0 | BI8: 0 | BJ8: 0 | BK8: 0 | BL8: 0 | BV8: 0 | CI8: 56010 | CJ8: 2849.97 | CO8: 2850 | CP8: 0 | CR8: 2865.857643 | CS8: 0 | CT8: 0 | CU8: 0 | CV8: 0 | CZ8: 2865.857643 | DA8: 0 | DB8: 0 | DE8: 0 | DF8: 0 | DG8: 0 | DH8: 0 | DI8: 0 | DK8: 0 | DL8: 0 | DN8: 0 | DO8: 0 | DP8: 0 | DQ8: 0 | DR8: 0 | DT8: C | DU8: 1680.521791 | DW8: 0 | DX8: 0 | DY8: 2850 | EA8: 0 | EC8: -14.96420293 | EE8: 0 | EF8: 0 | EH8: 0 | EI8: 0 | EJ8: 0 | EK8: 0 | EL8: 0 | EO8: 0 | EP8: 0 | ER8: 0 | ET8: 0 | EV8: 152 | FA8: 0 | FB8: -48.80228751 | FC8: -3.028738663 | FD8: -48.80228751 | FE8: -3.028738663 | FF8: 0 | FG8: 0 | FH8: 0 | FI8: 0
A9: 1265 | B9: Regular | C9: Distribuição | D9: A3 | E9: Não se aplica | F9: Não se aplica | G9: Não se aplica | H9: EMG | I9: Fora ponta | J9: DISTRIBUIÇÃO | K9: 2022-01-01 | L9: 3000 | M9: 3000 | N9: 0 | O9: 0 | P9: 0 | Q9: 0 | R9: 17.72 | U9: 53160 | W9: 53160 | X9: 56010 | Y9: 0 | Z9: 0 | AA9: 0 | AB9: 0 | AC9: 0 | AD9: 51489.90938 | AE9: 1680.521791 | AI9: 0 | AJ9: 0 | AK9: 0 | AL9: 0 | AN9: 0 | AO9: 0 | AP9: 0 | AQ9: 0 | AR9: 0 | AU9: 0 | AV9: 0 | AW9: 0 | AZ9: 0 | BB9: 0 | BC9: 0 | BD9: 0 | BE9: 0 | BG9: 0 | BH9: 0 | BI9: 0 | BJ9: 0 | BK9: 0 | BL9: 0 | BV9: 0 | CI9: 56010 | CJ9: 2849.97 | CO9: 2850 | CP9: 0 | CQ9: 31 | CR9: 2865.857643 | CS9: 0 | CT9: 0 | CU9: 0 | CV9: 0 | CZ9: 2865.857643 | DA9: 0 | DB9: 0 | DE9: 0 | DF9: 0 | DG9: 0 | DH9: 0 | DI9: 0 | DK9: 0 | DL9: 0 | DN9: 0 | DO9: 0 | DP9: 0 | DQ9: 0 | DR9: 0 | DT9: C | DU9: 1680.521791 | DW9: 0 | DX9: 0 | DY9: 2850 | EA9: 0 | EC9: -14.96420293 | EE9: 0 | EF9: 0 | EH9: 0 | EI9: 0 | EJ9: 0 | EK9: 0 | EL9: 0 | EO9: 0 | EP9: 0 | ER9: 0 | ET9: 0 | EV9: 152 | FA9: 0 | FB9: -48.80228751 | FC9: -3.028738663 | FD9: -48.80228751 | FE9: -3.028738663 | FF9: 0 | FG9: 0 | FH9: 0 | FI9: 0
A10: 1292 | B10: Regular | C10: Distribuição | D10: A3 | E10: Não se aplica | F10: Não se aplica | G10: Não se aplica | H10: EMG | I10: Fora ponta | J10: DISTRIBUIÇÃO | K10: 2022-02-01 | L10: 3000 | M10: 3000 | N10: 0 | O10: 0 | P10: 0 | Q10: 0 | R10: 17.72 | U10: 53160 | W10: 53160 | X10: 56010 | Y10: 0 | Z10: 0 | AA10: 0 | AB10: 0 | AC10: 0 | AD10: 51489.90938 | AE10: 1680.521791 | AI10: 0 | AJ10: 0 | AK10: 0 | AL10: 0 | AN10: 0 | AO10: 0 | AP10: 0 | AQ10: 0 | AR10: 0 | AU10: 0 | AV10: 0 | AW10: 0 | AZ10: 0 | BB10: 0 | BC10: 0 | BD10: 0 | BE10: 0 | BG10: 0 | BH10: 0 | BI10: 0 | BJ10: 0 | BK10: 0 | BL10: 0 | BV10: 0 | CI10: 56010 | CJ10: 2849.97 | CO10: 2850 | CP10: 0 | CQ10: 29 | CR10: 2865.857643 | CS10: 0 | CT10: 0 | CU10: 0 | CV10: 0 | CZ10: 2865.857643 | DA10: 0 | DB10: 0 | DE10: 0 | DF10: 0 | DG10: 0 | DH10: 0 | DI10: 0 | DK10: 0 | DL10: 0 | DN10: 0 | DO10: 0 | DP10: 0 | DQ10: 0 | DR10: 0 | DT10: C | DU10: 1680.521791 | DW10: 0 | DX10: 0 | DY10: 2850 | EA10: 0 | EC10: -14.96420293 | EE10: 0 | EF10: 0 | EH10: 0 | EI10: 0 | EJ10: 0 | EK10: 0 | EL10: 0 | EO10: 0 | EP10: 0 | ER10: 0 | ET10: 0 | EV10: 152 | FA10: 0 | FB10: -48.80228751 | FC10: -3.028738663 | FD10: -48.80228751 | FE10: -3.028738663 | FF10: 0 | FG10: 0 | FH10: 0 | FI10: 0
A11: 1314 | B11: Regular | C11: Distribuição | D11: A3 | E11: Não se aplica | F11: Não se aplica | G11: Não se aplica | H11: EMG | I11: Fora ponta | J11: DISTRIBUIÇÃO | K11: 2022-03-01 | L11: 3000 | M11: 3000 | N11: 0 | O11: 0 | P11: 0 | Q11: 0 | R11: 17.72 | U11: 53160 | W11: 53160 | X11: 56010 | Y11: 0 | Z11: 0 | AA11: 0 | AB11: 0 | AC11: 0 | AD11: 51489.90938 | AE11: 1680.521791 | AI11: 0 | AJ11: 0 | AK11: 0 | AL11: 0 | AN11: 0 | AO11: 0 | AP11: 0 | AQ11: 0 | AR11: 0 | AU11: 0 | AV11: 0 | AW11: 0 | AZ11: 0 | BB11: 0 | BC11: 0 | BD11: 0 | BE11: 0 | BG11: 0 | BH11: 0 | BI11: 0 | BJ11: 0 | BK11: 0 | BL11: 0 | BV11: 0 | CI11: 56010 | CJ11: 2849.97 | CO11: 2850 | CP11: 0 | CQ11: 31 | CR11: 2865.857643 | CS11: 0 | CT11: 0 | CU11: 0 | CV11: 0 | CZ11: 2865.857643 | DA11: 0 | DB11: 0 | DE11: 0 | DF11: 0 | DG11: 0 | DH11: 0 | DI11: 0 | DK11: 0 | DL11: 0 | DN11: 0 | DO11: 0 | DP11: 0 | DQ11: 0 | DR11: 0 | DT11: C | DU11: 1680.521791 | DW11: 0 | DX11: 0 | DY11: 2850 | EA11: 0 | EC11: -14.96420293 | EE11: 0 | EF11: 0 | EH11: 0 | EI11: 0 | EJ11: 0 | EK11: 0 | EL11: 0 | EO11: 0 | EP11: 0 | ER11: 0 | ET11: 0 | EV11: 152 | FA11: 0 | FB11: -48.80228751 | FC11: -3.028738663 | FD11: -48.80228751 | FE11: -3.028738663 | FF11: 0 | FG11: 0 | FH11: 0 | FI11: 0
A12: 1336 | B12: Regular | C12: Distribuição | D12: A3 | E12: Não se aplica | F12: Não se aplica | G12: Não se aplica | H12: EMG | I12: Fora ponta | J12: DISTRIBUIÇÃO | K12: 2022-04-01 | L12: 3000 | M12: 3000 | N12: 0 | O12: 0 | P12: 0 | Q12: 0 | R12: 17.72 | U12: 53160 | W12: 53160 | X12: 56010 | Y12: 0 | Z12: 0 | AA12: 0 | AB12: 0 | AC12: 0 | AD12: 51489.90938 | AE12: 1680.521791 | AI12: 0 | AJ12: 0 | AK12: 0 | AL12: 0 | AN12: 0 | AO12: 0 | AP12: 0 | AQ12: 0 | AR12: 0 | AU12: 0 | AV12: 0 | AW12: 0 | AZ12: 0 | BB12: 0 | BC12: 0 | BD12: 0 | BE12: 0 | BG12: 0 | BH12: 0 | BI12: 0 | BJ12: 0 | BK12: 0 | BL12: 0 | BV12: 0 | CI12: 56010 | CJ12: 2849.97 | CO12: 2850 | CP12: 0 | CQ12: 30 | CR12: 2865.857643 | CS12: 0 | CT12: 0 | CU12: 0 | CV12: 0 | CZ12: 2865.857643 | DA12: 0 | DB12: 0 | DE12: 0 | DF12: 0 | DG12: 0 | DH12: 0 | DI12: 0 | DK12: 0 | DL12: 0 | DN12: 0 | DO12: 0 | DP12: 0 | DQ12: 0 | DR12: 0 | DT12: C | DU12: 1680.521791 | DW12: 0 | DX12: 0 | DY12: 2850 | EA12: 0 | EC12: -14.96420293 | EE12: 0 | EF12: 0 | EH12: 0 | EI12: 0 | EJ12: 0 | EK12: 0 | EL12: 0 | EO12: 0 | EP12: 0 | ER12: 0 | ET12: 0 | EV12: 152 | FA12: 0 | FB12: -48.80228751 | FC12: -3.028738663 | FD12: -48.80228751 | FE12: -3.028738663 | FF12: 0 | FG12: 0 | FH12: 0 | FI12: 0
A13: 1358 | B13: PROJETADO | C13: Distribuição | D13: A3 | E13: Não se aplica | F13: Não se aplica | G13: Não se aplica | H13: EMG | I13: Fora ponta | J13: DISTRIBUIÇÃO | K13: 2022-05-01 | L13: 3000 | M13: 3000 | N13: 0 | O13: 0 | P13: 0 | Q13: 0 | R13: 17.72 | U13: 53160 | W13: 53160 | X13: 56010 | Y13: 0 | Z13: 0 | AA13: 0 | AB13: 0 | AC13: 0 | AD13: 51489.90938 | AE13: 1680.521791 | AI13: 0 | AJ13: 0 | AK13: 0 | AL13: 0 | AN13: 0 | AO13: 0 | AP13: 0 | AQ13: 0 | AR13: 0 | AU13: 0 | AV13: 0 | AW13: 0 | AZ13: 0 | BB13: 0 | BC13: 0 | BD13: 0 | BE13: 0 | BG13: 0 | BH13: 0 | BI13: 0 | BJ13: 0 | BK13: 0 | BL13: 0 | BV13: 0 | CI13: 56010 | CJ13: 2849.97 | CO13: 2850 | CP13: 0 | CQ13: 31 | CR13: 2865.857643 | CS13: 0 | CT13: 0 | CU13: 0 | CV13: 0 | CZ13: 2865.857643 | DA13: 0 | DB13: 0 | DE13: 0 | DF13: 0 | DG13: 0 | DH13: 0 | DI13: 0 | DK13: 0 | DL13: 0 | DN13: 0 | DO13: 0 | DP13: 0 | DQ13: 0 | DR13: 0 | DT13: C | DU13: 1680.521791 | DW13: 0 | DX13: 0 | DY13: 2850 | EA13: 0 | EC13: -14.96420293 | EE13: 0 | EF13: 0 | EH13: 0 | EI13: 0 | EJ13: 0 | EK13: 0 | EL13: 0 | EO13: 0 | EP13: 0 | ER13: 0 | ET13: 0 | EV13: 152 | FA13: 0 | FB13: -48.80228751 | FC13: -3.028738663 | FD13: -48.80228751 | FE13: -3.028738663 | FF13: 0 | FG13: 0 | FH13: 0 | FI13: 0
A14: 1051 | B14: Regular | C14: Distribuição | D14: A3 | E14: Não se aplica | F14: Não se aplica | G14: Não se aplica | H14: EMG | I14: Não se aplica | J14: DISTRIBUIÇÃO | K14: 2021-06-01 | L14: 0 | M14: 0 | N14: 1030.249 | O14: 1030.249 | P14: 0 | Q14: 0 | S14: 1.73 | V14: 1782.33077 | W14: 1782.33077 | X14: 1782.33077 | Y14: 0 | Z14: 0 | AA14: 0 | AB14: 0 | AC14: 0 | AD14: 0 | AE14: 0 | AI14: 0 | AJ14: 0 | AK14: 0 | AL14: 0 | AN14: 0 | AO14: 0 | AP14: 0 | AQ14: 0 | AR14: 0 | AU14: 0 | AV14: 0 | AW14: 0 | AZ14: 0 | BB14: 96.36580444 | BC14: 0 | BD14: 0 | BE14: 0 | BG14: 1777.953989 | BH14: 0 | BI14: 5277.08 | BJ14: 0 | BK14: 0 | BL14: 0 | BV14: 1777.953989 | CI14: 1782.3325 | CJ14: -0.02827 | CO14: 0 | CP14: 0 | CQ14: 30 | CR14: -91.68249792 | CS14: 0 | CT14: 0 | CU14: 0 | CV14: 0 | CZ14: 0 | DA14: 0 | DB14: 0 | DE14: 0 | DF14: 0 | DG14: -91.68249792 | DH14: 0 | DI14: 0 | DK14: 0 | DL14: 0 | DN14: 0 | DO14: 0 | DP14: 0 | DQ14: 0 | DR14: 0 | DT14: C | DV14: 0 | DW14: 0 | DX14: 0 | DY14: -92.72241 | EA14: 92.72241 | EC14: 0 | EE14: 0 | EF14: 0 | EH14: 96.36580444 | EI14: 0 | EJ14: 0 | EK14: 0 | EL14: 0 | EO14: 0 | EP14: 0 | ER14: 0 | ET14: 0 | EV14: 152 | FA14: 0 | FB14: -48.80228751 | FC14: -3.028738663 | FD14: -48.80228751 | FE14: -3.028738663 | FF14: 0 | FG14: 0 | FH14: 0 | FI14: 0
A15: 1081 | B15: Regular | C15: Distribuição | D15: A3 | E15: Não se aplica | F15: Não se aplica | G15: Não se aplica | H15: EMG | I15: Não se aplica | J15: DISTRIBUIÇÃO | K15: 2021-07-01 | L15: 0 | M15: 0 | N15: 979.264 | O15: 979.264 | P15: 0 | Q15: 0 | S15: 1.73 | V15: 1694.12672 | W15: 1694.12672 | X15: 1694.12672 | Y15: 0 | Z15: 0 | AA15: 0 | AB15: 0 | AC15: 0 | AD15: 0 | AE15: 0 | AI15: 0 | AJ15: 0 | AK15: 0 | AL15: 0 | AN15: 0 | AO15: 0 | AP15: 0 | AQ15: 0 | AR15: 0 | AU15: 0 | AV15: 0 | AW15: 0 | AZ15: 0 | BB15: 91.59685 | BC15: 0 | BD15: 0 | BE15: 0 | BG15: 1689.966537 | BH15: 0 | BI15: 7638.97 | BJ15: 0 | BK15: 0 | BL15: 0 | BV15: 1689.966537 | CI15: 1694.1198 | CJ15: -0.03692 | CO15: 0 | CP15: 0 | CQ15: 31 | CR15: -87.14531113 | CS15: 0 | CT15: 0 | CU15: 0 | CV15: 0 | CZ15: 0 | DA15: 0 | DB15: 0 | DE15: 0 | DF15: 0 | DG15: -87.14531113 | DH15: 0 | DI15: 0 | DK15: 0 | DL15: 0 | DN15: 0 | DO15: 0 | DP15: 0 | DQ15: 0 | DR15: 0 | DT15: C | DV15: 0 | DW15: 0 | DX15: 0 | DY15: -88.13376 | EA15: 88.13376 | EC15: 0 | EE15: 0 | EF15: 0 | EH15: 91.59685 | EI15: 0 | EJ15: 0 | EK15: 0 | EL15: 0 | EO15: 0 | EP15: 0 | ER15: 0 | ET15: 0 | EV15: 152 | FA15: 0 | FB15: -48.80228751 | FC15: -3.028738663 | FD15: -48.80228751 | FE15: -3.028738663 | FF15: 0 | FG15: 0 | FH15: 0 | FI15: 0
A16: 1107 | B16: Regular | C16: Distribuição | D16: A3 | E16: Não se aplica | F16: Não se aplica | G16: Não se aplica | H16: EMG | I16: Não se aplica | J16: DISTRIBUIÇÃO | K16: 2021-08-01 | L16: 0 | M16: 0 | N16: 1022.046 | O16: 1022.046 | P16: 0 | Q16: 0 | S16: 1.73 | V16: 1768.13958 | W16: 1768.13958 | X16: 1768.13958 | Y16: 0 | Z16: 0 | AA16: 0 | AB16: 0 | AC16: 0 | AD16: 0 | AE16: 0 | AI16: 0 | AJ16: 0 | AK16: 0 | AL16: 0 | AN16: 0 | AO16: 0 | AP16: 0 | AQ16: 0 | AR16: 0 | AU16: 0 | AV16: 0 | AW16: 0 | AZ16: 0 | BB16: 95.59852518 | BC16: 0 | BD16: 0 | BE16: 0 | BG16: 1763.797647 | BH16: 0 | BI16: 6026.34 | BJ16: 0 | BK16: 0 | BL16: 0 | BV16: 1763.797647 | CI16: 1768.1465 | CJ16: -0.02308 | CO16: 0 | CP16: 0 | CQ16: 31 | CR16: -90.95250786 | CS16: 0 | CT16: 0 | CU16: 0 | CV16: 0 | CZ16: 0 | DA16: 0 | DB16: 0 | DE16: 0 | DF16: 0 | DG16: -90.95250786 | DH16: 0 | DI16: 0 | DK16: 0 | DL16: 0 | DN16: 0 | DO16: 0 | DP16: 0 | DQ16: 0 | DR16: 0 | DT16: C | DV16: 0 | DW16: 0 | DX16: 0 | DY16: -91.98414 | EA16: 91.98414 | EC16: 0 | EE16: 0 | EF16: 0 | EH16: 95.59852518 | EI16: 0 | EJ16: 0 | EK16: 0 | EL16: 0 | EO16: 0 | EP16: 0 | ER16: 0 | ET16: 0 | EV16: 152 | FA16: 0 | FB16: -48.80228751 | FC16: -3.028738663 | FD16: -48.80228751 | FE16: -3.028738663 | FF16: 0 | FG16: 0 | FH16: 0 | FI16: 0
A17: 1129 | B17: Regular | C17: Distribuição | D17: A3 | E17: Não se aplica | F17: Não se aplica | G17: Não se aplica | H17: EMG | I17: Não se aplica | J17: DISTRIBUIÇÃO | K17: 2021-09-01 | L17: 0 | M17: 0 | N17: 1054.493 | O17: 1054.493 | P17: 0 | Q17: 0 | S17: 1.73 | V17: 1824.27289 | W17: 1824.27289 | X17: 1824.27289 | Y17: 0 | Z17: 0 | AA17: 0 | AB17: 0 | AC17: 0 | AD17: 0 | AE17: 0 | AI17: 0 | AJ17: 0 | AK17: 0 | AL17: 0 | AN17: 0 | AO17: 0 | AP17: 0 | AQ17: 0 | AR17: 0 | AU17: 0 | AV17: 0 | AW17: 0 | AZ17: 0 | BB17: 98.63350144 | BC17: 0 | BD17: 0 | BE17: 0 | BG17: 1819.793113 | BH17: 0 | BI17: 6028.53 | BJ17: 0 | BK17: 0 | BL17: 0 | BV17: 1819.793113 | CI17: 1824.2677 | CJ17: -0.03519 | CO17: 0 | CP17: 0 | CQ17: 30 | CR17: -93.83998653 | CS17: 0 | CT17: 0 | CU17: 0 | CV17: 0 | CZ17: 0 | DA17: 0 | DB17: 0 | DE17: 0 | DF17: 0 | DG17: -93.83998653 | DH17: 0 | DI17: 0 | DK17: 0 | DL17: 0 | DN17: 0 | DO17: 0 | DP17: 0 | DQ17: 0 | DR17: 0 | DT17: C | DV17: 0 | DW17: 0 | DX17: 0 | DY17: -94.90437 | EA17: 94.90437 | EC17: 0 | EE17: 0 | EF17: 0 | EH17: 98.63350144 | EI17: 0 | EJ17: 0 | EK17: 0 | EL17: 0 | EO17: 0 | EP17: 0 | ER17: 0 | ET17: 0 | EV17: 152 | FA17: 0 | FB17: -48.80228751 | FC17: -3.028738663 | FD17: -48.80228751 | FE17: -3.028738663 | FF17: 0 | FG17: 0 | FH17: 0 | FI17: 0
A18: 1159 | B18: Regular | C18: Distribuição | D18: A3 | E18: Não se aplica | F18: Não se aplica | G18: Não se aplica | H18: EMG | I18: Não se aplica | J18: DISTRIBUIÇÃO | K18: 2021-10-01 | L18: 0 | M18: 0 | N18: 1098.348 | O18: 1098.348 | P18: 0 | Q18: 0 | S18: 1.73 | V18: 1900.14204 | W18: 1900.14204 | X18: 1900.14204 | Y18: 0 | Z18: 0 | AA18: 0 | AB18: 0 | AC18: 0 | AD18: 0 | AE18: 0 | AI18: 0 | AJ18: 0 | AK18: 0 | AL18: 0 | AN18: 0 | AO18: 0 | AP18: 0 | AQ18: 0 | AR18: 0 | AU18: 0 | AV18: 0 | AW18: 0 | AZ18: 0 | BB18: 102.7355412 | BC18: 0 | BD18: 0 | BE18: 0 | BG18: 1895.475955 | BH18: 0 | BI18: 6031.47 | BJ18: 0 | BK18: 0 | BL18: 0 | BV18: 1895.475955 | CI18: 1900.1455 | CJ18: -0.02654 | CO18: 0 | CP18: 0 | CQ18: 31 | CR18: -97.74267019 | CS18: 0 | CT18: 0 | CU18: 0 | CV18: 0 | CZ18: 0 | DA18: 0 | DB18: 0 | DE18: 0 | DF18: 0 | DG18: -97.74267019 | DH18: 0 | DI18: 0 | DK18: 0 | DL18: 0 | DN18: 0 | DO18: 0 | DP18: 0 | DQ18: 0 | DR18: 0 | DT18: C | DV18: 0 | DW18: 0 | DX18: 0 | DY18: -98.85132 | EA18: 98.85132 | EC18: 0 | EE18: 0 | EF18: 0 | EH18: 102.7355412 | EI18: 0 | EJ18: 0 | EK18: 0 | EL18: 0 | EO18: 0 | EP18: 0 | ER18: 0 | ET18: 0 | EV18: 152 | FA18: 0 | FB18: -48.80228751 | FC18: -3.028738663 | FD18: -48.80228751 | FE18: -3.028738663 | FF18: 0 | FG18: 0 | FH18: 0 | FI18: 0
A19: 1193 | B19: Regular | C19: Distribuição | D19: A3 | E19: Não se aplica | F19: Não se aplica | G19: Não se aplica | H19: EMG | I19: Não se aplica | J19: DISTRIBUIÇÃO | K19: 2021-11-01 | L19: 0 | M19: 0 | N19: 1071.705 | O19: 1071.705 | P19: 0 | Q19: 0 | S19: 1.73 | V19: 1854.04965 | W19: 1854.04965 | X19: 1854.04965 | Y19: 0 | Z19: 0 | AA19: 0 | AB19: 0 | AC19: 0 | AD19: 0 | AE19: 0 | AI19: 0 | AJ19: 0 | AK19: 0 | AL19: 0 | AN19: 0 | AO19: 0 | AP19: 0 | AQ19: 0 | AR19: 0 | AU19: 0 | AV19: 0 | AW19: 0 | AZ19: 0 | BB19: 100.2434503 | BC19: 0 | BD19: 0 | BE19: 0 | BG19: 1849.496752 | BH19: 0 | BI19: 6029.69 | BJ19: 0 | BK19: 0 | BL19: 0 | BV19: 1849.496752 | CI19: 1854.0583 | CJ19: -0.02135 | CO19: 0 | CP19: 0 | CQ19: 30 | CR19: -95.37169309 | CS19: 0 | CT19: 0 | CU19: 0 | CV19: 0 | CZ19: 0 | DA19: 0 | DB19: 0 | DE19: 0 | DF19: 0 | DG19: -95.37169309 | DH19: 0 | DI19: 0 | DK19: 0 | DL19: 0 | DN19: 0 | DO19: 0 | DP19: 0 | DQ19: 0 | DR19: 0 | DT19: C | DV19: 0 | DW19: 0 | DX19: 0 | DY19: -96.45345 | EA19: 96.45345 | EC19: 0 | EE19: 0 | EF19: 0 | EH19: 100.2434503 | EI19: 0 | EJ19: 0 | EK19: 0 | EL19: 0 | EO19: 0 | EP19: 0 | ER19: 0 | ET19: 0 | EV19: 152 | FA19: 0 | FB19: -48.80228751 | FC19: -3.028738663 | FD19: -48.80228751 | FE19: -3.028738663 | FF19: 0 | FG19: 0 | FH19: 0 | FI19: 0
A20: 1230 | B20: Regular | C20: Distribuição | D20: A3 | E20: Não se aplica | F20: Não se aplica | G20: Não se aplica | H20: EMG | I20: Não se aplica | J20: DISTRIBUIÇÃO | K20: 2021-12-01 | L20: 0 | M20: 0 | N20: 1050.199 | O20: 1050.199 | P20: 0 | Q20: 0 | S20: 1.73 | V20: 1816.84427 | W20: 1816.84427 | X20: 1816.84427 | Y20: 0 | Z20: 0 | AA20: 0 | AB20: 0 | AC20: 0 | AD20: 0 | AE20: 0 | AI20: 0 | AJ20: 0 | AK20: 0 | AL20: 0 | AN20: 0 | AO20: 0 | AP20: 0 | AQ20: 0 | AR20: 0 | AU20: 0 | AV20: 0 | AW20: 0 | AZ20: 0 | BB20: 98.23185604 | BC20: 0 | BD20: 0 | BE20: 0 | BG20: 1812.382735 | BH20: 0 | BI20: 7535.71 | BJ20: 0 | BK20: 0 | BL20: 0 | BV20: 1812.382735 | CI20: 1816.846 | CJ20: -0.02827 | CO20: 0 | CP20: 0 | CR20: -93.4578608 | CS20: 0 | CT20: 0 | CU20: 0 | CV20: 0 | CZ20: 0 | DA20: 0 | DB20: 0 | DE20: 0 | DF20: 0 | DG20: -93.4578608 | DH20: 0 | DI20: 0 | DK20: 0 | DL20: 0 | DN20: 0 | DO20: 0 | DP20: 0 | DQ20: 0 | DR20: 0 | DT20: C | DV20: 0 | DW20: 0 | DX20: 0 | DY20: -94.51791 | EA20: 94.51791 | EC20: 0 | EE20: 0 | EF20: 0 | EH20: 98.23185604 | EI20: 0 | EJ20: 0 | EK20: 0 | EL20: 0 | EO20: 0 | EP20: 0 | ER20: 0 | ET20: 0 | EV20: 152 | FA20: 0 | FB20: -48.80228751 | FC20: -3.028738663 | FD20: -48.80228751 | FE20: -3.028738663 | FF20: 0 | FG20: 0 | FH20: 0 | FI20: 0
A21: 1267 | B21: Regular | C21: Distribuição | D21: A3 | E21: Não se aplica | F21: Não se aplica | G21: Não se aplica | H21: EMG | I21: Não se aplica | J21: DISTRIBUIÇÃO | K21: 2022-01-01 | L21: 0 | M21: 0 | N21: 944.597 | O21: 944.597 | P21: 0 | Q21: 0 | S21: 1.73 | V21: 1634.15281 | W21: 1634.15281 | X21: 1634.15281 | Y21: 0 | Z21: 0 | AA21: 0 | AB21: 0 | AC21: 0 | AD21: 0 | AE21: 0 | AI21: 0 | AJ21: 0 | AK21: 0 | AL21: 0 | AN21: 0 | AO21: 0 | AP21: 0 | AQ21: 0 | AR21: 0 | AU21: 0 | AV21: 0 | AW21: 0 | AZ21: 0 | BB21: 88.35422289 | BC21: 0 | BD21: 0 | BE21: 0 | BG21: 1630.139902 | BH21: 0 | BI21: 6021.14 | BJ21: 0 | BK21: 0 | BL21: 0 | BV21: 1630.139902 | CI21: 1634.158 | CJ21: -0.02481 | CO21: 0 | CP21: 0 | CQ21: 31 | CR21: -84.06027328 | CS21: 0 | CT21: 0 | CU21: 0 | CV21: 0 | CZ21: 0 | DA21: 0 | DB21: 0 | DE21: 0 | DF21: 0 | DG21: -84.06027328 | DH21: 0 | DI21: 0 | DK21: 0 | DL21: 0 | DN21: 0 | DO21: 0 | DP21: 0 | DQ21: 0 | DR21: 0 | DT21: C | DV21: 0 | DW21: 0 | DX21: 0 | DY21: -85.01373 | EA21: 85.01373 | EC21: 0 | EE21: 0 | EF21: 0 | EH21: 88.35422289 | EI21: 0 | EJ21: 0 | EK21: 0 | EL21: 0 | EO21: 0 | EP21: 0 | ER21: 0 | ET21: 0 | EV21: 152 | FA21: 0 | FB21: -48.80228751 | FC21: -3.028738663 | FD21: -48.80228751 | FE21: -3.028738663 | FF21: 0 | FG21: 0 | FH21: 0 | FI21: 0
A22: 1293 | B22: Regular | C22: Distribuição | D22: A3 | E22: Não se aplica | F22: Não se aplica | G22: Não se aplica | H22: EMG | I22: Não se aplica | J22: DISTRIBUIÇÃO | K22: 2022-02-01 | L22: 0 | M22: 0 | N22: 1116.184 | O22: 1116.184 | P22: 0 | Q22: 0 | S22: 1.73 | V22: 1930.99832 | W22: 1930.99832 | X22: 1930.99832 | Y22: 0 | Z22: 0 | AA22: 0 | AB22: 0 | AC22: 0 | AD22: 0 | AE22: 0 | AI22: 0 | AJ22: 0 | AK22: 0 | AL22: 0 | AN22: 0 | AO22: 0 | AP22: 0 | AQ22: 0 | AR22: 0 | AU22: 0 | AV22: 0 | AW22: 0 | AZ22: 0 | BB22: 104.4038568 | BC22: 0 | BD22: 0 | BE22: 0 | BG22: 1926.256463 | BH22: 0 | BI22: 6032.67 | BJ22: 0 | BK22: 0 | BL22: 0 | BV22: 1926.256463 | CI22: 1930.9914 | CJ22: -0.03692 | CO22: 0 | CP22: 0 | CQ22: 29 | CR22: -99.3299069 | CS22: 0 | CT22: 0 | CU22: 0 | CV22: 0 | CZ22: 0 | DA22: 0 | DB22: 0 | DE22: 0 | DF22: 0 | DG22: -99.3299069 | DH22: 0 | DI22: 0 | DK22: 0 | DL22: 0 | DN22: 0 | DO22: 0 | DP22: 0 | DQ22: 0 | DR22: 0 | DT22: C | DV22: 0 | DW22: 0 | DX22: 0 | DY22: -100.45656 | EA22: 100.45656 | EC22: 0 | EE22: 0 | EF22: 0 | EH22: 104.4038568 | EI22: 0 | EJ22: 0 | EK22: 0 | EL22: 0 | EO22: 0 | EP22: 0 | ER22: 0 | ET22: 0 | EV22: 152 | FA22: 0 | FB22: -48.80228751 | FC22: -3.028738663 | FD22: -48.80228751 | FE22: -3.028738663 | FF22: 0 | FG22: 0 | FH22: 0 | FI22: 0
A23: 1315 | B23: Regular | C23: Distribuição | D23: A3 | E23: Não se aplica | F23: Não se aplica | G23: Não se aplica | H23: EMG | I23: Não se aplica | J23: DISTRIBUIÇÃO | K23: 2022-03-01 | L23: 0 | M23: 0 | N23: 1014.884 | O23: 1014.884 | P23: 0 | Q23: 0 | S23: 1.73 | V23: 1755.74932 | W23: 1755.74932 | X23: 1755.74932 | Y23: 0 | Z23: 0 | AA23: 0 | AB23: 0 | AC23: 0 | AD23: 0 | AE23: 0 | AI23: 0 | AJ23: 0 | AK23: 0 | AL23: 0 | AN23: 0 | AO23: 0 | AP23: 0 | AQ23: 0 | AR23: 0 | AU23: 0 | AV23: 0 | AW23: 0 | AZ23: 0 | BB23: 94.92861733 | BC23: 0 | BD23: 0 | BE23: 0 | BG23: 1751.437813 | BH23: 0 | BI23: 6025.86 | BJ23: 0 | BK23: 0 | BL23: 0 | BV23: 1751.437813 | CI23: 1755.7424 | CJ23: -0.03692 | CO23: 0 | CP23: 0 | CQ23: 31 | CR23: -90.31515703 | CS23: 0 | CT23: 0 | CU23: 0 | CV23: 0 | CZ23: 0 | DA23: 0 | DB23: 0 | DE23: 0 | DF23: 0 | DG23: -90.31515703 | DH23: 0 | DI23: 0 | DK23: 0 | DL23: 0 | DN23: 0 | DO23: 0 | DP23: 0 | DQ23: 0 | DR23: 0 | DT23: C | DV23: 0 | DW23: 0 | DX23: 0 | DY23: -91.33956 | EA23: 91.33956 | EC23: 0 | EE23: 0 | EF23: 0 | EH23: 94.92861733 | EI23: 0 | EJ23: 0 | EK23: 0 | EL23: 0 | EO23: 0 | EP23: 0 | ER23: 0 | ET23: 0 | EV23: 152 | FA23: 0 | FB23: -48.80228751 | FC23: -3.028738663 | FD23: -48.80228751 | FE23: -3.028738663 | FF23: 0 | FG23: 0 | FH23: 0 | FI23: 0
A24: 1337 | B24: Regular | C24: Distribuição | D24: A3 | E24: Não se aplica | F24: Não se aplica | G24: Não se aplica | H24: EMG | I24: Não se aplica | J24: DISTRIBUIÇÃO | K24: 2022-04-01 | L24: 0 | M24: 0 | N24: 1123.708 | O24: 1123.708 | P24: 0 | Q24: 0 | S24: 1.73 | V24: 1944.01484 | W24: 1944.01484 | X24: 1944.01484 | Y24: 0 | Z24: 0 | AA24: 0 | AB24: 0 | AC24: 0 | AD24: 0 | AE24: 0 | AI24: 0 | AJ24: 0 | AK24: 0 | AL24: 0 | AN24: 0 | AO24: 0 | AP24: 0 | AQ24: 0 | AR24: 0 | AU24: 0 | AV24: 0 | AW24: 0 | AZ24: 0 | BB24: 105.1076248 | BC24: 0 | BD24: 0 | BE24: 0 | BG24: 1939.241019 | BH24: 0 | BI24: 6033.18 | BJ24: 0 | BK24: 0 | BL24: 0 | BV24: 1939.241019 | CI24: 1944.0183 | CJ24: -0.02654 | CO24: 0 | CP24: 0 | CQ24: 30 | CR24: -99.99947233 | CS24: 0 | CT24: 0 | CU24: 0 | CV24: 0 | CZ24: 0 | DA24: 0 | DB24: 0 | DE24: 0 | DF24: 0 | DG24: -99.99947233 | DH24: 0 | DI24: 0 | DK24: 0 | DL24: 0 | DN24: 0 | DO24: 0 | DP24: 0 | DQ24: 0 | DR24: 0 | DT24: C | DV24: 0 | DW24: 0 | DX24: 0 | DY24: -101.13372 | EA24: 101.13372 | EC24: 0 | EE24: 0 | EF24: 0 | EH24: 105.1076248 | EI24: 0 | EJ24: 0 | EK24: 0 | EL24: 0 | EO24: 0 | EP24: 0 | ER24: 0 | ET24: 0 | EV24: 152 | FA24: 0 | FB24: -48.80228751 | FC24: -3.028738663 | FD24: -48.80228751 | FE24: -3.028738663 | FF24: 0 | FG24: 0 | FH24: 0 | FI24: 0
A25: 1359 | B25: PROJETADO | C25: Distribuição | D25: A3 | E25: Não se aplica | F25: Não se aplica | G25: Não se aplica | H25: EMG | I25: Não se aplica | J25: DISTRIBUIÇÃO | K25: 2022-05-01 | L25: 0 | M25: 0 | N25: 1123.708 | O25: 1123.708 | P25: 0 | Q25: 0 | S25: 1.73 | V25: 1944.01484 | W25: 1944.01484 | X25: 1944.01484 | Y25: 0 | Z25: 0 | AA25: 0 | AB25: 0 | AC25: 0 | AD25: 0 | AE25: 0 | AI25: 0 | AJ25: 0 | AK25: 0 | AL25: 0 | AN25: 0 | AO25: 0 | AP25: 0 | AQ25: 0 | AR25: 0 | AU25: 0 | AV25: 0 | AW25: 0 | AZ25: 0 | BB25: 105.1076248 | BC25: 0 | BD25: 0 | BE25: 0 | BG25: 1939.241019 | BH25: 0 | BI25: 6033.18 | BJ25: 0 | BK25: 0 | BL25: 0 | BV25: 1939.241019 | CI25: 1944.0183 | CJ25: -0.02654 | CO25: 0 | CP25: 0 | CQ25: 31 | CR25: -99.99947233 | CS25: 0 | CT25: 0 | CU25: 0 | CV25: 0 | CZ25: 0 | DA25: 0 | DB25: 0 | DE25: 0 | DF25: 0 | DG25: -99.99947233 | DH25: 0 | DI25: 0 | DK25: 0 | DL25: 0 | DN25: 0 | DO25: 0 | DP25: 0 | DQ25: 0 | DR25: 0 | DT25: C | DV25: 0 | DW25: 0 | DX25: 0 | DY25: -101.13372 | EA25: 101.13372 | EC25: 0 | EE25: 0 | EF25: 0 | EH25: 105.1076248 | EI25: 0 | EJ25: 0 | EK25: 0 | EL25: 0 | EO25: 0 | EP25: 0 | ER25: 0 | ET25: 0 | EV25: 152 | FA25: 0 | FB25: -48.80228751 | FC25: -3.028738663 | FD25: -48.80228751 | FE25: -3.028738663 | FF25: 0 | FG25: 0 | FH25: 0 | FI25: 0
A26: 1049 | B26: Regular | C26: Distribuição | D26: A3 | E26: Não se aplica | F26: Não se aplica | G26: Não se aplica | H26: EMG | I26: Ponta | J26: DISTRIBUIÇÃO | K26: 2021-06-01 | L26: 2800 | M26: 2800 | N26: 0 | O26: 0 | P26: 0 | Q26: 0 | R26: 33.27 | U26: 93156 | W26: 93156 | X26: 97328 | Y26: 0 | Z26: 0 | AA26: 0 | AB26: 0 | AC26: 0 | AD26: 77474.18065 | AE26: 15684.25664 | AI26: 0 | AJ26: 0 | AK26: 0 | AL26: 0 | AN26: 0 | AO26: 0 | AP26: 0 | AQ26: 0 | AR26: 0 | AU26: 0 | AV26: 0 | AW26: 0 | AZ26: 0 | BB26: 0 | BC26: 0 | BD26: 0 | BE26: 0 | BG26: 0 | BH26: 0 | BI26: 0 | BJ26: 0 | BK26: 0 | BL26: 0 | BV26: 0 | CI26: 97328 | CJ26: 4171.97 | CO26: 4172 | CP26: 0 | CQ26: 30 | CR26: 4312.106496 | CS26: 0 | CT26: 0 | CU26: 0 | CV26: 0 | CZ26: 4312.106496 | DA26: 0 | DB26: 0 | DE26: 0 | DF26: 0 | DG26: 0 | DH26: 0 | DI26: 0 | DK26: 0 | DL26: 0 | DN26: 0 | DO26: 0 | DP26: 0 | DQ26: 0 | DR26: 0 | DT26: C | DU26: 15684.25664 | DW26: 0 | DX26: 0 | DY26: 4172 | EA26: 0 | EC26: -139.6604319 | EE26: 0 | EF26: 0 | EH26: 0 | EI26: 0 | EJ26: 0 | EK26: 0 | EL26: 0 | EO26: 0 | EP26: 0 | ER26: 0 | ET26: 0 | EV26: 152 | FA26: 0 | FB26: -48.80228751 | FC26: -3.028738663 | FD26: -48.80228751 | FE26: -3.028738663 | FF26: 0 | FG26: 0 | FH26: 0 | FI26: 0
A27: 1077 | B27: Regular | C27: Distribuição | D27: A3 | E27: Não se aplica | F27: Não se aplica | G27: Não se aplica | H27: EMG | I27: Ponta | J27: DISTRIBUIÇÃO | K27: 2021-07-01 | L27: 2800 | M27: 2800 | N27: 0 | O27: 0 | P27: 0 | Q27: 0 | R27: 33.27 | U27: 93156 | W27: 93156 | X27: 97328 | Y27: 0 | Z27: 0 | AA27: 0 | AB27: 0 | AC27: 0 | AD27: 77474.18065 | AE27: 15684.25664 | AI27: 0 | AJ27: 0 | AK27: 0 | AL27: 0 | AN27: 0 | AO27: 0 | AP27: 0 | AQ27: 0 | AR27: 0 | AU27: 0 | AV27: 0 | AW27: 0 | AZ27: 0 | BB27: 0 | BC27: 0 | BD27: 0 | BE27: 0 | BG27: 0 | BH27: 0 | BI27: 0 | BJ27: 0 | BK27: 0 | BL27: 0 | BV27: 0 | CI27: 97328 | CJ27: 4171.97 | CO27: 4172 | CP27: 0 | CQ27: 31 | CR27: 4312.106496 | CS27: 0 | CT27: 0 | CU27: 0 | CV27: 0 | CZ27: 4312.106496 | DA27: 0 | DB27: 0 | DE27: 0 | DF27: 0 | DG27: 0 | DH27: 0 | DI27: 0 | DK27: 0 | DL27: 0 | DN27: 0 | DO27: 0 | DP27: 0 | DQ27: 0 | DR27: 0 | DT27: C | DU27: 15684.25664 | DW27: 0 | DX27: 0 | DY27: 4172 | EA27: 0 | EC27: -139.6604319 | EE27: 0 | EF27: 0 | EH27: 0 | EI27: 0 | EJ27: 0 | EK27: 0 | EL27: 0 | EO27: 0 | EP27: 0 | ER27: 0 | ET27: 0 | EV27: 152 | FA27: 0 | FB27: -48.80228751 | FC27: -3.028738663 | FD27: -48.80228751 | FE27: -3.028738663 | FF27: 0 | FG27: 0 | FH27: 0 | FI27: 0
A28: 1105 | B28: Regular | C28: Distribuição | D28: A3 | E28: Não se aplica | F28: Não se aplica | G28: Não se aplica | H28: EMG | I28: Ponta | J28: DISTRIBUIÇÃO | K28: 2021-08-01 | L28: 2800 | M28: 2800 | N28: 0 | O28: 0 | P28: 0 | Q28: 0 | R28: 33.27 | U28: 93156 | W28: 93156 | X28: 97328 | Y28: 0 | Z28: 0 | AA28: 0 | AB28: 0 | AC28: 0 | AD28: 77474.18065 | AE28: 15684.25664 | AI28: 0 | AJ28: 0 | AK28: 0 | AL28: 0 | AN28: 0 | AO28: 0 | AP28: 0 | AQ28: 0 | AR28: 0 | AU28: 0 | AV28: 0 | AW28: 0 | AZ28: 0 | BB28: 0 | BC28: 0 | BD28: 0 | BE28: 0 | BG28: 0 | BH28: 0 | BI28: 0 | BJ28: 0 | BK28: 0 | BL28: 0 | BV28: 0 | CI28: 97328 | CJ28: 4171.97 | CO28: 4172 | CP28: 0 | CQ28: 31 | CR28: 4312.106496 | CS28: 0 | CT28: 0 | CU28: 0 | CV28: 0 | CZ28: 4312.106496 | DA28: 0 | DB28: 0 | DE28: 0 | DF28: 0 | DG28: 0 | DH28: 0 | DI28: 0 | DK28: 0 | DL28: 0 | DN28: 0 | DO28: 0 | DP28: 0 | DQ28: 0 | DR28: 0 | DT28: C | DU28: 15684.25664 | DW28: 0 | DX28: 0 | DY28: 4172 | EA28: 0 | EC28: -139.6604319 | EE28: 0 | EF28: 0 | EH28: 0 | EI28: 0 | EJ28: 0 | EK28: 0 | EL28: 0 | EO28: 0 | EP28: 0 | ER28: 0 | ET28: 0 | EV28: 152 | FA28: 0 | FB28: -48.80228751 | FC28: -3.028738663 | FD28: -48.80228751 | FE28: -3.028738663 | FF28: 0 | FG28: 0 | FH28: 0 | FI28: 0
A29: 1127 | B29: Regular | C29: Distribuição | D29: A3 | E29: Não se aplica | F29: Não se aplica | G29: Não se aplica | H29: EMG | I29: Ponta | J29: DISTRIBUIÇÃO | K29: 2021-09-01 | L29: 2800 | M29: 2800 | N29: 0 | O29: 0 | P29: 0 | Q29: 0 | R29: 33.27 | U29: 93156 | W29: 93156 | X29: 97328 | Y29: 0 | Z29: 0 | AA29: 0 | AB29: 0 | AC29: 0 | AD29: 77474.18065 | AE29: 15684.25664 | AI29: 0 | AJ29: 0 | AK29: 0 | AL29: 0 | AN29: 0 | AO29: 0 | AP29: 0 | AQ29: 0 | AR29: 0 | AU29: 0 | AV29: 0 | AW29: 0 | AZ29: 0 | BB29: 0 | BC29: 0 | BD29: 0 | BE29: 0 | BG29: 0 | BH29: 0 | BI29: 0 | BJ29: 0 | BK29: 0 | BL29: 0 | BV29: 0 | CI29: 97328 | CJ29: 4171.97 | CO29: 4172 | CP29: 0 | CQ29: 30 | CR29: 4312.106496 | CS29: 0 | CT29: 0 | CU29: 0 | CV29: 0 | CZ29: 4312.106496 | DA29: 0 | DB29: 0 | DE29: 0 | DF29: 0 | DG29: 0 | DH29: 0 | DI29: 0 | DK29: 0 | DL29: 0 | DN29: 0 | DO29: 0 | DP29: 0 | DQ29: 0 | DR29: 0 | DT29: C | DU29: 15684.25664 | DW29: 0 | DX29: 0 | DY29: 4172 | EA29: 0 | EC29: -139.6604319 | EE29: 0 | EF29: 0 | EH29: 0 | EI29: 0 | EJ29: 0 | EK29: 0 | EL29: 0 | EO29: 0 | EP29: 0 | ER29: 0 | ET29: 0 | EV29: 152 | FA29: 0 | FB29: -48.80228751 | FC29: -3.028738663 | FD29: -48.80228751 | FE29: -3.028738663 | FF29: 0 | FG29: 0 | FH29: 0 | FI29: 0
A30: 1155 | B30: Regular | C30: Distribuição | D30: A3 | E30: Não se aplica | F30: Não se aplica | G30: Não se aplica | H30: EMG | I30: Ponta | J30: DISTRIBUIÇÃO | K30: 2021-10-01 | L30: 2800 | M30: 2800 | N30: 0 | O30: 0 | P30: 0 | Q30: 0 | R30: 33.27 | U30: 93156 | W30: 93156 | X30: 97328 | Y30: 0 | Z30: 0 | AA30: 0 | AB30: 0 | AC30: 0 | AD30: 77474.18065 | AE30: 15684.25664 | AI30: 0 | AJ30: 0 | AK30: 0 | AL30: 0 | AN30: 0 | AO30: 0 | AP30: 0 | AQ30: 0 | AR30: 0 | AU30: 0 | AV30: 0 | AW30: 0 | AZ30: 0 | BB30: 0 | BC30: 0 | BD30: 0 | BE30: 0 | BG30: 0 | BH30: 0 | BI30: 0 | BJ30: 0 | BK30: 0 | BL30: 0 | BV30: 0 | CI30: 97328 | CJ30: 4171.97 | CO30: 4172 | CP30: 0 | CQ30: 31 | CR30: 4312.106496 | CS30: 0 | CT30: 0 | CU30: 0 | CV30: 0 | CZ30: 4312.106496 | DA30: 0 | DB30: 0 | DE30: 0 | DF30: 0 | DG30: 0 | DH30: 0 | DI30: 0 | DK30: 0 | DL30: 0 | DN30: 0 | DO30: 0 | DP30: 0 | DQ30: 0 | DR30: 0 | DT30: C | DU30: 15684.25664 | DW30: 0 | DX30: 0 | DY30: 4172 | EA30: 0 | EC30: -139.6604319 | EE30: 0 | EF30: 0 | EH30: 0 | EI30: 0 | EJ30: 0 | EK30: 0 | EL30: 0 | EO30: 0 | EP30: 0 | ER30: 0 | ET30: 0 | EV30: 152 | FA30: 0 | FB30: -48.80228751 | FC30: -3.028738663 | FD30: -48.80228751 | FE30: -3.028738663 | FF30: 0 | FG30: 0 | FH30: 0 | FI30: 0
A31: 1189 | B31: Regular | C31: Distribuição | D31: A3 | E31: Não se aplica | F31: Não se aplica | G31: Não se aplica | H31: EMG | I31: Ponta | J31: DISTRIBUIÇÃO | K31: 2021-11-01 | L31: 2800 | M31: 2800 | N31: 0 | O31: 0 | P31: 0 | Q31: 0 | R31: 33.27 | U31: 93156 | W31: 93156 | X31: 97328 | Y31: 0 | Z31: 0 | AA31: 0 | AB31: 0 | AC31: 0 | AD31: 77474.18065 | AE31: 15684.25664 | AI31: 0 | AJ31: 0 | AK31: 0 | AL31: 0 | AN31: 0 | AO31: 0 | AP31: 0 | AQ31: 0 | AR31: 0 | AU31: 0 | AV31: 0 | AW31: 0 | AZ31: 0 | BB31: 0 | BC31: 0 | BD31: 0 | BE31: 0 | BG31: 0 | BH31: 0 | BI31: 0 | BJ31: 0 | BK31: 0 | BL31: 0 | BV31: 0 | CI31: 97328 | CJ31: 4171.97 | CO31: 4172 | CP31: 0 | CQ31: 30 | CR31: 4312.106496 | CS31: 0 | CT31: 0 | CU31: 0 | CV31: 0 | CZ31: 4312.106496 | DA31: 0 | DB31: 0 | DE31: 0 | DF31: 0 | DG31: 0 | DH31: 0 | DI31: 0 | DK31: 0 | DL31: 0 | DN31: 0 | DO31: 0 | DP31: 0 | DQ31: 0 | DR31: 0 | DT31: C | DU31: 15684.25664 | DW31: 0 | DX31: 0 | DY31: 4172 | EA31: 0 | EC31: -139.6604319 | EE31: 0 | EF31: 0 | EH31: 0 | EI31: 0 | EJ31: 0 | EK31: 0 | EL31: 0 | EO31: 0 | EP31: 0 | ER31: 0 | ET31: 0 | EV31: 152 | FA31: 0 | FB31: -48.80228751 | FC31: -3.028738663 | FD31: -48.80228751 | FE31: -3.028738663 | FF31: 0 | FG31: 0 | FH31: 0 | FI31: 0
A32: 1226 | B32: Regular | C32: Distribuição | D32: A3 | E32: Não se aplica | F32: Não se aplica | G32: Não se aplica | H32: EMG | I32: Ponta | J32: DISTRIBUIÇÃO | K32: 2021-12-01 | L32: 3172 | M32: 3172 | N32: 0 | O32: 0 | P32: 0 | Q32: 0 | R32: 33.27 | U32: 105532.44 | W32: 105532.44 | X32: 110258.72 | Y32: 0 | Z32: 0 | AA32: 0 | AB32: 0 | AC32: 0 | AD32: 87767.17894 | AE32: 17768.02216 | AI32: 0 | AJ32: 0 | AK32: 0 | AL32: 0 | AN32: 0 | AO32: 0 | AP32: 0 | AQ32: 0 | AR32: 0 | AU32: 0 | AV32: 0 | AW32: 0 | AZ32: 0 | BB32: 0 | BC32: 0 | BD32: 0 | BE32: 0 | BG32: 0 | BH32: 0 | BI32: 0 | BJ32: 0 | BK32: 0 | BL32: 0 | BV32: 0 | CI32: 110258.72 | CJ32: 4726.25 | CO32: 4726.28 | CP32: 0 | CR32: 4885.000645 | CS32: 0 | CT32: 0 | CU32: 0 | CV32: 0 | CZ32: 4885.000645 | DA32: 0 | DB32: 0 | DE32: 0 | DF32: 0 | DG32: 0 | DH32: 0 | DI32: 0 | DK32: 0 | DL32: 0 | DN32: 0 | DO32: 0 | DP32: 0 | DQ32: 0 | DR32: 0 | DT32: C | DU32: 17768.02216 | DW32: 0 | DX32: 0 | DY32: 4726.28 | EA32: 0 | EC32: -158.2153179 | EE32: 0 | EF32: 0 | EH32: 0 | EI32: 0 | EJ32: 0 | EK32: 0 | EL32: 0 | EO32: 0 | EP32: 0 | ER32: 0 | ET32: 0 | EV32: 152 | FA32: 0 | FB32: -48.80228751 | FC32: -3.028738663 | FD32: -48.80228751 | FE32: -3.028738663 | FF32: 0 | FG32: 0 | FH32: 0 | FI32: 0
A33: 1263 | B33: Regular | C33: Distribuição | D33: A3 | E33: Não se aplica | F33: Não se aplica | G33: Não se aplica | H33: EMG | I33: Ponta | J33: DISTRIBUIÇÃO | K33: 2022-01-01 | L33: 2800 | M33: 2800 | N33: 0 | O33: 0 | P33: 0 | Q33: 0 | R33: 33.27 | U33: 93156 | W33: 93156 | X33: 97328 | Y33: 0 | Z33: 0 | AA33: 0 | AB33: 0 | AC33: 0 | AD33: 77474.18065 | AE33: 15684.25664 | AI33: 0 | AJ33: 0 | AK33: 0 | AL33: 0 | AN33: 0 | AO33: 0 | AP33: 0 | AQ33: 0 | AR33: 0 | AU33: 0 | AV33: 0 | AW33: 0 | AZ33: 0 | BB33: 0 | BC33: 0 | BD33: 0 | BE33: 0 | BG33: 0 | BH33: 0 | BI33: 0 | BJ33: 0 | BK33: 0 | BL33: 0 | BV33: 0 | CI33: 97328 | CJ33: 4171.97 | CO33: 4172 | CP33: 0 | CQ33: 31 | CR33: 4312.106496 | CS33: 0 | CT33: 0 | CU33: 0 | CV33: 0 | CZ33: 4312.106496 | DA33: 0 | DB33: 0 | DE33: 0 | DF33: 0 | DG33: 0 | DH33: 0 | DI33: 0 | DK33: 0 | DL33: 0 | DN33: 0 | DO33: 0 | DP33: 0 | DQ33: 0 | DR33: 0 | DT33: C | DU33: 15684.25664 | DW33: 0 | DX33: 0 | DY33: 4172 | EA33: 0 | EC33: -139.6604319 | EE33: 0 | EF33: 0 | EH33: 0 | EI33: 0 | EJ33: 0 | EK33: 0 | EL33: 0 | EO33: 0 | EP33: 0 | ER33: 0 | ET33: 0 | EV33: 152 | FA33: 0 | FB33: -48.80228751 | FC33: -3.028738663 | FD33: -48.80228751 | FE33: -3.028738663 | FF33: 0 | FG33: 0 | FH33: 0 | FI33: 0
A34: 1291 | B34: Regular | C34: Distribuição | D34: A3 | E34: Não se aplica | F34: Não se aplica | G34: Não se aplica | H34: EMG | I34: Ponta | J34: DISTRIBUIÇÃO | K34: 2022-02-01 | L34: 2800 | M34: 2800 | N34: 0 | O34: 0 | P34: 0 | Q34: 0 | R34: 33.27 | U34: 93156 | W34: 93156 | X34: 97328 | Y34: 0 | Z34: 0 | AA34: 0 | AB34: 0 | AC34: 0 | AD34: 77474.18065 | AE34: 15684.25664 | AI34: 0 | AJ34: 0 | AK34: 0 | AL34: 0 | AN34: 0 | AO34: 0 | AP34: 0 | AQ34: 0 | AR34: 0 | AU34: 0 | AV34: 0 | AW34: 0 | AZ34: 0 | BB34: 0 | BC34: 0 | BD34: 0 | BE34: 0 | BG34: 0 | BH34: 0 | BI34: 0 | BJ34: 0 | BK34: 0 | BL34: 0 | BV34: 0 | CI34: 97328 | CJ34: 4171.97 | CO34: 4172 | CP34: 0 | CQ34: 29 | CR34: 4312.106496 | CS34: 0 | CT34: 0 | CU34: 0 | CV34: 0 | CZ34: 4312.106496 | DA34: 0 | DB34: 0 | DE34: 0 | DF34: 0 | DG34: 0 | DH34: 0 | DI34: 0 | DK34: 0 | DL34: 0 | DN34: 0 | DO34: 0 | DP34: 0 | DQ34: 0 | DR34: 0 | DT34: C | DU34: 15684.25664 | DW34: 0 | DX34: 0 | DY34: 4172 | EA34: 0 | EC34: -139.6604319 | EE34: 0 | EF34: 0 | EH34: 0 | EI34: 0 | EJ34: 0 | EK34: 0 | EL34: 0 | EO34: 0 | EP34: 0 | ER34: 0 | ET34: 0 | EV34: 152 | FA34: 0 | FB34: -48.80228751 | FC34: -3.028738663 | FD34: -48.80228751 | FE34: -3.028738663 | FF34: 0 | FG34: 0 | FH34: 0 | FI34: 0
A35: 1313 | B35: Regular | C35: Distribuição | D35: A3 | E35: Não se aplica | F35: Não se aplica | G35: Não se aplica | H35: EMG | I35: Ponta | J35: DISTRIBUIÇÃO | K35: 2022-03-01 | L35: 2800 | M35: 2800 | N35: 0 | O35: 0 | P35: 0 | Q35: 0 | R35: 33.27 | U35: 93156 | W35: 93156 | X35: 97328 | Y35: 0 | Z35: 0 | AA35: 0 | AB35: 0 | AC35: 0 | AD35: 77474.18065 | AE35: 15684.25664 | AI35: 0 | AJ35: 0 | AK35: 0 | AL35: 0 | AN35: 0 | AO35: 0 | AP35: 0 | AQ35: 0 | AR35: 0 | AU35: 0 | AV35: 0 | AW35: 0 | AZ35: 0 | BB35: 0 | BC35: 0 | BD35: 0 | BE35: 0 | BG35: 0 | BH35: 0 | BI35: 0 | BJ35: 0 | BK35: 0 | BL35: 0 | BV35: 0 | CI35: 97328 | CJ35: 4171.97 | CO35: 4172 | CP35: 0 | CQ35: 31 | CR35: 4312.106496 | CS35: 0 | CT35: 0 | CU35: 0 | CV35: 0 | CZ35: 4312.106496 | DA35: 0 | DB35: 0 | DE35: 0 | DF35: 0 | DG35: 0 | DH35: 0 | DI35: 0 | DK35: 0 | DL35: 0 | DN35: 0 | DO35: 0 | DP35: 0 | DQ35: 0 | DR35: 0 | DT35: C | DU35: 15684.25664 | DW35: 0 | DX35: 0 | DY35: 4172 | EA35: 0 | EC35: -139.6604319 | EE35: 0 | EF35: 0 | EH35: 0 | EI35: 0 | EJ35: 0 | EK35: 0 | EL35: 0 | EO35: 0 | EP35: 0 | ER35: 0 | ET35: 0 | EV35: 152 | FA35: 0 | FB35: -48.80228751 | FC35: -3.028738663 | FD35: -48.80228751 | FE35: -3.028738663 | FF35: 0 | FG35: 0 | FH35: 0 | FI35: 0
A36: 1335 | B36: Regular | C36: Distribuição | D36: A3 | E36: Não se aplica | F36: Não se aplica | G36: Não se aplica | H36: EMG | I36: Ponta | J36: DISTRIBUIÇÃO | K36: 2022-04-01 | L36: 2800 | M36: 2800 | N36: 0 | O36: 0 | P36: 0 | Q36: 0 | R36: 33.27 | U36: 93156 | W36: 93156 | X36: 97328 | Y36: 0 | Z36: 0 | AA36: 0 | AB36: 0 | AC36: 0 | AD36: 77474.18065 | AE36: 15684.25664 | AI36: 0 | AJ36: 0 | AK36: 0 | AL36: 0 | AN36: 0 | AO36: 0 | AP36: 0 | AQ36: 0 | AR36: 0 | AU36: 0 | AV36: 0 | AW36: 0 | AZ36: 0 | BB36: 0 | BC36: 0 | BD36: 0 | BE36: 0 | BG36: 0 | BH36: 0 | BI36: 0 | BJ36: 0 | BK36: 0 | BL36: 0 | BV36: 0 | CI36: 97328 | CJ36: 4171.97 | CO36: 4172 | CP36: 0 | CQ36: 30 | CR36: 4312.106496 | CS36: 0 | CT36: 0 | CU36: 0 | CV36: 0 | CZ36: 4312.106496 | DA36: 0 | DB36: 0 | DE36: 0 | DF36: 0 | DG36: 0 | DH36: 0 | DI36: 0 | DK36: 0 | DL36: 0 | DN36: 0 | DO36: 0 | DP36: 0 | DQ36: 0 | DR36: 0 | DT36: C | DU36: 15684.25664 | DW36: 0 | DX36: 0 | DY36: 4172 | EA36: 0 | EC36: -139.6604319 | EE36: 0 | EF36: 0 | EH36: 0 | EI36: 0 | EJ36: 0 | EK36: 0 | EL36: 0 | EO36: 0 | EP36: 0 | ER36: 0 | ET36: 0 | EV36: 152 | FA36: 0 | FB36: -48.80228751 | FC36: -3.028738663 | FD36: -48.80228751 | FE36: -3.028738663 | FF36: 0 | FG36: 0 | FH36: 0 | FI36: 0
A37: 1357 | B37: PROJETADO | C37: Distribuição | D37: A3 | E37: Não se aplica | F37: Não se aplica | G37: Não se aplica | H37: EMG | I37: Ponta | J37: DISTRIBUIÇÃO | K37: 2022-05-01 | L37: 2800 | M37: 2800 | N37: 0 | O37: 0 | P37: 0 | Q37: 0 | R37: 33.27 | U37: 93156 | W37: 93156 | X37: 97328 | Y37: 0 | Z37: 0 | AA37: 0 | AB37: 0 | AC37: 0 | AD37: 77474.18065 | AE37: 15684.25664 | AI37: 0 | AJ37: 0 | AK37: 0 | AL37: 0 | AN37: 0 | AO37: 0 | AP37: 0 | AQ37: 0 | AR37: 0 | AU37: 0 | AV37: 0 | AW37: 0 | AZ37: 0 | BB37: 0 | BC37: 0 | BD37: 0 | BE37: 0 | BG37: 0 | BH37: 0 | BI37: 0 | BJ37: 0 | BK37: 0 | BL37: 0 | BV37: 0 | CI37: 97328 | CJ37: 4171.97 | CO37: 4172 | CP37: 0 | CQ37: 31 | CR37: 4312.106496 | CS37: 0 | CT37: 0 | CU37: 0 | CV37: 0 | CZ37: 4312.106496 | DA37: 0 | DB37: 0 | DE37: 0 | DF37: 0 | DG37: 0 | DH37: 0 | DI37: 0 | DK37: 0 | DL37: 0 | DN37: 0 | DO37: 0 | DP37: 0 | DQ37: 0 | DR37: 0 | DT37: C | DU37: 15684.25664 | DW37: 0 | DX37: 0 | DY37: 4172 | EA37: 0 | EC37: -139.6604319 | EE37: 0 | EF37: 0 | EH37: 0 | EI37: 0 | EJ37: 0 | EK37: 0 | EL37: 0 | EO37: 0 | EP37: 0 | ER37: 0 | ET37: 0 | EV37: 152 | FA37: 0 | FB37: -48.80228751 | FC37: -3.028738663 | FD37: -48.80228751 | FE37: -3.028738663 | FF37: 0 | FG37: 0 | FH37: 0 | FI37: 0
A38: 43 | B38: Regular | C38: Azul | D38: A4 | E38: Comercial | F38: Não se aplica | G38: Não se aplica | H38: Não se aplica | I38: Fora ponta | J38: CATIVO | K38: 2021-06-01 | L38: 546 | M38: 546 | N38: 151.971 | O38: 151.971 | P38: 151.971 | Q38: 151.971 | R38: 27.4 | S38: 76.24 | T38: 259.46 | U38: 14960.4 | V38: 51016.6647 | W38: 65977.0647 | X38: 66145.72212 | Y38: 0 | Z38: 7981.562254 | AA38: 0 | AB38: 0 | AC38: 0 | AD38: 9189.000278 | AE38: 5771.472441 | AF38: 38526.92428 | AG38: 0 | AH38: 0 | AI38: 0 | AJ38: 0 | AK38: 449.4033039 | AL38: 1416.572946 | AN38: 88.77912907 | AO38: 0 | AP38: 0 | AQ38: 0 | AR38: 0 | AS38: 0 | AT38: 0 | AU38: 0 | AV38: 529.9330179 | AW38: 138.3227073 | AX38: 0 | AY38: 0 | AZ38: 0 | BB38: 2151.717646 | BC38: 0 | BD38: 4.491083828 | BE38: 0 | BF38: 0 | BG38: 1167.884533 | BH38: 60.61191141 | BI38: 0 | BJ38: 0 | BK38: 0 | BL38: 0 | BV38: 39699.2999 | CI38: 66145.3884 | CJ38: 168.2937 | CO38: 284.15538 | CP38: -115.49796 | CQ38: 30 | CR38: -2434.457797 | CS38: 0 | CT38: 0 | CU38: 0 | CV38: 0 | CW38: 0 | CX38: 0 | CY38: 0 | CZ38: 511.4471358 | DA38: 0 | DB38: 0 | DC38: -1986.690701 | DD38: 0 | DE38: 0 | DF38: -0.2315885486 | DG38: -60.22347707 | DH38: 0 | DI38: -902.6745998 | DK38: 0 | DL38: 0 | DM38: 0 | DN38: 0.000289045251 | DO38: 42.02577609 | DP38: -5.970320368 | DQ38: 0 | DR38: -33.09132675 | DU38: 5771.472441 | DV38: 0 | DW38: 60.86907613 | DX38: 0.2571647153 | DY38: -448.34484 | DZ38: -2039.45082 | EA38: 732.50022 | EB38: 1923.95286 | EC38: -51.39206483 | ED38: 2088.174427 | EE38: 0.2434185073 | EF38: 0 | EG38: 0 | EH38: 63.29980036 | EI38: 0 | EJ38: 0 | EK38: 0 | EL38: 0 | EM38: 0 | EN38: 0 | EO38: 0 | EP38: 834.9518393 | EQ38: 486.312723 | ER38: 0 | ES38: -163.9517953 | ET38: 0 | EU38: 0.9510149715 | EV38: 152 | EW38: 0 | EX38: 0 | EY38: 0 | FA38: 0 | FB38: -48.80228751 | FC38: -3.028738663 | FD38: -48.80228751 | FE38: -3.028738663 | FF38: 0 | FG38: 0 | FH38: 0 | FI38: 0
A39: 44 | B39: Refaturamento - Regular | C39: Azul | D39: A4 | E39: Comercial | F39: Não se aplica | G39: Não se aplica | H39: Não se aplica | I39: Fora ponta | J39: CATIVO | K39: 2021-06-01 | L39: -90 | M39: -90 | N39: 0 | O39: 0 | P39: 0 | Q39: 0 | R39: 27.4 | U39: -2466 | W39: -2466 | X39: -2543.4 | Y39: 0 | Z39: 0 | AA39: 0 | AB39: 0 | AC39: 0 | AD39: -1514.670375 | AE39: -951.3416112 | AI39: 0 | AJ39: 0 | AK39: 0 | AL39: 0 | AN39: 0 | AO39: 0 | AP39: 0 | AQ39: 0 | AR39: 0 | AU39: 0 | AV39: 0 | AW39: 0 | AZ39: 0 | BB39: 0 | BC39: 0 | BD39: 0 | BE39: 0 | BG39: 0 | BH39: 0 | BI39: 0 | BJ39: 0 | BK39: 0 | BL39: 0 | BV39: 0 | CI39: -2543.4 | CJ39: -77.43 | CO39: -77.4 | CP39: 0 | CQ39: 30 | CR39: -86.25021372 | CS39: 0 | CT39: 0 | CU39: 0 | CV39: 0 | CZ39: -84.30447293 | DA39: 0 | DB39: 0 | DE39: 0 | DF39: 0 | DG39: 0 | DH39: 0 | DI39: 0 | DK39: 0 | DL39: 0 | DN39: 0 | DO39: 0 | DP39: 0 | DQ39: 0 | DR39: -1.945740786 | DU39: -951.3416112 | DW39: 0 | DX39: 0 | DY39: -77.4 | EA39: 0 | EC39: 8.471219477 | EE39: 0 | EF39: 0 | EH39: 0 | EI39: 0 | EJ39: 0 | EK39: 0 | EL39: 0 | EO39: 0 | EP39: 0 | ER39: 0 | ET39: 0 | EV39: 152 | FA39: 0 | FB39: -48.80228751 | FC39: -3.028738663 | FD39: -48.80228751 | FE39: -3.028738663 | FF39: 0 | FG39: 0 | FH39: 0 | FI39: 0
A40: 45 | B40: Sistema de Compensação | C40: Azul | D40: A4 | E40: Comercial | F40: Não se aplica | G40: Não se aplica | H40: Não se aplica | I40: Fora ponta | J40: CATIVO | K40: 2021-06-01 | L40: 55 | M40: 55 | N40: 16.694 | O40: 16.694 | P40: 16.694 | Q40: 16.694 | R40: 27.4 | S40: 76.24 | T40: 259.46 | U40: 1507 | V40: 5604.1758 | W40: 7111.1758 | X40: 7125.42168 | Y40: 0 | Z40: 876.7738599 | AA40: 0 | AB40: 0 | AC40: 0 | AD40: 925.6318961 | AE40: 581.3754291 | AF40: 4232.178994 | AG40: 0 | AH40: 0 | AI40: 0 | AJ40: 0 | AK40: 49.3669105 | AL40: 155.6104043 | AN40: 9.752378945 | AO40: 0 | AP40: 0 | AQ40: 0 | AR40: 0 | AS40: 0 | AT40: 0 | AU40: 0 | AV40: 58.21309198 | AW40: 15.19473634 | AX40: 0 | AY40: 0 | AZ40: 0 | BB40: 236.3659802 | BC40: 0 | BD40: 0.4933451345 | BE40: 0 | BF40: 0 | BG40: 128.2920057 | BH40: 6.658212746 | BI40: 0 | BJ40: 0 | BK40: 0 | BL40: 0 | BV40: 4360.964345 | CI40: 7124.0868 | CJ40: 12.881 | CO40: 26.93332 | CP40: -12.68744 | CQ40: 30 | CR40: -272.1956007 | CS40: 0 | CT40: 0 | CU40: 0 | CV40: 0 | CW40: 0 | CX40: 0 | CY40: 0 | CZ40: 51.51940013 | DA40: 0 | DB40: 0 | DC40: -218.2377859 | DD40: 0 | DE40: 0 | DF40: -0.0254399802 | DG40: -6.61554327 | DH40: 0 | DI40: -99.15871955 | DK40: 0 | DL40: 0 | DM40: 0 | DN40: 3.175159353e-05 | DO40: 4.616527535 | DP40: -0.6558391287 | DQ40: 0 | DR40: -3.742701251 | DU40: 581.3754291 | DV40: 0 | DW40: 6.686462265 | DX40: 0.0282495197 | DY40: -53.53176 | DZ40: -224.03348 | EA40: 80.46508 | EB40: 211.34604 | EC40: -5.176856347 | ED40: 229.3857636 | EE40: 0.02673950004 | EF40: 0 | EG40: 0 | EH40: 6.953477092 | EI40: 0 | EJ40: 0 | EK40: 0 | EL40: 0 | EM40: 0 | EN40: 0 | EO40: 0 | EP40: 91.7193807 | EQ40: 53.4214067 | ER40: 0 | ES40: -18.01008923 | ET40: 0 | EU40: 0.1044689048 | EV40: 152 | EW40: 0 | EX40: 0 | EY40: 0 | FA40: 0 | FB40: -48.80228751 | FC40: -3.028738663 | FD40: -48.80228751 | FE40: -3.028738663 | FF40: 0 | FG40: 0 | FH40: 0 | FI40: 0
A41: 124 | B41: Regular | C41: Azul | D41: A4 | E41: Comercial | F41: Não se aplica | G41: Não se aplica | H41: Não se aplica | I41: Fora ponta | J41: CATIVO | K41: 2021-07-01 | L41: 546 | M41: 546 | N41: 147.003 | O41: 147.003 | P41: 147.003 | Q41: 147.003 | R41: 27.4 | S41: 76.24 | T41: 259.46 | U41: 14960.4 | V41: 49348.9071 | W41: 64309.3071 | X41: 64487.80116 | Y41: 0 | Z41: 7720.641412 | AA41: 0 | AB41: 0 | AC41: 0 | AD41: 9189.000278 | AE41: 5771.472441 | AF41: 37267.46188 | AG41: 0 | AH41: 0 | AI41: 0 | AJ41: 0 | AK41: 434.7121088 | AL41: 1370.264542 | AN41: 85.87689961 | AO41: 0 | AP41: 0 | AQ41: 0 | AR41: 0 | AS41: 0 | AT41: 0 | AU41: 0 | AV41: 512.6092704 | AW41: 133.8008761 | AX41: 0 | AY41: 0 | AZ41: 0 | BB41: 2081.377033 | BC41: 0 | BD41: 4.344268288 | BE41: 0 | BF41: 0 | BG41: 1129.705865 | BH41: 58.63048091 | BI41: 0 | BJ41: 0 | BK41: 0 | BL41: 0 | BV41: 38401.51202 | CI41: 64486.8 | CJ41: 177.4629 | CO41: 290.21634 | CP41: -111.72228 | CQ41: 31 | CR41: -2337.768963 | CS41: 0 | CT41: 0 | CU41: 0 | CV41: 0 | CW41: 0 | CX41: 0 | CY41: 0 | CZ41: 511.4471358 | DA41: 0 | DB41: 0 | DC41: -1921.744892 | DD41: 0 | DE41: 0 | DF41: -0.2240178153 | DG41: -58.25474466 | DH41: 0 | DI41: -873.1657631 | DK41: 0 | DL41: 0 | DM41: 0 | DN41: 0.0002795962324 | DO41: 40.65193466 | DP41: -5.775147923 | DQ41: 0 | DR41: -31.62367317 | DU41: 5771.472441 | DV41: 0 | DW41: 58.87923879 | DX41: 0.2487578857 | DY41: -418.33812 | DZ41: -1972.78026 | EA41: 708.55446 | EB41: 1861.05798 | EC41: -51.39206483 | ED41: 2019.91107 | EE41: 0.2354610473 | EF41: 0 | EG41: 0 | EH41: 61.23050155 | EI41: 0 | EJ41: 0 | EK41: 0 | EL41: 0 | EM41: 0 | EN41: 0 | EO41: 0 | EP41: 807.65689 | EQ41: 470.4149424 | ER41: 0 | ES41: -158.5921377 | ET41: 0 | EU41: 0.9199258664 | EV41: 152 | EW41: 0 | EX41: 0 | EY41: 0 | FA41: 0 | FB41: -48.80228751 | FC41: -3.028738663 | FD41: -48.80228751 | FE41: -3.028738663 | FF41: 0 | FG41: 0 | FH41: 0 | FI41: 0
A42: 125 | B42: Sistema de Compensação | C42: Azul | D42: A4 | E42: Comercial | F42: Não se aplica | G42: Não se aplica | H42: Não se aplica | I42: Fora ponta | J42: CATIVO | K42: 2021-07-01 | L42: 55 | M42: 55 | N42: 17.12 | O42: 17.12 | P42: 17.12 | Q42: 17.12 | R42: 27.4 | S42: 76.24 | T42: 259.46 | U42: 1507 | V42: 5747.184 | W42: 7254.184 | X42: 7267.5864 | Y42: 0 | Z42: 899.147507 | AA42: 0 | AB42: 0 | AC42: 0 | AD42: 925.6318961 | AE42: 581.3754291 | AF42: 4340.176373 | AG42: 0 | AH42: 0 | AI42: 0 | AJ42: 0 | AK42: 50.62666273 | AL42: 159.581294 | AN42: 10.00124162 | AO42: 0 | AP42: 0 | AQ42: 0 | AR42: 0 | AS42: 0 | AT42: 0 | AU42: 0 | AV42: 59.69858241 | AW42: 15.5824779 | AX42: 0 | AY42: 0 | AZ42: 0 | BB42: 242.3976028 | BC42: 0 | BD42: 0.5059343897 | BE42: 0 | BF42: 0 | BG42: 131.5657803 | BH42: 6.828118019 | BI42: 0 | BJ42: 0 | BK42: 0 | BL42: 0 | BV42: 4472.248088 | CI42: 7267.5864 | CJ42: 13.3724 | CO42: 26.4136 | CP42: -13.0112 | CQ42: 31 | CR42: -280.4865515 | CS42: 0 | CT42: 0 | CU42: 0 | CV42: 0 | CW42: 0 | CX42: 0 | CY42: 0 | CZ42: 51.51940013 | DA42: 0 | DB42: 0 | DC42: -223.8068105 | DD42: 0 | DE42: 0 | DF42: -0.02608916144 | DG42: -6.784359697 | DH42: 0 | DI42: -101.6890666 | DK42: 0 | DL42: 0 | DM42: 0 | DN42: 3.256183547e-05 | DO42: 4.734332778 | DP42: -0.6725749301 | DQ42: 0 | DR42: -3.868550772 | DU42: 581.3754291 | DV42: 0 | DW42: 6.857088414 | DX42: 0.02897039518 | DY42: -56.1048 | DZ42: -229.7504 | EA42: 82.5184 | EB42: 216.7392 | EC42: -5.176856347 | ED42: 235.239264 | EE42: 0.02742184262 | EF42: 0 | EG42: 0 | EH42: 7.130916965 | EI42: 0 | EJ42: 0 | EK42: 0 | EL42: 0 | EM42: 0 | EN42: 0 | EO42: 0 | EP42: 94.05988964 | EQ42: 54.78462218 | ER42: 0 | ES42: -18.4696734 | ET42: 0 | EU42: 0.107134758 | EV42: 152 | EW42: 0 | EX42: 0 | EY42: 0 | FA42: 0 | FB42: -48.80228751 | FC42: -3.028738663 | FD42: -48.80228751 | FE42: -3.028738663 | FF42: 0 | FG42: 0 | FH42: 0 | FI42: 0
A43: 207 | B43: Regular | C43: Azul | D43: A4 | E43: Comercial | F43: Não se aplica | G43: Não se aplica | H43: Não se aplica | I43: Fora ponta | J43: CATIVO | K43: 2021-08-01 | L43: 546 | M43: 546 | N43: 153.77 | O43: 153.77 | P43: 153.77 | Q43: 153.77 | R43: 27.4 | S43: 76.24 | T43: 259.46 | U43: 14960.4 | V43: 51620.589 | W43: 66580.989 | X43: 66746.0844 | Y43: 0 | Z43: 8076.04627 | AA43: 0 | AB43: 0 | AC43: 0 | AD43: 9189.000278 | AE43: 5771.472441 | AF43: 38982.99772 | AG43: 0 | AH43: 0 | AI43: 0 | AJ43: 0 | AK43: 454.7232435 | AL43: 1433.342032 | AN43: 89.83007729 | AO43: 0 | AP43: 0 | AQ43: 0 | AR43: 0 | AS43: 0 | AT43: 0 | AU43: 0 | AV43: 536.206251 | AW43: 139.9601418 | AX43: 0 | AY43: 0 | AZ43: 0 | BB43: 2177.189216 | BC43: 0 | BD43: 4.544248312 | BE43: 0 | BF43: 0 | BG43: 1181.709699 | BH43: 61.32942218 | BI43: 0 | BJ43: 0 | BK43: 0 | BL43: 0 | BV43: 40169.25167 | CI43: 66746.0844 | CJ43: 165.0654 | CO43: 281.9606 | CP43: -116.8652 | CQ43: 31 | CR43: -2469.470521 | CS43: 0 | CT43: 0 | CU43: 0 | CV43: 0 | CW43: 0 | CX43: 0 | CY43: 0 | CZ43: 511.4471358 | DA43: 0 | DB43: 0 | DC43: -2010.208718 | DD43: 0 | DE43: 0 | DF43: -0.234330044 | DG43: -60.93638964 | DH43: 0 | DI43: -913.3602674 | DK43: 0 | DL43: 0 | DM43: 0 | DN43: 0.0002924669066 | DO43: 42.52326819 | DP43: -6.040995736 | DQ43: 0 | DR43: -33.62278987 | DU43: 5771.472441 | DV43: 0 | DW43: 61.58963116 | DX43: 0.2602089759 | DY43: -459.2108 | DZ43: -2063.5934 | EA43: 741.1714 | EB43: 1946.7282 | EC43: -51.39206483 | ED43: 2112.893786 | EE43: 0.2463000432 | EF43: 0 | EG43: 0 | EH43: 64.04912977 | EI43: 0 | EJ43: 0 | EK43: 0 | EL43: 0 | EM43: 0 | EN43: 0 | EO43: 0 | EP43: 844.8358195 | EQ43: 492.0695883 | ER43: 0 | ES43: -165.8926214 | ET43: 0 | EU43: 0.9622728821 | EV43: 152 | EW43: 0 | EX43: 0 | EY43: 0 | FA43: 0 | FB43: -48.80228751 | FC43: -3.028738663 | FD43: -48.80228751 | FE43: -3.028738663 | FF43: 0 | FG43: 0 | FH43: 0 | FI43: 0
A44: 208 | B44: Sistema de Compensação | C44: Azul | D44: A4 | E44: Comercial | F44: Não se aplica | G44: Não se aplica | H44: Não se aplica | I44: Fora ponta | J44: CATIVO | K44: 2021-08-01 | L44: 64 | M44: 64 | N44: 20.384 | O44: 20.384 | P44: 20.384 | Q44: 20.384 | R44: 27.4 | S44: 76.24 | T44: 259.46 | U44: 1753.6 | V44: 6842.9088 | W44: 8596.5088 | X44: 8611.18848 | Y44: 0 | Z44: 1070.573761 | AA44: 0 | AB44: 0 | AC44: 0 | AD44: 1077.098934 | AE44: 676.5095902 | AF44: 5167.649252 | AG44: 0 | AH44: 0 | AI44: 0 | AJ44: 0 | AK44: 60.2788489 | AL44: 190.0061389 | AN44: 11.90802039 | AO44: 0 | AP44: 0 | AQ44: 0 | AR44: 0 | AS44: 0 | AT44: 0 | AU44: 0 | AV44: 71.08036821 | AW44: 18.55334285 | AX44: 0 | AY44: 0 | AZ44: 0 | BB44: 288.6117252 | BC44: 0 | BD44: 0.6023929089 | BE44: 0 | BF44: 0 | BG44: 156.6493497 | BH44: 8.129927435 | BI44: 0 | BJ44: 0 | BK44: 0 | BL44: 0 | BV44: 5324.900995 | CI44: 8609.8536 | CJ44: 13.3148 | CO44: 30.17152 | CP44: -15.49184 | CQ44: 31 | CR44: -335.3865611 | CS44: 0 | CT44: 0 | CU44: 0 | CV44: 0 | CW44: 0 | CX44: 0 | CY44: 0 | CZ44: 59.94984742 | DA44: 0 | DB44: 0 | DC44: -266.4765201 | DD44: 0 | DE44: 0 | DF44: -0.03106316978 | DG44: -8.077826406 | DH44: 0 | DI44: -121.0765149 | DK44: 0 | DL44: 0 | DM44: 0 | DN44: 3.876988634e-05 | DO44: 5.636953233 | DP44: -0.8008041691 | DQ44: 0 | DR44: -4.638232185 | DU44: 676.5095902 | DV44: 0 | DW44: 8.164421158 | DX44: 0.03449372286 | DY44: -68.07936 | DZ44: -273.55328 | EA44: 98.25088 | EB44: 258.06144 | EC44: -6.023978295 | ED44: 280.088619 | EE44: 0.03264993224 | EF44: 0 | EG44: 0 | EH44: 8.490456274 | EI44: 0 | EJ44: 0 | EK44: 0 | EL44: 0 | EM44: 0 | EN44: 0 | EO44: 0 | EP44: 111.9928032 | EQ44: 65.2295408 | ER44: 0 | ES44: -21.99099431 | ET44: 0 | EU44: 0.1275604502 | EV44: 152 | EW44: 0 | EX44: 0 | EY44: 0 | FA44: 0 | FB44: -48.80228751 | FC44: -3.028738663 | FD44: -48.80228751 | FE44: -3.028738663 | FF44: 0 | FG44: 0 | FH44: 0 | FI44: 0
A45: 287 | B45: Regular | C45: Azul | D45: A4 | E45: Comercial | F45: Não se aplica | G45: Não se aplica | H45: Não se aplica | I45: Fora ponta | J45: CATIVO | K45: 2021-09-01 | L45: 546 | M45: 546 | N45: 160.695 | O45: 160.695 | P45: 160.695 | Q45: 160.695 | R45: 27.4 | S45: 76.24 | T45: 259.46 | U45: 14960.4 | V45: 53945.3115 | W45: 68905.7115 | X45: 69057.0954 | Y45: 0 | Z45: 8439.749336 | AA45: 0 | AB45: 0 | AC45: 0 | AD45: 9189.000278 | AE45: 5771.472441 | AF45: 40738.58892 | AG45: 0 | AH45: 0 | AI45: 0 | AJ45: 0 | AK45: 475.2016103 | AL45: 1497.892292 | AN45: 93.87555616 | AO45: 0 | AP45: 0 | AQ45: 0 | AR45: 0 | AS45: 0 | AT45: 0 | AU45: 0 | AV45: 560.3541881 | AW45: 146.2632177 | AX45: 0 | AY45: 0 | AZ45: 0 | BB45: 2275.23848 | BC45: 0 | BD45: 4.748897591 | BE45: 0 | BF45: 0 | BG45: 1234.92775 | BH45: 64.09137997 | BI45: 0 | BJ45: 0 | BK45: 0 | BL45: 0 | BV45: 41978.26557 | CI45: 69058.764 | CJ45: 153.0225 | CO45: 273.5121 | CP45: -122.1282 | CQ45: 30 | CR45: -2604.247126 | CS45: 0 | CT45: 0 | CU45: 0 | CV45: 0 | CW45: 0 | CX45: 0 | CY45: 0 | CZ45: 511.4471358 | DA45: 0 | DB45: 0 | DC45: -2100.73805 | DD45: 0 | DE45: 0 | DF45: -0.2448830489 | DG45: -63.68064728 | DH45: 0 | DI45: -954.4932573 | DK45: 0 | DL45: 0 | DM45: 0 | DN45: 0.0003056380928 | DO45: 44.43829473 | DP45: -6.313050724 | DQ45: 0 | DR45: -35.66858315 | DU45: 5771.472441 | DV45: 0 | DW45: 64.3633074 | DX45: 0.2719274331 | DY45: -501.0378 | DZ45: -2156.5269 | EA45: 774.5499 | EB45: 2034.3987 | EC45: -51.39206483 | ED45: 2208.047519 | EE45: 0.2573921145 | EF45: 0 | EG45: 0 | EH45: 66.93356902 | EI45: 0 | EJ45: 0 | EK45: 0 | EL45: 0 | EM45: 0 | EN45: 0 | EO45: 0 | EP45: 882.8828251 | EQ45: 514.22984 | ER45: 0 | ES45: -173.3635611 | ET45: 0 | EU45: 1.005608641 | EV45: 152 | EW45: 0 | EX45: 0 | EY45: 0 | FA45: 0 | FB45: -48.80228751 | FC45: -3.028738663 | FD45: -48.80228751 | FE45: -3.028738663 | FF45: 0 | FG45: 0 | FH45: 0 | FI45: 0
A46: 288 | B46: Sistema de Compensação | C46: Azul | D46: A4 | E46: Comercial | F46: Não se aplica | G46: Não se aplica | H46: Não se aplica | I46: Fora ponta | J46: CATIVO | K46: 2021-09-01 | L46: 55 | M46: 55 | N46: 12.909 | O46: 12.909 | P46: 12.909 | Q46: 12.909 | R46: 27.4 | S46: 76.24 | T46: 259.46 | U46: 1507 | V46: 4333.5513 | W46: 5840.5513 | X46: 5862.29148 | Y46: 0 | Z46: 677.9845308 | AA46: 0 | AB46: 0 | AC46: 0 | AD46: 925.6318961 | AE46: 581.3754291 | AF46: 3272.624813 | AG46: 0 | AH46: 0 | AI46: 0 | AJ46: 0 | AK46: 38.17404143 | AL46: 120.3291428 | AN46: 7.541239954 | AO46: 0 | AP46: 0 | AQ46: 0 | AR46: 0 | AS46: 0 | AT46: 0 | AU46: 0 | AV46: 45.01454441 | AW46: 11.74966164 | AX46: 0 | AY46: 0 | AZ46: 0 | BB46: 182.775155 | BC46: 0 | BD46: 0.381489897 | BE46: 0 | BF46: 0 | BG46: 99.20459454 | BH46: 5.148608382 | BI46: 0 | BJ46: 0 | BK46: 0 | BL46: 0 | BV46: 3372.210898 | CI46: 5862.6252 | CJ46: 22.0439 | CO46: 31.55102 | CP46: -9.81084 | CQ46: 30 | CR46: -198.5306981 | CS46: 0 | CT46: 0 | CU46: 0 | CV46: 0 | CW46: 0 | CX46: 0 | CY46: 0 | CZ46: 51.51940013 | DA46: 0 | DB46: 0 | DC46: -168.757133 | DD46: 0 | DE46: 0 | DF46: -0.01967202015 | DG46: -5.115613279 | DH46: 0 | DI46: -76.67664494 | DK46: 0 | DL46: 0 | DM46: 0 | DN46: 2.455261297e-05 | DO46: 3.569830715 | DP46: -0.507141926 | DQ46: 0 | DR46: -2.624531203 | DU46: 581.3754291 | DV46: 0 | DW46: 5.17045294 | DX46: 0.02184455791 | DY46: -30.67036 | DZ46: -173.23878 | EA46: 62.22138 | EB46: 163.42794 | EC46: -5.176856347 | ED46: 177.3775502 | EE46: 0.02067690224 | EF46: 0 | EG46: 0 | EH46: 5.376927985 | EI46: 0 | EJ46: 0 | EK46: 0 | EL46: 0 | EM46: 0 | EN46: 0 | EO46: 0 | EP46: 70.92401375 | EQ46: 41.30926914 | ER46: 0 | ES46: -13.92669474 | ET46: 0 | EU46: 0.08078286164 | EV46: 152 | EW46: 0 | EX46: 0 | EY46: 0 | FA46: 0 | FB46: -48.80228751 | FC46: -3.028738663 | FD46: -48.80228751 | FE46: -3.028738663 | FF46: 0 | FG46: 0 | FH46: 0 | FI46: 0
A47: 375 | B47: Regular | C47: Azul | D47: A4 | E47: Comercial | F47: Não se aplica | G47: Não se aplica | H47: Não se aplica | I47: Fora ponta | J47: CATIVO | K47: 2021-10-01 | L47: 547 | M47: 547 | N47: 169.801 | O47: 169.801 | P47: 169.801 | Q47: 169.801 | R47: 27.4 | S47: 76.24 | T47: 259.46 | U47: 14987.8 | V47: 57002.1957 | W47: 71989.9957 | X47: 72124.20972 | Y47: 0 | Z47: 8917.999172 | AA47: 0 | AB47: 0 | AC47: 0 | AD47: 9205.829949 | AE47: 5782.042904 | AF47: 43047.09628 | AG47: 0 | AH47: 0 | AI47: 0 | AJ47: 0 | AK47: 502.1295537 | AL47: 1582.772389 | AN47: 99.1951418 | AO47: 0 | AP47: 0 | AQ47: 0 | AR47: 0 | AS47: 0 | AT47: 0 | AU47: 0 | AV47: 592.1074177 | AW47: 154.5514212 | AX47: 0 | AY47: 0 | AZ47: 0 | BB47: 2404.167953 | BC47: 0 | BD47: 5.01800031 | BE47: 0 | BF47: 0 | BG47: 1304.906604 | BH47: 67.72320489 | BI47: 0 | BJ47: 0 | BK47: 0 | BL47: 0 | BV47: 44357.02089 | CI47: 72123.876 | CJ47: 133.8503 | CO47: 263.26278 | CP47: -129.04876 | CQ47: 31 | CR47: -2780.512728 | CS47: 0 | CT47: 0 | CU47: 0 | CV47: 0 | CW47: 0 | CX47: 0 | CY47: 0 | CZ47: 512.3838522 | DA47: 0 | DB47: 0 | DC47: -2219.779219 | DD47: 0 | DE47: 0 | DF47: -0.2587596788 | DG47: -67.28919748 | DH47: 0 | DI47: -1008.580912 | DK47: 0 | DL47: 0 | DM47: 0 | DN47: 0.0003229574897 | DO47: 46.95645094 | DP47: -6.670788301 | DQ47: 0 | DR47: -38.33707119 | DU47: 5782.042904 | DV47: 0 | DW47: 68.01054146 | DX47: 0.2873365697 | DY47: -555.17804 | DZ47: -2278.72942 | EA47: 818.44082 | EB47: 2149.68066 | EC47: -51.48618949 | ED47: 2333.169525 | EE47: 0.2719775875 | EF47: 0 | EG47: 0 | EH47: 70.72645044 | EI47: 0 | EJ47: 0 | EK47: 0 | EL47: 0 | EM47: 0 | EN47: 0 | EO47: 0 | EP47: 932.9125772 | EQ47: 543.3693709 | ER47: 0 | ES47: -183.1874423 | ET47: 0 | EU47: 1.062592818 | EV47: 152 | EW47: 0 | EX47: 0 | EY47: 0 | FA47: 0 | FB47: -48.80228751 | FC47: -3.028738663 | FD47: -48.80228751 | FE47: -3.028738663 | FF47: 0 | FG47: 0 | FH47: 0 | FI47: 0
A48: 376 | B48: Sistema de Compensação | C48: Azul | D48: A4 | E48: Comercial | F48: Não se aplica | G48: Não se aplica | H48: Não se aplica | I48: Fora ponta | J48: CATIVO | K48: 2021-10-01 | L48: 55 | M48: 55 | N48: 13.03 | O48: 13.03 | P48: 13.03 | Q48: 13.03 | R48: 27.4 | S48: 76.24 | T48: 259.46 | U48: 1507 | V48: 4374.171 | W48: 5881.171 | X48: 5902.6716 | Y48: 0 | Z48: 684.3394869 | AA48: 0 | AB48: 0 | AC48: 0 | AD48: 925.6318961 | AE48: 581.3754291 | AF48: 3303.300125 | AG48: 0 | AH48: 0 | AI48: 0 | AJ48: 0 | AK48: 38.53185838 | AL48: 121.4570246 | AN48: 7.6119263 | AO48: 0 | AP48: 0 | AQ48: 0 | AR48: 0 | AS48: 0 | AT48: 0 | AU48: 0 | AV48: 45.43647948 | AW48: 11.85979481 | AX48: 0 | AY48: 0 | AZ48: 0 | BB48: 184.4883624 | BC48: 0 | BD48: 0.3850657183 | BE48: 0 | BF48: 0 | BG48: 100.1344695 | BH48: 5.196867861 | BI48: 0 | BJ48: 0 | BK48: 0 | BL48: 0 | BV48: 3403.819661 | CI48: 5902.6716 | CJ48: 21.4706 | CO48: 31.4034 | CP48: -9.9028 | CQ48: 31 | CR48: -200.8856395 | CS48: 0 | CT48: 0 | CU48: 0 | CV48: 0 | CW48: 0 | CX48: 0 | CY48: 0 | CZ48: 51.51940013 | DA48: 0 | DB48: 0 | DC48: -170.3389451 | DD48: 0 | DE48: 0 | DF48: -0.019856412 | DG48: -5.163563484 | DH48: 0 | DI48: -77.39535855 | DK48: 0 | DL48: 0 | DM48: 0 | DN48: 2.478275211e-05 | DO48: 3.603291828 | DP48: -0.5118955221 | DQ48: 0 | DR48: -2.660277194 | DU48: 581.3754291 | DV48: 0 | DW48: 5.218917175 | DX48: 0.02204931362 | DY48: -31.4012 | DZ48: -174.8626 | EA48: 62.8046 | EB48: 164.9598 | EC48: -5.176856347 | ED48: 179.0401641 | EE48: 0.02087071316 | EF48: 0 | EG48: 0 | EH48: 5.427327573 | EI48: 0 | EJ48: 0 | EK48: 0 | EL48: 0 | EM48: 0 | EN48: 0 | EO48: 0 | EP48: 71.58880619 | EQ48: 41.69647354 | ER48: 0 | ES48: -14.0572339 | ET48: 0 | EU48: 0.08154006408 | EV48: 152 | EW48: 0 | EX48: 0 | EY48: 0 | FA48: 0 | FB48: -48.80228751 | FC48: -3.028738663 | FD48: -48.80228751 | FE48: -3.028738663 | FF48: 0 | FG48: 0 | FH48: 0 | FI48: 0
A49: 454 | B49: Regular | C49: Azul | D49: A4 | E49: Comercial | F49: Não se aplica | G49: Não se aplica | H49: Não se aplica | I49: Fora ponta | J49: CATIVO | K49: 2021-11-01 | L49: 546 | M49: 546 | N49: 160.877 | O49: 160.877 | P49: 160.877 | Q49: 160.877 | R49: 27.4 | S49: 76.24 | T49: 259.46 | U49: 14960.4 | V49: 54006.4089 | W49: 68966.8089 | X49: 69117.83244 | Y49: 0 | Z49: 8449.30803 | AA49: 0 | AB49: 0 | AC49: 0 | AD49: 9189.000278 | AE49: 5771.472441 | AF49: 40784.72865 | AG49: 0 | AH49: 0 | AI49: 0 | AJ49: 0 | AK49: 475.7398143 | AL49: 1499.588776 | AN49: 93.98187777 | AO49: 0 | AP49: 0 | AQ49: 0 | AR49: 0 | AS49: 0 | AT49: 0 | AU49: 0 | AV49: 560.9888342 | AW49: 146.4288725 | AX49: 0 | AY49: 0 | AZ49: 0 | BB49: 2277.81537 | BC49: 0 | BD49: 4.754276099 | BE49: 0 | BF49: 0 | BG49: 1236.326404 | BH49: 64.1639686 | BI49: 0 | BJ49: 0 | BK49: 0 | BL49: 0 | BV49: 42025.80933 | CI49: 69118.8336 | CJ49: 151.9947 | CO49: 273.29006 | CP49: -122.26652 | CQ49: 30 | CR49: -2607.78927 | CS49: 0 | CT49: 0 | CU49: 0 | CV49: 0 | CW49: 0 | CX49: 0 | CY49: 0 | CZ49: 511.4471358 | DA49: 0 | DB49: 0 | DC49: -2103.117304 | DD49: 0 | DE49: 0 | DF49: -0.2451603986 | DG49: -63.75277073 | DH49: 0 | DI49: -955.5742976 | DK49: 0 | DL49: 0 | DM49: 0 | DN49: 0.0003059842526 | DO49: 44.48862467 | DP49: -6.320200761 | DQ49: 0 | DR49: -35.72234985 | DU49: 5771.472441 | DV49: 0 | DW49: 64.43620402 | DX49: 0.2722354127 | DY49: -502.13708 | DZ49: -2158.96934 | EA49: 775.42714 | EB49: 2036.70282 | EC49: -51.39206483 | ED49: 2210.54831 | EE49: 0.2576836317 | EF49: 0 | EG49: 0 | EH49: 67.00937667 | EI49: 0 | EJ49: 0 | EK49: 0 | EL49: 0 | EM49: 0 | EN49: 0 | EO49: 0 | EP49: 883.8827608 | EQ49: 514.8122466 | ER49: 0 | ES49: -173.5599093 | ET49: 0 | EU49: 1.006747574 | EV49: 152 | EW49: 0 | EX49: 0 | EY49: 0 | FA49: 0 | FB49: -48.80228751 | FC49: -3.028738663 | FD49: -48.80228751 | FE49: -3.028738663 | FF49: 0 | FG49: 0 | FH49: 0 | FI49: 0
A50: 455 | B50: Sistema de Compensação | C50: Azul | D50: A4 | E50: Comercial | F50: Não se aplica | G50: Não se aplica | H50: Não se aplica | I50: Fora ponta | J50: CATIVO | K50: 2021-11-01 | L50: 55 | M50: 55 | N50: 11.657 | O50: 11.657 | P50: 11.657 | Q50: 11.657 | R50: 27.4 | S50: 76.24 | T50: 259.46 | U50: 1507 | V50: 3913.2549 | W50: 5420.2549 | X50: 5444.47404 | Y50: 0 | Z50: 612.2291173 | AA50: 0 | AB50: 0 | AC50: 0 | AD50: 925.6318961 | AE50: 581.3754291 | AF50: 2955.224065 | AG50: 0 | AH50: 0 | AI50: 0 | AJ50: 0 | AK50: 34.471671 | AL50: 108.6588285 | AN50: 6.809840743 | AO50: 0 | AP50: 0 | AQ50: 0 | AR50: 0 | AS50: 0 | AT50: 0 | AU50: 0 | AV50: 40.64873686 | AW50: 10.61010192 | AX50: 0 | AY50: 0 | AZ50: 0 | BB50: 165.0484145 | BC50: 0 | BD50: 0.3444904895 | BE50: 0 | BF50: 0 | BG50: 89.58307836 | BH50: 4.649262368 | BI50: 0 | BJ50: 0 | BK50: 0 | BL50: 0 | BV50: 3045.151633 | CI50: 5445.4752 | CJ50: 25.1903 | CO50: 33.07846 | CP50: -8.85932 | CQ50: 30 | CR50: -174.1638663 | CS50: 0 | CT50: 0 | CU50: 0 | CV50: 0 | CW50: 0 | CX50: 0 | CY50: 0 | CZ50: 51.51940013 | DA50: 0 | DB50: 0 | DC50: -152.3899527 | DD50: 0 | DE50: 0 | DF50: -0.01776409783 | DG50: -4.619467347 | DH50: 0 | DI50: -69.24003796 | DK50: 0 | DL50: 0 | DM50: 0 | DN50: 2.217133856e-05 | DO50: 3.223604976 | DP50: -0.4579559556 | DQ50: 0 | DR50: -2.254663595 | DU50: 581.3754291 | DV50: 0 | DW50: 4.668988297 | DX50: 0.01972592854 | DY50: -23.10828 | DZ50: -156.43694 | EA50: 56.18674 | EB50: 147.57762 | EC50: -5.176856347 | ED50: 160.1743049 | EE50: 0.01867151983 | EF50: 0 | EG50: 0 | EH50: 4.855438029 | EI50: 0 | EJ50: 0 | EK50: 0 | EL50: 0 | EM50: 0 | EN50: 0 | EO50: 0 | EP50: 64.0453349 | EQ50: 37.30282364 | ER50: 0 | ES50: -12.57599198 | ET50: 0 | EU50: 0.07294800667 | EV50: 152 | EW50: 0 | EX50: 0 | EY50: 0 | FA50: 0 | FB50: -48.80228751 | FC50: -3.028738663 | FD50: -48.80228751 | FE50: -3.028738663 | FF50: 0 | FG50: 0 | FH50: 0 | FI50: 0
A51: 543 | B51: Regular | C51: Azul | D51: A4 | E51: Comercial | F51: Não se aplica | G51: Não se aplica | H51: Não se aplica | I51: Fora ponta | J51: CATIVO | K51: 2021-12-01 | L51: 546 | M51: 546 | N51: 175.265 | O51: 175.265 | P51: 175.265 | Q51: 175.265 | R51: 27.4 | S51: 76.24 | T51: 259.46 | U51: 14960.4 | V51: 58836.4605 | W51: 73796.8605 | X51: 73919.3958 | Y51: 0 | Z51: 9204.970082 | AA51: 0 | AB51: 0 | AC51: 0 | AD51: 9189.000278 | AE51: 5771.472441 | AF51: 44432.30211 | AG51: 0 | AH51: 0 | AI51: 0 | AJ51: 0 | AK51: 518.2875026 | AL51: 1633.704176 | AN51: 102.3871269 | AO51: 0 | AP51: 0 | AQ51: 0 | AR51: 0 | AS51: 0 | AT51: 0 | AU51: 0 | AV51: 611.1607503 | AW51: 159.5247073 | AX51: 0 | AY51: 0 | AZ51: 0 | BB51: 2481.5313 | BC51: 0 | BD51: 5.179473762 | BE51: 0 | BF51: 0 | BG51: 1346.896991 | BH51: 69.90245938 | BI51: 0 | BJ51: 0 | BK51: 0 | BL51: 0 | BV51: 45784.37857 | CI51: 73921.0644 | CJ51: 124.1739 | CO51: 255.7367 | CP51: -133.2014 | CR51: -2887.813211 | CS51: 0 | CT51: 0 | CU51: 0 | CV51: 0 | CW51: 0 | CX51: 0 | CY51: 0 | CZ51: 511.4471358 | DA51: 0 | DB51: 0 | DC51: -2291.209149 | DD51: 0 | DE51: 0 | DF51: -0.2670862663 | DG51: -69.45448612 | DH51: 0 | DI51: -1041.03588 | DK51: 0 | DL51: 0 | DM51: 0 | DN51: 0.0003333498886 | DO51: 48.46745528 | DP51: -6.885446561 | DQ51: 0 | DR51: -39.97287313 | DU51: 5771.472441 | DV51: 0 | DW51: 70.19904211 | DX51: 0.2965827285 | DY51: -589.0406 | DZ51: -2352.0563 | EA51: 844.7773 | EB51: 2218.8549 | EC51: -51.39206483 | ED51: 2408.248224 | EE51: 0.2807295121 | EF51: 0 | EG51: 0 | EH51: 73.0023459 | EI51: 0 | EJ51: 0 | EK51: 0 | EL51: 0 | EM51: 0 | EN51: 0 | EO51: 0 | EP51: 962.932626 | EQ51: 560.8543695 | ER51: 0 | ES51: -189.0822026 | ET51: 0 | EU51: 1.096785827 | EV51: 152 | EW51: 0 | EX51: 0 | EY51: 0 | FA51: 0 | FB51: -48.80228751 | FC51: -3.028738663 | FD51: -48.80228751 | FE51: -3.028738663 | FF51: 0 | FG51: 0 | FH51: 0 | FI51: 0
A52: 544 | B52: Sistema de Compensação | C52: Azul | D52: A4 | E52: Comercial | F52: Não se aplica | G52: Não se aplica | H52: Não se aplica | I52: Fora ponta | J52: CATIVO | K52: 2021-12-01 | L52: 55 | M52: 55 | N52: 11.667 | O52: 11.667 | P52: 11.667 | Q52: 11.667 | R52: 27.4 | S52: 76.24 | T52: 259.46 | U52: 1507 | V52: 3916.6119 | W52: 5423.6119 | X52: 5447.81124 | Y52: 0 | Z52: 612.7543203 | AA52: 0 | AB52: 0 | AC52: 0 | AD52: 925.6318961 | AE52: 581.3754291 | AF52: 2957.759214 | AG52: 0 | AH52: 0 | AI52: 0 | AJ52: 0 | AK52: 34.50124265 | AL52: 108.7520419 | AN52: 6.815682589 | AO52: 0 | AP52: 0 | AQ52: 0 | AR52: 0 | AS52: 0 | AT52: 0 | AU52: 0 | AV52: 40.68360753 | AW52: 10.61920384 | AX52: 0 | AY52: 0 | AZ52: 0 | BB52: 165.1900018 | BC52: 0 | BD52: 0.344786012 | BE52: 0 | BF52: 0 | BG52: 89.65992753 | BH52: 4.653250755 | BI52: 0 | BJ52: 0 | BK52: 0 | BL52: 0 | BV52: 3047.763928 | CI52: 5448.8124 | CJ52: 25.1705 | CO52: 33.06626 | CP52: -8.86692 | CR52: -174.3584896 | CS52: 0 | CT52: 0 | CU52: 0 | CV52: 0 | CW52: 0 | CX52: 0 | CY52: 0 | CZ52: 51.51940013 | DA52: 0 | DB52: 0 | DC52: -152.5206809 | DD52: 0 | DE52: 0 | DF52: -0.01777933683 | DG52: -4.623430174 | DH52: 0 | DI52: -69.29943578 | DK52: 0 | DL52: 0 | DM52: 0 | DN52: 2.219035832e-05 | DO52: 3.226370358 | DP52: -0.4583488148 | DQ52: 0 | DR52: -2.257617809 | DU52: 581.3754291 | DV52: 0 | DW52: 4.672993605 | DX52: 0.0197428505 | DY52: -23.16868 | DZ52: -156.57114 | EA52: 56.23494 | EB52: 147.70422 | EC52: -5.176856347 | ED52: 160.311711 | EE52: 0.01868753726 | EF52: 0 | EG52: 0 | EH52: 4.859603285 | EI52: 0 | EJ52: 0 | EK52: 0 | EL52: 0 | EM52: 0 | EN52: 0 | EO52: 0 | EP52: 64.10027643 | EQ52: 37.334824 | ER52: 0 | ES52: -12.58678035 | ET52: 0 | EU52: 0.07301058539 | EV52: 152 | EW52: 0 | EX52: 0 | EY52: 0 | FA52: 0 | FB52: -48.80228751 | FC52: -3.028738663 | FD52: -48.80228751 | FE52: -3.028738663 | FF52: 0 | FG52: 0 | FH52: 0 | FI52: 0
A53: 624 | B53: Regular | C53: Azul | D53: A4 | E53: Comercial | F53: Não se aplica | G53: Não se aplica | H53: Não se aplica | I53: Fora ponta | J53: CATIVO | K53: 2022-01-01 | L53: 546 | M53: 546 | N53: 179.198 | O53: 179.198 | P53: 179.198 | Q53: 179.198 | R53: 27.4 | S53: 76.24 | T53: 259.46 | U53: 14960.4 | V53: 60156.7686 | W53: 75117.1686 | X53: 75231.91656 | Y53: 0 | Z53: 9411.532416 | AA53: 0 | AB53: 0 | AC53: 0 | AD53: 9189.000278 | AE53: 5771.472441 | AF53: 45429.37651 | AG53: 0 | AH53: 0 | AI53: 0 | AJ53: 0 | AK53: 529.918032 | AL53: 1670.364996 | AN53: 104.6847252 | AO53: 0 | AP53: 0 | AQ53: 0 | AR53: 0 | AS53: 0 | AT53: 0 | AU53: 0 | AV53: 624.8753838 | AW53: 163.1044904 | AX53: 0 | AY53: 0 | AZ53: 0 | BB53: 2537.217618 | BC53: 0 | BD53: 5.295702732 | BE53: 0 | BF53: 0 | BG53: 1377.12177 | BH53: 71.47109186 | BI53: 0 | BJ53: 0 | BK53: 0 | BL53: 0 | BV53: 46811.79398 | CI53: 75232.584 | CJ53: 115.3854 | CO53: 250.93844 | CP53: -136.19048 | CQ53: 31 | CR53: -2964.358538 | CS53: 0 | CT53: 0 | CU53: 0 | CV53: 0 | CW53: 0 | CX53: 0 | CY53: 0 | CZ53: 511.4471358 | DA53: 0 | DB53: 0 | DC53: -2342.624581 | DD53: 0 | DE53: 0 | DF53: -0.2730797635 | DG53: -71.01306595 | DH53: 0 | DI53: -1064.397042 | DK53: 0 | DL53: 0 | DM53: 0 | DN53: 0.0003408303617 | DO53: 49.55507974 | DP53: -7.03995808 | DQ53: 0 | DR53: -41.13476555 | DU53: 5771.472441 | DV53: 0 | DW53: 71.77433 | DX53: 0.3032381353 | DY53: -612.79592 | DZ53: -2404.83716 | EA53: 863.73436 | EB53: 2268.64668 | EC53: -51.39206483 | ED53: 2462.290048 | EE53: 0.2870291679 | EF53: 0 | EG53: 0 | EH53: 74.64054079 | EI53: 0 | EJ53: 0 | EK53: 0 | EL53: 0 | EM53: 0 | EN53: 0 | EO53: 0 | EP53: 984.5411276 | EQ53: 573.4401124 | ER53: 0 | ES53: -193.3252648 | ET53: 0 | EU53: 1.121398036 | EV53: 152 | EW53: 0 | EX53: 0 | EY53: 0 | FA53: 0 | FB53: -48.80228751 | FC53: -3.028738663 | FD53: -48.80228751 | FE53: -3.028738663 | FF53: 0 | FG53: 0 | FH53: 0 | FI53: 0
A54: 625 | B54: Sistema de Compensação | C54: Azul | D54: A4 | E54: Comercial | F54: Não se aplica | G54: Não se aplica | H54: Não se aplica | I54: Fora ponta | J54: CATIVO | K54: 2022-01-01 | L54: 55 | M54: 55 | N54: 12.841 | O54: 12.841 | P54: 12.841 | Q54: 12.841 | R54: 27.4 | S54: 76.24 | T54: 259.46 | U54: 1507 | V54: 4310.7237 | W54: 5817.7237 | X54: 5839.59852 | Y54: 0 | Z54: 674.4131505 | AA54: 0 | AB54: 0 | AC54: 0 | AD54: 925.6318961 | AE54: 581.3754291 | AF54: 3255.385795 | AG54: 0 | AH54: 0 | AI54: 0 | AJ54: 0 | AK54: 37.97295422 | AL54: 119.6952919 | AN54: 7.501515397 | AO54: 0 | AP54: 0 | AQ54: 0 | AR54: 0 | AS54: 0 | AT54: 0 | AU54: 0 | AV54: 44.77742387 | AW54: 11.68776862 | AX54: 0 | AY54: 0 | AZ54: 0 | BB54: 181.8123608 | BC54: 0 | BD54: 0.3794803445 | BE54: 0 | BF54: 0 | BG54: 98.68202018 | BH54: 5.121487353 | BI54: 0 | BJ54: 0 | BK54: 0 | BL54: 0 | BV54: 3354.447296 | CI54: 5839.2648 | CJ54: 21.5111 | CO54: 31.63398 | CP54: -9.75916 | CQ54: 31 | CR54: -197.2072599 | CS54: 0 | CT54: 0 | CU54: 0 | CV54: 0 | CW54: 0 | CX54: 0 | CY54: 0 | CZ54: 51.51940013 | DA54: 0 | DB54: 0 | DC54: -167.8681807 | DD54: 0 | DE54: 0 | DF54: -0.01956839498 | DG54: -5.088666055 | DH54: 0 | DI54: -76.27273977 | DK54: 0 | DL54: 0 | DM54: 0 | DN54: 2.442327858e-05 | DO54: 3.551026122 | DP54: -0.5044704835 | DQ54: 0 | DR54: -2.604442547 | DU54: 581.3754291 | DV54: 0 | DW54: 5.143216841 | DX54: 0.02172948858 | DY54: -30.25964 | DZ54: -172.32622 | EA54: 61.89362 | EB54: 162.56706 | EC54: -5.176856347 | ED54: 176.4431886 | EE54: 0.02056798371 | EF54: 0 | EG54: 0 | EH54: 5.348604249 | EI54: 0 | EJ54: 0 | EK54: 0 | EL54: 0 | EM54: 0 | EN54: 0 | EO54: 0 | EP54: 70.55041138 | EQ54: 41.09166667 | ER54: 0 | ES54: -13.85333388 | ET54: 0 | EU54: 0.08035732639 | EV54: 152 | EW54: 0 | EX54: 0 | EY54: 0 | FA54: 0 | FB54: -48.80228751 | FC54: -3.028738663 | FD54: -48.80228751 | FE54: -3.028738663 | FF54: 0 | FG54: 0 | FH54: 0 | FI54: 0
A55: 706 | B55: Regular | C55: Azul | D55: A4 | E55: Comercial | F55: Não se aplica | G55: Não se aplica | H55: Não se aplica | I55: Fora ponta | J55: CATIVO | K55: 2022-02-01 | L55: 548 | M55: 548 | N55: 160.111 | O55: 160.111 | P55: 160.111 | Q55: 160.111 | R55: 27.4 | S55: 76.24 | T55: 259.46 | U55: 15015.2 | V55: 53749.2627 | W55: 68764.4627 | X55: 68918.72292 | Y55: 0 | Z55: 8409.077482 | AA55: 0 | AB55: 0 | AC55: 0 | AD55: 9222.659619 | AE55: 5792.613366 | AF55: 40590.53618 | AG55: 0 | AH55: 0 | AI55: 0 | AJ55: 0 | AK55: 473.474626 | AL55: 1492.448631 | AN55: 93.53439231 | AO55: 0 | AP55: 0 | AQ55: 0 | AR55: 0 | AS55: 0 | AT55: 0 | AU55: 0 | AV55: 558.3177411 | AW55: 145.7316659 | AX55: 0 | AY55: 0 | AZ55: 0 | BB55: 2266.969777 | BC55: 0 | BD55: 4.731639081 | BE55: 0 | BF55: 0 | BG55: 1230.439758 | BH55: 63.85845818 | BI55: 0 | BJ55: 0 | BK55: 0 | BL55: 0 | BV55: 41825.70757 | CI55: 68918.3892 | CJ55: 153.8965 | CO55: 275.94458 | CP55: -121.68436 | CQ55: 29 | CR55: -2590.964457 | CS55: 0 | CT55: 0 | CU55: 0 | CV55: 0 | CW55: 0 | CX55: 0 | CY55: 0 | CZ55: 513.3205685 | DA55: 0 | DB55: 0 | DC55: -2093.103518 | DD55: 0 | DE55: 0 | DF55: -0.2439930915 | DG55: -63.44921819 | DH55: 0 | DI55: -951.0244247 | DK55: 0 | DL55: 0 | DM55: 0 | DN55: 0.0003045273387 | DO55: 44.27679646 | DP55: -6.290107747 | DQ55: 0 | DR55: -35.45281836 | DU55: 5792.613366 | DV55: 0 | DW55: 64.12939737 | DX55: 0.2709391906 | DY55: -495.79044 | DZ55: -2148.68962 | EA55: 771.73502 | EB55: 2027.00526 | EC55: -51.58031415 | ED55: 2200.023002 | EE55: 0.2564566965 | EF55: 0 | EG55: 0 | EH55: 66.69031812 | EI55: 0 | EJ55: 0 | EK55: 0 | EL55: 0 | EM55: 0 | EN55: 0 | EO55: 0 | EP55: 879.6742401 | EQ55: 512.3610188 | ER55: 0 | ES55: -172.7335209 | ET55: 0 | EU55: 1.001954044 | EV55: 152 | EW55: 0 | EX55: 0 | EY55: 0 | FA55: 0 | FB55: -48.80228751 | FC55: -3.028738663 | FD55: -48.80228751 | FE55: -3.028738663 | FF55: 0 | FG55: 0 | FH55: 0 | FI55: 0
A56: 707 | B56: Sistema de Compensação | C56: Azul | D56: A4 | E56: Comercial | F56: Não se aplica | G56: Não se aplica | H56: Não se aplica | I56: Fora ponta | J56: CATIVO | K56: 2022-02-01 | L56: 55 | M56: 55 | N56: 11.912 | O56: 11.912 | P56: 11.912 | Q56: 11.912 | R56: 27.4 | S56: 76.24 | T56: 259.46 | U56: 1507 | V56: 3998.8584 | W56: 5505.8584 | X56: 5529.57264 | Y56: 0 | Z56: 625.6217934 | AA56: 0 | AB56: 0 | AC56: 0 | AD56: 925.6318961 | AE56: 581.3754291 | AF56: 3019.870383 | AG56: 0 | AH56: 0 | AI56: 0 | AJ56: 0 | AK56: 35.22574804 | AL56: 111.0357695 | AN56: 6.958807835 | AO56: 0 | AP56: 0 | AQ56: 0 | AR56: 0 | AS56: 0 | AT56: 0 | AU56: 0 | AV56: 41.53793888 | AW56: 10.84220075 | AX56: 0 | AY56: 0 | AZ56: 0 | BB56: 168.6588928 | BC56: 0 | BD56: 0.3520263113 | BE56: 0 | BF56: 0 | BG56: 91.54273221 | BH56: 4.750966229 | BI56: 0 | BJ56: 0 | BK56: 0 | BL56: 0 | BV56: 3111.765142 | CI56: 5528.9052 | CJ56: 23.0168 | CO56: 32.76736 | CP56: -9.05312 | CQ56: 29 | CR56: -179.1267594 | CS56: 0 | CT56: 0 | CU56: 0 | CV56: 0 | CW56: 0 | CX56: 0 | CY56: 0 | CZ56: 51.51940013 | DA56: 0 | DB56: 0 | DC56: -155.7235237 | DD56: 0 | DE56: 0 | DF56: -0.01815269223 | DG56: -4.720519434 | DH56: 0 | DI56: -70.75468236 | DK56: 0 | DL56: 0 | DM56: 0 | DN56: 2.265634253e-05 | DO56: 3.2941222 | DP56: -0.4679738649 | DQ56: 0 | DR56: -2.329996055 | DU56: 581.3754291 | DV56: 0 | DW56: 4.771123667 | DX56: 0.02015743852 | DY56: -24.64848 | DZ56: -159.85904 | EA56: 57.41584 | EB56: 150.80592 | EC56: -5.176856347 | ED56: 163.6781608 | EE56: 0.01907996433 | EF56: 0 | EG56: 0 | EH56: 4.961652038 | EI56: 0 | EJ56: 0 | EK56: 0 | EL56: 0 | EM56: 0 | EN56: 0 | EO56: 0 | EP56: 65.44634377 | EQ56: 38.11883291 | ER56: 0 | ES56: -12.85109518 | ET56: 0 | EU56: 0.07454376388 | EV56: 152 | EW56: 0 | EX56: 0 | EY56: 0 | FA56: 0 | FB56: -48.80228751 | FC56: -3.028738663 | FD56: -48.80228751 | FE56: -3.028738663 | FF56: 0 | FG56: 0 | FH56: 0 | FI56: 0
A57: 789 | B57: Regular | C57: Azul | D57: A4 | E57: Comercial | F57: Não se aplica | G57: Não se aplica | H57: Não se aplica | I57: Fora ponta | J57: CATIVO | K57: 2022-03-01 | L57: 463 | M57: 463 | N57: 150.427 | O57: 150.427 | P57: 150.427 | Q57: 150.427 | R57: 27.4 | S57: 76.24 | T57: 259.46 | U57: 12686.2 | V57: 50498.3439 | W57: 63184.5439 | X57: 63284.87844 | Y57: 0 | Z57: 7900.470913 | AA57: 0 | AB57: 0 | AC57: 0 | AD57: 7792.137598 | AE57: 4894.124066 | AF57: 38135.49716 | AG57: 0 | AH57: 0 | AI57: 0 | AJ57: 0 | AK57: 444.8374413 | AL57: 1402.180801 | AN57: 87.87714793 | AO57: 0 | AP57: 0 | AQ57: 0 | AR57: 0 | AS57: 0 | AT57: 0 | AU57: 0 | AV57: 524.5489869 | AW57: 136.9173717 | AX57: 0 | AY57: 0 | AZ57: 0 | BB57: 2129.856553 | BC57: 0 | BD57: 4.445455166 | BE57: 0 | BF57: 0 | BG57: 1156.019021 | BH57: 59.99610451 | BI57: 0 | BJ57: 0 | BK57: 0 | BL57: 0 | BV57: 39295.96163 | CI57: 63285.8796 | CJ57: 101.3057 | CO57: 214.65906 | CP57: -114.32452 | CQ57: 31 | CR57: -2483.94983 | CS57: 0 | CT57: 0 | CU57: 0 | CV57: 0 | CW57: 0 | CX57: 0 | CY57: 0 | CZ57: 433.6996774 | DA57: 0 | DB57: 0 | DC57: -1966.506255 | DD57: 0 | DE57: 0 | DF57: -0.2292356476 | DG57: -59.6116166 | DH57: 0 | DI57: -893.5035765 | DK57: 0 | DL57: 0 | DM57: 0 | DN57: 0.0002861085995 | DO57: 41.59880122 | DP57: -5.909662909 | DQ57: 0 | DR57: -34.42960148 | DU57: 4894.124066 | DV57: 0 | DW57: 60.25065647 | DX57: 0.2545519647 | DY57: -510.39908 | DZ57: -2018.73034 | EA57: 725.05814 | EB57: 1904.40582 | EC57: -43.57971798 | ED57: 2066.958923 | EE57: 0.2409454159 | EF57: 0 | EG57: 0 | EH57: 62.65668495 | EI57: 0 | EJ57: 0 | EK57: 0 | EL57: 0 | EM57: 0 | EN57: 0 | EO57: 0 | EP57: 826.4688679 | EQ57: 481.3718668 | ER57: 0 | ES57: -162.2860724 | ET57: 0 | EU57: 0.941352818 | EV57: 152 | EW57: 0 | EX57: 0 | EY57: 0 | FA57: 0 | FB57: -48.80228751 | FC57: -3.028738663 | FD57: -48.80228751 | FE57: -3.028738663 | FF57: 0 | FG57: 0 | FH57: 0 | FI57: 0
A58: 790 | B58: Sistema de Compensação | C58: Azul | D58: A4 | E58: Comercial | F58: Não se aplica | G58: Não se aplica | H58: Não se aplica | I58: Fora ponta | J58: CATIVO | K58: 2022-03-01 | L58: 145 | M58: 145 | N58: 34.3 | O58: 34.3 | P58: 34.3 | Q58: 34.3 | R58: 27.4 | S58: 76.24 | T58: 259.46 | U58: 3973 | V58: 11514.51 | W58: 15487.51 | X58: 15544.296 | Y58: 0 | Z58: 1801.446232 | AA58: 0 | AB58: 0 | AC58: 0 | AD58: 2440.302272 | AE58: 1532.71704 | AF58: 8695.563645 | AG58: 0 | AH58: 0 | AI58: 0 | AJ58: 0 | AK58: 101.4307554 | AL58: 319.7218683 | AN58: 20.03753431 | AO58: 0 | AP58: 0 | AQ58: 0 | AR58: 0 | AS58: 0 | AT58: 0 | AU58: 0 | AV58: 119.6063888 | AW58: 31.21956729 | AX58: 0 | AY58: 0 | AZ58: 0 | BB58: 485.6447299 | BC58: 0 | BD58: 1.013641914 | BE58: 0 | BF58: 0 | BG58: 263.5926557 | BH58: 13.68016636 | BI58: 0 | BJ58: 0 | BK58: 0 | BL58: 0 | BV58: 8960.169943 | CI58: 15544.296 | CJ58: 56.756 | CO58: 82.854 | CP58: -26.068 | CQ58: 31 | CR58: -528.5990927 | CS58: 0 | CT58: 0 | CU58: 0 | CV58: 0 | CW58: 0 | CX58: 0 | CY58: 0 | CZ58: 135.8238731 | DA58: 0 | DB58: 0 | DC58: -448.3979906 | DD58: 0 | DE58: 0 | DF58: -0.05226975685 | DG58: -13.59249636 | DH58: 0 | DI58: -203.7345202 | DK58: 0 | DL58: 0 | DM58: 0 | DN58: 6.52377895e-05 | DO58: 9.485257845 | DP58: -1.347507015 | DQ58: 0 | DR58: -6.998149857 | DU58: 1532.71704 | DV58: 0 | DW58: 13.73820868 | DX58: 0.05804232213 | DY58: -82.472 | DZ58: -460.306 | EA58: 165.326 | EB58: 434.238 | EC58: -13.64807582 | ED58: 471.3029646 | EE58: 0.05493978983 | EF58: 0 | EG58: 0 | EH58: 14.28682546 | EI58: 0 | EJ58: 0 | EK58: 0 | EL58: 0 | EM58: 0 | EN58: 0 | EO58: 0 | EP58: 188.4494284 | EQ58: 109.7612465 | ER58: 0 | ES58: -37.00407696 | ET58: 0 | EU58: 0.2146449883 | EV58: 152 | EW58: 0 | EX58: 0 | EY58: 0 | FA58: 0 | FB58: -48.80228751 | FC58: -3.028738663 | FD58: -48.80228751 | FE58: -3.028738663 | FF58: 0 | FG58: 0 | FH58: 0 | FI58: 0
A59: 884 | B59: Regular | C59: Azul | D59: A4 | E59: Comercial | F59: Não se aplica | G59: Não se aplica | H59: Não se aplica | I59: Fora ponta | J59: CATIVO | K59: 2022-04-01 | L59: 463 | M59: 463 | N59: 148.008 | O59: 148.008 | P59: 148.008 | Q59: 148.008 | R59: 27.4 | S59: 76.24 | T59: 259.46 | U59: 12686.2 | V59: 49686.2856 | W59: 62372.4856 | X59: 62477.60976 | Y59: 0 | Z59: 7773.424312 | AA59: 0 | AB59: 0 | AC59: 0 | AD59: 7792.137598 | AE59: 4894.124066 | AF59: 37522.24443 | AG59: 0 | AH59: 0 | AI59: 0 | AJ59: 0 | AK59: 437.6840595 | AL59: 1379.632486 | AN59: 86.4640052 | AO59: 0 | AP59: 0 | AQ59: 0 | AR59: 0 | AS59: 0 | AT59: 0 | AU59: 0 | AV59: 516.1137725 | AW59: 134.7156185 | AX59: 0 | AY59: 0 | AZ59: 0 | BB59: 2095.606565 | BC59: 0 | BD59: 4.373968292 | BE59: 0 | BF59: 0 | BG59: 1137.429207 | BH59: 59.03131377 | BI59: 0 | BJ59: 0 | BK59: 0 | BL59: 0 | BV59: 38664.04761 | CI59: 62478.2772 | CJ59: 105.7616 | CO59: 217.61024 | CP59: -112.48608 | CQ59: 30 | CR59: -2436.870464 | CS59: 0 | CT59: 0 | CU59: 0 | CV59: 0 | CW59: 0 | CX59: 0 | CY59: 0 | CZ59: 433.6996774 | DA59: 0 | DB59: 0 | DC59: -1934.883084 | DD59: 0 | DE59: 0 | DF59: -0.2255493345 | DG59: -58.65300876 | DH59: 0 | DI59: -879.135244 | DK59: 0 | DL59: 0 | DM59: 0 | DN59: 0.0002815077186 | DO59: 40.92985548 | DP59: -5.814630272 | DQ59: 0 | DR59: -33.71497708 | DU59: 4894.124066 | DV59: 0 | DW59: 59.28177231 | DX59: 0.2504585427 | DY59: -495.78832 | DZ59: -1986.26736 | EA59: 713.39856 | EB59: 1873.78128 | EC59: -43.57971798 | ED59: 2033.720384 | EE59: 0.2370707992 | EF59: 0 | EG59: 0 | EH59: 61.64910971 | EI59: 0 | EJ59: 0 | EK59: 0 | EL59: 0 | EM59: 0 | EN59: 0 | EO59: 0 | EP59: 813.1785132 | EQ59: 473.6309789 | ER59: 0 | ES59: -159.676368 | ET59: 0 | EU59: 0.9262150272 | EV59: 152 | EW59: 0 | EX59: 0 | EY59: 0 | FA59: 0 | FB59: -48.80228751 | FC59: -3.028738663 | FD59: -48.80228751 | FE59: -3.028738663 | FF59: 0 | FG59: 0 | FH59: 0 | FI59: 0
A60: 885 | B60: Sistema de Compensação | C60: Azul | D60: A4 | E60: Comercial | F60: Não se aplica | G60: Não se aplica | H60: Não se aplica | I60: Fora ponta | J60: CATIVO | K60: 2022-04-01 | L60: 145 | M60: 145 | N60: 35.425 | O60: 35.425 | P60: 35.425 | Q60: 35.425 | R60: 27.4 | S60: 76.24 | T60: 259.46 | U60: 3973 | V60: 11892.1725 | W60: 15865.1725 | X60: 15919.731 | Y60: 0 | Z60: 1860.531567 | AA60: 0 | AB60: 0 | AC60: 0 | AD60: 2440.302272 | AE60: 1532.71704 | AF60: 8980.767992 | AG60: 0 | AH60: 0 | AI60: 0 | AJ60: 0 | AK60: 104.7575659 | AL60: 330.2083727 | AN60: 20.69474207 | AO60: 0 | AP60: 0 | AQ60: 0 | AR60: 0 | AS60: 0 | AT60: 0 | AU60: 0 | AV60: 123.5293389 | AW60: 32.24353269 | AX60: 0 | AY60: 0 | AZ60: 0 | BB60: 501.5733107 | BC60: 0 | BD60: 1.046888187 | BE60: 0 | BF60: 0 | BG60: 272.2381874 | BH60: 14.12885986 | BI60: 0 | BJ60: 0 | BK60: 0 | BL60: 0 | BV60: 9254.053068 | CI60: 15921.3996 | CJ60: 56.1971 | CO60: 81.4815 | CP60: -26.923 | CQ60: 30 | CR60: -550.494209 | CS60: 0 | CT60: 0 | CU60: 0 | CV60: 0 | CW60: 0 | CX60: 0 | CY60: 0 | CZ60: 135.8238731 | DA60: 0 | DB60: 0 | DC60: -463.1049218 | DD60: 0 | DE60: 0 | DF60: -0.05398414392 | DG60: -14.03831438 | DH60: 0 | DI60: -210.4167749 | DK60: 0 | DL60: 0 | DM60: 0 | DN60: 6.737751293e-05 | DO60: 9.79636324 | DP60: -1.391703674 | DQ60: 0 | DR60: -7.330498946 | DU60: 1532.71704 | DV60: 0 | DW60: 14.1888059 | DX60: 0.05994604261 | DY60: -89.267 | DZ60: -475.4035 | EA60: 170.7485 | EB60: 448.4805 | EC60: -13.64807582 | ED60: 486.7611522 | EE60: 0.05674175086 | EF60: 0 | EG60: 0 | EH60: 14.75541668 | EI60: 0 | EJ60: 0 | EK60: 0 | EL60: 0 | EM60: 0 | EN60: 0 | EO60: 0 | EP60: 194.6303499 | EQ60: 113.3612874 | ER60: 0 | ES60: -38.21776753 | ET60: 0 | EU60: 0.2216850936 | EV60: 152 | EW60: 0 | EX60: 0 | EY60: 0 | FA60: 0 | FB60: -48.80228751 | FC60: -3.028738663 | FD60: -48.80228751 | FE60: -3.028738663 | FF60: 0 | FG60: 0 | FH60: 0 | FI60: 0
A61: 980 | B61: PROJETADO | C61: Azul | D61: A4 | E61: Comercial | F61: Não se aplica | G61: Não se aplica | H61: Não se aplica | I61: Fora ponta | J61: CATIVO | K61: 2022-05-01 | L61: 463 | M61: 463 | N61: 148.008 | O61: 148.008 | P61: 148.008 | Q61: 148.008 | R61: 27.4 | S61: 76.24 | T61: 259.46 | U61: 12686.2 | V61: 49686.2856 | W61: 62372.4856 | X61: 62477.60976 | Y61: 0 | Z61: 7773.424312 | AA61: 0 | AB61: 0 | AC61: 0 | AD61: 7792.137598 | AE61: 4894.124066 | AF61: 37522.24443 | AG61: 0 | AH61: 0 | AI61: 0 | AJ61: 0 | AK61: 437.6840595 | AL61: 1379.632486 | AN61: 86.4640052 | AO61: 0 | AP61: 0 | AQ61: 0 | AR61: 0 | AS61: 0 | AT61: 0 | AU61: 0 | AV61: 516.1137725 | AW61: 134.7156185 | AX61: 0 | AY61: 0 | AZ61: 0 | BB61: 2095.606565 | BC61: 0 | BD61: 4.373968292 | BE61: 0 | BF61: 0 | BG61: 1137.429207 | BH61: 59.03131377 | BI61: 0 | BJ61: 0 | BK61: 0 | BL61: 0 | BV61: 38664.04761 | CI61: 62478.2772 | CJ61: 105.7616 | CO61: 217.61024 | CP61: -112.48608 | CQ61: 31 | CR61: -2436.870464 | CS61: 0 | CT61: 0 | CU61: 0 | CV61: 0 | CW61: 0 | CX61: 0 | CY61: 0 | CZ61: 433.6996774 | DA61: 0 | DB61: 0 | DC61: -1934.883084 | DD61: 0 | DE61: 0 | DF61: -0.2255493345 | DG61: -58.65300876 | DH61: 0 | DI61: -879.135244 | DK61: 0 | DL61: 0 | DM61: 0 | DN61: 0.0002815077186 | DO61: 40.92985548 | DP61: -5.814630272 | DQ61: 0 | DR61: -33.71497708 | DU61: 4894.124066 | DV61: 0 | DW61: 59.28177231 | DX61: 0.2504585427 | DY61: -495.78832 | DZ61: -1986.26736 | EA61: 713.39856 | EB61: 1873.78128 | EC61: -43.57971798 | ED61: 2033.720384 | EE61: 0.2370707992 | EF61: 0 | EG61: 0 | EH61: 61.64910971 | EI61: 0 | EJ61: 0 | EK61: 0 | EL61: 0 | EM61: 0 | EN61: 0 | EO61: 0 | EP61: 813.1785132 | EQ61: 473.6309789 | ER61: 0 | ES61: -159.676368 | ET61: 0 | EU61: 0.9262150272 | EV61: 152 | EW61: 0 | EX61: 0 | EY61: 0 | FA61: 0 | FB61: -48.80228751 | FC61: -3.028738663 | FD61: -48.80228751 | FE61: -3.028738663 | FF61: 0 | FG61: 0 | FH61: 0 | FI61: 0
A62: 981 | B62: PROJETADO | C62: Azul | D62: A4 | E62: Comercial | F62: Não se aplica | G62: Não se aplica | H62: Não se aplica | I62: Fora ponta | J62: CATIVO | K62: 2022-05-01 | L62: 145 | M62: 145 | N62: 35.425 | O62: 35.425 | P62: 35.425 | Q62: 35.425 | R62: 27.4 | S62: 76.24 | T62: 259.46 | U62: 3973 | V62: 11892.1725 | W62: 15865.1725 | X62: 15919.731 | Y62: 0 | Z62: 1860.531567 | AA62: 0 | AB62: 0 | AC62: 0 | AD62: 2440.302272 | AE62: 1532.71704 | AF62: 8980.767992 | AG62: 0 | AH62: 0 | AI62: 0 | AJ62: 0 | AK62: 104.7575659 | AL62: 330.2083727 | AN62: 20.69474207 | AO62: 0 | AP62: 0 | AQ62: 0 | AR62: 0 | AS62: 0 | AT62: 0 | AU62: 0 | AV62: 123.5293389 | AW62: 32.24353269 | AX62: 0 | AY62: 0 | AZ62: 0 | BB62: 501.5733107 | BC62: 0 | BD62: 1.046888187 | BE62: 0 | BF62: 0 | BG62: 272.2381874 | BH62: 14.12885986 | BI62: 0 | BJ62: 0 | BK62: 0 | BL62: 0 | BV62: 9254.053068 | CI62: 15921.3996 | CJ62: 56.1971 | CO62: 81.4815 | CP62: -26.923 | CQ62: 31 | CR62: -550.494209 | CS62: 0 | CT62: 0 | CU62: 0 | CV62: 0 | CW62: 0 | CX62: 0 | CY62: 0 | CZ62: 135.8238731 | DA62: 0 | DB62: 0 | DC62: -463.1049218 | DD62: 0 | DE62: 0 | DF62: -0.05398414392 | DG62: -14.03831438 | DH62: 0 | DI62: -210.4167749 | DK62: 0 | DL62: 0 | DM62: 0 | DN62: 6.737751293e-05 | DO62: 9.79636324 | DP62: -1.391703674 | DQ62: 0 | DR62: -7.330498946 | DU62: 1532.71704 | DV62: 0 | DW62: 14.1888059 | DX62: 0.05994604261 | DY62: -89.267 | DZ62: -475.4035 | EA62: 170.7485 | EB62: 448.4805 | EC62: -13.64807582 | ED62: 486.7611522 | EE62: 0.05674175086 | EF62: 0 | EG62: 0 | EH62: 14.75541668 | EI62: 0 | EJ62: 0 | EK62: 0 | EL62: 0 | EM62: 0 | EN62: 0 | EO62: 0 | EP62: 194.6303499 | EQ62: 113.3612874 | ER62: 0 | ES62: -38.21776753 | ET62: 0 | EU62: 0.2216850936 | EV62: 152 | EW62: 0 | EX62: 0 | EY62: 0 | FA62: 0 | FB62: -48.80228751 | FC62: -3.028738663 | FD62: -48.80228751 | FE62: -3.028738663 | FF62: 0 | FG62: 0 | FH62: 0 | FI62: 0
A63: 46 | B63: Regular | C63: Azul | D63: A4 | E63: Comercial | F63: Não se aplica | G63: Não se aplica | H63: Não se aplica | I63: Não se aplica | J63: CATIVO | K63: 2021-06-01 | L63: 0 | M63: 0 | N63: 0 | O63: 0 | P63: 0 | Q63: 0 | AA63: 0 | AZ63: 0 | BI63: 1074.81 | BJ63: 4950.47 | BK63: 55221.01 | BL63: 5 | CJ63: -0.03 | CO63: 0 | CP63: 0 | CQ63: 30 | DK63: 0 | EV63: 152 | FA63: 0 | FB63: -48.80228751 | FC63: -3.028738663 | FD63: -48.80228751 | FE63: -3.028738663 | FF63: 0 | FG63: 0 | FH63: 0 | FI63: 0
A64: 47 | B64: Refaturamento - Regular | C64: Azul | D64: A4 | E64: Comercial | F64: Não se aplica | G64: Não se aplica | H64: Não se aplica | I64: Não se aplica | J64: CATIVO | K64: 2021-06-01 | L64: 0 | M64: 0 | N64: 0 | O64: 0 | P64: 0 | Q64: 0 | AA64: 0 | AZ64: 0 | BI64: -78.25 | BJ64: -360.5 | BK64: -1739.49 | BL64: -2 | CJ64: -0.03 | CO64: 0 | CP64: 0 | CQ64: 30 | DK64: 0 | EV64: 152 | FA64: 0 | FB64: -48.80228751 | FC64: -3.028738663 | FD64: -48.80228751 | FE64: -3.028738663 | FF64: 0 | FG64: 0 | FH64: 0 | FI64: 0
A65: 48 | B65: Sistema de Compensação | C65: Azul | D65: A4 | E65: Comercial | F65: Não se aplica | G65: Não se aplica | H65: Não se aplica | I65: Não se aplica | J65: CATIVO | K65: 2021-06-01 | L65: 0 | M65: 0 | N65: 0 | O65: 0 | P65: 0 | Q65: 0 | AA65: 0 | AZ65: 0 | BI65: 112.23 | BJ65: 516.94 | BK65: 5588.68 | BL65: 1 | CJ65: -0.03 | CO65: 0 | CP65: 0 | CQ65: 30 | DK65: 0 | EV65: 152 | FA65: 0 | FB65: -48.80228751 | FC65: -3.028738663 | FD65: -48.80228751 | FE65: -3.028738663 | FF65: 0 | FG65: 0 | FH65: 0 | FI65: 0
A66: 126 | B66: Regular | C66: Azul | D66: A4 | E66: Comercial | F66: Não se aplica | G66: Não se aplica | H66: Não se aplica | I66: Não se aplica | J66: CATIVO | K66: 2021-07-01 | L66: 0 | M66: 0 | N66: 0 | O66: 0 | P66: 0 | Q66: 0 | AA66: 0 | AZ66: 0 | BI66: 848.93 | BJ66: 3910.54 | BK66: 57081.5 | BL66: 5 | CJ66: -0.03 | CO66: 0 | CP66: 0 | CQ66: 31 | DK66: 0 | EV66: 152 | FA66: 0 | FB66: -48.80228751 | FC66: -3.028738663 | FD66: -48.80228751 | FE66: -3.028738663 | FF66: 0 | FG66: 0 | FH66: 0 | FI66: 0
A67: 127 | B67: Sistema de Compensação | C67: Azul | D67: A4 | E67: Comercial | F67: Não se aplica | G67: Não se aplica | H67: Não se aplica | I67: Não se aplica | J67: CATIVO | K67: 2021-07-01 | L67: 0 | M67: 0 | N67: 0 | O67: 0 | P67: 0 | Q67: 0 | AA67: 0 | AZ67: 0 | BI67: 85.76 | BJ67: 395.04 | BK67: 6049.73 | BL67: 1 | CJ67: -0.03 | CO67: 0 | CP67: 0 | CQ67: 31 | DK67: 0 | EV67: 152 | FA67: 0 | FB67: -48.80228751 | FC67: -3.028738663 | FD67: -48.80228751 | FE67: -3.028738663 | FF67: 0 | FG67: 0 | FH67: 0 | FI67: 0
A68: 209 | B68: Regular | C68: Azul | D68: A4 | E68: Comercial | F68: Não se aplica | G68: Não se aplica | H68: Não se aplica | I68: Não se aplica | J68: CATIVO | K68: 2021-08-01 | L68: 0 | M68: 0 | N68: 0 | O68: 0 | P68: 0 | Q68: 0 | AA68: 0 | AZ68: 0 | BI68: 838.72 | BJ68: 3863.53 | BK68: 59117.52 | BL68: 5 | CJ68: -0.03 | CO68: 0 | CP68: 0 | CQ68: 31 | DK68: 0 | EV68: 152 | FA68: 0 | FB68: -48.80228751 | FC68: -3.028738663 | FD68: -48.80228751 | FE68: -3.028738663 | FF68: 0 | FG68: 0 | FH68: 0 | FI68: 0
A69: 210 | B69: Sistema de Compensação | C69: Azul | D69: A4 | E69: Comercial | F69: Não se aplica | G69: Não se aplica | H69: Não se aplica | I69: Não se aplica | J69: CATIVO | K69: 2021-08-01 | L69: 0 | M69: 0 | N69: 0 | O69: 0 | P69: 0 | Q69: 0 | AA69: 0 | AZ69: 0 | BI69: 121.05 | BJ69: 557.69 | BK69: 8540.52 | BL69: 1 | CJ69: -0.03 | CO69: 0 | CP69: 0 | CQ69: 31 | DK69: 0 | EV69: 152 | FA69: 0 | FB69: -48.80228751 | FC69: -3.028738663 | FD69: -48.80228751 | FE69: -3.028738663 | FF69: 0 | FG69: 0 | FH69: 0 | FI69: 0
A70: 289 | B70: Regular | C70: Azul | D70: A4 | E70: Comercial | F70: Não se aplica | G70: Não se aplica | H70: Não se aplica | I70: Não se aplica | J70: CATIVO | K70: 2021-09-01 | L70: 0 | M70: 0 | N70: 0 | O70: 0 | P70: 0 | Q70: 0 | AA70: 0 | AZ70: 0 | BI70: 914.32 | BJ70: 4211.82 | BK70: 64447.97 | BL70: 5 | CJ70: -0.03 | CO70: 0 | CP70: 0 | CQ70: 30 | DK70: 0 | EV70: 152 | FA70: 0 | FB70: -48.80228751 | FC70: -3.028738663 | FD70: -48.80228751 | FE70: -3.028738663 | FF70: 0 | FG70: 0 | FH70: 0 | FI70: 0
A71: 290 | B71: Sistema de Compensação | C71: Azul | D71: A4 | E71: Comercial | F71: Não se aplica | G71: Não se aplica | H71: Não se aplica | I71: Não se aplica | J71: CATIVO | K71: 2021-09-01 | L71: 0 | M71: 0 | N71: 0 | O71: 0 | P71: 0 | Q71: 0 | AA71: 0 | AZ71: 0 | BI71: 76.96 | BJ71: 354.52 | BK71: 5429.21 | BL71: 1 | CJ71: -0.03 | CO71: 0 | CP71: 0 | CQ71: 30 | DK71: 0 | EV71: 152 | FA71: 0 | FB71: -48.80228751 | FC71: -3.028738663 | FD71: -48.80228751 | FE71: -3.028738663 | FF71: 0 | FG71: 0 | FH71: 0 | FI71: 0
A72: 377 | B72: Regular | C72: Azul | D72: A4 | E72: Comercial | F72: Não se aplica | G72: Não se aplica | H72: Não se aplica | I72: Não se aplica | J72: CATIVO | K72: 2021-10-01 | L72: 0 | M72: 0 | N72: 0 | O72: 0 | P72: 0 | Q72: 0 | AA72: 0 | AZ72: 0 | BI72: 963.88 | BJ72: 4440.11 | BK72: 67897.59 | BL72: 5 | CJ72: -0.03 | CO72: 0 | CP72: 0 | CQ72: 31 | DK72: 0 | EV72: 152 | FA72: 0 | FB72: -48.80228751 | FC72: -3.028738663 | FD72: -48.80228751 | FE72: -3.028738663 | FF72: 0 | FG72: 0 | FH72: 0 | FI72: 0
A73: 378 | B73: Sistema de Compensação | C73: Azul | D73: A4 | E73: Comercial | F73: Não se aplica | G73: Não se aplica | H73: Não se aplica | I73: Não se aplica | J73: CATIVO | K73: 2021-10-01 | L73: 0 | M73: 0 | N73: 0 | O73: 0 | P73: 0 | Q73: 0 | AA73: 0 | AZ73: 0 | BI73: 76.89 | BJ73: 354.17 | BK73: 5423.87 | BL73: 1 | CJ73: -0.03 | CO73: 0 | CP73: 0 | CQ73: 31 | DK73: 0 | EV73: 152 | FA73: 0 | FB73: -48.80228751 | FC73: -3.028738663 | FD73: -48.80228751 | FE73: -3.028738663 | FF73: 0 | FG73: 0 | FH73: 0 | FI73: 0
A74: 456 | B74: Regular | C74: Azul | D74: A4 | E74: Comercial | F74: Não se aplica | G74: Não se aplica | H74: Não se aplica | I74: Não se aplica | J74: CATIVO | K74: 2021-11-01 | L74: 0 | M74: 0 | N74: 0 | O74: 0 | P74: 0 | Q74: 0 | AA74: 0 | AZ74: 0 | BI74: 933.43 | BJ74: 4299.88 | BK74: 65849.06 | BL74: 5 | CJ74: -0.03 | CO74: 0 | CP74: 0 | CQ74: 30 | DK74: 0 | EV74: 152 | FA74: 0 | FB74: -48.80228751 | FC74: -3.028738663 | FD74: -48.80228751 | FE74: -3.028738663 | FF74: 0 | FG74: 0 | FH74: 0 | FI74: 0
A75: 457 | B75: Sistema de Compensação | C75: Azul | D75: A4 | E75: Comercial | F75: Não se aplica | G75: Não se aplica | H75: Não se aplica | I75: Não se aplica | J75: CATIVO | K75: 2021-11-01 | L75: 0 | M75: 0 | N75: 0 | O75: 0 | P75: 0 | Q75: 0 | AA75: 0 | AZ75: 0 | BI75: 72.23 | BJ75: 332.76 | BK75: 5095.85 | BL75: 1 | CJ75: -0.03 | CO75: 0 | CP75: 0 | CQ75: 30 | DK75: 0 | EV75: 152 | FA75: 0 | FB75: -48.80228751 | FC75: -3.028738663 | FD75: -48.80228751 | FE75: -3.028738663 | FF75: 0 | FG75: 0 | FH75: 0 | FI75: 0
A76: 545 | B76: Regular | C76: Azul | D76: A4 | E76: Comercial | F76: Não se aplica | G76: Não se aplica | H76: Não se aplica | I76: Não se aplica | J76: CATIVO | K76: 2021-12-01 | L76: 0 | M76: 0 | N76: 0 | O76: 0 | P76: 0 | Q76: 0 | AA76: 0 | AZ76: 0 | BI76: 980.09 | BJ76: 4514.72 | BK76: 69139.57 | BL76: 5 | CJ76: -0.03 | CO76: 0 | CP76: 0 | DK76: 0 | EV76: 152 | FA76: 0 | FB76: -48.80228751 | FC76: -3.028738663 | FD76: -48.80228751 | FE76: -3.028738663 | FF76: 0 | FG76: 0 | FH76: 0 | FI76: 0
A77: 546 | B77: Sistema de Compensação | C77: Azul | D77: A4 | E77: Comercial | F77: Não se aplica | G77: Não se aplica | H77: Não se aplica | I77: Não se aplica | J77: CATIVO | K77: 2021-12-01 | L77: 0 | M77: 0 | N77: 0 | O77: 0 | P77: 0 | Q77: 0 | AA77: 0 | AZ77: 0 | BI77: 72.27 | BJ77: 332.9 | BK77: 5098.18 | BL77: 1 | CJ77: -0.03 | CO77: 0 | CP77: 0 | DK77: 0 | EV77: 152 | FA77: 0 | FB77: -48.80228751 | FC77: -3.028738663 | FD77: -48.80228751 | FE77: -3.028738663 | FF77: 0 | FG77: 0 | FH77: 0 | FI77: 0
A78: 626 | B78: Regular | C78: Azul | D78: A4 | E78: Comercial | F78: Não se aplica | G78: Não se aplica | H78: Não se aplica | I78: Não se aplica | J78: CATIVO | K78: 2022-01-01 | L78: 0 | M78: 0 | N78: 0 | O78: 0 | P78: 0 | Q78: 0 | AA78: 0 | AZ78: 0 | BI78: 1009.36 | BJ78: 4649.5 | BK78: 71203.57 | BL78: 5 | CJ78: -0.03 | CO78: 0 | CP78: 0 | CQ78: 31 | DK78: 0 | EV78: 152 | FA78: 0 | FB78: -48.80228751 | FC78: -3.028738663 | FD78: -48.80228751 | FE78: -3.028738663 | FF78: 0 | FG78: 0 | FH78: 0 | FI78: 0
A79: 627 | B79: Sistema de Compensação | C79: Azul | D79: A4 | E79: Comercial | F79: Não se aplica | G79: Não se aplica | H79: Não se aplica | I79: Não se aplica | J79: CATIVO | K79: 2022-01-01 | L79: 0 | M79: 0 | N79: 0 | O79: 0 | P79: 0 | Q79: 0 | AA79: 0 | AZ79: 0 | BI79: 76.37 | BJ79: 351.81 | BK79: 5387.7 | BL79: 1 | CJ79: -0.03 | CO79: 0 | CP79: 0 | CQ79: 31 | DK79: 0 | EV79: 152 | FA79: 0 | FB79: -48.80228751 | FC79: -3.028738663 | FD79: -48.80228751 | FE79: -3.028738663 | FF79: 0 | FG79: 0 | FH79: 0 | FI79: 0
A80: 708 | B80: Regular | C80: Azul | D80: A4 | E80: Comercial | F80: Não se aplica | G80: Não se aplica | H80: Não se aplica | I80: Não se aplica | J80: CATIVO | K80: 2022-02-01 | L80: 0 | M80: 0 | N80: 0 | O80: 0 | P80: 0 | Q80: 0 | AA80: 0 | AZ80: 0 | BI80: 945.25 | BJ80: 4354.23 | BK80: 66681.81 | BL80: 5 | CJ80: -0.03 | CO80: 0 | CP80: 0 | CQ80: 29 | DK80: 0 | EV80: 152 | FA80: 0 | FB80: -48.80228751 | FC80: -3.028738663 | FD80: -48.80228751 | FE80: -3.028738663 | FF80: 0 | FG80: 0 | FH80: 0 | FI80: 0
A81: 709 | B81: Sistema de Compensação | C81: Azul | D81: A4 | E81: Comercial | F81: Não se aplica | G81: Não se aplica | H81: Não se aplica | I81: Não se aplica | J81: CATIVO | K81: 2022-02-01 | L81: 0 | M81: 0 | N81: 0 | O81: 0 | P81: 0 | Q81: 0 | AA81: 0 | AZ81: 0 | BI81: 72.98 | BJ81: 336.19 | BK81: 5148.78 | BL81: 1 | CJ81: -0.03 | CO81: 0 | CP81: 0 | CQ81: 29 | DK81: 0 | EV81: 152 | FA81: 0 | FB81: -48.80228751 | FC81: -3.028738663 | FD81: -48.80228751 | FE81: -3.028738663 | FF81: 0 | FG81: 0 | FH81: 0 | FI81: 0
A82: 791 | B82: Regular | C82: Azul | D82: A4 | E82: Comercial | F82: Não se aplica | G82: Não se aplica | H82: Não se aplica | I82: Não se aplica | J82: CATIVO | K82: 2022-03-01 | L82: 0 | M82: 0 | N82: 0 | O82: 0 | P82: 0 | Q82: 0 | AA82: 0 | AZ82: 0 | BI82: 858.1 | BJ82: 3952.71 | BK82: 60532.55 | BL82: 4 | CJ82: -0.03 | CO82: 0 | CP82: 0 | CQ82: 31 | DK82: 0 | EV82: 152 | FA82: 0 | FB82: -48.80228751 | FC82: -3.028738663 | FD82: -48.80228751 | FE82: -3.028738663 | FF82: 0 | FG82: 0 | FH82: 0 | FI82: 0
A83: 792 | B83: Sistema de Compensação | C83: Azul | D83: A4 | E83: Comercial | F83: Não se aplica | G83: Não se aplica | H83: Não se aplica | I83: Não se aplica | J83: CATIVO | K83: 2022-03-01 | L83: 0 | M83: 0 | N83: 0 | O83: 0 | P83: 0 | Q83: 0 | AA83: 0 | AZ83: 0 | BI83: 212.77 | BJ83: 980.07 | BK83: 15009.1 | BL83: 2 | CJ83: -0.03 | CO83: 0 | CP83: 0 | CQ83: 31 | DK83: 0 | EV83: 152 | FA83: 0 | FB83: -48.80228751 | FC83: -3.028738663 | FD83: -48.80228751 | FE83: -3.028738663 | FF83: 0 | FG83: 0 | FH83: 0 | FI83: 0
A84: 886 | B84: Regular | C84: Azul | D84: A4 | E84: Comercial | F84: Não se aplica | G84: Não se aplica | H84: Não se aplica | I84: Não se aplica | J84: CATIVO | K84: 2022-04-01 | L84: 0 | M84: 0 | N84: 0 | O84: 0 | P84: 0 | Q84: 0 | AA84: 0 | AZ84: 0 | BI84: 764.82 | BJ84: 3523.08 | BK84: 53953.55 | BL84: 4 | CJ84: -0.03 | CO84: 0 | CP84: 0 | CQ84: 30 | DK84: 0 | EV84: 152 | FA84: 0 | FB84: -48.80228751 | FC84: -3.028738663 | FD84: -48.80228751 | FE84: -3.028738663 | FF84: 0 | FG84: 0 | FH84: 0 | FI84: 0
A85: 887 | B85: Sistema de Compensação | C85: Azul | D85: A4 | E85: Comercial | F85: Não se aplica | G85: Não se aplica | H85: Não se aplica | I85: Não se aplica | J85: CATIVO | K85: 2022-04-01 | L85: 0 | M85: 0 | N85: 0 | O85: 0 | P85: 0 | Q85: 0 | AA85: 0 | AZ85: 0 | BI85: 194.78 | BJ85: 897.23 | BK85: 13740.63 | BL85: 2 | CJ85: -0.03 | CO85: 0 | CP85: 0 | CQ85: 30 | DK85: 0 | EV85: 152 | FA85: 0 | FB85: -48.80228751 | FC85: -3.028738663 | FD85: -48.80228751 | FE85: -3.028738663 | FF85: 0 | FG85: 0 | FH85: 0 | FI85: 0
A86: 982 | B86: PROJETADO | C86: Azul | D86: A4 | E86: Comercial | F86: Não se aplica | G86: Não se aplica | H86: Não se aplica | I86: Não se aplica | J86: CATIVO | K86: 2022-05-01 | L86: 0 | M86: 0 | N86: 0 | O86: 0 | P86: 0 | Q86: 0 | AA86: 0 | AZ86: 0 | BI86: 764.82 | BJ86: 3523.08 | BK86: 53953.55 | BL86: 4 | CJ86: -0.03 | CO86: 0 | CP86: 0 | CQ86: 31 | DK86: 0 | EV86: 152 | FA86: 0 | FB86: -48.80228751 | FC86: -3.028738663 | FD86: -48.80228751 | FE86: -3.028738663 | FF86: 0 | FG86: 0 | FH86: 0 | FI86: 0
A87: 983 | B87: PROJETADO | C87: Azul | D87: A4 | E87: Comercial | F87: Não se aplica | G87: Não se aplica | H87: Não se aplica | I87: Não se aplica | J87: CATIVO | K87: 2022-05-01 | L87: 0 | M87: 0 | N87: 0 | O87: 0 | P87: 0 | Q87: 0 | AA87: 0 | AZ87: 0 | BI87: 194.78 | BJ87: 897.23 | BK87: 13740.63 | BL87: 2 | CJ87: -0.03 | CO87: 0 | CP87: 0 | CQ87: 31 | DK87: 0 | EV87: 152 | FA87: 0 | FB87: -48.80228751 | FC87: -3.028738663 | FD87: -48.80228751 | FE87: -3.028738663 | FF87: 0 | FG87: 0 | FH87: 0 | FI87: 0
A88: 40 | B88: Regular | C88: Azul | D88: A4 | E88: Comercial | F88: Não se aplica | G88: Não se aplica | H88: Não se aplica | I88: Ponta | J88: CATIVO | K88: 2021-06-01 | L88: 427 | M88: 427 | N88: 15.509 | O88: 15.509 | P88: 15.509 | Q88: 15.509 | R88: 68.23 | S88: 76.24 | T88: 441.99 | U88: 29134.21 | V88: 8037.22907 | W88: 37171.43907 | X88: 37771.98832 | Y88: 0 | Z88: 814.5373064 | AA88: 0 | AB88: 0 | AC88: 0 | AD88: 13389.79791 | AE88: 15745.98936 | AF88: 6762.633648 | AG88: 0 | AH88: 0 | AI88: 0 | AJ88: 0 | AK88: 45.86267011 | AL88: 144.5646197 | AN88: 9.060120106 | AO88: 0 | AP88: 0 | AQ88: 0 | AR88: 0 | AS88: 0 | AT88: 0 | AU88: 0 | AV88: 54.08091791 | AW88: 14.11615945 | AX88: 0 | AY88: 0 | AZ88: 0 | BB88: 373.0221354 | BC88: 0 | BD88: 0.4583257272 | BE88: 0 | BF88: 0 | BG88: 119.1853789 | BH88: 6.185588922 | BI88: 0 | BJ88: 0 | BK88: 0 | BL88: 0 | BV88: 6882.277352 | CI88: 37772.5048 | CJ88: 601.03573 | CO88: 608.76902 | CP88: -8.21977 | CQ88: 30 | CR88: 316.5483192 | CS88: 0 | CT88: 0 | CU88: 0 | CV88: 0 | CW88: 0 | CX88: 0 | CY88: 0 | CZ88: 745.2577631 | DA88: 0 | DB88: 0 | DC88: -348.7239542 | DD88: 0 | DE88: 0 | DF88: -0.02363415915 | DG88: -6.145948279 | DH88: 0 | DI88: -92.12007796 | DK88: 0 | DL88: 0 | DM88: 0 | DN88: 2.949775153e-05 | DO88: 4.288829852 | DP88: -0.6092853149 | DQ88: 0 | DR88: 14.5275434 | DU88: 15745.98936 | DV88: 0 | DW88: 6.21183319 | DX88: 0.02624426746 | DY88: 534.01564 | DZ88: -358.10281 | EA88: 74.75338 | EB88: 349.88304 | EC88: -140.2101308 | ED88: 366.5373996 | EE88: 0.02484143442 | EF88: 0 | EG88: 0 | EH88: 6.459894346 | EI88: 0 | EJ88: 0 | EK88: 0 | EL88: 0 | EM88: 0 | EN88: 0 | EO88: 0 | EP88: 85.20881007 | EQ88: 49.62936363 | ER88: 0 | ES88: -16.7316685 | ET88: 0 | EU88: 0.09705332723 | EV88: 152 | EW88: 0 | EX88: 0 | EY88: 0 | FA88: 0 | FB88: -48.80228751 | FC88: -3.028738663 | FD88: -48.80228751 | FE88: -3.028738663 | FF88: 0 | FG88: 0 | FH88: 0 | FI88: 0
A89: 41 | B89: Refaturamento - Regular | C89: Azul | D89: A4 | E89: Comercial | F89: Não se aplica | G89: Não se aplica | H89: Não se aplica | I89: Ponta | J89: CATIVO | K89: 2021-06-01 | L89: -68 | M89: -68 | N89: 0 | O89: 0 | P89: 0 | Q89: 0 | R89: 68.23 | U89: -4639.64 | W89: -4639.64 | X89: -4739.6 | Y89: 0 | Z89: 0 | AA89: 0 | AB89: 0 | AC89: 0 | AD89: -2132.333157 | AE89: -2507.558024 | AI89: 0 | AJ89: 0 | AK89: 0 | AL89: 0 | AN89: 0 | AO89: 0 | AP89: 0 | AQ89: 0 | AR89: 0 | AU89: 0 | AV89: 0 | AW89: 0 | AZ89: 0 | BB89: 0 | BC89: 0 | BD89: 0 | BE89: 0 | BG89: 0 | BH89: 0 | BI89: 0 | BJ89: 0 | BK89: 0 | BL89: 0 | BV89: 0 | CI89: -4739.6 | CJ89: -99.99 | CO89: -99.96 | CP89: 0 | CQ89: 30 | CR89: -122.3437171 | CS89: 0 | CT89: 0 | CU89: 0 | CV89: 0 | CZ89: -118.6827351 | DA89: 0 | DB89: 0 | DE89: 0 | DF89: 0 | DG89: 0 | DH89: 0 | DI89: 0 | DK89: 0 | DL89: 0 | DN89: 0 | DO89: 0 | DP89: 0 | DQ89: 0 | DR89: -3.660982008 | DU89: -2507.558024 | DW89: 0 | DX89: 0 | DY89: -99.96 | EA89: 0 | EC89: 22.32854542 | EE89: 0 | EF89: 0 | EH89: 0 | EI89: 0 | EJ89: 0 | EK89: 0 | EL89: 0 | EO89: 0 | EP89: 0 | ER89: 0 | ET89: 0 | EV89: 152 | FA89: 0 | FB89: -48.80228751 | FC89: -3.028738663 | FD89: -48.80228751 | FE89: -3.028738663 | FF89: 0 | FG89: 0 | FH89: 0 | FI89: 0
A90: 42 | B90: Sistema de Compensação | C90: Azul | D90: A4 | E90: Comercial | F90: Não se aplica | G90: Não se aplica | H90: Não se aplica | I90: Ponta | J90: CATIVO | K90: 2021-06-01 | L90: 36 | M90: 36 | N90: 1.337 | O90: 1.337 | P90: 1.337 | Q90: 1.337 | R90: 68.23 | S90: 76.24 | T90: 441.99 | U90: 2456.28 | V90: 692.87351 | W90: 3149.15351 | X90: 3199.73376 | Y90: 0 | Z90: 70.21963883 | AA90: 0 | AB90: 0 | AC90: 0 | AD90: 1128.88226 | AE90: 1327.530719 | AF90: 582.9931773 | AG90: 0 | AH90: 0 | AI90: 0 | AJ90: 0 | AK90: 3.953729444 | AL90: 12.46262793 | AN90: 0.7810549089 | AO90: 0 | AP90: 0 | AQ90: 0 | AR90: 0 | AS90: 0 | AT90: 0 | AU90: 0 | AV90: 4.662208217 | AW90: 1.21692599 | AX90: 0 | AY90: 0 | AZ90: 0 | BB90: 32.15749533 | BC90: 0 | BD90: 0.03951134807 | BE90: 0 | BF90: 0 | BG90: 10.27473413 | BH90: 0.5332473009 | BI90: 0 | BJ90: 0 | BK90: 0 | BL90: 0 | BV90: 593.3074228 | CI90: 3201.2832 | CJ90: 52.09969 | CO90: 51.28886 | CP90: -0.70861 | CQ90: 30 | CR90: 25.83019608 | CS90: 0 | CT90: 0 | CU90: 0 | CV90: 0 | CW90: 0 | CX90: 0 | CY90: 0 | CZ90: 62.83203623 | DA90: 0 | DB90: 0 | DC90: -30.06279752 | DD90: 0 | DE90: 0 | DF90: -0.002037453787 | DG90: -0.52982996 | DH90: 0 | DI90: -7.941488441 | DK90: 0 | DL90: 0 | DM90: 0 | DN90: 2.542942408e-06 | DO90: 0.3697314792 | DP90: -0.05252527345 | DQ90: 0 | DR90: 1.208737704 | DU90: 1327.530719 | DV90: 0 | DW90: 0.5355097669 | DX90: 0.002262466026 | DY90: 44.84452 | DZ90: -30.87133 | EA90: 6.44434 | EB90: 30.16272 | EC90: -11.82099463 | ED90: 31.59845917 | EE90: 0.002141530583 | EF90: 0 | EG90: 0 | EH90: 0.5568946251 | EI90: 0 | EJ90: 0 | EK90: 0 | EL90: 0 | EM90: 0 | EN90: 0 | EO90: 0 | EP90: 7.345681802 | EQ90: 4.278448589 | ER90: 0 | ES90: -1.442403816 | ET90: 0 | EU90: 0.008366774035 | EV90: 152 | EW90: 0 | EX90: 0 | EY90: 0 | FA90: 0 | FB90: -48.80228751 | FC90: -3.028738663 | FD90: -48.80228751 | FE90: -3.028738663 | FF90: 0 | FG90: 0 | FH90: 0 | FI90: 0
A91: 122 | B91: Regular | C91: Azul | D91: A4 | E91: Comercial | F91: Não se aplica | G91: Não se aplica | H91: Não se aplica | I91: Ponta | J91: CATIVO | K91: 2021-07-01 | L91: 427 | M91: 427 | N91: 15.494 | O91: 15.494 | P91: 15.494 | Q91: 15.494 | R91: 68.23 | S91: 76.24 | T91: 441.99 | U91: 29134.21 | V91: 8029.45562 | W91: 37163.66562 | X91: 37764.24112 | Y91: 0 | Z91: 813.7495019 | AA91: 0 | AB91: 0 | AC91: 0 | AD91: 13389.79791 | AE91: 15745.98936 | AF91: 6756.092961 | AG91: 0 | AH91: 0 | AI91: 0 | AJ91: 0 | AK91: 45.81831264 | AL91: 144.4247996 | AN91: 9.051357336 | AO91: 0 | AP91: 0 | AQ91: 0 | AR91: 0 | AS91: 0 | AT91: 0 | AU91: 0 | AV91: 54.02861191 | AW91: 14.10250658 | AX91: 0 | AY91: 0 | AZ91: 0 | BB91: 372.6613557 | BC91: 0 | BD91: 0.4578824436 | BE91: 0 | BF91: 0 | BG91: 119.0701052 | BH91: 6.179606342 | BI91: 0 | BJ91: 0 | BK91: 0 | BL91: 0 | BV91: 6875.620949 | CI91: 37762.1752 | CJ91: 598.47958 | CO91: 608.78732 | CP91: -8.21182 | CQ91: 31 | CR91: 316.9851929 | CS91: 0 | CT91: 0 | CU91: 0 | CV91: 0 | CW91: 0 | CX91: 0 | CY91: 0 | CZ91: 745.2577631 | DA91: 0 | DB91: 0 | DC91: -348.3866753 | DD91: 0 | DE91: 0 | DF91: -0.02361130066 | DG91: -6.140004039 | DH91: 0 | DI91: -92.03098123 | DK91: 0 | DL91: 0 | DM91: 0 | DN91: 2.946922189e-05 | DO91: 4.28468178 | DP91: -0.6086960261 | DQ91: 0 | DR91: 14.53572698 | DU91: 15745.98936 | DV91: 0 | DW91: 6.205825227 | DX91: 0.02621888452 | DY91: 534.10624 | DZ91: -357.75646 | EA91: 74.68108 | EB91: 349.54464 | EC91: -140.2101308 | ED91: 366.1828918 | EE91: 0.02481740827 | EF91: 0 | EG91: 0 | EH91: 6.453646464 | EI91: 0 | EJ91: 0 | EK91: 0 | EL91: 0 | EM91: 0 | EN91: 0 | EO91: 0 | EP91: 85.12639779 | EQ91: 49.58136309 | ER91: 0 | ES91: -16.71548596 | ET91: 0 | EU91: 0.09695945916 | EV91: 152 | EW91: 0 | EX91: 0 | EY91: 0 | FA91: 0 | FB91: -48.80228751 | FC91: -3.028738663 | FD91: -48.80228751 | FE91: -3.028738663 | FF91: 0 | FG91: 0 | FH91: 0 | FI91: 0
A92: 123 | B92: Sistema de Compensação | C92: Azul | D92: A4 | E92: Comercial | F92: Não se aplica | G92: Não se aplica | H92: Não se aplica | I92: Ponta | J92: CATIVO | K92: 2021-07-01 | L92: 36 | M92: 36 | N92: 1.546 | O92: 1.546 | P92: 1.546 | Q92: 1.546 | R92: 68.23 | S92: 76.24 | T92: 441.99 | U92: 2456.28 | V92: 801.18358 | W92: 3257.46358 | X92: 3307.67808 | Y92: 0 | Z92: 81.19638118 | AA92: 0 | AB92: 0 | AC92: 0 | AD92: 1128.88226 | AE92: 1327.530719 | AF92: 674.1267405 | AG92: 0 | AH92: 0 | AI92: 0 | AJ92: 0 | AK92: 4.571776903 | AL92: 14.41078742 | AN92: 0.9031495057 | AO92: 0 | AP92: 0 | AQ92: 0 | AR92: 0 | AS92: 0 | AT92: 0 | AU92: 0 | AV92: 5.391005164 | AW92: 1.407156007 | AX92: 0 | AY92: 0 | AZ92: 0 | BB92: 37.18435884 | BC92: 0 | BD92: 0.04568776673 | BE92: 0 | BF92: 0 | BG92: 11.8808818 | BH92: 0.6166045828 | BI92: 0 | BJ92: 0 | BK92: 0 | BL92: 0 | BV92: 686.0533101 | CI92: 3309.744 | CJ92: 52.25042 | CO92: 51.03388 | CP92: -0.81938 | CQ92: 31 | CR92: 19.74308951 | CS92: 0 | CT92: 0 | CU92: 0 | CV92: 0 | CW92: 0 | CX92: 0 | CY92: 0 | CZ92: 62.83203623 | DA92: 0 | DB92: 0 | DC92: -34.76221763 | DD92: 0 | DE92: 0 | DF92: -0.002355948807 | DG92: -0.6126530427 | DH92: 0 | DI92: -9.182902865 | DK92: 0 | DL92: 0 | DM92: 0 | DN92: 2.940455469e-06 | DO92: 0.4275279483 | DP92: -0.06073603049 | DQ92: 0 | DR92: 1.094713238 | DU92: 1327.530719 | DV92: 0 | DW92: 0.6192207177 | DX92: 0.002616134986 | DY92: 43.58216 | DZ92: -35.69714 | EA92: 7.45172 | EB92: 34.87776 | EC92: -11.82099463 | ED92: 36.53793409 | EE92: 0.0024762949 | EF92: 0 | EG92: 0 | EH92: 0.6439484596 | EI92: 0 | EJ92: 0 | EK92: 0 | EL92: 0 | EM92: 0 | EN92: 0 | EO92: 0 | EP92: 8.49395966 | EQ92: 4.947256185 | ER92: 0 | ES92: -1.667880553 | ET92: 0 | EU92: 0.009674669153 | EV92: 152 | EW92: 0 | EX92: 0 | EY92: 0 | FA92: 0 | FB92: -48.80228751 | FC92: -3.028738663 | FD92: -48.80228751 | FE92: -3.028738663 | FF92: 0 | FG92: 0 | FH92: 0 | FI92: 0
A93: 205 | B93: Regular | C93: Azul | D93: A4 | E93: Comercial | F93: Não se aplica | G93: Não se aplica | H93: Não se aplica | I93: Ponta | J93: CATIVO | K93: 2021-08-01 | L93: 427 | M93: 427 | N93: 16.159 | O93: 16.159 | P93: 16.159 | Q93: 16.159 | R93: 68.23 | S93: 76.24 | T93: 441.99 | U93: 29134.21 | V93: 8374.07857 | W93: 37508.28857 | X93: 38107.70032 | Y93: 0 | Z93: 848.6755003 | AA93: 0 | AB93: 0 | AC93: 0 | AD93: 13389.79791 | AE93: 15745.98936 | AF93: 7046.06339 | AG93: 0 | AH93: 0 | AI93: 0 | AJ93: 0 | AK93: 47.78482729 | AL93: 150.6234889 | AN93: 9.439840144 | AO93: 0 | AP93: 0 | AQ93: 0 | AR93: 0 | AS93: 0 | AT93: 0 | AU93: 0 | AV93: 56.34751128 | AW93: 14.7077839 | AX93: 0 | AY93: 0 | AZ93: 0 | BB93: 388.6559215 | BC93: 0 | BD93: 0.4775346848 | BE93: 0 | BF93: 0 | BG93: 124.180575 | BH93: 6.444834057 | BI93: 0 | BJ93: 0 | BK93: 0 | BL93: 0 | BV93: 7170.721499 | CI93: 38108.2168 | CJ93: 599.89823 | CO93: 607.97602 | CP93: -8.56427 | CQ93: 31 | CR93: 297.6171265 | CS93: 0 | CT93: 0 | CU93: 0 | CV93: 0 | CW93: 0 | CX93: 0 | CY93: 0 | CZ93: 745.2577631 | DA93: 0 | DB93: 0 | DC93: -363.3393756 | DD93: 0 | DE93: 0 | DF93: -0.0246246939 | DG93: -6.403532029 | DH93: 0 | DI93: -95.98093621 | DK93: 0 | DL93: 0 | DM93: 0 | DN93: 3.073403618e-05 | DO93: 4.468579636 | DP93: -0.6348211621 | DQ93: 0 | DR93: 14.17292186 | DU93: 15745.98936 | DV93: 0 | DW93: 6.472178252 | DX93: 0.02734419485 | DY93: 530.08964 | DZ93: -373.11131 | EA93: 77.88638 | EB93: 364.54704 | EC93: -140.2101308 | ED93: 381.8994029 | EE93: 0.02588256746 | EF93: 0 | EG93: 0 | EH93: 6.730635937 | EI93: 0 | EJ93: 0 | EK93: 0 | EL93: 0 | EM93: 0 | EN93: 0 | EO93: 0 | EP93: 88.78000915 | EQ93: 51.70938725 | ER93: 0 | ES93: -17.43291194 | ET93: 0 | EU93: 0.1011209436 | EV93: 152 | EW93: 0 | EX93: 0 | EY93: 0 | FA93: 0 | FB93: -48.80228751 | FC93: -3.028738663 | FD93: -48.80228751 | FE93: -3.028738663 | FF93: 0 | FG93: 0 | FH93: 0 | FI93: 0
A94: 206 | B94: Sistema de Compensação | C94: Azul | D94: A4 | E94: Comercial | F94: Não se aplica | G94: Não se aplica | H94: Não se aplica | I94: Ponta | J94: CATIVO | K94: 2021-08-01 | L94: 48 | M94: 48 | N94: 2.062 | O94: 2.062 | P94: 2.062 | Q94: 2.062 | R94: 68.23 | S94: 76.24 | T94: 441.99 | U94: 3275.04 | V94: 1068.59026 | W94: 4343.63026 | X94: 4410.58176 | Y94: 0 | Z94: 108.2968551 | AA94: 0 | AB94: 0 | AC94: 0 | AD94: 1505.176346 | AE94: 1770.040958 | AF94: 899.1263512 | AG94: 0 | AH94: 0 | AI94: 0 | AJ94: 0 | AK94: 6.097673981 | AL94: 19.22059745 | AN94: 1.204588797 | AO94: 0 | AP94: 0 | AQ94: 0 | AR94: 0 | AS94: 0 | AT94: 0 | AU94: 0 | AV94: 7.190331596 | AW94: 1.876814803 | AX94: 0 | AY94: 0 | AZ94: 0 | BB94: 49.59517978 | BC94: 0 | BD94: 0.06093672381 | BE94: 0 | BF94: 0 | BG94: 15.84629901 | BH94: 0.8224053361 | BI94: 0 | BJ94: 0 | BK94: 0 | BL94: 0 | BV94: 915.033587 | CI94: 4409.5488 | CJ94: 65.88854 | CO94: 68.04436 | CP94: -1.09286 | CQ94: 31 | CR94: 26.30470274 | CS94: 0 | CT94: 0 | CU94: 0 | CV94: 0 | CW94: 0 | CX94: 0 | CY94: 0 | CZ94: 83.77604831 | DA94: 0 | DB94: 0 | DC94: -46.36461368 | DD94: 0 | DE94: 0 | DF94: -0.003142281009 | DG94: -0.8171349121 | DH94: 0 | DI94: -12.24783034 | DK94: 0 | DL94: 0 | DM94: 0 | DN94: 3.921875276e-06 | DO94: 0.5702216232 | DP94: -0.08100756459 | DQ94: 0 | DR94: 1.459253936 | DU94: 1770.040958 | DV94: 0 | DW94: 0.8258946442 | DX94: 0.003489308112 | DY94: 58.10552 | DZ94: -47.61158 | EA94: 9.93884 | EB94: 46.51872 | EC94: -15.76132618 | ED94: 48.73300135 | EE94: 0.003302794362 | EF94: 0 | EG94: 0 | EH94: 0.8588756298 | EI94: 0 | EJ94: 0 | EK94: 0 | EL94: 0 | EM94: 0 | EN94: 0 | EO94: 0 | EP94: 11.32894232 | EQ94: 6.598474938 | ER94: 0 | ES94: -2.224559962 | ET94: 0 | EU94: 0.01290373079 | EV94: 152 | EW94: 0 | EX94: 0 | EY94: 0 | FA94: 0 | FB94: -48.80228751 | FC94: -3.028738663 | FD94: -48.80228751 | FE94: -3.028738663 | FF94: 0 | FG94: 0 | FH94: 0 | FI94: 0
A95: 285 | B95: Regular | C95: Azul | D95: A4 | E95: Comercial | F95: Não se aplica | G95: Não se aplica | H95: Não se aplica | I95: Ponta | J95: CATIVO | K95: 2021-09-01 | L95: 427 | M95: 427 | N95: 16.296 | O95: 16.296 | P95: 16.296 | Q95: 16.296 | R95: 68.23 | S95: 76.24 | T95: 441.99 | U95: 29134.21 | V95: 8445.07608 | W95: 37579.28608 | X95: 38178.45808 | Y95: 0 | Z95: 855.8707812 | AA95: 0 | AB95: 0 | AC95: 0 | AD95: 13389.79791 | AE95: 15745.98936 | AF95: 7105.801658 | AG95: 0 | AH95: 0 | AI95: 0 | AJ95: 0 | AK95: 48.18995887 | AL95: 151.9005121 | AN95: 9.519873445 | AO95: 0 | AP95: 0 | AQ95: 0 | AR95: 0 | AS95: 0 | AT95: 0 | AU95: 0 | AV95: 56.82523942 | AW95: 14.83248013 | AX95: 0 | AY95: 0 | AZ95: 0 | BB95: 391.9510425 | BC95: 0 | BD95: 0.481583342 | BE95: 0 | BF95: 0 | BG95: 125.2334087 | BH95: 6.499474955 | BI95: 0 | BJ95: 0 | BK95: 0 | BL95: 0 | BV95: 7231.51665 | CI95: 38180.524 | CJ95: 601.20792 | CO95: 607.80888 | CP95: -8.63688 | CQ95: 30 | CR95: 293.6270136 | CS95: 0 | CT95: 0 | CU95: 0 | CV95: 0 | CW95: 0 | CX95: 0 | CY95: 0 | CZ95: 745.2577631 | DA95: 0 | DB95: 0 | DC95: -366.4198567 | DD95: 0 | DE95: 0 | DF95: -0.02483346815 | DG95: -6.457822758 | DH95: 0 | DI95: -96.79468634 | DK95: 0 | DL95: 0 | DM95: 0 | DN95: 3.099460694e-05 | DO95: 4.50646536 | DP95: -0.640203333 | DQ95: 0 | DR95: 14.09817855 | DU95: 15745.98936 | DV95: 0 | DW95: 6.527050981 | DX95: 0.0275760257 | DY95: 529.26216 | DZ95: -376.27464 | EA95: 78.54672 | EB95: 367.63776 | EC95: -140.2101308 | ED95: 385.1372406 | EE95: 0.02610200627 | EF95: 0 | EG95: 0 | EH95: 6.787699934 | EI95: 0 | EJ95: 0 | EK95: 0 | EL95: 0 | EM95: 0 | EN95: 0 | EO95: 0 | EP95: 89.53270804 | EQ95: 52.14779223 | ER95: 0 | ES95: -17.58071248 | ET95: 0 | EU95: 0.101978272 | EV95: 152 | EW95: 0 | EX95: 0 | EY95: 0 | FA95: 0 | FB95: -48.80228751 | FC95: -3.028738663 | FD95: -48.80228751 | FE95: -3.028738663 | FF95: 0 | FG95: 0 | FH95: 0 | FI95: 0
A96: 286 | B96: Sistema de Compensação | C96: Azul | D96: A4 | E96: Comercial | F96: Não se aplica | G96: Não se aplica | H96: Não se aplica | I96: Ponta | J96: CATIVO | K96: 2021-09-01 | L96: 36 | M96: 36 | N96: 1.326 | O96: 1.326 | P96: 1.326 | Q96: 1.326 | R96: 68.23 | S96: 76.24 | T96: 441.99 | U96: 2456.28 | V96: 687.17298 | W96: 3143.45298 | X96: 3194.05248 | Y96: 0 | Z96: 69.64191555 | AA96: 0 | AB96: 0 | AC96: 0 | AD96: 1128.88226 | AE96: 1327.530719 | AF96: 578.196674 | AG96: 0 | AH96: 0 | AI96: 0 | AJ96: 0 | AK96: 3.92120063 | AL96: 12.36009322 | AN96: 0.7746288775 | AO96: 0 | AP96: 0 | AQ96: 0 | AR96: 0 | AS96: 0 | AT96: 0 | AU96: 0 | AV96: 4.623850483 | AW96: 1.206913884 | AX96: 0 | AY96: 0 | AZ96: 0 | BB96: 31.89292356 | BC96: 0 | BD96: 0.03918627341 | BE96: 0 | BF96: 0 | BG96: 10.19020004 | BH96: 0.5288600755 | BI96: 0 | BJ96: 0 | BK96: 0 | BL96: 0 | BV96: 588.4260603 | CI96: 3196.1184 | CJ96: 52.63542 | CO96: 51.30228 | CP96: -0.70278 | CQ96: 30 | CR96: 26.15057011 | CS96: 0 | CT96: 0 | CU96: 0 | CV96: 0 | CW96: 0 | CX96: 0 | CY96: 0 | CZ96: 62.83203623 | DA96: 0 | DB96: 0 | DC96: -29.81545962 | DD96: 0 | DE96: 0 | DF96: -0.002020690892 | DG96: -0.5254708504 | DH96: 0 | DI96: -7.87615084 | DK96: 0 | DL96: 0 | DM96: 0 | DN96: 2.522020667e-06 | DO96: 0.3666895598 | DP96: -0.05209312835 | DQ96: 0 | DR96: 1.214738992 | DU96: 1327.530719 | DV96: 0 | DW96: 0.5311039274 | DX96: 0.00224385187 | DY96: 44.91096 | DZ96: -30.61734 | EA96: 6.39132 | EB96: 29.91456 | EC96: -11.82099463 | ED96: 31.33848681 | EE96: 0.002123911409 | EF96: 0 | EG96: 0 | EH96: 0.5523128444 | EI96: 0 | EJ96: 0 | EK96: 0 | EL96: 0 | EM96: 0 | EN96: 0 | EO96: 0 | EP96: 7.285246125 | EQ96: 4.24324819 | ER96: 0 | ES96: -1.430536619 | ET96: 0 | EU96: 0.00829793745 | EV96: 152 | EW96: 0 | EX96: 0 | EY96: 0 | FA96: 0 | FB96: -48.80228751 | FC96: -3.028738663 | FD96: -48.80228751 | FE96: -3.028738663 | FF96: 0 | FG96: 0 | FH96: 0 | FI96: 0
A97: 373 | B97: Regular | C97: Azul | D97: A4 | E97: Comercial | F97: Não se aplica | G97: Não se aplica | H97: Não se aplica | I97: Ponta | J97: CATIVO | K97: 2021-10-01 | L97: 437 | M97: 437 | N97: 16.533 | O97: 16.533 | P97: 16.533 | Q97: 16.533 | R97: 68.23 | S97: 76.24 | T97: 441.99 | U97: 29816.51 | V97: 8567.89659 | W97: 38384.40659 | X97: 38997.86384 | Y97: 0 | Z97: 868.3180919 | AA97: 0 | AB97: 0 | AC97: 0 | AD97: 13703.37632 | AE97: 16114.74789 | AF97: 7209.144503 | AG97: 0 | AH97: 0 | AI97: 0 | AJ97: 0 | AK97: 48.89080695 | AL97: 154.109669 | AN97: 9.658325212 | AO97: 0 | AP97: 0 | AQ97: 0 | AR97: 0 | AS97: 0 | AT97: 0 | AU97: 0 | AV97: 57.65167424 | AW97: 15.04819551 | AX97: 0 | AY97: 0 | AZ97: 0 | BB97: 397.6513614 | BC97: 0 | BD97: 0.4885872234 | BE97: 0 | BF97: 0 | BG97: 127.054734 | BH97: 6.59399972 | BI97: 0 | BJ97: 0 | BK97: 0 | BL97: 0 | BV97: 7336.687824 | CI97: 38996.3144 | CJ97: 611.87781 | CO97: 622.21974 | CP97: -8.76249 | CQ97: 31 | CR97: 304.7161326 | CS97: 0 | CT97: 0 | CU97: 0 | CV97: 0 | CW97: 0 | CX97: 0 | CY97: 0 | CZ97: 762.7111065 | DA97: 0 | DB97: 0 | DC97: -371.7488642 | DD97: 0 | DE97: 0 | DF97: -0.02519463236 | DG97: -6.551741756 | DH97: 0 | DI97: -98.20241466 | DK97: 0 | DL97: 0 | DM97: 0 | DN97: 3.144537533e-05 | DO97: 4.572004896 | DP97: -0.6495140958 | DQ97: 0 | DR97: 14.50725778 | DU97: 16114.74789 | DV97: 0 | DW97: 6.621976796 | DX97: 0.02797707614 | DY97: 542.53068 | DZ97: -381.74697 | EA97: 79.68906 | EB97: 372.98448 | EC97: -143.4937404 | ED97: 390.7384633 | EE97: 0.02648161939 | EF97: 0 | EG97: 0 | EH97: 6.886416483 | EI97: 0 | EJ97: 0 | EK97: 0 | EL97: 0 | EM97: 0 | EN97: 0 | EO97: 0 | EP97: 90.83482216 | EQ97: 52.90620084 | ER97: 0 | ES97: -17.83639663 | ET97: 0 | EU97: 0.1034613875 | EV97: 152 | EW97: 0 | EX97: 0 | EY97: 0 | FA97: 0 | FB97: -48.80228751 | FC97: -3.028738663 | FD97: -48.80228751 | FE97: -3.028738663 | FF97: 0 | FG97: 0 | FH97: 0 | FI97: 0
A98: 374 | B98: Sistema de Compensação | C98: Azul | D98: A4 | E98: Comercial | F98: Não se aplica | G98: Não se aplica | H98: Não se aplica | I98: Ponta | J98: CATIVO | K98: 2021-10-01 | L98: 36 | M98: 36 | N98: 1.222 | O98: 1.222 | P98: 1.222 | Q98: 1.222 | R98: 68.23 | S98: 76.24 | T98: 441.99 | U98: 2456.28 | V98: 633.27706 | W98: 3089.55706 | X98: 3140.33856 | Y98: 0 | Z98: 64.17980453 | AA98: 0 | AB98: 0 | AC98: 0 | AD98: 1128.88226 | AE98: 1327.530719 | AF98: 532.8479152 | AG98: 0 | AH98: 0 | AI98: 0 | AJ98: 0 | AK98: 3.613655483 | AL98: 11.39067414 | AN98: 0.7138736714 | AO98: 0 | AP98: 0 | AQ98: 0 | AR98: 0 | AS98: 0 | AT98: 0 | AU98: 0 | AV98: 4.261195543 | AW98: 1.112253972 | AX98: 0 | AY98: 0 | AZ98: 0 | BB98: 29.39151779 | BC98: 0 | BD98: 0.0361128402 | BE98: 0 | BF98: 0 | BG98: 9.390968667 | BH98: 0.4873808539 | BI98: 0 | BJ98: 0 | BK98: 0 | BL98: 0 | BV98: 542.2749967 | CI98: 3139.3056 | CJ98: 49.71854 | CO98: 51.42916 | CP98: -0.64766 | CQ98: 31 | CR98: 29.17956094 | CS98: 0 | CT98: 0 | CU98: 0 | CV98: 0 | CW98: 0 | CX98: 0 | CY98: 0 | CZ98: 62.83203623 | DA98: 0 | DB98: 0 | DC98: -27.4769922 | DD98: 0 | DE98: 0 | DF98: -0.001862205331 | DG98: -0.4842574503 | DH98: 0 | DI98: -7.258413519 | DK98: 0 | DL98: 0 | DM98: 0 | DN98: 2.324215125e-06 | DO98: 0.3379295943 | DP98: -0.04800739279 | DQ98: 0 | DR98: 1.271478439 | DU98: 1327.530719 | DV98: 0 | DW98: 0.4894487174 | DX98: 0.002067863488 | DY98: 45.53912 | DZ98: -28.21598 | EA98: 5.89004 | EB98: 27.56832 | EC98: -11.82099463 | ED98: 28.88056627 | EE98: 0.001957330122 | EF98: 0 | EG98: 0 | EH98: 0.5089941899 | EI98: 0 | EJ98: 0 | EK98: 0 | EL98: 0 | EM98: 0 | EN98: 0 | EO98: 0 | EP98: 6.713854272 | EQ98: 3.91044441 | ER98: 0 | ES98: -1.318337669 | ET98: 0 | EU98: 0.007647118826 | EV98: 152 | EW98: 0 | EX98: 0 | EY98: 0 | FA98: 0 | FB98: -48.80228751 | FC98: -3.028738663 | FD98: -48.80228751 | FE98: -3.028738663 | FF98: 0 | FG98: 0 | FH98: 0 | FI98: 0
A99: 452 | B99: Regular | C99: Azul | D99: A4 | E99: Comercial | F99: Não se aplica | G99: Não se aplica | H99: Não se aplica | I99: Ponta | J99: CATIVO | K99: 2021-11-01 | L99: 439 | M99: 439 | N99: 15.78 | O99: 15.78 | P99: 15.78 | Q99: 15.78 | R99: 68.23 | S99: 76.24 | T99: 441.99 | U99: 29952.97 | V99: 8177.6694 | W99: 38130.6394 | X99: 38748.3544 | Y99: 0 | Z99: 828.7703073 | AA99: 0 | AB99: 0 | AC99: 0 | AD99: 13766.092 | AE99: 16188.4996 | AF99: 6880.802048 | AG99: 0 | AH99: 0 | AI99: 0 | AJ99: 0 | AK99: 46.6640618 | AL99: 147.0907021 | AN99: 9.218434153 | AO99: 0 | AP99: 0 | AQ99: 0 | AR99: 0 | AS99: 0 | AT99: 0 | AU99: 0 | AV99: 55.02591299 | AW99: 14.36282134 | AX99: 0 | AY99: 0 | AZ99: 0 | BB99: 379.5402216 | BC99: 0 | BD99: 0.4663343849 | BE99: 0 | BF99: 0 | BG99: 121.2679915 | BH99: 6.293674202 | BI99: 0 | BJ99: 0 | BK99: 0 | BL99: 0 | BV99: 7002.536374 | CI99: 38748.3544 | CJ99: 617.685 | CO99: 626.0784 | CP99: -8.3634 | CQ99: 30 | CR99: 330.2455358 | CS99: 0 | CT99: 0 | CU99: 0 | CV99: 0 | CW99: 0 | CX99: 0 | CY99: 0 | CZ99: 766.2017751 | DA99: 0 | DB99: 0 | DC99: -354.8174607 | DD99: 0 | DE99: 0 | DF99: -0.02404713595 | DG99: -6.253340889 | DH99: 0 | DI99: -93.72975886 | DK99: 0 | DL99: 0 | DM99: 0 | DN99: 3.001318714e-05 | DO99: 4.363771685 | DP99: -0.6199317989 | DQ99: 0 | DR99: 15.02574915 | DU99: 16188.4996 | DV99: 0 | DW99: 6.320377054 | DX99: 0.02670285257 | DY99: 550.0188 | DZ99: -364.3602 | EA99: 76.0596 | EB99: 355.9968 | EC99: -144.1504624 | ED99: 372.9421733 | EE99: 0.02527550681 | EF99: 0 | EG99: 0 | EH99: 6.572772763 | EI99: 0 | EJ99: 0 | EK99: 0 | EL99: 0 | EM99: 0 | EN99: 0 | EO99: 0 | EP99: 86.69772538 | EQ99: 50.49657348 | ER99: 0 | ES99: -17.02403307 | ET99: 0 | EU99: 0.09874921037 | EV99: 152 | EW99: 0 | EX99: 0 | EY99: 0 | FA99: 0 | FB99: -48.80228751 | FC99: -3.028738663 | FD99: -48.80228751 | FE99: -3.028738663 | FF99: 0 | FG99: 0 | FH99: 0 | FI99: 0
A100: 453 | B100: Sistema de Compensação | C100: Azul | D100: A4 | E100: Comercial | F100: Não se aplica | G100: Não se aplica | H100: Não se aplica | I100: Ponta | J100: CATIVO | K100: 2021-11-01 | L100: 36 | M100: 36 | N100: 1.195 | O100: 1.195 | P100: 1.195 | Q100: 1.195 | R100: 68.23 | S100: 76.24 | T100: 441.99 | U100: 2456.28 | V100: 619.28485 | W100: 3075.56485 | X100: 3126.3936 | Y100: 0 | Z100: 62.76175647 | AA100: 0 | AB100: 0 | AC100: 0 | AD100: 1128.88226 | AE100: 1327.530719 | AF100: 521.0746798 | AG100: 0 | AH100: 0 | AI100: 0 | AJ100: 0 | AK100: 3.533812031 | AL100: 11.13899803 | AN100: 0.6981006852 | AO100: 0 | AP100: 0 | AQ100: 0 | AR100: 0 | AS100: 0 | AT100: 0 | AU100: 0 | AV100: 4.167044742 | AW100: 1.087678802 | AX100: 0 | AY100: 0 | AZ100: 0 | BB100: 28.74211437 | BC100: 0 | BD100: 0.03531492966 | BE100: 0 | BF100: 0 | BG100: 9.183475906 | BH100: 0.4766122098 | BI100: 0 | BJ100: 0 | BK100: 0 | BL100: 0 | BV100: 530.2934706 | CI100: 3128.976 | CJ100: 53.38115 | CO100: 51.4621 | CP100: -0.63335 | CQ100: 30 | CR100: 29.96593356 | CS100: 0 | CT100: 0 | CU100: 0 | CV100: 0 | CW100: 0 | CX100: 0 | CY100: 0 | CZ100: 62.83203623 | DA100: 0 | DB100: 0 | DC100: -26.86989008 | DD100: 0 | DE100: 0 | DF100: -0.001821060042 | DG100: -0.4735578176 | DH100: 0 | DI100: -7.098039407 | DK100: 0 | DL100: 0 | DM100: 0 | DN100: 2.272861763e-06 | DO100: 0.3304630648 | DP100: -0.04694667298 | DQ100: 0 | DR100: 1.286208872 | DU100: 1327.530719 | DV100: 0 | DW100: 0.478634384 | DX100: 0.002022174197 | DY100: 45.7022 | DZ100: -27.59255 | EA100: 5.7599 | EB100: 26.9592 | EC100: -11.82099463 | ED100: 28.24245229 | EE100: 0.001914083057 | EF100: 0 | EG100: 0 | EH100: 0.4977480008 | EI100: 0 | EJ100: 0 | EK100: 0 | EL100: 0 | EM100: 0 | EN100: 0 | EO100: 0 | EP100: 6.565512157 | EQ100: 3.824043429 | ER100: 0 | ES100: -1.289209095 | ET100: 0 | EU100: 0.007478156299 | EV100: 152 | EW100: 0 | EX100: 0 | EY100: 0 | FA100: 0 | FB100: -48.80228751 | FC100: -3.028738663 | FD100: -48.80228751 | FE100: -3.028738663 | FF100: 0 | FG100: 0 | FH100: 0 | FI100: 0
A101: 541 | B101: Regular | C101: Azul | D101: A4 | E101: Comercial | F101: Não se aplica | G101: Não se aplica | H101: Não se aplica | I101: Ponta | J101: CATIVO | K101: 2021-12-01 | L101: 429 | M101: 429 | N101: 19.278 | O101: 19.278 | P101: 19.278 | Q101: 19.278 | R101: 68.23 | S101: 76.24 | T101: 441.99 | U101: 29270.67 | V101: 9990.43794 | W101: 39261.10794 | X101: 39858.00144 | Y101: 0 | Z101: 1012.486311 | AA101: 0 | AB101: 0 | AC101: 0 | AD101: 13452.51359 | AE101: 15819.74107 | AF101: 8406.090106 | AG101: 0 | AH101: 0 | AI101: 0 | AJ101: 0 | AK101: 57.00822454 | AL101: 179.6967398 | AN101: 11.26191214 | AO101: 0 | AP101: 0 | AQ101: 0 | AR101: 0 | AS101: 0 | AT101: 0 | AU101: 0 | AV101: 67.22367241 | AW101: 17.54667109 | AX101: 0 | AY101: 0 | AZ101: 0 | BB101: 463.6740426 | BC101: 0 | BD101: 0.5697081288 | BE101: 0 | BF101: 0 | BG101: 148.1498314 | BH101: 7.688811867 | BI101: 0 | BJ101: 0 | BK101: 0 | BL101: 0 | BV101: 8554.809646 | CI101: 39859.0344 | CJ101: 597.89646 | CO101: 607.11084 | CP101: -10.21734 | CR101: 210.3748712 | CS101: 0 | CT101: 0 | CU101: 0 | CV101: 0 | CW101: 0 | CX101: 0 | CY101: 0 | CZ101: 748.7484318 | DA101: 0 | DB101: 0 | DC101: -433.470913 | DD101: 0 | DE101: 0 | DF101: -0.02937773681 | DG101: -7.639537748 | DH101: 0 | DI101: -114.5071161 | DK101: 0 | DL101: 0 | DM101: 0 | DN101: 3.666630048e-05 | DO101: 5.331102062 | DP101: -0.7573539429 | DQ101: 0 | DR101: 12.57895995 | DU101: 15819.74107 | DV101: 0 | DW101: 7.721434021 | DX101: 0.03262215411 | DY101: 514.19088 | DZ101: -445.12902 | EA101: 92.91996 | EB101: 434.91168 | EC101: -140.8668527 | ED101: 455.6133851 | EE101: 0.03087840432 | EF101: 0 | EG101: 0 | EH101: 8.029779045 | EI101: 0 | EJ101: 0 | EK101: 0 | EL101: 0 | EM101: 0 | EN101: 0 | EO101: 0 | EP101: 105.9162706 | EQ101: 61.6903006 | ER101: 0 | ES101: -20.79780162 | ET101: 0 | EU101: 0.1206392445 | EV101: 152 | EW101: 0 | EX101: 0 | EY101: 0 | FA101: 0 | FB101: -48.80228751 | FC101: -3.028738663 | FD101: -48.80228751 | FE101: -3.028738663 | FF101: 0 | FG101: 0 | FH101: 0 | FI101: 0
A102: 542 | B102: Sistema de Compensação | C102: Azul | D102: A4 | E102: Comercial | F102: Não se aplica | G102: Não se aplica | H102: Não se aplica | I102: Ponta | J102: CATIVO | K102: 2021-12-01 | L102: 36 | M102: 36 | N102: 1.195 | O102: 1.195 | P102: 1.195 | Q102: 1.195 | R102: 68.23 | S102: 76.24 | T102: 441.99 | U102: 2456.28 | V102: 619.28485 | W102: 3075.56485 | X102: 3126.3936 | Y102: 0 | Z102: 62.76175647 | AA102: 0 | AB102: 0 | AC102: 0 | AD102: 1128.88226 | AE102: 1327.530719 | AF102: 521.0746798 | AG102: 0 | AH102: 0 | AI102: 0 | AJ102: 0 | AK102: 3.533812031 | AL102: 11.13899803 | AN102: 0.6981006852 | AO102: 0 | AP102: 0 | AQ102: 0 | AR102: 0 | AS102: 0 | AT102: 0 | AU102: 0 | AV102: 4.167044742 | AW102: 1.087678802 | AX102: 0 | AY102: 0 | AZ102: 0 | BB102: 28.74211437 | BC102: 0 | BD102: 0.03531492966 | BE102: 0 | BF102: 0 | BG102: 9.183475906 | BH102: 0.4766122098 | BI102: 0 | BJ102: 0 | BK102: 0 | BL102: 0 | BV102: 530.2934706 | CI102: 3128.976 | CJ102: 53.38115 | CO102: 51.4621 | CP102: -0.63335 | CR102: 29.96593356 | CS102: 0 | CT102: 0 | CU102: 0 | CV102: 0 | CW102: 0 | CX102: 0 | CY102: 0 | CZ102: 62.83203623 | DA102: 0 | DB102: 0 | DC102: -26.86989008 | DD102: 0 | DE102: 0 | DF102: -0.001821060042 | DG102: -0.4735578176 | DH102: 0 | DI102: -7.098039407 | DK102: 0 | DL102: 0 | DM102: 0 | DN102: 2.272861763e-06 | DO102: 0.3304630648 | DP102: -0.04694667298 | DQ102: 0 | DR102: 1.286208872 | DU102: 1327.530719 | DV102: 0 | DW102: 0.478634384 | DX102: 0.002022174197 | DY102: 45.7022 | DZ102: -27.59255 | EA102: 5.7599 | EB102: 26.9592 | EC102: -11.82099463 | ED102: 28.24245229 | EE102: 0.001914083057 | EF102: 0 | EG102: 0 | EH102: 0.4977480008 | EI102: 0 | EJ102: 0 | EK102: 0 | EL102: 0 | EM102: 0 | EN102: 0 | EO102: 0 | EP102: 6.565512157 | EQ102: 3.824043429 | ER102: 0 | ES102: -1.289209095 | ET102: 0 | EU102: 0.007478156299 | EV102: 152 | EW102: 0 | EX102: 0 | EY102: 0 | FA102: 0 | FB102: -48.80228751 | FC102: -3.028738663 | FD102: -48.80228751 | FE102: -3.028738663 | FF102: 0 | FG102: 0 | FH102: 0 | FI102: 0
